Workbook

Sheet Introduction
A1: Supplemental Data for CO2 Attribution paper
A3: © Ari Halperin, 2015
A5: defyccc.com
A7: Corrected on 12/13/2015

Sheet LUC Houghton
A1: Year | B1: Global | C1: USA | D1: Canada | E1: S+C America | F1: Europe | G1: Nafrica/Meast | H1: Trop.Africa | I1: Frmr USSR | J1: China | K1: S+SE Asia | L1: Pac.Dev.Reg
A2: 1850 | B2: 500.6 | C2: 164.0922 | D2: 5.5476 | E2: 23.4757 | F2: 55.0441 | G2: 3.984 | H2: -1.3484 | I2: 58.5571 | J2: 101.8392 | K2: 87.3469 | L2: 2.0458
A3: 1851 | B3: 492.7 | C3: 165.7256 | D3: 5.3626 | E3: 23.152 | F3: 55.0156 | G3: 3.9839 | H3: -1.1192 | I3: 58.5525 | J3: 93.0766 | K3: 86.91 | L3: 2.0419
A4: 1852 | B4: 548.5 | C4: 230.6725 | D4: 5.338 | E4: 22.8618 | F4: 54.9874 | G4: 3.9837 | H4: -1.0033 | I4: 58.8781 | J4: 83.8307 | K4: 86.9385 | L4: 2.0379
A5: 1853 | B5: 546.8 | C5: 238.5149 | D5: 5.3138 | E5: 22.6017 | F5: 54.959 | G5: 3.9835 | H5: -1.0513 | I5: 59.2207 | J5: 74.214 | K5: 86.9935 | L5: 2.0338
A6: 1854 | B6: 544.8 | C6: 246.1846 | D6: 5.2899 | E6: 22.3687 | F6: 54.9304 | G6: 3.9833 | H6: -0.9855 | I6: 59.5802 | J6: 64.3129 | K6: 87.063 | L6: 2.0297
A7: 1855 | B7: 542.1 | C7: 253.5646 | D7: 5.2663 | E7: 22.16 | F7: 54.9016 | G7: 3.983 | H7: -1.1397 | I7: 59.9564 | J7: 54.194 | K7: 87.1452 | L7: 2.0255
A8: 1856 | B8: 547.7 | C8: 260.5263 | D8: 5.243 | E8: 21.9733 | F8: 54.8726 | G8: 3.983 | H8: -1.1049 | I8: 60.3411 | J8: 52.5623 | K8: 87.2403 | L8: 2.0218
A9: 1857 | B9: 553.3 | C9: 267.2467 | D9: 5.2198 | E9: 21.8063 | F9: 54.8434 | G9: 3.983 | H9: -1.1372 | I9: 60.7234 | J9: 51.272 | K9: 87.3385 | L9: 2.0181
A10: 1858 | B10: 558.6 | C10: 273.5912 | D10: 5.1968 | E10: 21.657 | F10: 54.8139 | G10: 3.983 | H10: -1.3895 | I10: 61.103 | J10: 50.2343 | K10: 87.4348 | L10: 2.0143
A11: 1859 | B11: 564 | C11: 279.7326 | D11: 5.1739 | E11: 21.5238 | F11: 54.7842 | G11: 3.983 | H11: -1.6117 | I11: 61.4799 | J11: 49.3921 | K11: 87.5291 | L11: 2.0104
A12: 1860 | B12: 569 | C12: 285.6716 | D12: 5.1511 | E12: 21.0521 | F12: 54.7543 | G12: 3.9829 | H12: -1.8338 | I12: 61.8537 | J12: 48.7025 | K12: 87.6218 | L12: 2.0066
A13: 1861 | B13: 579.6 | C13: 290.6665 | D13: 5.1284 | E13: 21.8892 | F13: 54.7862 | G13: 9.011 | H13: -2.0559 | I13: 62.2242 | J13: 48.1326 | K13: 87.7196 | L13: 2.0821
A14: 1862 | B14: 520.9 | C14: 237.6862 | D14: 6.7722 | E14: 22.1333 | F14: 54.8635 | G14: 9.9571 | H14: -1.942 | I14: 53.6909 | J14: 47.7736 | K14: 87.8153 | L14: 2.1826
A15: 1863 | B15: 521.1 | C15: 236.8319 | D15: 7.3119 | E15: 22.2482 | F15: 54.9554 | G15: 10.8221 | H15: -1.6705 | I15: 53.7482 | J15: 46.6115 | K15: 87.9075 | L15: 2.2994
A16: 1864 | B16: 521.6 | C16: 235.9699 | D16: 7.8399 | E16: 22.3048 | F16: 55.0611 | G16: 11.2539 | H16: -1.2478 | I16: 53.8026 | J16: 46.1613 | K16: 87.997 | L16: 2.4273
A17: 1865 | B17: 522.4 | C17: 235.2334 | D17: 8.3582 | E17: 22.3425 | F17: 55.1798 | G17: 11.6393 | H17: -0.6633 | I17: 53.8618 | J17: 45.7781 | K17: 88.0811 | L17: 2.5633
A18: 1866 | B18: 522.5 | C18: 234.7966 | D18: 8.8682 | E18: 21.9117 | F18: 55.3125 | G18: 11.9889 | H18: -0.4503 | I18: 53.7361 | J18: 45.4492 | K18: 88.1615 | L18: 2.6984
A19: 1867 | B19: 520.8 | C19: 232.539 | D19: 9.3709 | E19: 21.4929 | F19: 55.4566 | G19: 12.3102 | H19: -0.237 | I19: 53.6184 | J19: 45.1671 | K19: 88.2396 | L19: 2.8314
A20: 1868 | B20: 519.2 | C20: 230.5537 | D20: 9.8671 | E20: 21.0899 | F20: 55.6114 | G20: 12.6085 | H20: -0.2089 | I20: 53.5102 | J20: 44.9215 | K20: 88.3126 | L20: 2.9618
A21: 1869 | B21: 517.5 | C21: 228.6445 | D21: 10.3574 | E21: 20.7033 | F21: 55.7765 | G21: 12.8879 | H21: -0.4199 | I21: 53.4121 | J21: 44.7063 | K21: 88.3836 | L21: 3.0891
A22: 1870 | B22: 516.3 | C22: 226.7993 | D22: 10.8421 | E22: 20.6845 | F22: 55.951 | G22: 13.1514 | H22: -0.6307 | I22: 53.3205 | J22: 44.5167 | K22: 88.4499 | L22: 3.213
A23: 1871 | B23: 536.7 | C23: 224.1995 | D23: 11.3216 | E23: 20.618 | F23: 50.4782 | G23: 13.4019 | H23: -0.8373 | I23: 53.2349 | J23: 44.3485 | K23: 110.0401 | L23: 9.87
A24: 1872 | B24: 623.2 | C24: 303.8927 | D24: 11.7961 | E24: 20.4667 | F24: 49.5951 | G24: 13.6407 | H24: -1.044 | I24: 53.4881 | J24: 44.1989 | K24: 115.2003 | L24: 11.9261
A25: 1873 | B25: 634.1 | C25: 309.2584 | D25: 12.2658 | E25: 20.3876 | F25: 48.753 | G25: 13.8692 | H25: -0.8107 | I25: 53.7454 | J25: 44.0649 | K25: 118.9247 | L25: 13.659
A26: 1874 | B26: 641.1 | C26: 314.4476 | D26: 12.7306 | E26: 20.3382 | F26: 47.945 | G26: 14.0887 | H26: -0.4387 | I26: 54.0056 | J26: 41.9545 | K26: 121.7101 | L26: 14.333
A27: 1875 | B27: 648.4 | C27: 319.3339 | D27: 13.1908 | E27: 20.295 | F27: 47.165 | G27: 14.3001 | H27: -0.2518 | I27: 54.2676 | J27: 41.4062 | K27: 123.8744 | L27: 14.8672
A28: 1876 | B28: 655.5 | C28: 324.0799 | D28: 13.6463 | E28: 20.4093 | F28: 46.5281 | G28: 14.4652 | H28: -0.0649 | I28: 54.9449 | J28: 40.8748 | K28: 125.2495 | L28: 15.35
A29: 1877 | B29: 662.4 | C29: 330.0679 | D29: 13.2989 | E29: 20.8655 | F29: 45.9364 | G29: 14.6283 | H29: -0.0332 | I29: 55.036 | J29: 40.4067 | K29: 126.4083 | L29: 15.7573
A30: 1878 | B30: 669.5 | C30: 335.7983 | D30: 13.224 | E30: 21.3048 | F30: 45.3859 | G30: 14.7896 | H30: -0.0014 | I30: 55.1253 | J30: 40.3165 | K30: 127.4174 | L30: 16.1158
A31: 1879 | B31: 676.4 | C31: 341.3216 | D31: 13.1455 | E31: 21.7243 | F31: 44.8729 | G31: 14.9313 | H31: 0.0302 | I31: 55.2119 | J31: 40.4353 | K31: 128.3197 | L31: 16.4426
A32: 1880 | B32: 682.9 | C32: 346.6568 | D32: 13.0634 | E32: 22.1232 | F32: 44.3942 | G32: 15.0719 | H32: -0.1584 | I32: 55.3017 | J32: 40.5859 | K32: 129.1453 | L32: 16.7486
A33: 1881 | B33: 718.9 | C33: 350.7138 | D33: 12.9779 | E33: 54.0996 | F33: 43.9404 | G33: 15.2116 | H33: -0.3282 | I33: 55.4023 | J33: 40.3481 | K33: 129.5359 | L33: 17.0474
A34: 1882 | B34: 672.7 | C34: 295.6249 | D34: 12.8891 | E34: 62.9856 | F34: 43.5157 | G34: 15.3507 | H34: -0.498 | I34: 55.5127 | J34: 40.1313 | K34: 129.8825 | L34: 17.3438
A35: 1883 | B35: 678.3 | C35: 294.0081 | D35: 12.7972 | E35: 70.1564 | F35: 43.1178 | G35: 15.4893 | H35: -0.6911 | I35: 55.6322 | J35: 39.9314 | K35: 130.1972 | L35: 17.6405
A36: 1884 | B36: 683.4 | C36: 292.7059 | D36: 12.7024 | E36: 76.0985 | F36: 42.7448 | G36: 15.6275 | H36: -0.4439 | I36: 55.76 | J36: 39.7453 | K36: 130.4838 | L36: 17.9395
A37: 1885 | B37: 687.7 | C37: 291.5623 | D37: 12.6048 | E37: 81.15 | F37: 42.3948 | G37: 15.7655 | H37: -0.1969 | I37: 55.8955 | J37: 39.5674 | K37: 130.7499 | L37: 18.242
A38: 1886 | B38: 690.4 | C38: 290.3335 | D38: 12.5047 | E38: 84.0937 | F38: 42.5571 | G38: 15.9008 | H38: 0.0499 | I38: 56.0314 | J38: 39.3987 | K38: 130.9958 | L38: 18.5397
A39: 1887 | B39: 689.8 | C39: 286.8137 | D39: 12.4021 | E39: 86.1971 | F39: 42.7312 | G39: 16.0336 | H39: 0.1267 | I39: 56.1671 | J39: 39.2377 | K39: 131.2262 | L39: 18.8332
A40: 1888 | B40: 688.6 | C40: 283.3092 | D40: 12.2974 | E40: 87.9335 | F40: 42.9158 | G40: 16.1639 | H40: -0.0167 | I40: 56.3023 | J40: 39.0831 | K40: 131.4435 | L40: 19.1227
A41: 1889 | B41: 687.2 | C41: 279.9184 | D41: 12.1907 | E41: 89.3882 | F41: 43.1097 | G41: 16.2919 | H41: -0.2021 | I41: 56.4362 | J41: 39.0309 | K41: 131.6463 | L41: 19.3617
A42: 1890 | B42: 685.9 | C42: 276.6088 | D42: 12.0821 | E42: 90.6234 | F42: 43.3116 | G42: 16.4175 | H42: -0.169 | I42: 56.5684 | J42: 38.9838 | K42: 131.8386 | L42: 19.5971
A43: 1891 | B43: 681.5 | C43: 272.6224 | D43: 11.9717 | E43: 73.4217 | F43: 43.5137 | G43: 16.5408 | H43: -0.4233 | I43: 56.6985 | J43: 39.0009 | K43: 148.303 | L43: 19.8289
A44: 1892 | B44: 695 | C44: 285.1653 | D44: 11.8975 | E44: 69.9525 | F44: 43.7151 | G44: 16.6618 | H44: -0.6777 | I44: 56.8279 | J44: 39.0256 | K44: 152.338 | L44: 20.0572
A45: 1893 | B45: 695.8 | C45: 285.5659 | D45: 11.8218 | E45: 67.2976 | F45: 43.9148 | G45: 16.7807 | H45: -1.0833 | I45: 56.956 | J45: 39.0573 | K45: 155.249 | L45: 20.2819
A46: 1894 | B46: 713.3 | C46: 287.1071 | D46: 11.7448 | E46: 65.2477 | F46: 44.1119 | G46: 16.8973 | H46: -1.422 | I46: 57.0827 | J46: 54.5849 | K46: 157.4357 | L46: 20.503
A47: 1895 | B47: 717.5 | C47: 288.6845 | D47: 11.6666 | E47: 63.6494 | F47: 44.3056 | G47: 17.0118 | H47: -1.2556 | I47: 57.2074 | J47: 56.3774 | K47: 159.1528 | L47: 20.7204
A48: 1896 | B48: 719.4 | C48: 288.3386 | D48: 11.5874 | E48: 62.5711 | F48: 44.4951 | G48: 17.1242 | H48: -1.2784 | I48: 57.3301 | J48: 58.0801 | K48: 160.2487 | L48: 20.934
A49: 1897 | B49: 723 | C49: 289.2498 | D49: 11.5071 | E49: 61.7471 | F49: 44.6798 | G49: 17.2345 | H49: -0.9609 | I49: 57.4502 | J49: 59.7669 | K49: 161.1416 | L49: 21.1438
A50: 1898 | B50: 724.5 | C50: 288.2364 | D50: 11.426 | E50: 61.1155 | F50: 44.8589 | G50: 17.3427 | H50: -0.6434 | I50: 57.5677 | J50: 61.3659 | K50: 161.8953 | L50: 21.3496
A51: 1899 | B51: 725.8 | C51: 287.2323 | D51: 11.3441 | E51: 60.63 | F51: 45.0318 | G51: 17.4488 | H51: -0.5555 | I51: 57.6822 | J51: 62.8962 | K51: 162.5557 | L51: 21.5514
A52: 1900 | B52: 726.9 | C52: 286.2529 | D52: 11.2615 | E52: 60.2563 | F52: 45.1932 | G52: 17.5528 | H52: -0.6736 | I52: 57.7935 | J52: 64.3642 | K52: 163.1483 | L52: 21.7491
A53: 1901 | B53: 792.8 | C53: 285.8526 | D53: 11.1945 | E53: 121.8006 | F53: 45.4366 | G53: 20.0678 | H53: -0.798 | I53: 57.9014 | J53: 65.7618 | K53: 163.5097 | L53: 22.0339
A54: 1902 | B54: 796.8 | C54: 240.4008 | D54: 24.0068 | E54: 139.4178 | F54: 45.7004 | G54: 20.5752 | H54: -0.2576 | I54: 58.0485 | J54: 82.7269 | K54: 163.8322 | L54: 22.3377
A55: 1903 | B55: 825.9 | C55: 231.8157 | D55: 26.8045 | E55: 153.7616 | F55: 45.983 | G55: 21.0383 | H55: 0.9851 | I55: 58.1916 | J55: 100.5749 | K55: 164.1244 | L55: 22.651
A56: 1904 | B56: 852.4 | C56: 222.2119 | D56: 29.4944 | E56: 165.779 | F56: 46.2824 | G56: 21.294 | H56: 2.6563 | I56: 58.3304 | J56: 119.009 | K56: 164.3921 | L56: 22.9711
A57: 1905 | B57: 878.5 | C57: 213.0842 | D57: 32.0952 | E57: 176.1182 | F57: 46.5971 | G57: 21.5219 | H57: 4.8255 | I57: 58.4652 | J57: 137.901 | K57: 164.6389 | L57: 23.2954
A58: 1906 | B58: 909.5 | C58: 205.8566 | D58: 34.6214 | E58: 180.8407 | F58: 46.9254 | G58: 21.7165 | H58: 7.4461 | I58: 58.5916 | J58: 157.1312 | K58: 172.783 | L58: 23.6175
A59: 1907 | B59: 918.6 | C59: 198.4962 | D59: 37.0581 | E59: 184.6834 | F59: 47.2659 | G59: 21.892 | H59: 10.1825 | I59: 58.5861 | J59: 161.6101 | K59: 174.8759 | L59: 23.9367
A60: 1908 | B60: 927.9 | C60: 193.3296 | D60: 39.4403 | E60: 187.8652 | F60: 47.6173 | G60: 22.0509 | H60: 12.928 | I60: 58.5758 | J60: 165.4892 | K60: 176.3878 | L60: 24.2526
A61: 1909 | B61: 935.3 | C61: 188.2258 | D61: 41.7751 | E61: 190.5416 | F61: 47.9782 | G61: 22.1954 | H61: 15.5432 | I61: 58.5605 | J61: 168.3916 | K61: 177.5327 | L61: 24.5647
A62: 1910 | B62: 941 | C62: 183.0325 | D62: 44.0683 | E62: 192.5875 | F62: 48.3474 | G62: 22.327 | H62: 17.8936 | I62: 58.5441 | J62: 170.9247 | K62: 178.4426 | L62: 24.8725
A63: 1911 | B63: 882.9 | C63: 178.7927 | D63: 46.3245 | E63: 130.4638 | F63: 48.72 | G63: 22.4772 | H63: 20.2295 | I63: 58.5263 | J63: 173.1642 | K63: 179.0479 | L63: 25.1498
A64: 1912 | B64: 846.2 | C64: 153.4623 | D64: 48.5895 | E64: 112.63 | F64: 49.0951 | G64: 22.5897 | H64: 22.6874 | I64: 58.508 | J64: 173.6252 | K64: 179.5523 | L64: 25.4146
A65: 1913 | B65: 815.9 | C65: 147.611 | D65: 50.7684 | E65: 97.964 | F65: 49.4719 | G65: 22.6947 | H65: 24.9674 | I65: 63.6836 | J65: 173.8119 | K65: 159.2155 | L65: 25.6682
A66: 1914 | B66: 804.8 | C66: 142.9251 | D66: 52.9231 | E66: 85.5031 | F66: 49.8493 | G66: 22.7928 | H66: 27.1705 | I66: 65.2347 | J66: 177.7884 | K66: 154.6764 | L66: 25.9149
A67: 1915 | B67: 793 | C67: 138.3415 | D67: 55.0561 | E67: 74.5948 | F67: 50.2265 | G67: 22.8846 | H67: 29.3502 | I67: 66.5887 | J67: 178.4079 | K67: 151.4013 | L67: 26.1551
A68: 1916 | B68: 795.1 | C68: 133.4718 | D68: 57.1692 | E68: 70.4942 | F68: 50.6646 | G68: 22.9306 | H68: 31.5171 | I68: 67.8932 | J68: 178.7551 | K68: 155.8358 | L68: 26.3889
A69: 1917 | B69: 798.2 | C69: 129.9933 | D69: 57.771 | E69: 67.1942 | F69: 51.0941 | G69: 22.9713 | H69: 34.1071 | I69: 69.2063 | J69: 183.736 | K69: 155.504 | L69: 26.6165
A70: 1918 | B70: 801.4 | C70: 126.1382 | D70: 58.3564 | E70: 64.4819 | F70: 51.5143 | G70: 23.0071 | H70: 36.4256 | I70: 70.4852 | J70: 188.7712 | K70: 155.3742 | L70: 26.8378
A71: 1919 | B71: 807.1 | C71: 124.4466 | D71: 58.9267 | E71: 62.2083 | F71: 51.9245 | G71: 23.0298 | H71: 38.731 | I71: 71.7574 | J71: 193.8543 | K71: 155.1679 | L71: 27.0529
A72: 1920 | B72: 808.8 | C72: 118.607 | D72: 59.4833 | E72: 60.0345 | F72: 52.324 | G72: 23.0483 | H72: 41.0865 | I72: 73.0559 | J72: 198.9584 | K72: 154.9375 | L72: 27.2616
A73: 1921 | B73: 856.7 | C73: 112.4582 | D73: 60.0272 | E73: 104.7568 | F73: 52.7692 | G73: 23.0627 | H73: 43.0389 | I73: 74.3848 | J73: 204.0601 | K73: 154.613 | L73: 27.5729
A74: 1922 | B74: 849.1 | C74: 85.4772 | D74: 60.5644 | E74: 117.2792 | F74: 53.2021 | G74: 23.0735 | H74: 44.8857 | I74: 75.7471 | J74: 206.7472 | K74: 154.2994 | L74: 27.7921
A75: 1923 | B75: 857 | C75: 76.428 | D75: 61.0907 | E75: 127.4191 | F75: 53.6224 | G75: 23.0809 | H75: 46.6949 | I75: 77.0566 | J75: 209.2309 | K75: 154.3832 | L75: 27.9986
A76: 1924 | B76: 862.7 | C76: 67.1982 | D76: 61.607 | E76: 135.9285 | F76: 54.0294 | G76: 23.085 | H76: 48.1746 | I76: 78.4035 | J76: 211.5901 | K76: 154.4794 | L76: 28.1771
A77: 1925 | B77: 865.6 | C77: 56.4716 | D77: 62.114 | E77: 143.3089 | F77: 54.4226 | G77: 23.0861 | H77: 49.6087 | I77: 79.7828 | J77: 213.8495 | K77: 154.5862 | L77: 28.3465
A78: 1926 | B78: 870.5 | C78: 49.8153 | D78: 62.6123 | E78: 145.3815 | F78: 54.0845 | G78: 31.7032 | H78: 50.9836 | I78: 81.1955 | J78: 216.0317 | K78: 150.1051 | L78: 28.574
A79: 1927 | B79: 909.7 | C79: 93.1593 | D79: 52.6394 | E79: 146.9751 | F79: 53.6247 | G79: 33.6301 | H79: 52.3024 | I79: 82.5309 | J79: 216.9146 | K79: 149.1579 | L79: 28.8094
A80: 1928 | B80: 913 | C80: 92.9422 | D80: 50.9567 | E80: 148.146 | F80: 53.0481 | G80: 35.3567 | H80: 54.0675 | I80: 83.099 | J80: 217.7548 | K80: 148.569 | L80: 29.0516
A81: 1929 | B81: 940 | C81: 116.9714 | D81: 49.3562 | E81: 148.9917 | F81: 52.359 | G81: 35.792 | H81: 55.8185 | I81: 83.6993 | J81: 219.5039 | K81: 148.2114 | L81: 29.2959
A82: 1930 | B82: 1018.1 | C82: 191.6778 | D82: 47.8221 | E82: 150.0502 | F82: 51.5618 | G82: 36.1232 | H82: 57.3835 | I82: 84.3022 | J82: 221.6063 | K82: 148.0027 | L82: 29.5418
A83: 1931 | B83: 1028.7 | C83: 187.6267 | D83: 46.3422 | E83: 161.8485 | F83: 50.6588 | G83: 36.7444 | H83: 59.1174 | I83: 84.9077 | J83: 223.6667 | K83: 147.9707 | L83: 29.7887
A84: 1932 | B84: 930.8 | C84: 84.9591 | D84: 44.9068 | E84: 165.0499 | F84: 49.6554 | G84: 37.3055 | H84: 60.7769 | I84: 85.5199 | J84: 224.5684 | K84: 147.9992 | L84: 30.0363
A85: 1933 | B85: 927.6 | C85: 77.4386 | D85: 43.5084 | E85: 167.5446 | F85: 48.5551 | G85: 37.8209 | H85: 62.7908 | I85: 86.1474 | J85: 225.4108 | K85: 148.0654 | L85: 30.2841
A86: 1934 | B86: 915.3 | C86: 70.1734 | D86: 42.1409 | E86: 169.5075 | F86: 47.3612 | G86: 38.3008 | H86: 64.6566 | I86: 84.5532 | J86: 219.9642 | K86: 148.1542 | L86: 30.532
A87: 1935 | B87: 913.7 | C87: 67.8054 | D87: 40.7992 | E87: 171.0651 | F87: 46.0769 | G87: 38.7529 | H87: 67.5293 | I87: 82.8035 | J87: 219.8235 | K87: 148.2555 | L87: 30.7795
A88: 1936 | B88: 922 | C88: 59.3827 | D88: 39.4793 | E88: 172.778 | F88: 44.7582 | G88: 39.1801 | H88: 69.2123 | I88: 80.8993 | J88: 219.7536 | K88: 165.4944 | L88: 31.0238
A89: 1937 | B89: 899.3 | C89: 32.8331 | D89: 38.178 | E89: 174.6317 | F89: 43.4031 | G89: 39.5866 | H89: 71.1387 | I89: 78.842 | J89: 219.7429 | K89: 169.7137 | L89: 31.2645
A90: 1938 | B90: 902.4 | C90: 33.3753 | D90: 36.8924 | E90: 176.2967 | F90: 42.0143 | G90: 39.9756 | H90: 73.0465 | I90: 76.6881 | J90: 219.7764 | K90: 172.8427 | L90: 31.5016
A91: 1939 | B91: 900.5 | C91: 29.503 | D91: 35.6201 | E91: 177.811 | F91: 40.5942 | G91: 40.3493 | H91: 75.3304 | I91: 74.5129 | J91: 219.7679 | K91: 175.2349 | L91: 31.7348
A92: 1940 | B92: 887.5 | C92: 16.488 | D92: 34.3592 | E92: 179.2032 | F92: 39.1451 | G92: 40.7098 | H92: 77.5506 | I92: 71.1462 | J92: 219.7826 | K92: 177.1276 | L92: 31.9639
A93: 1941 | B93: 870.2 | C93: 14.9802 | D93: 33.108 | E93: 177.8057 | F93: 37.6905 | G93: 41.0343 | H93: 79.5326 | I93: 54.4211 | J93: 219.8139 | K93: 179.6268 | L93: 32.1887
A94: 1942 | B94: 891.3 | C94: 27.5594 | D94: 33.0949 | E94: 177.2661 | F94: 36.2326 | G94: 41.3486 | H94: 81.747 | I94: 47.5128 | J94: 231.9072 | K94: 182.1978 | L94: 32.4092
A95: 1943 | B95: 886.4 | C95: 13.2181 | D95: 33.0887 | E95: 176.8667 | F95: 34.7731 | G95: 41.6535 | H95: 84.0349 | I95: 40.8358 | J95: 244.604 | K95: 184.7197 | L95: 32.625
A96: 1944 | B96: 892.3 | C96: 8.9796 | D96: 33.0881 | E96: 176.6292 | F96: 33.314 | G96: 41.8935 | H96: 86.348 | I96: 34.3535 | J96: 257.7192 | K96: 187.1801 | L96: 32.8362
A97: 1945 | B97: 894.1 | C97: 0.1294 | D97: 33.0921 | E97: 176.39 | F97: 31.8572 | G97: 42.1256 | H97: 88.6447 | I97: 28.0367 | J97: 271.1625 | K97: 189.5739 | L97: 33.0425
A98: 1946 | B98: 976.9 | C98: -4.8479 | D98: 33.0998 | E98: 179.4022 | F98: 30.4041 | G98: 42.3455 | H98: 91.2046 | I98: 24.0287 | J98: 284.8639 | K98: 263.1423 | L98: 33.2438
A99: 1947 | B99: 1008.9 | C99: 5.9298 | D99: 32.9119 | E99: 182.4977 | F99: 28.9564 | G99: 42.5586 | H99: 93.5386 | I99: 20.4267 | J99: 286.9466 | K99: 281.6554 | L99: 33.4401
A100: 1948 | B100: 1015.8 | C100: -5.2068 | D100: 32.7261 | E100: 185.7892 | F100: 27.5156 | G100: 42.7655 | H100: 97.3423 | I100: 17.1788 | J100: 288.6894 | K100: 295.3988 | L100: 33.6311
A101: 1949 | B101: 1024.9 | C101: -10.5706 | D101: 32.5417 | E101: 189.2369 | F101: 26.083 | G101: 42.9664 | H101: 101.1581 | I101: 14.3053 | J101: 290.244 | K101: 305.118 | L101: 33.8168
A102: 1950 | B102: 1037.3 | C102: -11.381 | D102: 32.3582 | E102: 192.7775 | F102: 24.6601 | G102: 43.1618 | H102: 105.1777 | I102: 13.0821 | J102: 290.1121 | K102: 313.3894 | L102: 33.997
A103: 1951 | B103: 1258.3 | C103: 3.2321 | D103: 32.1655 | E103: 251.684 | F103: 23.5287 | G103: 34.397 | H103: 109.2565 | I103: 126.9132 | J103: 289.8171 | K103: 319.7975 | L103: 67.5149
A104: 1952 | B104: 1284.7 | C104: -42.0452 | D104: 32.8542 | E104: 270.4083 | F104: 22.5462 | G104: 32.6365 | H104: 105.8839 | I104: 149.6418 | J104: 308.0985 | K104: 327.7605 | L104: 76.8785
A105: 1953 | B105: 1280.9 | C105: -66.2967 | D105: 32.6123 | E105: 285.7957 | F105: 21.707 | G105: 30.8325 | H105: 108.939 | I105: 171.4843 | J105: 327.0376 | K105: 284.302 | L105: 84.515
A106: 1954 | B106: 1335 | C106: -64.4056 | D106: 32.3676 | E106: 298.6844 | F106: 21.0057 | G106: 28.6106 | H106: 111.9529 | I106: 192.6664 | J106: 346.4916 | K106: 280.9997 | L106: 86.5883
A107: 1955 | B107: 1379.5 | C107: -73.6215 | D107: 32.1213 | E107: 309.8231 | F107: 20.4372 | G107: 26.3933 | H107: 115.2903 | I107: 213.7468 | J107: 366.3485 | K107: 281.0364 | L107: 87.9184
A108: 1956 | B108: 1438.9 | C108: -65.492 | D108: 31.8727 | E108: 316.4737 | F108: 19.9971 | G108: 25.708 | H108: 118.5831 | I108: 236.1473 | J108: 386.5128 | K108: 280.3532 | L108: 88.7565
A109: 1957 | B109: 1469.1 | C109: -68.0023 | D109: 31.6218 | E109: 322.0027 | F109: 19.6809 | G109: 25.0441 | H109: 121.9669 | I109: 258.2474 | J109: 388.5816 | K109: 280.6665 | L109: 89.258
A110: 1958 | B110: 1520.8 | C110: -32.9847 | D110: 31.3693 | E110: 326.6672 | F110: 19.4847 | G110: 24.4051 | H110: 124.7583 | I110: 279.9521 | J110: 381.7426 | K110: 275.8913 | L110: 89.5234
A111: 1959 | B111: 1397.8 | C111: -71.7656 | D111: 31.1156 | E111: 330.7125 | F111: 19.4048 | G111: 23.7924 | H111: 127.643 | I111: 208.3413 | J111: 362.1201 | K111: 276.8056 | L111: 89.6187
A112: 1960 | B112: 1385.8 | C112: -74.8924 | D112: 30.8611 | E112: 334.2908 | F112: 19.4378 | G112: 23.2061 | H112: 130.4621 | I112: 210.886 | J112: 343.0883 | K112: 278.8759 | L112: 89.5878
A113: 1961 | B113: 1463.9 | C113: -88.5352 | D113: 30.6061 | E113: 449.5846 | F113: 16.697 | G113: 22.6358 | H113: 132.7179 | I113: 205.2209 | J113: 323.0807 | K113: 282.4036 | L113: 89.4762
A114: 1962 | B114: 1460 | C114: -86.2373 | D114: 30.7092 | E114: 484.3614 | F114: 16.3182 | G114: 22.0831 | H114: 133.626 | I114: 201.8684 | J114: 296.1633 | K114: 271.7556 | L114: 89.3046
A115: 1963 | B115: 1474.9 | C115: -92.2613 | D115: 30.8185 | E115: 512.0131 | F115: 16.0138 | G115: 21.5468 | H115: 138.8699 | I115: 198.8176 | J115: 285.6024 | K115: 274.4314 | L115: 89.0873
A116: 1964 | B116: 1487.1 | C116: -95.4137 | D116: 30.9329 | E116: 534.3961 | F116: 15.778 | G116: 21.0252 | H116: 140.7341 | I116: 196.1792 | J116: 284.9992 | K116: 269.6573 | L116: 88.8349
A117: 1965 | B117: 1505 | C117: -99.9211 | D117: 31.0519 | E117: 553.6736 | F117: 15.6057 | G117: 20.5169 | H117: 143.4348 | I117: 192.9175 | J117: 284.2856 | K117: 274.832 | L117: 88.5552
A118: 1966 | B118: 1539.3 | C118: -67.8978 | D118: 31.1747 | E118: 563.7305 | F118: 15.4787 | G118: 21.6252 | H118: 142.4889 | I118: 181.1651 | J118: 283.1213 | K118: 280.1304 | L118: 88.254
A119: 1967 | B119: 1545.8 | C119: -63.7806 | D119: 31.1614 | E119: 572.3911 | F119: 15.393 | G119: 21.8182 | H119: 143.5641 | I119: 169.5244 | J119: 282.1658 | K119: 285.6202 | L119: 87.936
A120: 1968 | B120: 1477.7 | C120: -62.816 | D120: 31.1508 | E120: 580.3455 | F120: 15.3453 | G120: 21.9618 | H120: 139.4276 | I120: 157.9246 | J120: 281.7422 | K120: 225.0237 | L120: 87.605
A121: 1969 | B121: 1483.1 | C121: -51.6498 | D121: 31.1422 | E121: 587.0378 | F121: 15.3323 | G121: 21.7325 | H121: 146.5198 | I121: 147.835 | J121: 281.2201 | K121: 216.9035 | L121: 87.0376
A122: 1970 | B122: 1439.7 | C122: -53.0083 | D122: 31.1351 | E122: 593.0623 | F122: 13.5652 | G122: 21.4815 | H122: 139.7948 | I122: 114.463 | J122: 280.7878 | K122: 211.9917 | L122: 86.4628
A123: 1971 | B123: 1291.7 | C123: -89.3417 | D123: 31.129 | E123: 536.7992 | F123: 11.1776 | G123: 21.5241 | H123: 143.0942 | I123: 100.097 | J123: 280.6546 | K123: 206.3663 | L123: 50.2289
A124: 1972 | B124: 1264.2 | C124: -80.9163 | D124: 30.0967 | E124: 524.9468 | F124: 8.641 | G124: 21.5707 | H124: 146.8347 | I124: 85.3721 | J124: 282.8365 | K124: 205.6897 | L124: 39.1079
A125: 1973 | B125: 1248.7 | C125: -92.91 | D125: 30.1555 | E125: 515.5985 | F125: 5.9633 | G125: 21.6182 | H125: 150.7956 | I125: 71.2519 | J125: 284.6924 | K125: 231.7871 | L125: 29.7374
A126: 1974 | B126: 1254.5 | C126: -92.0859 | D126: 30.2295 | E126: 508.3358 | F126: 3.1514 | G126: 21.6649 | H126: 154.657 | I126: 64.85 | J126: 287.214 | K126: 250.4113 | L126: 26.121
A127: 1975 | B127: 1245.1 | C127: -81.5069 | D127: 30.3165 | E127: 502.6092 | F127: 0.212 | G127: 21.7099 | H127: 144.4895 | I127: 58.7805 | J127: 291.2875 | K127: 253.9577 | L127: 23.2405
A128: 1976 | B128: 1311.9 | C128: -64.7989 | D128: 30.4137 | E128: 503.0202 | F128: -2.6384 | G128: 21.75 | H128: 158.9979 | I128: 55.9196 | J128: 303.4486 | K128: 284.9271 | L128: 20.8475
A129: 1977 | B129: 1315.1 | C129: -60.201 | D129: 30.5189 | E129: 504.1784 | F129: -5.6405 | G129: 21.7849 | H129: 142.3633 | I129: 50.3584 | J129: 306.3707 | K129: 306.5672 | L129: 18.7813
A130: 1978 | B130: 1311.9 | C130: -54.3954 | D130: 30.6301 | E130: 505.3112 | F130: -8.789 | G130: 21.8141 | H130: 149.0206 | I130: 44.8217 | J130: 285.3496 | K130: 321.2245 | L130: 16.9395
A131: 1979 | B131: 1283.8 | C131: -51.7024 | D131: 30.7458 | E131: 506.2329 | F131: -12.0787 | G131: 21.8375 | H131: 150.3189 | I131: 39.4952 | J131: 248.0605 | K131: 335.6523 | L131: 15.2555
A132: 1980 | B132: 1239.9 | C132: -53.9099 | D132: 30.8645 | E132: 507.8076 | F132: -14.0904 | G132: 21.8546 | H132: 144.613 | I132: 35.4417 | J132: 209.5193 | K132: 344.1128 | L132: 13.6855
A133: 1981 | B133: 1263.4 | C133: -50.179 | D133: 30.9882 | E133: 509.9935 | F133: -15.3441 | G133: 16.997 | H133: 166.7161 | I133: 33.4094 | J133: 168.7846 | K133: 386.4706 | L133: 15.5846
A134: 1982 | B134: 1463 | C134: -38.0416 | D134: 27.775 | E134: 729.4026 | F134: -16.3867 | G134: 16.5587 | H134: 181.8709 | I134: 30.7262 | J134: 122.8564 | K134: 393.2972 | L134: 14.9364
A135: 1983 | B135: 1512.9 | C135: -38.8209 | D135: 26.9791 | E135: 787.5435 | F135: -17.228 | G135: 16.4446 | H135: 195.3451 | I135: 28.8236 | J135: 101.4697 | K135: 398.1764 | L135: 14.1264
A136: 1984 | B136: 1560.1 | C136: -42.4746 | D136: 26.2131 | E136: 833.6449 | F136: -17.8771 | G136: 18.0412 | H136: 205.462 | I136: 27.161 | J136: 93.771 | K136: 403.4136 | L136: 12.7488
A137: 1985 | B137: 1583.2 | C137: -39.433 | D137: 25.4712 | E137: 872.9568 | F137: -18.3425 | G137: 19.8024 | H137: 197.0632 | I137: 25.7685 | J137: 82.7284 | K137: 405.8961 | L137: 11.2882
A138: 1986 | B138: 1601.1 | C138: -34.2624 | D138: 24.7489 | E138: 902.4733 | F138: -18.6211 | G138: 20.3708 | H138: 193.4076 | I138: 23.3571 | J138: 76.7877 | K138: 403.0736 | L138: 9.7724
A139: 1987 | B139: 1611.1 | C139: -31.0856 | D139: 24.2385 | E139: 917.0016 | F139: -18.7217 | G139: 21.0176 | H139: 193.3061 | I139: 22.5708 | J139: 70.9659 | K139: 403.5852 | L139: 8.2217
A140: 1988 | B140: 1638.5 | C140: -21.5886 | D140: 23.7394 | E140: 926.4348 | F140: -18.6509 | G140: 21.7215 | H140: 202.7612 | I140: 21.849 | J140: 64.8287 | K140: 410.7334 | L140: 6.6458
A141: 1989 | B141: 1647 | C141: -21.7745 | D141: 23.2494 | E141: 932.6304 | F141: -18.4152 | G141: 22.4675 | H141: 197.1493 | I141: 21.1859 | J141: 66.5984 | K141: 418.5888 | L141: 5.288
A142: 1990 | B142: 1643.7 | C142: -31.9488 | D142: 22.7669 | E142: 936.8016 | F142: -18.0804 | G142: 23.2448 | H142: 201.3556 | I142: 20.1075 | J142: 61.103 | K142: 424.4609 | L142: 3.9161
A143: 1991 | B143: 1712.5 | C143: -31.9488 | D143: 22.2902 | E143: 938.5569 | F143: -18.0804 | G143: 23.2448 | H143: 195.5283 | I143: 20.1075 | J143: 50.8913 | K143: 507.9562 | L143: 3.9161
A144: 1992 | B144: 1605 | C144: -31.9488 | D144: 21.5765 | E144: 803.6967 | F144: -18.0804 | G144: 23.2448 | H144: 214.2546 | I144: 20.1075 | J144: 39.8241 | K144: 528.4274 | L144: 3.9161
A145: 1993 | B145: 1593.8 | C145: -31.9488 | D145: 20.859 | E145: 767.5051 | F145: -18.0804 | G145: 23.2448 | H145: 224.8938 | I145: 20.1075 | J145: 39.5205 | K145: 543.7326 | L145: 3.9161
A146: 1994 | B146: 1580.5 | C146: -31.9488 | D146: 20.1381 | E146: 737.2515 | F146: -18.0804 | G146: 23.2448 | H146: 243.6705 | I146: 20.1075 | J146: 43.0188 | K146: 539.2242 | L146: 3.9161
A147: 1995 | B147: 1561.6 | C147: -31.9488 | D147: 19.4139 | E147: 713.3743 | F147: -18.0804 | G147: 23.2448 | H147: 262.8047 | I147: 20.1075 | J147: 31.0766 | K147: 537.687 | L147: 3.9161
A148: 1996 | B148: 1531.3 | C148: -31.9488 | D148: 18.6869 | E148: 692.0782 | F148: -18.0804 | G148: 23.2448 | H148: 260.9458 | I148: 20.1075 | J148: 27.3201 | K148: 534.9972 | L148: 3.9161
A149: 1997 | B149: 1491.3 | C149: -31.9488 | D149: 18.4221 | E149: 678.5458 | F149: -18.0804 | G149: 23.2448 | H149: 247.4983 | I149: 20.1075 | J149: 21.0883 | K149: 528.509 | L149: 3.9161
A150: 1998 | B150: 1487.2 | C150: -31.9488 | D150: 18.1548 | E150: 667.0977 | F150: -18.0804 | G150: 23.2448 | H150: 269.3844 | I150: 20.1075 | J150: 12.0691 | K150: 523.2374 | L150: 3.9161
A151: 1999 | B151: 1449.2 | C151: -31.9488 | D151: 17.8853 | E151: 656.4411 | F151: -18.0804 | G151: 23.2448 | H151: 263.9341 | I151: 20.1075 | J151: 5.0331 | K151: 508.6944 | L151: 3.9161
A152: 2000 | B152: 1409.9 | C152: -31.9488 | D152: 17.6121 | E152: 649.566 | F152: -18.0804 | G152: 23.2448 | H152: 260.8636 | I152: 20.1075 | J152: -12.9153 | K152: 497.5139 | L152: 3.9161
A153: 2001 | B153: 1385.4 | C153: -31.9488 | D153: 17.6121 | E153: 643.1904 | F153: -18.0804 | G153: 23.2448 | H153: 261.6969 | I153: 20.1075 | J153: -12.9153 | K153: 478.5329 | L153: 3.9161
A154: 2002 | B154: 1517.7 | C154: -31.9488 | D154: 17.6121 | E154: 625.5099 | F154: -18.0804 | G154: 23.2448 | H154: 258.5236 | I154: 20.1075 | J154: -12.9153 | K154: 631.696 | L154: 3.9161
A155: 2003 | B155: 1513.2 | C155: -31.9488 | D155: 17.6121 | E155: 616.4536 | F155: -18.0804 | G155: 23.2448 | H155: 225.5212 | I155: 20.1075 | J155: -12.9153 | K155: 669.2975 | L155: 3.9161
A156: 2004 | B156: 1534.9 | C156: -31.9488 | D156: 17.6121 | E156: 609.3525 | F156: -18.0804 | G156: 23.2448 | H156: 225.7864 | I156: 20.1075 | J156: -12.9153 | K156: 697.8432 | L156: 3.9161
A157: 2005 | B157: 1467.3 | C157: -31.9488 | D157: 17.6121 | E157: 606.4342 | F157: -18.0804 | G157: 23.2448 | H157: 239.239 | I157: 20.1075 | J157: -12.9153 | K157: 619.6937 | L157: 3.9161

Sheet FF Global
A1: ***********************************************************
A2: Regional CO2 Emissions from Fossil-Fuel Burning
A3: Cement Manufacture | B3: and Gas Flaring: 1751-2011
A5: Wednesday 2nd of December 2015 11:17:17 AM
A7: Source: Tom Boden
A8: Gregg Marland
A9: Bob Andres
A10: Carbon Dioxide Information Analysis Center
A11: Oak Ridge National Laboratory
A12: Oak Ridge | B12: Tennessee 37831-6290
A13: ***********************************************************
A15: Cite as: T.A. Boden | B15: G. Marland
A16: DOI 10.3334/CDIAC/00001_V2010
A18: All emission estimates are expressed in thousand metric tons of carbon.
A20: Countries included:
A21: Afghanistan; Albania; Algeria; Angola; Azerbajan; Argentina; Australia; Austria;
A22: Armenia; Belgium; Bolivia | B22: Plurinational State of; Bosnia and Herzegovinia; Botswana; Brazil; Bulgaria;
A23: Myanmar (formerly Burma); Belarus; Cambodia; Republic of Cameroon; Canada; Central African Republic; Sri Lanka;
A24: Chad; Chile; China (Mainland); Taiwan; Colombia; Congo; Democratic Republic of Congo (formerly Zaire);
A25: Costa Rica; Croatia; Cuba; Cyprus; Czech Republic; Benin; Denmark;
A26: Dominican Republic; Ecuador; Ethiopia; Eritrea; Estonia; Falkland Islands (Malvinas); Finland;
A27: France (including Monaco); French Guiana; Gabon; Georgia; Germany; Ghana; Greece;
A28: Greenland; Guatemala; Guinea; Guyana; Haiti; Honduras; Hungary;
A29: Iceland; India; Indonesia; Iran | B29: Islamic Republic of; Iraq; Ireland; Italy (including San Marino);
A30: Cote D'Ivoire; Japan; Kazakhstan; Jordan; Kenya; Korea | B30: Democratic People's Republic of; Korea
A31: Kuwait; Kyrgyzstan; Lao People's Democratic Republic; Latvia; Liberia; Libyan Arab Jamahiryah; Lithuania;
A32: Madagascar; Malawi; Malaysia; Mali; Mauritania; Mexico; Serbia;
A33: Mongolia; Moldova | B33: Republic of; Morocco; Mozambique; Oman; Namibia; Nepal;
A34: Netherlands; New Zealand; Nicaragua; Niger; Nigeria; Norway (including Svalbard and Jan Mayen Islands); Pakistan;
A35: Panama; Papua New Guinea; Paraguay; Peru; Philippines; Poland; Portugal;
A36: Qatar; Romania; Russian Federation; Rwanda; Saudi Arabia; Senegal; Lesotho;
A37: Sierra Leone; Slovakia; Viet Nam; Slovenia; Somalia; South Africa; Zimbabwe;
A38: Spain; Sudan; Suriname; Sweden; Switzerland (including Liechtenstein); Syrian Arab Republic; Tajikistan;
A39: Thailand; Togo; United Arab Emirates; Tunisia; Turkey; Turkmenistan; Uganda;
A40: Ukraine; Macedonia; Egypt; United Kingdom; Tanzania | B40: United Repuplic of; United States of America; Burkina Faso;
A41: Uruguay; Uzbekistan; Venezuela; Yemen; Zambia;
A43: Year | B43: Total
A44: 1751 | B44: 2552
A45: 1752 | B45: 2553
A46: 1753 | B46: 2553
A47: 1754 | B47: 2554
A48: 1755 | B48: 2555
A49: 1756 | B49: 2731
A50: 1757 | B50: 2732
A51: 1758 | B51: 2733
A52: 1759 | B52: 2734
A53: 1760 | B53: 2734
A54: 1761 | B54: 2995
A55: 1762 | B55: 2996
A56: 1763 | B56: 2997
A57: 1764 | B57: 2998
A58: 1765 | B58: 2999
A59: 1766 | B59: 3346
A60: 1767 | B60: 3347
A61: 1768 | B61: 3348
A62: 1769 | B62: 3349
A63: 1770 | B63: 3350
A64: 1771 | B64: 3715
A65: 1772 | B65: 3716
A66: 1773 | B66: 3717
A67: 1774 | B67: 3718
A68: 1775 | B68: 3719
A69: 1776 | B69: 4104
A70: 1777 | B70: 4105
A71: 1778 | B71: 4106
A72: 1779 | B72: 4107
A73: 1780 | B73: 4109
A74: 1781 | B74: 4597
A75: 1782 | B75: 4598
A76: 1783 | B76: 4600
A77: 1784 | B77: 4601
A78: 1785 | B78: 4604
A79: 1786 | B79: 5227
A80: 1787 | B80: 5229
A81: 1788 | B81: 5230
A82: 1789 | B82: 5232
A83: 1790 | B83: 5234
A84: 1791 | B84: 5846
A85: 1792 | B85: 5976
A86: 1793 | B86: 5981
A87: 1794 | B87: 5972
A88: 1795 | B88: 5975
A89: 1796 | B89: 6264
A90: 1797 | B90: 6576
A91: 1798 | B91: 6849
A92: 1799 | B92: 7213
A93: 1800 | B93: 7667
A94: 1801 | B94: 7631
A95: 1802 | B95: 10039
A96: 1803 | B96: 8594
A97: 1804 | B97: 9364
A98: 1805 | B98: 9121
A99: 1806 | B99: 9565
A100: 1807 | B100: 10064
A101: 1808 | B101: 9570
A102: 1809 | B102: 9577
A103: 1810 | B103: 10202
A104: 1811 | B104: 10803
A105: 1812 | B105: 11192
A106: 1813 | B106: 11250
A107: 1814 | B107: 11498
A108: 1815 | B108: 11869
A109: 1816 | B109: 13009
A110: 1817 | B110: 13491
A111: 1818 | B111: 13549
A112: 1819 | B112: 13632
A113: 1820 | B113: 13834
A114: 1821 | B114: 14038
A115: 1822 | B115: 14592
A116: 1823 | B116: 15434
A117: 1824 | B117: 15973
A118: 1825 | B118: 16582
A119: 1826 | B119: 16763
A120: 1827 | B120: 17990
A121: 1828 | B121: 18187
A122: 1829 | B122: 18121
A123: 1830 | B123: 24319
A124: 1831 | B124: 23064
A125: 1832 | B125: 23225
A126: 1833 | B126: 23687
A127: 1834 | B127: 24150
A128: 1835 | B128: 24685
A129: 1836 | B129: 28596
A130: 1837 | B130: 28573
A131: 1838 | B131: 29488
A132: 1839 | B132: 30462
A133: 1840 | B133: 32459
A134: 1841 | B134: 33466
A135: 1842 | B135: 35345
A136: 1843 | B136: 36259
A137: 1844 | B137: 38598
A138: 1845 | B138: 42361
A139: 1846 | B139: 43066
A140: 1847 | B140: 47053
A141: 1848 | B141: 47439
A142: 1849 | B142: 50085
A143: 1850 | B143: 53707
A144: 1851 | B144: 54242
A145: 1852 | B145: 56631
A146: 1853 | B146: 59252
A147: 1854 | B147: 69599
A148: 1855 | B148: 70876
A149: 1856 | B149: 75630
A150: 1857 | B150: 76332
A151: 1858 | B151: 77370
A152: 1859 | B152: 82011
A153: 1860 | B153: 90001
A154: 1861 | B154: 94445
A155: 1862 | B155: 96027
A156: 1863 | B156: 102347
A157: 1864 | B157: 110129
A158: 1865 | B158: 116854
A159: 1866 | B159: 119903
A160: 1867 | B160: 128298
A161: 1868 | B161: 131803
A162: 1869 | B162: 139668
A163: 1870 | B163: 142530
A164: 1871 | B164: 151162
A165: 1872 | B165: 167393
A166: 1873 | B166: 177970
A167: 1874 | B167: 165781
A168: 1875 | B168: 179539
A169: 1876 | B169: 179860
A170: 1877 | B170: 183312
A171: 1878 | B171: 183675
A172: 1879 | B172: 196874
A173: 1880 | B173: 222965
A174: 1881 | B174: 230260
A175: 1882 | B175: 243405
A176: 1883 | B176: 258493
A177: 1884 | B177: 261184
A178: 1885 | B178: 262338
A179: 1886 | B179: 266097
A180: 1887 | B180: 279174
A181: 1888 | B181: 309711
A182: 1889 | B182: 308326
A183: 1890 | B183: 335807
A184: 1891 | B184: 350830
A185: 1892 | B185: 353275
A186: 1893 | B186: 346943
A187: 1894 | B187: 358665
A188: 1895 | B188: 379467
A189: 1896 | B189: 392018
A190: 1897 | B190: 409181
A191: 1898 | B191: 430194
A192: 1899 | B192: 470127
A193: 1900 | B193: 494882
A194: 1901 | B194: 510366
A195: 1902 | B195: 524428
A196: 1903 | B196: 575738
A197: 1904 | B197: 579004
A198: 1905 | B198: 620966
A199: 1906 | B199: 650084
A200: 1907 | B200: 737125
A201: 1908 | B201: 706231
A202: 1909 | B202: 734569
A203: 1910 | B203: 773308
A204: 1911 | B204: 785911
A205: 1912 | B205: 819587
A206: 1913 | B206: 886275
... 98 more rows

Sheet FF China
A1: ***********************************************************
A2: Regional CO2 Emissions from Fossil-Fuel Burning
A3: Cement Manufacture | B3: and Gas Flaring: 1899-2011
A5: Wednesday 2nd of December 2015 11:07:42 AM
A7: Source: Tom Boden
A8: Gregg Marland
A9: Bob Andres
A10: Carbon Dioxide Information Analysis Center
A11: Oak Ridge National Laboratory
A12: Oak Ridge | B12: Tennessee 37831-6290
A13: ***********************************************************
A15: Cite as: T.A. Boden | B15: G. Marland
A16: DOI 10.3334/CDIAC/00001_V2010
A18: All emission estimates are expressed in thousand metric tons of carbon.
A20: Countries included:
A21: China (Mainland);
A23: Year | B23: Total
A24: 1899 | B24: 26
A25: 1902 | B25: 26
A26: 1903 | B26: 536
A27: 1904 | B27: 570
A28: 1905 | B28: 627
A29: 1906 | B29: 4670
A30: 1907 | B30: 4596
A31: 1908 | B31: 6204
A32: 1909 | B32: 5687
A33: 1910 | B33: 5117
A34: 1911 | B34: 7600
A35: 1912 | B35: 2671
A36: 1913 | B36: 2936
A37: 1914 | B37: 4123
A38: 1915 | B38: 4391
A39: 1916 | B39: 4903
A40: 1917 | B40: 5418
A41: 1918 | B41: 5743
A42: 1919 | B42: 6620
A43: 1920 | B43: 7306
A44: 1921 | B44: 6902
A45: 1922 | B45: 7269
A46: 1923 | B46: 8775
A47: 1924 | B47: 9578
A48: 1925 | B48: 9067
A49: 1926 | B49: 8076
A50: 1927 | B50: 9150
A51: 1928 | B51: 9311
A52: 1929 | B52: 9776
A53: 1930 | B53: 10350
A54: 1931 | B54: 10988
A55: 1932 | B55: 10535
A56: 1933 | B56: 11522
A57: 1934 | B57: 13448
A58: 1935 | B58: 15728
A59: 1936 | B59: 17751
A60: 1937 | B60: 16533
A61: 1938 | B61: 15094
A62: 1939 | B62: 18329
A63: 1940 | B63: 23499
A64: 1941 | B64: 29371
A65: 1942 | B65: 31078
A66: 1943 | B66: 26557
A67: 1944 | B67: 26710
A68: 1945 | B68: 13742
A69: 1946 | B69: 8536
A70: 1947 | B70: 9167
A71: 1948 | B71: 6510
A72: 1949 | B72: 16187
A73: 1950 | B73: 21465
A74: 1951 | B74: 27763
A75: 1952 | B75: 34995
A76: 1953 | B76: 36600
A77: 1954 | B77: 44011
A78: 1955 | B78: 52099
A79: 1956 | B79: 59047
A80: 1957 | B80: 69964
A81: 1958 | B81: 143390
A82: 1959 | B82: 196823
A83: 1960 | B83: 212906
A84: 1961 | B84: 150550
A85: 1962 | B85: 120087
A86: 1963 | B86: 119088
A87: 1964 | B87: 119150
A88: 1965 | B88: 129799
A89: 1966 | B89: 142566
A90: 1967 | B90: 118144
A91: 1968 | B91: 127878
A92: 1969 | B92: 157414
A93: 1970 | B93: 210422
A94: 1971 | B94: 239060
A95: 1972 | B95: 254043
A96: 1973 | B96: 264124
A97: 1974 | B97: 269434
A98: 1975 | B98: 312410
A99: 1976 | B99: 326205
A100: 1977 | B100: 357325
A101: 1978 | B101: 398737
A102: 1979 | B102: 407652
A103: 1980 | B103: 400107
A104: 1981 | B104: 395828
A105: 1982 | B105: 430941
A106: 1983 | B106: 454603
A107: 1984 | B107: 494930
A108: 1985 | B108: 536284
A109: 1986 | B109: 564213
A110: 1987 | B110: 602593
A111: 1988 | B111: 646169
A112: 1989 | B112: 656815
A113: 1990 | B113: 671051
A114: 1991 | B114: 704810
A115: 1992 | B115: 735201
A116: 1993 | B116: 785027
A117: 1994 | B117: 833990
A118: 1995 | B118: 905450
A119: 1996 | B119: 944393
A120: 1997 | B120: 946144
A121: 1998 | B121: 906557
A122: 1999 | B122: 904842
A123: 2000 | B123: 928601
A124: 2001 | B124: 951068
A125: 2002 | B125: 1007429
A126: 2003 | B126: 1234027
A127: 2004 | B127: 1442096
A128: 2005 | B128: 1578952
A129: 2006 | B129: 1749240
A130: 2007 | B130: 1852142
A131: 2008 | B131: 1918583
A132: 2009 | B132: 2097685
A133: 2010 | B133: 2251696
A134: 2011 | B134: 2459645

Sheet FF USA
A1: ***********************************************************
A2: Regional CO2 Emissions from Fossil-Fuel Burning
A3: Cement Manufacture | B3: and Gas Flaring: 1800-2011
A5: Wednesday 2nd of December 2015 04:04:46 PM
A7: Source: Tom Boden
A8: Gregg Marland
A9: Bob Andres
A10: Carbon Dioxide Information Analysis Center
A11: Oak Ridge National Laboratory
A12: Oak Ridge | B12: Tennessee 37831-6290
A13: ***********************************************************
A15: Cite as: T.A. Boden | B15: G. Marland
A16: DOI 10.3334/CDIAC/00001_V2010
A18: All emission estimates are expressed in thousand metric tons of carbon.
A20: Countries included:
A21: United States of America;
A23: Year | B23: Total
A24: 1800 | B24: 69
A25: 1801 | B25: 73
A26: 1802 | B26: 79
A27: 1803 | B27: 81
A28: 1804 | B28: 91
A29: 1805 | B29: 93
A30: 1806 | B30: 91
A31: 1807 | B31: 103
A32: 1808 | B32: 107
A33: 1809 | B33: 110
A34: 1810 | B34: 114
A35: 1811 | B35: 122
A36: 1812 | B36: 132
A37: 1813 | B37: 142
A38: 1814 | B38: 153
A39: 1815 | B39: 164
A40: 1816 | B40: 181
A41: 1817 | B41: 196
A42: 1818 | B42: 213
A43: 1819 | B43: 208
A44: 1820 | B44: 216
A45: 1821 | B45: 226
A46: 1822 | B46: 236
A47: 1823 | B47: 246
A48: 1824 | B48: 277
A49: 1825 | B49: 310
A50: 1826 | B50: 359
A51: 1827 | B51: 395
A52: 1828 | B52: 435
A53: 1829 | B53: 490
A54: 1830 | B54: 570
A55: 1831 | B55: 618
A56: 1832 | B56: 825
A57: 1833 | B57: 963
A58: 1834 | B58: 923
A59: 1835 | B59: 1178
A60: 1836 | B60: 1291
A61: 1837 | B61: 1448
A62: 1838 | B62: 1373
A63: 1839 | B63: 1506
A64: 1840 | B64: 1603
A65: 1841 | B65: 1696
A66: 1842 | B66: 1888
A67: 1843 | B67: 2119
A68: 1844 | B68: 2540
A69: 1845 | B69: 3058
A70: 1846 | B70: 3469
A71: 1847 | B71: 4113
A72: 1848 | B72: 4581
A73: 1849 | B73: 4973
A74: 1850 | B74: 5402
A75: 1851 | B75: 6723
A76: 1852 | B76: 7312
A77: 1853 | B77: 8232
A78: 1854 | B78: 9050
A79: 1855 | B79: 10415
A80: 1856 | B80: 10927
A81: 1857 | B81: 11205
A82: 1858 | B82: 11367
A83: 1859 | B83: 12369
A84: 1860 | B84: 12947
A85: 1861 | B85: 12467
A86: 1862 | B86: 12950
A87: 1863 | B87: 14959
A88: 1864 | B88: 16009
A89: 1865 | B89: 16054
A90: 1866 | B90: 16166
A91: 1867 | B91: 19887
A92: 1868 | B92: 22476
A93: 1869 | B93: 25572
A94: 1870 | B94: 26916
A95: 1871 | B95: 28117
A96: 1872 | B96: 34472
A97: 1873 | B97: 38075
A98: 1874 | B98: 36653
A99: 1875 | B99: 37049
A100: 1876 | B100: 36250
A101: 1877 | B101: 40168
A102: 1878 | B102: 39275
A103: 1879 | B103: 47890
A104: 1880 | B104: 54226
A105: 1881 | B105: 57367
A106: 1882 | B106: 64245
A107: 1883 | B107: 69291
A108: 1884 | B108: 73032
A109: 1885 | B109: 74280
A110: 1886 | B110: 78456
A111: 1887 | B111: 83892
A112: 1888 | B112: 102040
A113: 1889 | B113: 91578
A114: 1890 | B114: 109647
A115: 1891 | B115: 116655
A116: 1892 | B116: 122939
A117: 1893 | B117: 123934
A118: 1894 | B118: 116007
A119: 1895 | B119: 130990
A120: 1896 | B120: 131245
A121: 1897 | B121: 136541
A122: 1898 | B122: 148832
A123: 1899 | B123: 170724
A124: 1900 | B124: 180878
A125: 1901 | B125: 196923
A126: 1902 | B126: 208650
A127: 1903 | B127: 244106
A128: 1904 | B128: 240235
A129: 1905 | B129: 268695
A130: 1906 | B130: 282025
A131: 1907 | B131: 328003
A132: 1908 | B132: 286838
A133: 1909 | B133: 317509
A134: 1910 | B134: 346405
A135: 1911 | B135: 342900
A136: 1912 | B136: 366051
A137: 1913 | B137: 393044
A138: 1914 | B138: 359088
A139: 1915 | B139: 372617
A140: 1916 | B140: 413826
A141: 1917 | B141: 455368
A142: 1918 | B142: 476415
A143: 1919 | B143: 403098
A144: 1920 | B144: 473769
A145: 1921 | B145: 388093
A146: 1922 | B146: 391192
A147: 1923 | B147: 516924
A148: 1924 | B148: 462771
A149: 1925 | B149: 475136
A150: 1926 | B150: 515430
A151: 1927 | B151: 503504
A152: 1928 | B152: 498850
A153: 1929 | B153: 535027
A154: 1930 | B154: 475494
A155: 1931 | B155: 404771
A156: 1932 | B156: 342904
A157: 1933 | B157: 367681
A158: 1934 | B158: 391482
A159: 1935 | B159: 406731
A160: 1936 | B160: 466893
A161: 1937 | B161: 488418
A162: 1938 | B162: 413051
A163: 1939 | B163: 455203
A164: 1940 | B164: 510778
A165: 1941 | B165: 556554
A166: 1942 | B166: 598771
A167: 1943 | B167: 618773
A168: 1944 | B168: 666042
A169: 1945 | B169: 642833
A170: 1946 | B170: 614911
A171: 1947 | B171: 677064
A172: 1948 | B172: 703344
A173: 1949 | B173: 589517
A174: 1950 | B174: 692124
A175: 1951 | B175: 712983
A176: 1952 | B176: 694618
A177: 1953 | B177: 711175
A178: 1954 | B178: 677689
A179: 1955 | B179: 742828
A180: 1956 | B180: 778631
A181: 1957 | B181: 772001
A182: 1958 | B182: 748069
A183: 1959 | B183: 770642
A184: 1960 | B184: 788300
A185: 1961 | B185: 785521
A186: 1962 | B186: 814619
A187: 1963 | B187: 850622
A188: 1964 | B188: 887918
A189: 1965 | B189: 924713
A190: 1966 | B190: 971333
A191: 1967 | B191: 1007829
A192: 1968 | B192: 1044820
A193: 1969 | B193: 1097559
A194: 1970 | B194: 1180503
A195: 1971 | B195: 1188102
A196: 1972 | B196: 1244874
A197: 1973 | B197: 1300844
A198: 1974 | B198: 1254019
A199: 1975 | B199: 1201617
A200: 1976 | B200: 1258004
A201: 1977 | B201: 1293235
A202: 1978 | B202: 1333750
A203: 1979 | B203: 1336732
A204: 1980 | B204: 1288031
A205: 1981 | B205: 1236924
A206: 1982 | B206: 1174461
... 29 more rows

Sheet FF W.Europe
A1: ***********************************************************
A2: Regional CO2 Emissions from Fossil-Fuel Burning
A3: Cement Manufacture | B3: and Gas Flaring: 1751-2011
A5: Wednesday 2nd of December 2015 10:58:03 AM
A7: Source: Tom Boden
A8: Gregg Marland
A9: Bob Andres
A10: Carbon Dioxide Information Analysis Center
A11: Oak Ridge National Laboratory
A12: Oak Ridge | B12: Tennessee 37831-6290
A13: ***********************************************************
A15: Cite as: T.A. Boden | B15: G. Marland
A16: DOI 10.3334/CDIAC/00001_V2010
A18: All emission estimates are expressed in thousand metric tons of carbon.
A20: Countries included:
A21: Andorra; Austria; Belgium; Bosnia and Herzegovinia; Croatia; Denmark; Faeroe Islands; Finland;
A22: France (including Monaco); Gibraltar; Greece; Iceland; Ireland; Italy (including San Marino); Luxembourg;
A23: Malta; Serbia; Netherlands; Norway (including Svalbard and Jan Mayen Islands); Montenegro; Slovenia; Spain;
A24: Sweden; Switzerland (including Liechtenstein); Macedonia; United Kingdom; Yugoslavia (former Socialist Federal Republic); Yugoslavia (Montenegro and Serbia);
A26: Year | B26: Total
A27: 1751 | B27: 2552
A28: 1752 | B28: 2553
A29: 1753 | B29: 2553
A30: 1754 | B30: 2554
A31: 1755 | B31: 2555
A32: 1756 | B32: 2731
A33: 1757 | B33: 2732
A34: 1758 | B34: 2733
A35: 1759 | B35: 2734
A36: 1760 | B36: 2734
A37: 1761 | B37: 2995
A38: 1762 | B38: 2996
A39: 1763 | B39: 2997
A40: 1764 | B40: 2998
A41: 1765 | B41: 2999
A42: 1766 | B42: 3346
A43: 1767 | B43: 3347
A44: 1768 | B44: 3348
A45: 1769 | B45: 3349
A46: 1770 | B46: 3350
A47: 1771 | B47: 3715
A48: 1772 | B48: 3716
A49: 1773 | B49: 3717
A50: 1774 | B50: 3718
A51: 1775 | B51: 3719
A52: 1776 | B52: 4104
A53: 1777 | B53: 4105
A54: 1778 | B54: 4106
A55: 1779 | B55: 4107
A56: 1780 | B56: 4109
A57: 1781 | B57: 4597
A58: 1782 | B58: 4598
A59: 1783 | B59: 4600
A60: 1784 | B60: 4601
A61: 1785 | B61: 4603
A62: 1786 | B62: 5226
A63: 1787 | B63: 5228
A64: 1788 | B64: 5229
A65: 1789 | B65: 5231
A66: 1790 | B66: 5233
A67: 1791 | B67: 5845
A68: 1792 | B68: 5847
A69: 1793 | B69: 5849
A70: 1794 | B70: 5850
A71: 1795 | B71: 5852
A72: 1796 | B72: 6117
A73: 1797 | B73: 6425
A74: 1798 | B74: 6691
A75: 1799 | B75: 7041
A76: 1800 | B76: 7269
A77: 1801 | B77: 7290
A78: 1802 | B78: 9685
A79: 1803 | B79: 8240
A80: 1804 | B80: 8872
A81: 1805 | B81: 8587
A82: 1806 | B82: 9075
A83: 1807 | B83: 9123
A84: 1808 | B84: 9080
A85: 1809 | B85: 9083
A86: 1810 | B86: 9665
A87: 1811 | B87: 10266
A88: 1812 | B88: 10686
A89: 1813 | B89: 10760
A90: 1814 | B90: 10966
A91: 1815 | B91: 11262
A92: 1816 | B92: 11991
A93: 1817 | B93: 12168
A94: 1818 | B94: 12119
A95: 1819 | B95: 12322
A96: 1820 | B96: 12490
A97: 1821 | B97: 12621
A98: 1822 | B98: 13116
A99: 1823 | B99: 13753
A100: 1824 | B100: 14465
A101: 1825 | B101: 14725
A102: 1826 | B102: 14927
A103: 1827 | B103: 15998
A104: 1828 | B104: 16182
A105: 1829 | B105: 16348
A106: 1830 | B106: 22139
A107: 1831 | B107: 20952
A108: 1832 | B108: 21152
A109: 1833 | B109: 21217
A110: 1834 | B110: 21695
A111: 1835 | B111: 21816
A112: 1836 | B112: 25490
A113: 1837 | B113: 25079
A114: 1838 | B114: 25854
A115: 1839 | B115: 26542
A116: 1840 | B116: 27777
A117: 1841 | B117: 28540
A118: 1842 | B118: 29840
A119: 1843 | B119: 30691
A120: 1844 | B120: 32383
A121: 1845 | B121: 35074
A122: 1846 | B122: 35169
A123: 1847 | B123: 38284
A124: 1848 | B124: 38515
A125: 1849 | B125: 40561
A126: 1850 | B126: 43283
A127: 1851 | B127: 41894
A128: 1852 | B128: 42857
A129: 1853 | B129: 44084
A130: 1854 | B130: 52477
A131: 1855 | B131: 50988
A132: 1856 | B132: 54410
A133: 1857 | B133: 54153
A134: 1858 | B134: 53952
A135: 1859 | B135: 58088
A136: 1860 | B136: 64456
A137: 1861 | B137: 67927
A138: 1862 | B138: 67510
A139: 1863 | B139: 70348
A140: 1864 | B140: 74788
A141: 1865 | B141: 79136
A142: 1866 | B142: 82077
A143: 1867 | B143: 84701
A144: 1868 | B144: 83898
A145: 1869 | B145: 87680
A146: 1870 | B146: 89013
A147: 1871 | B147: 93105
A148: 1872 | B148: 100471
A149: 1873 | B149: 105201
A150: 1874 | B150: 101291
A151: 1875 | B151: 106332
A152: 1876 | B152: 106752
A153: 1877 | B153: 107233
A154: 1878 | B154: 106742
A155: 1879 | B155: 108842
A156: 1880 | B156: 123598
A157: 1881 | B157: 125052
A158: 1882 | B158: 127899
A159: 1883 | B159: 133995
A160: 1884 | B160: 130793
A161: 1885 | B161: 129403
A162: 1886 | B162: 128044
A163: 1887 | B163: 132750
A164: 1888 | B164: 138494
A165: 1889 | B165: 143312
A166: 1890 | B166: 149181
A167: 1891 | B167: 151924
A168: 1892 | B168: 149800
A169: 1893 | B169: 139399
A170: 1894 | B170: 156140
A171: 1895 | B171: 157859
A172: 1896 | B172: 163200
A173: 1897 | B173: 168963
A174: 1898 | B174: 171360
A175: 1899 | B175: 182700
A176: 1900 | B176: 188888
A177: 1901 | B177: 184249
A178: 1902 | B178: 187206
A179: 1903 | B179: 193105
A180: 1904 | B180: 193522
A181: 1905 | B181: 196488
A182: 1906 | B182: 208793
A183: 1907 | B183: 220807
A184: 1908 | B184: 223941
A185: 1909 | B185: 222304
A186: 1910 | B186: 228724
A187: 1911 | B187: 232042
A188: 1912 | B188: 229224
A189: 1913 | B189: 251325
A190: 1914 | B190: 219160
A191: 1915 | B191: 209823
A192: 1916 | B192: 212118
A193: 1917 | B193: 198518
A194: 1918 | B194: 188297
A195: 1919 | B195: 192704
A196: 1920 | B196: 213130
A197: 1921 | B197: 167489
A198: 1922 | B198: 211117
A199: 1923 | B199: 230936
A200: 1924 | B200: 250671
A201: 1925 | B201: 245669
A202: 1926 | B202: 191218
A203: 1927 | B203: 261581
A204: 1928 | B204: 252197
A205: 1929 | B205: 274572
A206: 1930 | B206: 265019
... 81 more rows

Sheet FF Canada
A1: ***********************************************************
A2: Regional CO2 Emissions from Fossil-Fuel Burning
A3: Cement Manufacture | B3: and Gas Flaring: 1785-2011
A5: Wednesday 2nd of December 2015 11:03:15 AM
A7: Source: Tom Boden
A8: Gregg Marland
A9: Bob Andres
A10: Carbon Dioxide Information Analysis Center
A11: Oak Ridge National Laboratory
A12: Oak Ridge | B12: Tennessee 37831-6290
A13: ***********************************************************
A15: Cite as: T.A. Boden | B15: G. Marland
A16: DOI 10.3334/CDIAC/00001_V2010
A18: All emission estimates are expressed in thousand metric tons of carbon.
A20: Countries included:
A21: Canada;
A23: Year | B23: Total
A24: 1785 | B24: 1
A25: 1786 | B25: 1
A26: 1787 | B26: 1
A27: 1788 | B27: 1
A28: 1789 | B28: 1
A29: 1790 | B29: 1
A30: 1791 | B30: 1
A31: 1792 | B31: 1
A32: 1793 | B32: 1
A33: 1794 | B33: 1
A34: 1795 | B34: 1
A35: 1796 | B35: 1
A36: 1797 | B36: 1
A37: 1798 | B37: 1
A38: 1799 | B38: 1
A39: 1800 | B39: 1
A40: 1801 | B40: 1
A41: 1802 | B41: 1
A42: 1803 | B42: 1
A43: 1804 | B43: 1
A44: 1805 | B44: 1
A45: 1806 | B45: 1
A46: 1807 | B46: 1
A47: 1808 | B47: 1
A48: 1809 | B48: 1
A49: 1810 | B49: 1
A50: 1811 | B50: 1
A51: 1812 | B51: 1
A52: 1813 | B52: 1
A53: 1814 | B53: 1
A54: 1815 | B54: 1
A55: 1816 | B55: 1
A56: 1817 | B56: 1
A57: 1818 | B57: 1
A58: 1819 | B58: 1
A59: 1820 | B59: 1
A60: 1821 | B60: 1
A61: 1822 | B61: 1
A62: 1823 | B62: 1
A63: 1824 | B63: 1
A64: 1825 | B64: 1
A65: 1826 | B65: 1
A66: 1827 | B66: 1
A67: 1828 | B67: 1
A68: 1829 | B68: 1
A69: 1830 | B69: 1
A70: 1831 | B70: 1
A71: 1832 | B71: 1
A72: 1833 | B72: 1
A73: 1834 | B73: 1
A74: 1835 | B74: 1
A75: 1836 | B75: 1
A76: 1837 | B76: 1
A77: 1838 | B77: 1
A78: 1839 | B78: 1
A79: 1840 | B79: 1
A80: 1841 | B80: 1
A81: 1842 | B81: 1
A82: 1843 | B82: 1
A83: 1844 | B83: 1
A84: 1845 | B84: 1
A85: 1846 | B85: 7
A86: 1847 | B86: 9
A87: 1848 | B87: 11
A88: 1849 | B88: 13
A89: 1850 | B89: 16
A90: 1851 | B90: 19
A91: 1852 | B91: 23
A92: 1853 | B92: 28
A93: 1854 | B93: 34
A94: 1855 | B94: 41
A95: 1856 | B95: 49
A96: 1857 | B96: 59
A97: 1858 | B97: 72
A98: 1859 | B98: 86
A99: 1860 | B99: 104
A100: 1861 | B100: 125
A101: 1862 | B101: 153
A102: 1863 | B102: 192
A103: 1864 | B103: 230
A104: 1865 | B104: 278
A105: 1866 | B105: 339
A106: 1867 | B106: 435
A107: 1868 | B107: 258
A108: 1869 | B108: 187
A109: 1870 | B109: 334
A110: 1871 | B110: 486
A111: 1872 | B111: 504
A112: 1873 | B112: 439
A113: 1874 | B113: 443
A114: 1875 | B114: 512
A115: 1876 | B115: 507
A116: 1877 | B116: 552
A117: 1878 | B117: 528
A118: 1879 | B118: 596
A119: 1880 | B119: 1428
A120: 1881 | B120: 1526
A121: 1882 | B121: 1806
A122: 1883 | B122: 2028
A123: 1884 | B123: 2347
A124: 1885 | B124: 2250
A125: 1886 | B125: 2401
A126: 1887 | B126: 2770
A127: 1888 | B127: 3633
A128: 1889 | B128: 3082
A129: 1890 | B129: 3388
A130: 1891 | B130: 3805
A131: 1892 | B131: 3791
A132: 1893 | B132: 4054
A133: 1894 | B133: 3870
A134: 1895 | B134: 3693
A135: 1896 | B135: 3998
A136: 1897 | B136: 4039
A137: 1898 | B137: 4287
A138: 1899 | B138: 5232
A139: 1900 | B139: 5630
A140: 1901 | B140: 6508
A141: 1902 | B141: 7000
A142: 1903 | B142: 7631
A143: 1904 | B143: 9033
A144: 1905 | B144: 9658
A145: 1906 | B145: 10204
A146: 1907 | B146: 12825
A147: 1908 | B147: 12939
A148: 1909 | B148: 12387
A149: 1910 | B149: 14089
A150: 1911 | B150: 16449
A151: 1912 | B151: 18360
A152: 1913 | B152: 21638
A153: 1914 | B153: 18663
A154: 1915 | B154: 16680
A155: 1916 | B155: 20867
A156: 1917 | B156: 23265
A157: 1918 | B157: 24432
A158: 1919 | B158: 20767
A159: 1920 | B159: 23029
A160: 1921 | B160: 21966
A161: 1922 | B161: 18889
A162: 1923 | B162: 25377
A163: 1924 | B163: 21120
A164: 1925 | B164: 20537
A165: 1926 | B165: 23132
A166: 1927 | B166: 25109
A167: 1928 | B167: 25596
A168: 1929 | B168: 27030
A169: 1930 | B169: 25752
A170: 1931 | B170: 20703
A171: 1932 | B171: 19162
A172: 1933 | B172: 18964
A173: 1934 | B173: 21811
A174: 1935 | B174: 21506
A175: 1936 | B175: 23517
A176: 1937 | B176: 25515
A177: 1938 | B177: 23348
A178: 1939 | B178: 25930
A179: 1940 | B179: 29647
A180: 1941 | B180: 32794
A181: 1942 | B181: 35776
A182: 1943 | B182: 37682
A183: 1944 | B183: 38322
A184: 1945 | B184: 35624
A185: 1946 | B185: 37781
A186: 1947 | B186: 39180
A187: 1948 | B187: 43263
A188: 1949 | B188: 39583
A189: 1950 | B189: 42070
A190: 1951 | B190: 44402
A191: 1952 | B191: 43510
A192: 1953 | B192: 43838
A193: 1954 | B193: 44482
A194: 1955 | B194: 46258
A195: 1956 | B195: 51807
A196: 1957 | B196: 49900
A197: 1958 | B197: 49721
A198: 1959 | B198: 50356
A199: 1960 | B199: 52603
A200: 1961 | B200: 52954
A201: 1962 | B201: 56500
A202: 1963 | B202: 57570
A203: 1964 | B203: 64849
A204: 1965 | B204: 68763
A205: 1966 | B205: 70717
A206: 1967 | B206: 76874
... 44 more rows

Sheet FF Australia
A1: ***********************************************************
A2: Regional CO2 Emissions from Fossil-Fuel Burning
A3: Cement Manufacture | B3: and Gas Flaring: 1851-2011
A5: Wednesday 2nd of December 2015 11:04:11 AM
A7: Source: Tom Boden
A8: Gregg Marland
A9: Bob Andres
A10: Carbon Dioxide Information Analysis Center
A11: Oak Ridge National Laboratory
A12: Oak Ridge | B12: Tennessee 37831-6290
A13: ***********************************************************
A15: Cite as: T.A. Boden | B15: G. Marland
A16: DOI 10.3334/CDIAC/00001_V2010
A18: All emission estimates are expressed in thousand metric tons of carbon.
A20: Countries included:
A21: Australia;
A23: Year | B23: Total
A24: 1851 | B24: -17
A25: 1852 | B25: -15
A26: 1853 | B26: -30
A27: 1854 | B27: -35
A28: 1855 | B28: -36
A29: 1856 | B29: -50
A30: 1857 | B30: -57
A31: 1858 | B31: -67
A32: 1859 | B32: -103
A33: 1860 | B33: 76
A34: 1861 | B34: 139
A35: 1862 | B35: 97
A36: 1863 | B36: 109
A37: 1864 | B37: 73
A38: 1865 | B38: 115
A39: 1866 | B39: 190
A40: 1867 | B40: 244
A41: 1868 | B41: 200
A42: 1869 | B42: 175
A43: 1870 | B43: 164
A44: 1871 | B44: 189
A45: 1872 | B45: 193
A46: 1873 | B46: 237
A47: 1874 | B47: 243
A48: 1875 | B48: 226
A49: 1876 | B49: 254
A50: 1877 | B50: 291
A51: 1878 | B51: 264
A52: 1879 | B52: 397
A53: 1880 | B53: 602
A54: 1881 | B54: 482
A55: 1882 | B55: 549
A56: 1883 | B56: 662
A57: 1884 | B57: 702
A58: 1885 | B58: 793
A59: 1886 | B59: 788
A60: 1887 | B60: 828
A61: 1888 | B61: 963
A62: 1889 | B62: 935
A63: 1890 | B63: 968
A64: 1891 | B64: 1094
A65: 1892 | B65: 1133
A66: 1893 | B66: 1082
A67: 1894 | B67: 1190
A68: 1895 | B68: 1253
A69: 1896 | B69: 1229
A70: 1897 | B70: 1358
A71: 1898 | B71: 1532
A72: 1899 | B72: 1579
A73: 1900 | B73: 2775
A74: 1901 | B74: 3122
A75: 1902 | B75: 3110
A76: 1903 | B76: 3062
A77: 1904 | B77: 3151
A78: 1905 | B78: 3288
A79: 1906 | B79: 3919
A80: 1907 | B80: 4224
A81: 1908 | B81: 4573
A82: 1909 | B82: 3972
A83: 1910 | B83: 4759
A84: 1911 | B84: 5251
A85: 1912 | B85: 5673
A86: 1913 | B86: 6111
A87: 1914 | B87: 6681
A88: 1915 | B88: 5948
A89: 1916 | B89: 5260
A90: 1917 | B90: 5666
A91: 1918 | B91: 6261
A92: 1919 | B92: 5933
A93: 1920 | B93: 7023
A94: 1921 | B94: 6319
A95: 1922 | B95: 6644
A96: 1923 | B96: 6782
A97: 1924 | B97: 7388
A98: 1925 | B98: 7706
A99: 1926 | B99: 7602
A100: 1927 | B100: 7886
A101: 1928 | B101: 7175
A102: 1929 | B102: 6456
A103: 1930 | B103: 6013
A104: 1931 | B104: 5335
A105: 1932 | B105: 5552
A106: 1933 | B106: 5890
A107: 1934 | B107: 6195
A108: 1935 | B108: 6886
A109: 1936 | B109: 7383
A110: 1937 | B110: 7876
A111: 1938 | B111: 7652
A112: 1939 | B112: 8773
A113: 1940 | B113: 7926
A114: 1941 | B114: 9429
A115: 1942 | B115: 9963
A116: 1943 | B116: 9550
A117: 1944 | B117: 9337
A118: 1945 | B118: 8924
A119: 1946 | B119: 9668
A120: 1947 | B120: 10376
A121: 1948 | B121: 10487
A122: 1949 | B122: 10276
A123: 1950 | B123: 14941
A124: 1951 | B124: 16112
A125: 1952 | B125: 16432
A126: 1953 | B126: 16223
A127: 1954 | B127: 18517
A128: 1955 | B128: 19291
A129: 1956 | B129: 19934
A130: 1957 | B130: 20340
A131: 1958 | B131: 21184
A132: 1959 | B132: 22849
A133: 1960 | B133: 24053
A134: 1961 | B134: 24704
A135: 1962 | B135: 25883
A136: 1963 | B136: 27551
A137: 1964 | B137: 29719
A138: 1965 | B138: 32988
A139: 1966 | B139: 32815
A140: 1967 | B140: 35251
A141: 1968 | B141: 36712
A142: 1969 | B142: 38794
A143: 1970 | B143: 40256
A144: 1971 | B144: 41662
A145: 1972 | B145: 42947
A146: 1973 | B146: 46630
A147: 1974 | B147: 47002
A148: 1975 | B148: 47964
A149: 1976 | B149: 47517
A150: 1977 | B150: 51210
A151: 1978 | B151: 55090
A152: 1979 | B152: 55923
A153: 1980 | B153: 60198
A154: 1981 | B154: 62820
A155: 1982 | B155: 63845
A156: 1983 | B156: 61359
A157: 1984 | B157: 64520
A158: 1985 | B158: 65784
A159: 1986 | B159: 65439
A160: 1987 | B160: 69841
A161: 1988 | B161: 71215
A162: 1989 | B162: 75749
A163: 1990 | B163: 71952
A164: 1991 | B164: 71332
A165: 1992 | B165: 73103
A166: 1993 | B166: 75669
A167: 1994 | B167: 75867
A168: 1995 | B168: 76886
A169: 1996 | B169: 82422
A170: 1997 | B170: 83403
A171: 1998 | B171: 86437
A172: 1999 | B172: 88732
A173: 2000 | B173: 89850
A174: 2001 | B174: 88595
A175: 2002 | B175: 93098
A176: 2003 | B176: 91725
A177: 2004 | B177: 93476
A178: 2005 | B178: 95519
A179: 2006 | B179: 97613
A180: 2007 | B180: 99208
A181: 2008 | B181: 102590
A182: 2009 | B182: 104299
A183: 2010 | B183: 100401
A184: 2011 | B184: 100638

Sheet LUC Extended
A1: Year | B1: Global | C1: USA | D1: Canada | E1: S+C America | F1: Europe | G1: Nafrica/Meast | H1: Trop.Africa | I1: Frmr USSR | J1: China | K1: S+SE Asia | L1: Pac.Dev.Reg
A2: 1850 | B2: 500.6 | C2: 164.0922 | D2: 5.5476 | E2: 23.4757 | F2: 55.0441 | G2: 3.984 | H2: -1.3484 | I2: 58.5571 | J2: 101.8392 | K2: 87.3469 | L2: 2.0458
A3: 1851 | B3: ='LUC Houghton'!B3 -> 492.7 | C3: ='LUC Houghton'!C3 -> 165.7256 | D3: ='LUC Houghton'!D3 -> 5.3626 | E3: ='LUC Houghton'!E3 -> 23.152 | F3: ='LUC Houghton'!F3 -> 55.0156 | G3: ='LUC Houghton'!G3 -> 3.9839 | H3: ='LUC Houghton'!H3 -> -1.1192 | I3: ='LUC Houghton'!I3 -> 58.5525 | J3: ='LUC Houghton'!J3 -> 93.0766 | K3: ='LUC Houghton'!K3 -> 86.91 | L3: ='LUC Houghton'!L3 -> 2.0419
A4: 1852 | B4: ='LUC Houghton'!B4 -> 548.5 | C4: ='LUC Houghton'!C4 -> 230.6725 | D4: ='LUC Houghton'!D4 -> 5.338 | E4: ='LUC Houghton'!E4 -> 22.8618 | F4: ='LUC Houghton'!F4 -> 54.9874 | G4: ='LUC Houghton'!G4 -> 3.9837 | H4: ='LUC Houghton'!H4 -> -1.0033 | I4: ='LUC Houghton'!I4 -> 58.8781 | J4: ='LUC Houghton'!J4 -> 83.8307 | K4: ='LUC Houghton'!K4 -> 86.9385 | L4: ='LUC Houghton'!L4 -> 2.0379
A5: 1853 | B5: ='LUC Houghton'!B5 -> 546.8 | C5: ='LUC Houghton'!C5 -> 238.5149 | D5: ='LUC Houghton'!D5 -> 5.3138 | E5: ='LUC Houghton'!E5 -> 22.6017 | F5: ='LUC Houghton'!F5 -> 54.959 | G5: ='LUC Houghton'!G5 -> 3.9835 | H5: ='LUC Houghton'!H5 -> -1.0513 | I5: ='LUC Houghton'!I5 -> 59.2207 | J5: ='LUC Houghton'!J5 -> 74.214 | K5: ='LUC Houghton'!K5 -> 86.9935 | L5: ='LUC Houghton'!L5 -> 2.0338
A6: 1854 | B6: ='LUC Houghton'!B6 -> 544.8 | C6: ='LUC Houghton'!C6 -> 246.1846 | D6: ='LUC Houghton'!D6 -> 5.2899 | E6: ='LUC Houghton'!E6 -> 22.3687 | F6: ='LUC Houghton'!F6 -> 54.9304 | G6: ='LUC Houghton'!G6 -> 3.9833 | H6: ='LUC Houghton'!H6 -> -0.9855 | I6: ='LUC Houghton'!I6 -> 59.5802 | J6: ='LUC Houghton'!J6 -> 64.3129 | K6: ='LUC Houghton'!K6 -> 87.063 | L6: ='LUC Houghton'!L6 -> 2.0297
A7: 1855 | B7: ='LUC Houghton'!B7 -> 542.1 | C7: ='LUC Houghton'!C7 -> 253.5646 | D7: ='LUC Houghton'!D7 -> 5.2663 | E7: ='LUC Houghton'!E7 -> 22.16 | F7: ='LUC Houghton'!F7 -> 54.9016 | G7: ='LUC Houghton'!G7 -> 3.983 | H7: ='LUC Houghton'!H7 -> -1.1397 | I7: ='LUC Houghton'!I7 -> 59.9564 | J7: ='LUC Houghton'!J7 -> 54.194 | K7: ='LUC Houghton'!K7 -> 87.1452 | L7: ='LUC Houghton'!L7 -> 2.0255
A8: 1856 | B8: ='LUC Houghton'!B8 -> 547.7 | C8: ='LUC Houghton'!C8 -> 260.5263 | D8: ='LUC Houghton'!D8 -> 5.243 | E8: ='LUC Houghton'!E8 -> 21.9733 | F8: ='LUC Houghton'!F8 -> 54.8726 | G8: ='LUC Houghton'!G8 -> 3.983 | H8: ='LUC Houghton'!H8 -> -1.1049 | I8: ='LUC Houghton'!I8 -> 60.3411 | J8: ='LUC Houghton'!J8 -> 52.5623 | K8: ='LUC Houghton'!K8 -> 87.2403 | L8: ='LUC Houghton'!L8 -> 2.0218
A9: 1857 | B9: ='LUC Houghton'!B9 -> 553.3 | C9: ='LUC Houghton'!C9 -> 267.2467 | D9: ='LUC Houghton'!D9 -> 5.2198 | E9: ='LUC Houghton'!E9 -> 21.8063 | F9: ='LUC Houghton'!F9 -> 54.8434 | G9: ='LUC Houghton'!G9 -> 3.983 | H9: ='LUC Houghton'!H9 -> -1.1372 | I9: ='LUC Houghton'!I9 -> 60.7234 | J9: ='LUC Houghton'!J9 -> 51.272 | K9: ='LUC Houghton'!K9 -> 87.3385 | L9: ='LUC Houghton'!L9 -> 2.0181
A10: 1858 | B10: ='LUC Houghton'!B10 -> 558.6 | C10: ='LUC Houghton'!C10 -> 273.5912 | D10: ='LUC Houghton'!D10 -> 5.1968 | E10: ='LUC Houghton'!E10 -> 21.657 | F10: ='LUC Houghton'!F10 -> 54.8139 | G10: ='LUC Houghton'!G10 -> 3.983 | H10: ='LUC Houghton'!H10 -> -1.3895 | I10: ='LUC Houghton'!I10 -> 61.103 | J10: ='LUC Houghton'!J10 -> 50.2343 | K10: ='LUC Houghton'!K10 -> 87.4348 | L10: ='LUC Houghton'!L10 -> 2.0143
A11: 1859 | B11: ='LUC Houghton'!B11 -> 564 | C11: ='LUC Houghton'!C11 -> 279.7326 | D11: ='LUC Houghton'!D11 -> 5.1739 | E11: ='LUC Houghton'!E11 -> 21.5238 | F11: ='LUC Houghton'!F11 -> 54.7842 | G11: ='LUC Houghton'!G11 -> 3.983 | H11: ='LUC Houghton'!H11 -> -1.6117 | I11: ='LUC Houghton'!I11 -> 61.4799 | J11: ='LUC Houghton'!J11 -> 49.3921 | K11: ='LUC Houghton'!K11 -> 87.5291 | L11: ='LUC Houghton'!L11 -> 2.0104
A12: 1860 | B12: ='LUC Houghton'!B12 -> 569 | C12: ='LUC Houghton'!C12 -> 285.6716 | D12: ='LUC Houghton'!D12 -> 5.1511 | E12: ='LUC Houghton'!E12 -> 21.0521 | F12: ='LUC Houghton'!F12 -> 54.7543 | G12: ='LUC Houghton'!G12 -> 3.9829 | H12: ='LUC Houghton'!H12 -> -1.8338 | I12: ='LUC Houghton'!I12 -> 61.8537 | J12: ='LUC Houghton'!J12 -> 48.7025 | K12: ='LUC Houghton'!K12 -> 87.6218 | L12: ='LUC Houghton'!L12 -> 2.0066
A13: 1861 | B13: ='LUC Houghton'!B13 -> 579.6 | C13: ='LUC Houghton'!C13 -> 290.6665 | D13: ='LUC Houghton'!D13 -> 5.1284 | E13: ='LUC Houghton'!E13 -> 21.8892 | F13: ='LUC Houghton'!F13 -> 54.7862 | G13: ='LUC Houghton'!G13 -> 9.011 | H13: ='LUC Houghton'!H13 -> -2.0559 | I13: ='LUC Houghton'!I13 -> 62.2242 | J13: ='LUC Houghton'!J13 -> 48.1326 | K13: ='LUC Houghton'!K13 -> 87.7196 | L13: ='LUC Houghton'!L13 -> 2.0821
A14: 1862 | B14: ='LUC Houghton'!B14 -> 520.9 | C14: ='LUC Houghton'!C14 -> 237.6862 | D14: ='LUC Houghton'!D14 -> 6.7722 | E14: ='LUC Houghton'!E14 -> 22.1333 | F14: ='LUC Houghton'!F14 -> 54.8635 | G14: ='LUC Houghton'!G14 -> 9.9571 | H14: ='LUC Houghton'!H14 -> -1.942 | I14: ='LUC Houghton'!I14 -> 53.6909 | J14: ='LUC Houghton'!J14 -> 47.7736 | K14: ='LUC Houghton'!K14 -> 87.8153 | L14: ='LUC Houghton'!L14 -> 2.1826
A15: 1863 | B15: ='LUC Houghton'!B15 -> 521.1 | C15: ='LUC Houghton'!C15 -> 236.8319 | D15: ='LUC Houghton'!D15 -> 7.3119 | E15: ='LUC Houghton'!E15 -> 22.2482 | F15: ='LUC Houghton'!F15 -> 54.9554 | G15: ='LUC Houghton'!G15 -> 10.8221 | H15: ='LUC Houghton'!H15 -> -1.6705 | I15: ='LUC Houghton'!I15 -> 53.7482 | J15: ='LUC Houghton'!J15 -> 46.6115 | K15: ='LUC Houghton'!K15 -> 87.9075 | L15: ='LUC Houghton'!L15 -> 2.2994
A16: 1864 | B16: ='LUC Houghton'!B16 -> 521.6 | C16: ='LUC Houghton'!C16 -> 235.9699 | D16: ='LUC Houghton'!D16 -> 7.8399 | E16: ='LUC Houghton'!E16 -> 22.3048 | F16: ='LUC Houghton'!F16 -> 55.0611 | G16: ='LUC Houghton'!G16 -> 11.2539 | H16: ='LUC Houghton'!H16 -> -1.2478 | I16: ='LUC Houghton'!I16 -> 53.8026 | J16: ='LUC Houghton'!J16 -> 46.1613 | K16: ='LUC Houghton'!K16 -> 87.997 | L16: ='LUC Houghton'!L16 -> 2.4273
A17: 1865 | B17: ='LUC Houghton'!B17 -> 522.4 | C17: ='LUC Houghton'!C17 -> 235.2334 | D17: ='LUC Houghton'!D17 -> 8.3582 | E17: ='LUC Houghton'!E17 -> 22.3425 | F17: ='LUC Houghton'!F17 -> 55.1798 | G17: ='LUC Houghton'!G17 -> 11.6393 | H17: ='LUC Houghton'!H17 -> -0.6633 | I17: ='LUC Houghton'!I17 -> 53.8618 | J17: ='LUC Houghton'!J17 -> 45.7781 | K17: ='LUC Houghton'!K17 -> 88.0811 | L17: ='LUC Houghton'!L17 -> 2.5633
A18: 1866 | B18: ='LUC Houghton'!B18 -> 522.5 | C18: ='LUC Houghton'!C18 -> 234.7966 | D18: ='LUC Houghton'!D18 -> 8.8682 | E18: ='LUC Houghton'!E18 -> 21.9117 | F18: ='LUC Houghton'!F18 -> 55.3125 | G18: ='LUC Houghton'!G18 -> 11.9889 | H18: ='LUC Houghton'!H18 -> -0.4503 | I18: ='LUC Houghton'!I18 -> 53.7361 | J18: ='LUC Houghton'!J18 -> 45.4492 | K18: ='LUC Houghton'!K18 -> 88.1615 | L18: ='LUC Houghton'!L18 -> 2.6984
A19: 1867 | B19: ='LUC Houghton'!B19 -> 520.8 | C19: ='LUC Houghton'!C19 -> 232.539 | D19: ='LUC Houghton'!D19 -> 9.3709 | E19: ='LUC Houghton'!E19 -> 21.4929 | F19: ='LUC Houghton'!F19 -> 55.4566 | G19: ='LUC Houghton'!G19 -> 12.3102 | H19: ='LUC Houghton'!H19 -> -0.237 | I19: ='LUC Houghton'!I19 -> 53.6184 | J19: ='LUC Houghton'!J19 -> 45.1671 | K19: ='LUC Houghton'!K19 -> 88.2396 | L19: ='LUC Houghton'!L19 -> 2.8314
A20: 1868 | B20: ='LUC Houghton'!B20 -> 519.2 | C20: ='LUC Houghton'!C20 -> 230.5537 | D20: ='LUC Houghton'!D20 -> 9.8671 | E20: ='LUC Houghton'!E20 -> 21.0899 | F20: ='LUC Houghton'!F20 -> 55.6114 | G20: ='LUC Houghton'!G20 -> 12.6085 | H20: ='LUC Houghton'!H20 -> -0.2089 | I20: ='LUC Houghton'!I20 -> 53.5102 | J20: ='LUC Houghton'!J20 -> 44.9215 | K20: ='LUC Houghton'!K20 -> 88.3126 | L20: ='LUC Houghton'!L20 -> 2.9618
A21: 1869 | B21: ='LUC Houghton'!B21 -> 517.5 | C21: ='LUC Houghton'!C21 -> 228.6445 | D21: ='LUC Houghton'!D21 -> 10.3574 | E21: ='LUC Houghton'!E21 -> 20.7033 | F21: ='LUC Houghton'!F21 -> 55.7765 | G21: ='LUC Houghton'!G21 -> 12.8879 | H21: ='LUC Houghton'!H21 -> -0.4199 | I21: ='LUC Houghton'!I21 -> 53.4121 | J21: ='LUC Houghton'!J21 -> 44.7063 | K21: ='LUC Houghton'!K21 -> 88.3836 | L21: ='LUC Houghton'!L21 -> 3.0891
A22: 1870 | B22: ='LUC Houghton'!B22 -> 516.3 | C22: ='LUC Houghton'!C22 -> 226.7993 | D22: ='LUC Houghton'!D22 -> 10.8421 | E22: ='LUC Houghton'!E22 -> 20.6845 | F22: ='LUC Houghton'!F22 -> 55.951 | G22: ='LUC Houghton'!G22 -> 13.1514 | H22: ='LUC Houghton'!H22 -> -0.6307 | I22: ='LUC Houghton'!I22 -> 53.3205 | J22: ='LUC Houghton'!J22 -> 44.5167 | K22: ='LUC Houghton'!K22 -> 88.4499 | L22: ='LUC Houghton'!L22 -> 3.213
A23: 1871 | B23: ='LUC Houghton'!B23 -> 536.7 | C23: ='LUC Houghton'!C23 -> 224.1995 | D23: ='LUC Houghton'!D23 -> 11.3216 | E23: ='LUC Houghton'!E23 -> 20.618 | F23: ='LUC Houghton'!F23 -> 50.4782 | G23: ='LUC Houghton'!G23 -> 13.4019 | H23: ='LUC Houghton'!H23 -> -0.8373 | I23: ='LUC Houghton'!I23 -> 53.2349 | J23: ='LUC Houghton'!J23 -> 44.3485 | K23: ='LUC Houghton'!K23 -> 110.0401 | L23: ='LUC Houghton'!L23 -> 9.87
A24: 1872 | B24: ='LUC Houghton'!B24 -> 623.2 | C24: ='LUC Houghton'!C24 -> 303.8927 | D24: ='LUC Houghton'!D24 -> 11.7961 | E24: ='LUC Houghton'!E24 -> 20.4667 | F24: ='LUC Houghton'!F24 -> 49.5951 | G24: ='LUC Houghton'!G24 -> 13.6407 | H24: ='LUC Houghton'!H24 -> -1.044 | I24: ='LUC Houghton'!I24 -> 53.4881 | J24: ='LUC Houghton'!J24 -> 44.1989 | K24: ='LUC Houghton'!K24 -> 115.2003 | L24: ='LUC Houghton'!L24 -> 11.9261
A25: 1873 | B25: ='LUC Houghton'!B25 -> 634.1 | C25: ='LUC Houghton'!C25 -> 309.2584 | D25: ='LUC Houghton'!D25 -> 12.2658 | E25: ='LUC Houghton'!E25 -> 20.3876 | F25: ='LUC Houghton'!F25 -> 48.753 | G25: ='LUC Houghton'!G25 -> 13.8692 | H25: ='LUC Houghton'!H25 -> -0.8107 | I25: ='LUC Houghton'!I25 -> 53.7454 | J25: ='LUC Houghton'!J25 -> 44.0649 | K25: ='LUC Houghton'!K25 -> 118.9247 | L25: ='LUC Houghton'!L25 -> 13.659
A26: 1874 | B26: ='LUC Houghton'!B26 -> 641.1 | C26: ='LUC Houghton'!C26 -> 314.4476 | D26: ='LUC Houghton'!D26 -> 12.7306 | E26: ='LUC Houghton'!E26 -> 20.3382 | F26: ='LUC Houghton'!F26 -> 47.945 | G26: ='LUC Houghton'!G26 -> 14.0887 | H26: ='LUC Houghton'!H26 -> -0.4387 | I26: ='LUC Houghton'!I26 -> 54.0056 | J26: ='LUC Houghton'!J26 -> 41.9545 | K26: ='LUC Houghton'!K26 -> 121.7101 | L26: ='LUC Houghton'!L26 -> 14.333
A27: 1875 | B27: ='LUC Houghton'!B27 -> 648.4 | C27: ='LUC Houghton'!C27 -> 319.3339 | D27: ='LUC Houghton'!D27 -> 13.1908 | E27: ='LUC Houghton'!E27 -> 20.295 | F27: ='LUC Houghton'!F27 -> 47.165 | G27: ='LUC Houghton'!G27 -> 14.3001 | H27: ='LUC Houghton'!H27 -> -0.2518 | I27: ='LUC Houghton'!I27 -> 54.2676 | J27: ='LUC Houghton'!J27 -> 41.4062 | K27: ='LUC Houghton'!K27 -> 123.8744 | L27: ='LUC Houghton'!L27 -> 14.8672
A28: 1876 | B28: ='LUC Houghton'!B28 -> 655.5 | C28: ='LUC Houghton'!C28 -> 324.0799 | D28: ='LUC Houghton'!D28 -> 13.6463 | E28: ='LUC Houghton'!E28 -> 20.4093 | F28: ='LUC Houghton'!F28 -> 46.5281 | G28: ='LUC Houghton'!G28 -> 14.4652 | H28: ='LUC Houghton'!H28 -> -0.0649 | I28: ='LUC Houghton'!I28 -> 54.9449 | J28: ='LUC Houghton'!J28 -> 40.8748 | K28: ='LUC Houghton'!K28 -> 125.2495 | L28: ='LUC Houghton'!L28 -> 15.35
A29: 1877 | B29: ='LUC Houghton'!B29 -> 662.4 | C29: ='LUC Houghton'!C29 -> 330.0679 | D29: ='LUC Houghton'!D29 -> 13.2989 | E29: ='LUC Houghton'!E29 -> 20.8655 | F29: ='LUC Houghton'!F29 -> 45.9364 | G29: ='LUC Houghton'!G29 -> 14.6283 | H29: ='LUC Houghton'!H29 -> -0.0332 | I29: ='LUC Houghton'!I29 -> 55.036 | J29: ='LUC Houghton'!J29 -> 40.4067 | K29: ='LUC Houghton'!K29 -> 126.4083 | L29: ='LUC Houghton'!L29 -> 15.7573
A30: 1878 | B30: ='LUC Houghton'!B30 -> 669.5 | C30: ='LUC Houghton'!C30 -> 335.7983 | D30: ='LUC Houghton'!D30 -> 13.224 | E30: ='LUC Houghton'!E30 -> 21.3048 | F30: ='LUC Houghton'!F30 -> 45.3859 | G30: ='LUC Houghton'!G30 -> 14.7896 | H30: ='LUC Houghton'!H30 -> -0.0014 | I30: ='LUC Houghton'!I30 -> 55.1253 | J30: ='LUC Houghton'!J30 -> 40.3165 | K30: ='LUC Houghton'!K30 -> 127.4174 | L30: ='LUC Houghton'!L30 -> 16.1158
A31: 1879 | B31: ='LUC Houghton'!B31 -> 676.4 | C31: ='LUC Houghton'!C31 -> 341.3216 | D31: ='LUC Houghton'!D31 -> 13.1455 | E31: ='LUC Houghton'!E31 -> 21.7243 | F31: ='LUC Houghton'!F31 -> 44.8729 | G31: ='LUC Houghton'!G31 -> 14.9313 | H31: ='LUC Houghton'!H31 -> 0.0302 | I31: ='LUC Houghton'!I31 -> 55.2119 | J31: ='LUC Houghton'!J31 -> 40.4353 | K31: ='LUC Houghton'!K31 -> 128.3197 | L31: ='LUC Houghton'!L31 -> 16.4426
A32: 1880 | B32: ='LUC Houghton'!B32 -> 682.9 | C32: ='LUC Houghton'!C32 -> 346.6568 | D32: ='LUC Houghton'!D32 -> 13.0634 | E32: ='LUC Houghton'!E32 -> 22.1232 | F32: ='LUC Houghton'!F32 -> 44.3942 | G32: ='LUC Houghton'!G32 -> 15.0719 | H32: ='LUC Houghton'!H32 -> -0.1584 | I32: ='LUC Houghton'!I32 -> 55.3017 | J32: ='LUC Houghton'!J32 -> 40.5859 | K32: ='LUC Houghton'!K32 -> 129.1453 | L32: ='LUC Houghton'!L32 -> 16.7486
A33: 1881 | B33: ='LUC Houghton'!B33 -> 718.9 | C33: ='LUC Houghton'!C33 -> 350.7138 | D33: ='LUC Houghton'!D33 -> 12.9779 | E33: ='LUC Houghton'!E33 -> 54.0996 | F33: ='LUC Houghton'!F33 -> 43.9404 | G33: ='LUC Houghton'!G33 -> 15.2116 | H33: ='LUC Houghton'!H33 -> -0.3282 | I33: ='LUC Houghton'!I33 -> 55.4023 | J33: ='LUC Houghton'!J33 -> 40.3481 | K33: ='LUC Houghton'!K33 -> 129.5359 | L33: ='LUC Houghton'!L33 -> 17.0474
A34: 1882 | B34: ='LUC Houghton'!B34 -> 672.7 | C34: ='LUC Houghton'!C34 -> 295.6249 | D34: ='LUC Houghton'!D34 -> 12.8891 | E34: ='LUC Houghton'!E34 -> 62.9856 | F34: ='LUC Houghton'!F34 -> 43.5157 | G34: ='LUC Houghton'!G34 -> 15.3507 | H34: ='LUC Houghton'!H34 -> -0.498 | I34: ='LUC Houghton'!I34 -> 55.5127 | J34: ='LUC Houghton'!J34 -> 40.1313 | K34: ='LUC Houghton'!K34 -> 129.8825 | L34: ='LUC Houghton'!L34 -> 17.3438
A35: 1883 | B35: ='LUC Houghton'!B35 -> 678.3 | C35: ='LUC Houghton'!C35 -> 294.0081 | D35: ='LUC Houghton'!D35 -> 12.7972 | E35: ='LUC Houghton'!E35 -> 70.1564 | F35: ='LUC Houghton'!F35 -> 43.1178 | G35: ='LUC Houghton'!G35 -> 15.4893 | H35: ='LUC Houghton'!H35 -> -0.6911 | I35: ='LUC Houghton'!I35 -> 55.6322 | J35: ='LUC Houghton'!J35 -> 39.9314 | K35: ='LUC Houghton'!K35 -> 130.1972 | L35: ='LUC Houghton'!L35 -> 17.6405
A36: 1884 | B36: ='LUC Houghton'!B36 -> 683.4 | C36: ='LUC Houghton'!C36 -> 292.7059 | D36: ='LUC Houghton'!D36 -> 12.7024 | E36: ='LUC Houghton'!E36 -> 76.0985 | F36: ='LUC Houghton'!F36 -> 42.7448 | G36: ='LUC Houghton'!G36 -> 15.6275 | H36: ='LUC Houghton'!H36 -> -0.4439 | I36: ='LUC Houghton'!I36 -> 55.76 | J36: ='LUC Houghton'!J36 -> 39.7453 | K36: ='LUC Houghton'!K36 -> 130.4838 | L36: ='LUC Houghton'!L36 -> 17.9395
A37: 1885 | B37: ='LUC Houghton'!B37 -> 687.7 | C37: ='LUC Houghton'!C37 -> 291.5623 | D37: ='LUC Houghton'!D37 -> 12.6048 | E37: ='LUC Houghton'!E37 -> 81.15 | F37: ='LUC Houghton'!F37 -> 42.3948 | G37: ='LUC Houghton'!G37 -> 15.7655 | H37: ='LUC Houghton'!H37 -> -0.1969 | I37: ='LUC Houghton'!I37 -> 55.8955 | J37: ='LUC Houghton'!J37 -> 39.5674 | K37: ='LUC Houghton'!K37 -> 130.7499 | L37: ='LUC Houghton'!L37 -> 18.242
A38: 1886 | B38: ='LUC Houghton'!B38 -> 690.4 | C38: ='LUC Houghton'!C38 -> 290.3335 | D38: ='LUC Houghton'!D38 -> 12.5047 | E38: ='LUC Houghton'!E38 -> 84.0937 | F38: ='LUC Houghton'!F38 -> 42.5571 | G38: ='LUC Houghton'!G38 -> 15.9008 | H38: ='LUC Houghton'!H38 -> 0.0499 | I38: ='LUC Houghton'!I38 -> 56.0314 | J38: ='LUC Houghton'!J38 -> 39.3987 | K38: ='LUC Houghton'!K38 -> 130.9958 | L38: ='LUC Houghton'!L38 -> 18.5397
A39: 1887 | B39: ='LUC Houghton'!B39 -> 689.8 | C39: ='LUC Houghton'!C39 -> 286.8137 | D39: ='LUC Houghton'!D39 -> 12.4021 | E39: ='LUC Houghton'!E39 -> 86.1971 | F39: ='LUC Houghton'!F39 -> 42.7312 | G39: ='LUC Houghton'!G39 -> 16.0336 | H39: ='LUC Houghton'!H39 -> 0.1267 | I39: ='LUC Houghton'!I39 -> 56.1671 | J39: ='LUC Houghton'!J39 -> 39.2377 | K39: ='LUC Houghton'!K39 -> 131.2262 | L39: ='LUC Houghton'!L39 -> 18.8332
A40: 1888 | B40: ='LUC Houghton'!B40 -> 688.6 | C40: ='LUC Houghton'!C40 -> 283.3092 | D40: ='LUC Houghton'!D40 -> 12.2974 | E40: ='LUC Houghton'!E40 -> 87.9335 | F40: ='LUC Houghton'!F40 -> 42.9158 | G40: ='LUC Houghton'!G40 -> 16.1639 | H40: ='LUC Houghton'!H40 -> -0.0167 | I40: ='LUC Houghton'!I40 -> 56.3023 | J40: ='LUC Houghton'!J40 -> 39.0831 | K40: ='LUC Houghton'!K40 -> 131.4435 | L40: ='LUC Houghton'!L40 -> 19.1227
A41: 1889 | B41: ='LUC Houghton'!B41 -> 687.2 | C41: ='LUC Houghton'!C41 -> 279.9184 | D41: ='LUC Houghton'!D41 -> 12.1907 | E41: ='LUC Houghton'!E41 -> 89.3882 | F41: ='LUC Houghton'!F41 -> 43.1097 | G41: ='LUC Houghton'!G41 -> 16.2919 | H41: ='LUC Houghton'!H41 -> -0.2021 | I41: ='LUC Houghton'!I41 -> 56.4362 | J41: ='LUC Houghton'!J41 -> 39.0309 | K41: ='LUC Houghton'!K41 -> 131.6463 | L41: ='LUC Houghton'!L41 -> 19.3617
A42: 1890 | B42: ='LUC Houghton'!B42 -> 685.9 | C42: ='LUC Houghton'!C42 -> 276.6088 | D42: ='LUC Houghton'!D42 -> 12.0821 | E42: ='LUC Houghton'!E42 -> 90.6234 | F42: ='LUC Houghton'!F42 -> 43.3116 | G42: ='LUC Houghton'!G42 -> 16.4175 | H42: ='LUC Houghton'!H42 -> -0.169 | I42: ='LUC Houghton'!I42 -> 56.5684 | J42: ='LUC Houghton'!J42 -> 38.9838 | K42: ='LUC Houghton'!K42 -> 131.8386 | L42: ='LUC Houghton'!L42 -> 19.5971
A43: 1891 | B43: ='LUC Houghton'!B43 -> 681.5 | C43: ='LUC Houghton'!C43 -> 272.6224 | D43: ='LUC Houghton'!D43 -> 11.9717 | E43: ='LUC Houghton'!E43 -> 73.4217 | F43: ='LUC Houghton'!F43 -> 43.5137 | G43: ='LUC Houghton'!G43 -> 16.5408 | H43: ='LUC Houghton'!H43 -> -0.4233 | I43: ='LUC Houghton'!I43 -> 56.6985 | J43: ='LUC Houghton'!J43 -> 39.0009 | K43: ='LUC Houghton'!K43 -> 148.303 | L43: ='LUC Houghton'!L43 -> 19.8289
A44: 1892 | B44: ='LUC Houghton'!B44 -> 695 | C44: ='LUC Houghton'!C44 -> 285.1653 | D44: ='LUC Houghton'!D44 -> 11.8975 | E44: ='LUC Houghton'!E44 -> 69.9525 | F44: ='LUC Houghton'!F44 -> 43.7151 | G44: ='LUC Houghton'!G44 -> 16.6618 | H44: ='LUC Houghton'!H44 -> -0.6777 | I44: ='LUC Houghton'!I44 -> 56.8279 | J44: ='LUC Houghton'!J44 -> 39.0256 | K44: ='LUC Houghton'!K44 -> 152.338 | L44: ='LUC Houghton'!L44 -> 20.0572
A45: 1893 | B45: ='LUC Houghton'!B45 -> 695.8 | C45: ='LUC Houghton'!C45 -> 285.5659 | D45: ='LUC Houghton'!D45 -> 11.8218 | E45: ='LUC Houghton'!E45 -> 67.2976 | F45: ='LUC Houghton'!F45 -> 43.9148 | G45: ='LUC Houghton'!G45 -> 16.7807 | H45: ='LUC Houghton'!H45 -> -1.0833 | I45: ='LUC Houghton'!I45 -> 56.956 | J45: ='LUC Houghton'!J45 -> 39.0573 | K45: ='LUC Houghton'!K45 -> 155.249 | L45: ='LUC Houghton'!L45 -> 20.2819
A46: 1894 | B46: ='LUC Houghton'!B46 -> 713.3 | C46: ='LUC Houghton'!C46 -> 287.1071 | D46: ='LUC Houghton'!D46 -> 11.7448 | E46: ='LUC Houghton'!E46 -> 65.2477 | F46: ='LUC Houghton'!F46 -> 44.1119 | G46: ='LUC Houghton'!G46 -> 16.8973 | H46: ='LUC Houghton'!H46 -> -1.422 | I46: ='LUC Houghton'!I46 -> 57.0827 | J46: ='LUC Houghton'!J46 -> 54.5849 | K46: ='LUC Houghton'!K46 -> 157.4357 | L46: ='LUC Houghton'!L46 -> 20.503
A47: 1895 | B47: ='LUC Houghton'!B47 -> 717.5 | C47: ='LUC Houghton'!C47 -> 288.6845 | D47: ='LUC Houghton'!D47 -> 11.6666 | E47: ='LUC Houghton'!E47 -> 63.6494 | F47: ='LUC Houghton'!F47 -> 44.3056 | G47: ='LUC Houghton'!G47 -> 17.0118 | H47: ='LUC Houghton'!H47 -> -1.2556 | I47: ='LUC Houghton'!I47 -> 57.2074 | J47: ='LUC Houghton'!J47 -> 56.3774 | K47: ='LUC Houghton'!K47 -> 159.1528 | L47: ='LUC Houghton'!L47 -> 20.7204
A48: 1896 | B48: ='LUC Houghton'!B48 -> 719.4 | C48: ='LUC Houghton'!C48 -> 288.3386 | D48: ='LUC Houghton'!D48 -> 11.5874 | E48: ='LUC Houghton'!E48 -> 62.5711 | F48: ='LUC Houghton'!F48 -> 44.4951 | G48: ='LUC Houghton'!G48 -> 17.1242 | H48: ='LUC Houghton'!H48 -> -1.2784 | I48: ='LUC Houghton'!I48 -> 57.3301 | J48: ='LUC Houghton'!J48 -> 58.0801 | K48: ='LUC Houghton'!K48 -> 160.2487 | L48: ='LUC Houghton'!L48 -> 20.934
A49: 1897 | B49: ='LUC Houghton'!B49 -> 723 | C49: ='LUC Houghton'!C49 -> 289.2498 | D49: ='LUC Houghton'!D49 -> 11.5071 | E49: ='LUC Houghton'!E49 -> 61.7471 | F49: ='LUC Houghton'!F49 -> 44.6798 | G49: ='LUC Houghton'!G49 -> 17.2345 | H49: ='LUC Houghton'!H49 -> -0.9609 | I49: ='LUC Houghton'!I49 -> 57.4502 | J49: ='LUC Houghton'!J49 -> 59.7669 | K49: ='LUC Houghton'!K49 -> 161.1416 | L49: ='LUC Houghton'!L49 -> 21.1438
A50: 1898 | B50: ='LUC Houghton'!B50 -> 724.5 | C50: ='LUC Houghton'!C50 -> 288.2364 | D50: ='LUC Houghton'!D50 -> 11.426 | E50: ='LUC Houghton'!E50 -> 61.1155 | F50: ='LUC Houghton'!F50 -> 44.8589 | G50: ='LUC Houghton'!G50 -> 17.3427 | H50: ='LUC Houghton'!H50 -> -0.6434 | I50: ='LUC Houghton'!I50 -> 57.5677 | J50: ='LUC Houghton'!J50 -> 61.3659 | K50: ='LUC Houghton'!K50 -> 161.8953 | L50: ='LUC Houghton'!L50 -> 21.3496
A51: 1899 | B51: ='LUC Houghton'!B51 -> 725.8 | C51: ='LUC Houghton'!C51 -> 287.2323 | D51: ='LUC Houghton'!D51 -> 11.3441 | E51: ='LUC Houghton'!E51 -> 60.63 | F51: ='LUC Houghton'!F51 -> 45.0318 | G51: ='LUC Houghton'!G51 -> 17.4488 | H51: ='LUC Houghton'!H51 -> -0.5555 | I51: ='LUC Houghton'!I51 -> 57.6822 | J51: ='LUC Houghton'!J51 -> 62.8962 | K51: ='LUC Houghton'!K51 -> 162.5557 | L51: ='LUC Houghton'!L51 -> 21.5514
A52: 1900 | B52: ='LUC Houghton'!B52 -> 726.9 | C52: ='LUC Houghton'!C52 -> 286.2529 | D52: ='LUC Houghton'!D52 -> 11.2615 | E52: ='LUC Houghton'!E52 -> 60.2563 | F52: ='LUC Houghton'!F52 -> 45.1932 | G52: ='LUC Houghton'!G52 -> 17.5528 | H52: ='LUC Houghton'!H52 -> -0.6736 | I52: ='LUC Houghton'!I52 -> 57.7935 | J52: ='LUC Houghton'!J52 -> 64.3642 | K52: ='LUC Houghton'!K52 -> 163.1483 | L52: ='LUC Houghton'!L52 -> 21.7491
A53: 1901 | B53: ='LUC Houghton'!B53 -> 792.8 | C53: ='LUC Houghton'!C53 -> 285.8526 | D53: ='LUC Houghton'!D53 -> 11.1945 | E53: ='LUC Houghton'!E53 -> 121.8006 | F53: ='LUC Houghton'!F53 -> 45.4366 | G53: ='LUC Houghton'!G53 -> 20.0678 | H53: ='LUC Houghton'!H53 -> -0.798 | I53: ='LUC Houghton'!I53 -> 57.9014 | J53: ='LUC Houghton'!J53 -> 65.7618 | K53: ='LUC Houghton'!K53 -> 163.5097 | L53: ='LUC Houghton'!L53 -> 22.0339
A54: 1902 | B54: ='LUC Houghton'!B54 -> 796.8 | C54: ='LUC Houghton'!C54 -> 240.4008 | D54: ='LUC Houghton'!D54 -> 24.0068 | E54: ='LUC Houghton'!E54 -> 139.4178 | F54: ='LUC Houghton'!F54 -> 45.7004 | G54: ='LUC Houghton'!G54 -> 20.5752 | H54: ='LUC Houghton'!H54 -> -0.2576 | I54: ='LUC Houghton'!I54 -> 58.0485 | J54: ='LUC Houghton'!J54 -> 82.7269 | K54: ='LUC Houghton'!K54 -> 163.8322 | L54: ='LUC Houghton'!L54 -> 22.3377
A55: 1903 | B55: ='LUC Houghton'!B55 -> 825.9 | C55: ='LUC Houghton'!C55 -> 231.8157 | D55: ='LUC Houghton'!D55 -> 26.8045 | E55: ='LUC Houghton'!E55 -> 153.7616 | F55: ='LUC Houghton'!F55 -> 45.983 | G55: ='LUC Houghton'!G55 -> 21.0383 | H55: ='LUC Houghton'!H55 -> 0.9851 | I55: ='LUC Houghton'!I55 -> 58.1916 | J55: ='LUC Houghton'!J55 -> 100.5749 | K55: ='LUC Houghton'!K55 -> 164.1244 | L55: ='LUC Houghton'!L55 -> 22.651
A56: 1904 | B56: ='LUC Houghton'!B56 -> 852.4 | C56: ='LUC Houghton'!C56 -> 222.2119 | D56: ='LUC Houghton'!D56 -> 29.4944 | E56: ='LUC Houghton'!E56 -> 165.779 | F56: ='LUC Houghton'!F56 -> 46.2824 | G56: ='LUC Houghton'!G56 -> 21.294 | H56: ='LUC Houghton'!H56 -> 2.6563 | I56: ='LUC Houghton'!I56 -> 58.3304 | J56: ='LUC Houghton'!J56 -> 119.009 | K56: ='LUC Houghton'!K56 -> 164.3921 | L56: ='LUC Houghton'!L56 -> 22.9711
A57: 1905 | B57: ='LUC Houghton'!B57 -> 878.5 | C57: ='LUC Houghton'!C57 -> 213.0842 | D57: ='LUC Houghton'!D57 -> 32.0952 | E57: ='LUC Houghton'!E57 -> 176.1182 | F57: ='LUC Houghton'!F57 -> 46.5971 | G57: ='LUC Houghton'!G57 -> 21.5219 | H57: ='LUC Houghton'!H57 -> 4.8255 | I57: ='LUC Houghton'!I57 -> 58.4652 | J57: ='LUC Houghton'!J57 -> 137.901 | K57: ='LUC Houghton'!K57 -> 164.6389 | L57: ='LUC Houghton'!L57 -> 23.2954
A58: 1906 | B58: ='LUC Houghton'!B58 -> 909.5 | C58: ='LUC Houghton'!C58 -> 205.8566 | D58: ='LUC Houghton'!D58 -> 34.6214 | E58: ='LUC Houghton'!E58 -> 180.8407 | F58: ='LUC Houghton'!F58 -> 46.9254 | G58: ='LUC Houghton'!G58 -> 21.7165 | H58: ='LUC Houghton'!H58 -> 7.4461 | I58: ='LUC Houghton'!I58 -> 58.5916 | J58: ='LUC Houghton'!J58 -> 157.1312 | K58: ='LUC Houghton'!K58 -> 172.783 | L58: ='LUC Houghton'!L58 -> 23.6175
A59: 1907 | B59: ='LUC Houghton'!B59 -> 918.6 | C59: ='LUC Houghton'!C59 -> 198.4962 | D59: ='LUC Houghton'!D59 -> 37.0581 | E59: ='LUC Houghton'!E59 -> 184.6834 | F59: ='LUC Houghton'!F59 -> 47.2659 | G59: ='LUC Houghton'!G59 -> 21.892 | H59: ='LUC Houghton'!H59 -> 10.1825 | I59: ='LUC Houghton'!I59 -> 58.5861 | J59: ='LUC Houghton'!J59 -> 161.6101 | K59: ='LUC Houghton'!K59 -> 174.8759 | L59: ='LUC Houghton'!L59 -> 23.9367
A60: 1908 | B60: ='LUC Houghton'!B60 -> 927.9 | C60: ='LUC Houghton'!C60 -> 193.3296 | D60: ='LUC Houghton'!D60 -> 39.4403 | E60: ='LUC Houghton'!E60 -> 187.8652 | F60: ='LUC Houghton'!F60 -> 47.6173 | G60: ='LUC Houghton'!G60 -> 22.0509 | H60: ='LUC Houghton'!H60 -> 12.928 | I60: ='LUC Houghton'!I60 -> 58.5758 | J60: ='LUC Houghton'!J60 -> 165.4892 | K60: ='LUC Houghton'!K60 -> 176.3878 | L60: ='LUC Houghton'!L60 -> 24.2526
A61: 1909 | B61: ='LUC Houghton'!B61 -> 935.3 | C61: ='LUC Houghton'!C61 -> 188.2258 | D61: ='LUC Houghton'!D61 -> 41.7751 | E61: ='LUC Houghton'!E61 -> 190.5416 | F61: ='LUC Houghton'!F61 -> 47.9782 | G61: ='LUC Houghton'!G61 -> 22.1954 | H61: ='LUC Houghton'!H61 -> 15.5432 | I61: ='LUC Houghton'!I61 -> 58.5605 | J61: ='LUC Houghton'!J61 -> 168.3916 | K61: ='LUC Houghton'!K61 -> 177.5327 | L61: ='LUC Houghton'!L61 -> 24.5647
A62: 1910 | B62: ='LUC Houghton'!B62 -> 941 | C62: ='LUC Houghton'!C62 -> 183.0325 | D62: ='LUC Houghton'!D62 -> 44.0683 | E62: ='LUC Houghton'!E62 -> 192.5875 | F62: ='LUC Houghton'!F62 -> 48.3474 | G62: ='LUC Houghton'!G62 -> 22.327 | H62: ='LUC Houghton'!H62 -> 17.8936 | I62: ='LUC Houghton'!I62 -> 58.5441 | J62: ='LUC Houghton'!J62 -> 170.9247 | K62: ='LUC Houghton'!K62 -> 178.4426 | L62: ='LUC Houghton'!L62 -> 24.8725
A63: 1911 | B63: ='LUC Houghton'!B63 -> 882.9 | C63: ='LUC Houghton'!C63 -> 178.7927 | D63: ='LUC Houghton'!D63 -> 46.3245 | E63: ='LUC Houghton'!E63 -> 130.4638 | F63: ='LUC Houghton'!F63 -> 48.72 | G63: ='LUC Houghton'!G63 -> 22.4772 | H63: ='LUC Houghton'!H63 -> 20.2295 | I63: ='LUC Houghton'!I63 -> 58.5263 | J63: ='LUC Houghton'!J63 -> 173.1642 | K63: ='LUC Houghton'!K63 -> 179.0479 | L63: ='LUC Houghton'!L63 -> 25.1498
A64: 1912 | B64: ='LUC Houghton'!B64 -> 846.2 | C64: ='LUC Houghton'!C64 -> 153.4623 | D64: ='LUC Houghton'!D64 -> 48.5895 | E64: ='LUC Houghton'!E64 -> 112.63 | F64: ='LUC Houghton'!F64 -> 49.0951 | G64: ='LUC Houghton'!G64 -> 22.5897 | H64: ='LUC Houghton'!H64 -> 22.6874 | I64: ='LUC Houghton'!I64 -> 58.508 | J64: ='LUC Houghton'!J64 -> 173.6252 | K64: ='LUC Houghton'!K64 -> 179.5523 | L64: ='LUC Houghton'!L64 -> 25.4146
A65: 1913 | B65: ='LUC Houghton'!B65 -> 815.9 | C65: ='LUC Houghton'!C65 -> 147.611 | D65: ='LUC Houghton'!D65 -> 50.7684 | E65: ='LUC Houghton'!E65 -> 97.964 | F65: ='LUC Houghton'!F65 -> 49.4719 | G65: ='LUC Houghton'!G65 -> 22.6947 | H65: ='LUC Houghton'!H65 -> 24.9674 | I65: ='LUC Houghton'!I65 -> 63.6836 | J65: ='LUC Houghton'!J65 -> 173.8119 | K65: ='LUC Houghton'!K65 -> 159.2155 | L65: ='LUC Houghton'!L65 -> 25.6682
A66: 1914 | B66: ='LUC Houghton'!B66 -> 804.8 | C66: ='LUC Houghton'!C66 -> 142.9251 | D66: ='LUC Houghton'!D66 -> 52.9231 | E66: ='LUC Houghton'!E66 -> 85.5031 | F66: ='LUC Houghton'!F66 -> 49.8493 | G66: ='LUC Houghton'!G66 -> 22.7928 | H66: ='LUC Houghton'!H66 -> 27.1705 | I66: ='LUC Houghton'!I66 -> 65.2347 | J66: ='LUC Houghton'!J66 -> 177.7884 | K66: ='LUC Houghton'!K66 -> 154.6764 | L66: ='LUC Houghton'!L66 -> 25.9149
A67: 1915 | B67: ='LUC Houghton'!B67 -> 793 | C67: ='LUC Houghton'!C67 -> 138.3415 | D67: ='LUC Houghton'!D67 -> 55.0561 | E67: ='LUC Houghton'!E67 -> 74.5948 | F67: ='LUC Houghton'!F67 -> 50.2265 | G67: ='LUC Houghton'!G67 -> 22.8846 | H67: ='LUC Houghton'!H67 -> 29.3502 | I67: ='LUC Houghton'!I67 -> 66.5887 | J67: ='LUC Houghton'!J67 -> 178.4079 | K67: ='LUC Houghton'!K67 -> 151.4013 | L67: ='LUC Houghton'!L67 -> 26.1551
A68: 1916 | B68: ='LUC Houghton'!B68 -> 795.1 | C68: ='LUC Houghton'!C68 -> 133.4718 | D68: ='LUC Houghton'!D68 -> 57.1692 | E68: ='LUC Houghton'!E68 -> 70.4942 | F68: ='LUC Houghton'!F68 -> 50.6646 | G68: ='LUC Houghton'!G68 -> 22.9306 | H68: ='LUC Houghton'!H68 -> 31.5171 | I68: ='LUC Houghton'!I68 -> 67.8932 | J68: ='LUC Houghton'!J68 -> 178.7551 | K68: ='LUC Houghton'!K68 -> 155.8358 | L68: ='LUC Houghton'!L68 -> 26.3889
A69: 1917 | B69: ='LUC Houghton'!B69 -> 798.2 | C69: ='LUC Houghton'!C69 -> 129.9933 | D69: ='LUC Houghton'!D69 -> 57.771 | E69: ='LUC Houghton'!E69 -> 67.1942 | F69: ='LUC Houghton'!F69 -> 51.0941 | G69: ='LUC Houghton'!G69 -> 22.9713 | H69: ='LUC Houghton'!H69 -> 34.1071 | I69: ='LUC Houghton'!I69 -> 69.2063 | J69: ='LUC Houghton'!J69 -> 183.736 | K69: ='LUC Houghton'!K69 -> 155.504 | L69: ='LUC Houghton'!L69 -> 26.6165
A70: 1918 | B70: ='LUC Houghton'!B70 -> 801.4 | C70: ='LUC Houghton'!C70 -> 126.1382 | D70: ='LUC Houghton'!D70 -> 58.3564 | E70: ='LUC Houghton'!E70 -> 64.4819 | F70: ='LUC Houghton'!F70 -> 51.5143 | G70: ='LUC Houghton'!G70 -> 23.0071 | H70: ='LUC Houghton'!H70 -> 36.4256 | I70: ='LUC Houghton'!I70 -> 70.4852 | J70: ='LUC Houghton'!J70 -> 188.7712 | K70: ='LUC Houghton'!K70 -> 155.3742 | L70: ='LUC Houghton'!L70 -> 26.8378
A71: 1919 | B71: ='LUC Houghton'!B71 -> 807.1 | C71: ='LUC Houghton'!C71 -> 124.4466 | D71: ='LUC Houghton'!D71 -> 58.9267 | E71: ='LUC Houghton'!E71 -> 62.2083 | F71: ='LUC Houghton'!F71 -> 51.9245 | G71: ='LUC Houghton'!G71 -> 23.0298 | H71: ='LUC Houghton'!H71 -> 38.731 | I71: ='LUC Houghton'!I71 -> 71.7574 | J71: ='LUC Houghton'!J71 -> 193.8543 | K71: ='LUC Houghton'!K71 -> 155.1679 | L71: ='LUC Houghton'!L71 -> 27.0529
A72: 1920 | B72: ='LUC Houghton'!B72 -> 808.8 | C72: ='LUC Houghton'!C72 -> 118.607 | D72: ='LUC Houghton'!D72 -> 59.4833 | E72: ='LUC Houghton'!E72 -> 60.0345 | F72: ='LUC Houghton'!F72 -> 52.324 | G72: ='LUC Houghton'!G72 -> 23.0483 | H72: ='LUC Houghton'!H72 -> 41.0865 | I72: ='LUC Houghton'!I72 -> 73.0559 | J72: ='LUC Houghton'!J72 -> 198.9584 | K72: ='LUC Houghton'!K72 -> 154.9375 | L72: ='LUC Houghton'!L72 -> 27.2616
A73: 1921 | B73: ='LUC Houghton'!B73 -> 856.7 | C73: ='LUC Houghton'!C73 -> 112.4582 | D73: ='LUC Houghton'!D73 -> 60.0272 | E73: ='LUC Houghton'!E73 -> 104.7568 | F73: ='LUC Houghton'!F73 -> 52.7692 | G73: ='LUC Houghton'!G73 -> 23.0627 | H73: ='LUC Houghton'!H73 -> 43.0389 | I73: ='LUC Houghton'!I73 -> 74.3848 | J73: ='LUC Houghton'!J73 -> 204.0601 | K73: ='LUC Houghton'!K73 -> 154.613 | L73: ='LUC Houghton'!L73 -> 27.5729
A74: 1922 | B74: ='LUC Houghton'!B74 -> 849.1 | C74: ='LUC Houghton'!C74 -> 85.4772 | D74: ='LUC Houghton'!D74 -> 60.5644 | E74: ='LUC Houghton'!E74 -> 117.2792 | F74: ='LUC Houghton'!F74 -> 53.2021 | G74: ='LUC Houghton'!G74 -> 23.0735 | H74: ='LUC Houghton'!H74 -> 44.8857 | I74: ='LUC Houghton'!I74 -> 75.7471 | J74: ='LUC Houghton'!J74 -> 206.7472 | K74: ='LUC Houghton'!K74 -> 154.2994 | L74: ='LUC Houghton'!L74 -> 27.7921
A75: 1923 | B75: ='LUC Houghton'!B75 -> 857 | C75: ='LUC Houghton'!C75 -> 76.428 | D75: ='LUC Houghton'!D75 -> 61.0907 | E75: ='LUC Houghton'!E75 -> 127.4191 | F75: ='LUC Houghton'!F75 -> 53.6224 | G75: ='LUC Houghton'!G75 -> 23.0809 | H75: ='LUC Houghton'!H75 -> 46.6949 | I75: ='LUC Houghton'!I75 -> 77.0566 | J75: ='LUC Houghton'!J75 -> 209.2309 | K75: ='LUC Houghton'!K75 -> 154.3832 | L75: ='LUC Houghton'!L75 -> 27.9986
A76: 1924 | B76: ='LUC Houghton'!B76 -> 862.7 | C76: ='LUC Houghton'!C76 -> 67.1982 | D76: ='LUC Houghton'!D76 -> 61.607 | E76: ='LUC Houghton'!E76 -> 135.9285 | F76: ='LUC Houghton'!F76 -> 54.0294 | G76: ='LUC Houghton'!G76 -> 23.085 | H76: ='LUC Houghton'!H76 -> 48.1746 | I76: ='LUC Houghton'!I76 -> 78.4035 | J76: ='LUC Houghton'!J76 -> 211.5901 | K76: ='LUC Houghton'!K76 -> 154.4794 | L76: ='LUC Houghton'!L76 -> 28.1771
A77: 1925 | B77: ='LUC Houghton'!B77 -> 865.6 | C77: ='LUC Houghton'!C77 -> 56.4716 | D77: ='LUC Houghton'!D77 -> 62.114 | E77: ='LUC Houghton'!E77 -> 143.3089 | F77: ='LUC Houghton'!F77 -> 54.4226 | G77: ='LUC Houghton'!G77 -> 23.0861 | H77: ='LUC Houghton'!H77 -> 49.6087 | I77: ='LUC Houghton'!I77 -> 79.7828 | J77: ='LUC Houghton'!J77 -> 213.8495 | K77: ='LUC Houghton'!K77 -> 154.5862 | L77: ='LUC Houghton'!L77 -> 28.3465
A78: 1926 | B78: ='LUC Houghton'!B78 -> 870.5 | C78: ='LUC Houghton'!C78 -> 49.8153 | D78: ='LUC Houghton'!D78 -> 62.6123 | E78: ='LUC Houghton'!E78 -> 145.3815 | F78: ='LUC Houghton'!F78 -> 54.0845 | G78: ='LUC Houghton'!G78 -> 31.7032 | H78: ='LUC Houghton'!H78 -> 50.9836 | I78: ='LUC Houghton'!I78 -> 81.1955 | J78: ='LUC Houghton'!J78 -> 216.0317 | K78: ='LUC Houghton'!K78 -> 150.1051 | L78: ='LUC Houghton'!L78 -> 28.574
A79: 1927 | B79: ='LUC Houghton'!B79 -> 909.7 | C79: ='LUC Houghton'!C79 -> 93.1593 | D79: ='LUC Houghton'!D79 -> 52.6394 | E79: ='LUC Houghton'!E79 -> 146.9751 | F79: ='LUC Houghton'!F79 -> 53.6247 | G79: ='LUC Houghton'!G79 -> 33.6301 | H79: ='LUC Houghton'!H79 -> 52.3024 | I79: ='LUC Houghton'!I79 -> 82.5309 | J79: ='LUC Houghton'!J79 -> 216.9146 | K79: ='LUC Houghton'!K79 -> 149.1579 | L79: ='LUC Houghton'!L79 -> 28.8094
A80: 1928 | B80: ='LUC Houghton'!B80 -> 913 | C80: ='LUC Houghton'!C80 -> 92.9422 | D80: ='LUC Houghton'!D80 -> 50.9567 | E80: ='LUC Houghton'!E80 -> 148.146 | F80: ='LUC Houghton'!F80 -> 53.0481 | G80: ='LUC Houghton'!G80 -> 35.3567 | H80: ='LUC Houghton'!H80 -> 54.0675 | I80: ='LUC Houghton'!I80 -> 83.099 | J80: ='LUC Houghton'!J80 -> 217.7548 | K80: ='LUC Houghton'!K80 -> 148.569 | L80: ='LUC Houghton'!L80 -> 29.0516
A81: 1929 | B81: ='LUC Houghton'!B81 -> 940 | C81: ='LUC Houghton'!C81 -> 116.9714 | D81: ='LUC Houghton'!D81 -> 49.3562 | E81: ='LUC Houghton'!E81 -> 148.9917 | F81: ='LUC Houghton'!F81 -> 52.359 | G81: ='LUC Houghton'!G81 -> 35.792 | H81: ='LUC Houghton'!H81 -> 55.8185 | I81: ='LUC Houghton'!I81 -> 83.6993 | J81: ='LUC Houghton'!J81 -> 219.5039 | K81: ='LUC Houghton'!K81 -> 148.2114 | L81: ='LUC Houghton'!L81 -> 29.2959
A82: 1930 | B82: ='LUC Houghton'!B82 -> 1018.1 | C82: ='LUC Houghton'!C82 -> 191.6778 | D82: ='LUC Houghton'!D82 -> 47.8221 | E82: ='LUC Houghton'!E82 -> 150.0502 | F82: ='LUC Houghton'!F82 -> 51.5618 | G82: ='LUC Houghton'!G82 -> 36.1232 | H82: ='LUC Houghton'!H82 -> 57.3835 | I82: ='LUC Houghton'!I82 -> 84.3022 | J82: ='LUC Houghton'!J82 -> 221.6063 | K82: ='LUC Houghton'!K82 -> 148.0027 | L82: ='LUC Houghton'!L82 -> 29.5418
A83: 1931 | B83: ='LUC Houghton'!B83 -> 1028.7 | C83: ='LUC Houghton'!C83 -> 187.6267 | D83: ='LUC Houghton'!D83 -> 46.3422 | E83: ='LUC Houghton'!E83 -> 161.8485 | F83: ='LUC Houghton'!F83 -> 50.6588 | G83: ='LUC Houghton'!G83 -> 36.7444 | H83: ='LUC Houghton'!H83 -> 59.1174 | I83: ='LUC Houghton'!I83 -> 84.9077 | J83: ='LUC Houghton'!J83 -> 223.6667 | K83: ='LUC Houghton'!K83 -> 147.9707 | L83: ='LUC Houghton'!L83 -> 29.7887
A84: 1932 | B84: ='LUC Houghton'!B84 -> 930.8 | C84: ='LUC Houghton'!C84 -> 84.9591 | D84: ='LUC Houghton'!D84 -> 44.9068 | E84: ='LUC Houghton'!E84 -> 165.0499 | F84: ='LUC Houghton'!F84 -> 49.6554 | G84: ='LUC Houghton'!G84 -> 37.3055 | H84: ='LUC Houghton'!H84 -> 60.7769 | I84: ='LUC Houghton'!I84 -> 85.5199 | J84: ='LUC Houghton'!J84 -> 224.5684 | K84: ='LUC Houghton'!K84 -> 147.9992 | L84: ='LUC Houghton'!L84 -> 30.0363
A85: 1933 | B85: ='LUC Houghton'!B85 -> 927.6 | C85: ='LUC Houghton'!C85 -> 77.4386 | D85: ='LUC Houghton'!D85 -> 43.5084 | E85: ='LUC Houghton'!E85 -> 167.5446 | F85: ='LUC Houghton'!F85 -> 48.5551 | G85: ='LUC Houghton'!G85 -> 37.8209 | H85: ='LUC Houghton'!H85 -> 62.7908 | I85: ='LUC Houghton'!I85 -> 86.1474 | J85: ='LUC Houghton'!J85 -> 225.4108 | K85: ='LUC Houghton'!K85 -> 148.0654 | L85: ='LUC Houghton'!L85 -> 30.2841
A86: 1934 | B86: ='LUC Houghton'!B86 -> 915.3 | C86: ='LUC Houghton'!C86 -> 70.1734 | D86: ='LUC Houghton'!D86 -> 42.1409 | E86: ='LUC Houghton'!E86 -> 169.5075 | F86: ='LUC Houghton'!F86 -> 47.3612 | G86: ='LUC Houghton'!G86 -> 38.3008 | H86: ='LUC Houghton'!H86 -> 64.6566 | I86: ='LUC Houghton'!I86 -> 84.5532 | J86: ='LUC Houghton'!J86 -> 219.9642 | K86: ='LUC Houghton'!K86 -> 148.1542 | L86: ='LUC Houghton'!L86 -> 30.532
A87: 1935 | B87: ='LUC Houghton'!B87 -> 913.7 | C87: ='LUC Houghton'!C87 -> 67.8054 | D87: ='LUC Houghton'!D87 -> 40.7992 | E87: ='LUC Houghton'!E87 -> 171.0651 | F87: ='LUC Houghton'!F87 -> 46.0769 | G87: ='LUC Houghton'!G87 -> 38.7529 | H87: ='LUC Houghton'!H87 -> 67.5293 | I87: ='LUC Houghton'!I87 -> 82.8035 | J87: ='LUC Houghton'!J87 -> 219.8235 | K87: ='LUC Houghton'!K87 -> 148.2555 | L87: ='LUC Houghton'!L87 -> 30.7795
A88: 1936 | B88: ='LUC Houghton'!B88 -> 922 | C88: ='LUC Houghton'!C88 -> 59.3827 | D88: ='LUC Houghton'!D88 -> 39.4793 | E88: ='LUC Houghton'!E88 -> 172.778 | F88: ='LUC Houghton'!F88 -> 44.7582 | G88: ='LUC Houghton'!G88 -> 39.1801 | H88: ='LUC Houghton'!H88 -> 69.2123 | I88: ='LUC Houghton'!I88 -> 80.8993 | J88: ='LUC Houghton'!J88 -> 219.7536 | K88: ='LUC Houghton'!K88 -> 165.4944 | L88: ='LUC Houghton'!L88 -> 31.0238
A89: 1937 | B89: ='LUC Houghton'!B89 -> 899.3 | C89: ='LUC Houghton'!C89 -> 32.8331 | D89: ='LUC Houghton'!D89 -> 38.178 | E89: ='LUC Houghton'!E89 -> 174.6317 | F89: ='LUC Houghton'!F89 -> 43.4031 | G89: ='LUC Houghton'!G89 -> 39.5866 | H89: ='LUC Houghton'!H89 -> 71.1387 | I89: ='LUC Houghton'!I89 -> 78.842 | J89: ='LUC Houghton'!J89 -> 219.7429 | K89: ='LUC Houghton'!K89 -> 169.7137 | L89: ='LUC Houghton'!L89 -> 31.2645
A90: 1938 | B90: ='LUC Houghton'!B90 -> 902.4 | C90: ='LUC Houghton'!C90 -> 33.3753 | D90: ='LUC Houghton'!D90 -> 36.8924 | E90: ='LUC Houghton'!E90 -> 176.2967 | F90: ='LUC Houghton'!F90 -> 42.0143 | G90: ='LUC Houghton'!G90 -> 39.9756 | H90: ='LUC Houghton'!H90 -> 73.0465 | I90: ='LUC Houghton'!I90 -> 76.6881 | J90: ='LUC Houghton'!J90 -> 219.7764 | K90: ='LUC Houghton'!K90 -> 172.8427 | L90: ='LUC Houghton'!L90 -> 31.5016
A91: 1939 | B91: ='LUC Houghton'!B91 -> 900.5 | C91: ='LUC Houghton'!C91 -> 29.503 | D91: ='LUC Houghton'!D91 -> 35.6201 | E91: ='LUC Houghton'!E91 -> 177.811 | F91: ='LUC Houghton'!F91 -> 40.5942 | G91: ='LUC Houghton'!G91 -> 40.3493 | H91: ='LUC Houghton'!H91 -> 75.3304 | I91: ='LUC Houghton'!I91 -> 74.5129 | J91: ='LUC Houghton'!J91 -> 219.7679 | K91: ='LUC Houghton'!K91 -> 175.2349 | L91: ='LUC Houghton'!L91 -> 31.7348
A92: 1940 | B92: ='LUC Houghton'!B92 -> 887.5 | C92: ='LUC Houghton'!C92 -> 16.488 | D92: ='LUC Houghton'!D92 -> 34.3592 | E92: ='LUC Houghton'!E92 -> 179.2032 | F92: ='LUC Houghton'!F92 -> 39.1451 | G92: ='LUC Houghton'!G92 -> 40.7098 | H92: ='LUC Houghton'!H92 -> 77.5506 | I92: ='LUC Houghton'!I92 -> 71.1462 | J92: ='LUC Houghton'!J92 -> 219.7826 | K92: ='LUC Houghton'!K92 -> 177.1276 | L92: ='LUC Houghton'!L92 -> 31.9639
A93: 1941 | B93: ='LUC Houghton'!B93 -> 870.2 | C93: ='LUC Houghton'!C93 -> 14.9802 | D93: ='LUC Houghton'!D93 -> 33.108 | E93: ='LUC Houghton'!E93 -> 177.8057 | F93: ='LUC Houghton'!F93 -> 37.6905 | G93: ='LUC Houghton'!G93 -> 41.0343 | H93: ='LUC Houghton'!H93 -> 79.5326 | I93: ='LUC Houghton'!I93 -> 54.4211 | J93: ='LUC Houghton'!J93 -> 219.8139 | K93: ='LUC Houghton'!K93 -> 179.6268 | L93: ='LUC Houghton'!L93 -> 32.1887
A94: 1942 | B94: ='LUC Houghton'!B94 -> 891.3 | C94: ='LUC Houghton'!C94 -> 27.5594 | D94: ='LUC Houghton'!D94 -> 33.0949 | E94: ='LUC Houghton'!E94 -> 177.2661 | F94: ='LUC Houghton'!F94 -> 36.2326 | G94: ='LUC Houghton'!G94 -> 41.3486 | H94: ='LUC Houghton'!H94 -> 81.747 | I94: ='LUC Houghton'!I94 -> 47.5128 | J94: ='LUC Houghton'!J94 -> 231.9072 | K94: ='LUC Houghton'!K94 -> 182.1978 | L94: ='LUC Houghton'!L94 -> 32.4092
A95: 1943 | B95: ='LUC Houghton'!B95 -> 886.4 | C95: ='LUC Houghton'!C95 -> 13.2181 | D95: ='LUC Houghton'!D95 -> 33.0887 | E95: ='LUC Houghton'!E95 -> 176.8667 | F95: ='LUC Houghton'!F95 -> 34.7731 | G95: ='LUC Houghton'!G95 -> 41.6535 | H95: ='LUC Houghton'!H95 -> 84.0349 | I95: ='LUC Houghton'!I95 -> 40.8358 | J95: ='LUC Houghton'!J95 -> 244.604 | K95: ='LUC Houghton'!K95 -> 184.7197 | L95: ='LUC Houghton'!L95 -> 32.625
A96: 1944 | B96: ='LUC Houghton'!B96 -> 892.3 | C96: ='LUC Houghton'!C96 -> 8.9796 | D96: ='LUC Houghton'!D96 -> 33.0881 | E96: ='LUC Houghton'!E96 -> 176.6292 | F96: ='LUC Houghton'!F96 -> 33.314 | G96: ='LUC Houghton'!G96 -> 41.8935 | H96: ='LUC Houghton'!H96 -> 86.348 | I96: ='LUC Houghton'!I96 -> 34.3535 | J96: ='LUC Houghton'!J96 -> 257.7192 | K96: ='LUC Houghton'!K96 -> 187.1801 | L96: ='LUC Houghton'!L96 -> 32.8362
A97: 1945 | B97: ='LUC Houghton'!B97 -> 894.1 | C97: ='LUC Houghton'!C97 -> 0.1294 | D97: ='LUC Houghton'!D97 -> 33.0921 | E97: ='LUC Houghton'!E97 -> 176.39 | F97: ='LUC Houghton'!F97 -> 31.8572 | G97: ='LUC Houghton'!G97 -> 42.1256 | H97: ='LUC Houghton'!H97 -> 88.6447 | I97: ='LUC Houghton'!I97 -> 28.0367 | J97: ='LUC Houghton'!J97 -> 271.1625 | K97: ='LUC Houghton'!K97 -> 189.5739 | L97: ='LUC Houghton'!L97 -> 33.0425
A98: 1946 | B98: ='LUC Houghton'!B98 -> 976.9 | C98: ='LUC Houghton'!C98 -> -4.8479 | D98: ='LUC Houghton'!D98 -> 33.0998 | E98: ='LUC Houghton'!E98 -> 179.4022 | F98: ='LUC Houghton'!F98 -> 30.4041 | G98: ='LUC Houghton'!G98 -> 42.3455 | H98: ='LUC Houghton'!H98 -> 91.2046 | I98: ='LUC Houghton'!I98 -> 24.0287 | J98: ='LUC Houghton'!J98 -> 284.8639 | K98: ='LUC Houghton'!K98 -> 263.1423 | L98: ='LUC Houghton'!L98 -> 33.2438
A99: 1947 | B99: ='LUC Houghton'!B99 -> 1008.9 | C99: ='LUC Houghton'!C99 -> 5.9298 | D99: ='LUC Houghton'!D99 -> 32.9119 | E99: ='LUC Houghton'!E99 -> 182.4977 | F99: ='LUC Houghton'!F99 -> 28.9564 | G99: ='LUC Houghton'!G99 -> 42.5586 | H99: ='LUC Houghton'!H99 -> 93.5386 | I99: ='LUC Houghton'!I99 -> 20.4267 | J99: ='LUC Houghton'!J99 -> 286.9466 | K99: ='LUC Houghton'!K99 -> 281.6554 | L99: ='LUC Houghton'!L99 -> 33.4401
A100: 1948 | B100: ='LUC Houghton'!B100 -> 1015.8 | C100: ='LUC Houghton'!C100 -> -5.2068 | D100: ='LUC Houghton'!D100 -> 32.7261 | E100: ='LUC Houghton'!E100 -> 185.7892 | F100: ='LUC Houghton'!F100 -> 27.5156 | G100: ='LUC Houghton'!G100 -> 42.7655 | H100: ='LUC Houghton'!H100 -> 97.3423 | I100: ='LUC Houghton'!I100 -> 17.1788 | J100: ='LUC Houghton'!J100 -> 288.6894 | K100: ='LUC Houghton'!K100 -> 295.3988 | L100: ='LUC Houghton'!L100 -> 33.6311
A101: 1949 | B101: ='LUC Houghton'!B101 -> 1024.9 | C101: ='LUC Houghton'!C101 -> -10.5706 | D101: ='LUC Houghton'!D101 -> 32.5417 | E101: ='LUC Houghton'!E101 -> 189.2369 | F101: ='LUC Houghton'!F101 -> 26.083 | G101: ='LUC Houghton'!G101 -> 42.9664 | H101: ='LUC Houghton'!H101 -> 101.1581 | I101: ='LUC Houghton'!I101 -> 14.3053 | J101: ='LUC Houghton'!J101 -> 290.244 | K101: ='LUC Houghton'!K101 -> 305.118 | L101: ='LUC Houghton'!L101 -> 33.8168
A102: 1950 | B102: ='LUC Houghton'!B102 -> 1037.3 | C102: ='LUC Houghton'!C102 -> -11.381 | D102: ='LUC Houghton'!D102 -> 32.3582 | E102: ='LUC Houghton'!E102 -> 192.7775 | F102: ='LUC Houghton'!F102 -> 24.6601 | G102: ='LUC Houghton'!G102 -> 43.1618 | H102: ='LUC Houghton'!H102 -> 105.1777 | I102: ='LUC Houghton'!I102 -> 13.0821 | J102: ='LUC Houghton'!J102 -> 290.1121 | K102: ='LUC Houghton'!K102 -> 313.3894 | L102: ='LUC Houghton'!L102 -> 33.997
A103: 1951 | B103: ='LUC Houghton'!B103 -> 1258.3 | C103: ='LUC Houghton'!C103 -> 3.2321 | D103: ='LUC Houghton'!D103 -> 32.1655 | E103: ='LUC Houghton'!E103 -> 251.684 | F103: ='LUC Houghton'!F103 -> 23.5287 | G103: ='LUC Houghton'!G103 -> 34.397 | H103: ='LUC Houghton'!H103 -> 109.2565 | I103: ='LUC Houghton'!I103 -> 126.9132 | J103: ='LUC Houghton'!J103 -> 289.8171 | K103: ='LUC Houghton'!K103 -> 319.7975 | L103: ='LUC Houghton'!L103 -> 67.5149
A104: 1952 | B104: ='LUC Houghton'!B104 -> 1284.7 | C104: ='LUC Houghton'!C104 -> -42.0452 | D104: ='LUC Houghton'!D104 -> 32.8542 | E104: ='LUC Houghton'!E104 -> 270.4083 | F104: ='LUC Houghton'!F104 -> 22.5462 | G104: ='LUC Houghton'!G104 -> 32.6365 | H104: ='LUC Houghton'!H104 -> 105.8839 | I104: ='LUC Houghton'!I104 -> 149.6418 | J104: ='LUC Houghton'!J104 -> 308.0985 | K104: ='LUC Houghton'!K104 -> 327.7605 | L104: ='LUC Houghton'!L104 -> 76.8785
A105: 1953 | B105: ='LUC Houghton'!B105 -> 1280.9 | C105: ='LUC Houghton'!C105 -> -66.2967 | D105: ='LUC Houghton'!D105 -> 32.6123 | E105: ='LUC Houghton'!E105 -> 285.7957 | F105: ='LUC Houghton'!F105 -> 21.707 | G105: ='LUC Houghton'!G105 -> 30.8325 | H105: ='LUC Houghton'!H105 -> 108.939 | I105: ='LUC Houghton'!I105 -> 171.4843 | J105: ='LUC Houghton'!J105 -> 327.0376 | K105: ='LUC Houghton'!K105 -> 284.302 | L105: ='LUC Houghton'!L105 -> 84.515
A106: 1954 | B106: ='LUC Houghton'!B106 -> 1335 | C106: ='LUC Houghton'!C106 -> -64.4056 | D106: ='LUC Houghton'!D106 -> 32.3676 | E106: ='LUC Houghton'!E106 -> 298.6844 | F106: ='LUC Houghton'!F106 -> 21.0057 | G106: ='LUC Houghton'!G106 -> 28.6106 | H106: ='LUC Houghton'!H106 -> 111.9529 | I106: ='LUC Houghton'!I106 -> 192.6664 | J106: ='LUC Houghton'!J106 -> 346.4916 | K106: ='LUC Houghton'!K106 -> 280.9997 | L106: ='LUC Houghton'!L106 -> 86.5883
A107: 1955 | B107: ='LUC Houghton'!B107 -> 1379.5 | C107: ='LUC Houghton'!C107 -> -73.6215 | D107: ='LUC Houghton'!D107 -> 32.1213 | E107: ='LUC Houghton'!E107 -> 309.8231 | F107: ='LUC Houghton'!F107 -> 20.4372 | G107: ='LUC Houghton'!G107 -> 26.3933 | H107: ='LUC Houghton'!H107 -> 115.2903 | I107: ='LUC Houghton'!I107 -> 213.7468 | J107: ='LUC Houghton'!J107 -> 366.3485 | K107: ='LUC Houghton'!K107 -> 281.0364 | L107: ='LUC Houghton'!L107 -> 87.9184
A108: 1956 | B108: ='LUC Houghton'!B108 -> 1438.9 | C108: ='LUC Houghton'!C108 -> -65.492 | D108: ='LUC Houghton'!D108 -> 31.8727 | E108: ='LUC Houghton'!E108 -> 316.4737 | F108: ='LUC Houghton'!F108 -> 19.9971 | G108: ='LUC Houghton'!G108 -> 25.708 | H108: ='LUC Houghton'!H108 -> 118.5831 | I108: ='LUC Houghton'!I108 -> 236.1473 | J108: ='LUC Houghton'!J108 -> 386.5128 | K108: ='LUC Houghton'!K108 -> 280.3532 | L108: ='LUC Houghton'!L108 -> 88.7565
A109: 1957 | B109: ='LUC Houghton'!B109 -> 1469.1 | C109: ='LUC Houghton'!C109 -> -68.0023 | D109: ='LUC Houghton'!D109 -> 31.6218 | E109: ='LUC Houghton'!E109 -> 322.0027 | F109: ='LUC Houghton'!F109 -> 19.6809 | G109: ='LUC Houghton'!G109 -> 25.0441 | H109: ='LUC Houghton'!H109 -> 121.9669 | I109: ='LUC Houghton'!I109 -> 258.2474 | J109: ='LUC Houghton'!J109 -> 388.5816 | K109: ='LUC Houghton'!K109 -> 280.6665 | L109: ='LUC Houghton'!L109 -> 89.258
A110: 1958 | B110: ='LUC Houghton'!B110 -> 1520.8 | C110: ='LUC Houghton'!C110 -> -32.9847 | D110: ='LUC Houghton'!D110 -> 31.3693 | E110: ='LUC Houghton'!E110 -> 326.6672 | F110: ='LUC Houghton'!F110 -> 19.4847 | G110: ='LUC Houghton'!G110 -> 24.4051 | H110: ='LUC Houghton'!H110 -> 124.7583 | I110: ='LUC Houghton'!I110 -> 279.9521 | J110: ='LUC Houghton'!J110 -> 381.7426 | K110: ='LUC Houghton'!K110 -> 275.8913 | L110: ='LUC Houghton'!L110 -> 89.5234
A111: 1959 | B111: ='LUC Houghton'!B111 -> 1397.8 | C111: ='LUC Houghton'!C111 -> -71.7656 | D111: ='LUC Houghton'!D111 -> 31.1156 | E111: ='LUC Houghton'!E111 -> 330.7125 | F111: ='LUC Houghton'!F111 -> 19.4048 | G111: ='LUC Houghton'!G111 -> 23.7924 | H111: ='LUC Houghton'!H111 -> 127.643 | I111: ='LUC Houghton'!I111 -> 208.3413 | J111: ='LUC Houghton'!J111 -> 362.1201 | K111: ='LUC Houghton'!K111 -> 276.8056 | L111: ='LUC Houghton'!L111 -> 89.6187
A112: 1960 | B112: ='LUC Houghton'!B112 -> 1385.8 | C112: ='LUC Houghton'!C112 -> -74.8924 | D112: ='LUC Houghton'!D112 -> 30.8611 | E112: ='LUC Houghton'!E112 -> 334.2908 | F112: ='LUC Houghton'!F112 -> 19.4378 | G112: ='LUC Houghton'!G112 -> 23.2061 | H112: ='LUC Houghton'!H112 -> 130.4621 | I112: ='LUC Houghton'!I112 -> 210.886 | J112: ='LUC Houghton'!J112 -> 343.0883 | K112: ='LUC Houghton'!K112 -> 278.8759 | L112: ='LUC Houghton'!L112 -> 89.5878
A113: 1961 | B113: ='LUC Houghton'!B113 -> 1463.9 | C113: ='LUC Houghton'!C113 -> -88.5352 | D113: ='LUC Houghton'!D113 -> 30.6061 | E113: ='LUC Houghton'!E113 -> 449.5846 | F113: ='LUC Houghton'!F113 -> 16.697 | G113: ='LUC Houghton'!G113 -> 22.6358 | H113: ='LUC Houghton'!H113 -> 132.7179 | I113: ='LUC Houghton'!I113 -> 205.2209 | J113: ='LUC Houghton'!J113 -> 323.0807 | K113: ='LUC Houghton'!K113 -> 282.4036 | L113: ='LUC Houghton'!L113 -> 89.4762
A114: 1962 | B114: ='LUC Houghton'!B114 -> 1460 | C114: ='LUC Houghton'!C114 -> -86.2373 | D114: ='LUC Houghton'!D114 -> 30.7092 | E114: ='LUC Houghton'!E114 -> 484.3614 | F114: ='LUC Houghton'!F114 -> 16.3182 | G114: ='LUC Houghton'!G114 -> 22.0831 | H114: ='LUC Houghton'!H114 -> 133.626 | I114: ='LUC Houghton'!I114 -> 201.8684 | J114: ='LUC Houghton'!J114 -> 296.1633 | K114: ='LUC Houghton'!K114 -> 271.7556 | L114: ='LUC Houghton'!L114 -> 89.3046
A115: 1963 | B115: ='LUC Houghton'!B115 -> 1474.9 | C115: ='LUC Houghton'!C115 -> -92.2613 | D115: ='LUC Houghton'!D115 -> 30.8185 | E115: ='LUC Houghton'!E115 -> 512.0131 | F115: ='LUC Houghton'!F115 -> 16.0138 | G115: ='LUC Houghton'!G115 -> 21.5468 | H115: ='LUC Houghton'!H115 -> 138.8699 | I115: ='LUC Houghton'!I115 -> 198.8176 | J115: ='LUC Houghton'!J115 -> 285.6024 | K115: ='LUC Houghton'!K115 -> 274.4314 | L115: ='LUC Houghton'!L115 -> 89.0873
A116: 1964 | B116: ='LUC Houghton'!B116 -> 1487.1 | C116: ='LUC Houghton'!C116 -> -95.4137 | D116: ='LUC Houghton'!D116 -> 30.9329 | E116: ='LUC Houghton'!E116 -> 534.3961 | F116: ='LUC Houghton'!F116 -> 15.778 | G116: ='LUC Houghton'!G116 -> 21.0252 | H116: ='LUC Houghton'!H116 -> 140.7341 | I116: ='LUC Houghton'!I116 -> 196.1792 | J116: ='LUC Houghton'!J116 -> 284.9992 | K116: ='LUC Houghton'!K116 -> 269.6573 | L116: ='LUC Houghton'!L116 -> 88.8349
A117: 1965 | B117: ='LUC Houghton'!B117 -> 1505 | C117: ='LUC Houghton'!C117 -> -99.9211 | D117: ='LUC Houghton'!D117 -> 31.0519 | E117: ='LUC Houghton'!E117 -> 553.6736 | F117: ='LUC Houghton'!F117 -> 15.6057 | G117: ='LUC Houghton'!G117 -> 20.5169 | H117: ='LUC Houghton'!H117 -> 143.4348 | I117: ='LUC Houghton'!I117 -> 192.9175 | J117: ='LUC Houghton'!J117 -> 284.2856 | K117: ='LUC Houghton'!K117 -> 274.832 | L117: ='LUC Houghton'!L117 -> 88.5552
A118: 1966 | B118: ='LUC Houghton'!B118 -> 1539.3 | C118: ='LUC Houghton'!C118 -> -67.8978 | D118: ='LUC Houghton'!D118 -> 31.1747 | E118: ='LUC Houghton'!E118 -> 563.7305 | F118: ='LUC Houghton'!F118 -> 15.4787 | G118: ='LUC Houghton'!G118 -> 21.6252 | H118: ='LUC Houghton'!H118 -> 142.4889 | I118: ='LUC Houghton'!I118 -> 181.1651 | J118: ='LUC Houghton'!J118 -> 283.1213 | K118: ='LUC Houghton'!K118 -> 280.1304 | L118: ='LUC Houghton'!L118 -> 88.254
A119: 1967 | B119: ='LUC Houghton'!B119 -> 1545.8 | C119: ='LUC Houghton'!C119 -> -63.7806 | D119: ='LUC Houghton'!D119 -> 31.1614 | E119: ='LUC Houghton'!E119 -> 572.3911 | F119: ='LUC Houghton'!F119 -> 15.393 | G119: ='LUC Houghton'!G119 -> 21.8182 | H119: ='LUC Houghton'!H119 -> 143.5641 | I119: ='LUC Houghton'!I119 -> 169.5244 | J119: ='LUC Houghton'!J119 -> 282.1658 | K119: ='LUC Houghton'!K119 -> 285.6202 | L119: ='LUC Houghton'!L119 -> 87.936
A120: 1968 | B120: ='LUC Houghton'!B120 -> 1477.7 | C120: ='LUC Houghton'!C120 -> -62.816 | D120: ='LUC Houghton'!D120 -> 31.1508 | E120: ='LUC Houghton'!E120 -> 580.3455 | F120: ='LUC Houghton'!F120 -> 15.3453 | G120: ='LUC Houghton'!G120 -> 21.9618 | H120: ='LUC Houghton'!H120 -> 139.4276 | I120: ='LUC Houghton'!I120 -> 157.9246 | J120: ='LUC Houghton'!J120 -> 281.7422 | K120: ='LUC Houghton'!K120 -> 225.0237 | L120: ='LUC Houghton'!L120 -> 87.605
A121: 1969 | B121: ='LUC Houghton'!B121 -> 1483.1 | C121: ='LUC Houghton'!C121 -> -51.6498 | D121: ='LUC Houghton'!D121 -> 31.1422 | E121: ='LUC Houghton'!E121 -> 587.0378 | F121: ='LUC Houghton'!F121 -> 15.3323 | G121: ='LUC Houghton'!G121 -> 21.7325 | H121: ='LUC Houghton'!H121 -> 146.5198 | I121: ='LUC Houghton'!I121 -> 147.835 | J121: ='LUC Houghton'!J121 -> 281.2201 | K121: ='LUC Houghton'!K121 -> 216.9035 | L121: ='LUC Houghton'!L121 -> 87.0376
A122: 1970 | B122: ='LUC Houghton'!B122 -> 1439.7 | C122: ='LUC Houghton'!C122 -> -53.0083 | D122: ='LUC Houghton'!D122 -> 31.1351 | E122: ='LUC Houghton'!E122 -> 593.0623 | F122: ='LUC Houghton'!F122 -> 13.5652 | G122: ='LUC Houghton'!G122 -> 21.4815 | H122: ='LUC Houghton'!H122 -> 139.7948 | I122: ='LUC Houghton'!I122 -> 114.463 | J122: ='LUC Houghton'!J122 -> 280.7878 | K122: ='LUC Houghton'!K122 -> 211.9917 | L122: ='LUC Houghton'!L122 -> 86.4628
A123: 1971 | B123: ='LUC Houghton'!B123 -> 1291.7 | C123: ='LUC Houghton'!C123 -> -89.3417 | D123: ='LUC Houghton'!D123 -> 31.129 | E123: ='LUC Houghton'!E123 -> 536.7992 | F123: ='LUC Houghton'!F123 -> 11.1776 | G123: ='LUC Houghton'!G123 -> 21.5241 | H123: ='LUC Houghton'!H123 -> 143.0942 | I123: ='LUC Houghton'!I123 -> 100.097 | J123: ='LUC Houghton'!J123 -> 280.6546 | K123: ='LUC Houghton'!K123 -> 206.3663 | L123: ='LUC Houghton'!L123 -> 50.2289
A124: 1972 | B124: ='LUC Houghton'!B124 -> 1264.2 | C124: ='LUC Houghton'!C124 -> -80.9163 | D124: ='LUC Houghton'!D124 -> 30.0967 | E124: ='LUC Houghton'!E124 -> 524.9468 | F124: ='LUC Houghton'!F124 -> 8.641 | G124: ='LUC Houghton'!G124 -> 21.5707 | H124: ='LUC Houghton'!H124 -> 146.8347 | I124: ='LUC Houghton'!I124 -> 85.3721 | J124: ='LUC Houghton'!J124 -> 282.8365 | K124: ='LUC Houghton'!K124 -> 205.6897 | L124: ='LUC Houghton'!L124 -> 39.1079
A125: 1973 | B125: ='LUC Houghton'!B125 -> 1248.7 | C125: ='LUC Houghton'!C125 -> -92.91 | D125: ='LUC Houghton'!D125 -> 30.1555 | E125: ='LUC Houghton'!E125 -> 515.5985 | F125: ='LUC Houghton'!F125 -> 5.9633 | G125: ='LUC Houghton'!G125 -> 21.6182 | H125: ='LUC Houghton'!H125 -> 150.7956 | I125: ='LUC Houghton'!I125 -> 71.2519 | J125: ='LUC Houghton'!J125 -> 284.6924 | K125: ='LUC Houghton'!K125 -> 231.7871 | L125: ='LUC Houghton'!L125 -> 29.7374
A126: 1974 | B126: ='LUC Houghton'!B126 -> 1254.5 | C126: ='LUC Houghton'!C126 -> -92.0859 | D126: ='LUC Houghton'!D126 -> 30.2295 | E126: ='LUC Houghton'!E126 -> 508.3358 | F126: ='LUC Houghton'!F126 -> 3.1514 | G126: ='LUC Houghton'!G126 -> 21.6649 | H126: ='LUC Houghton'!H126 -> 154.657 | I126: ='LUC Houghton'!I126 -> 64.85 | J126: ='LUC Houghton'!J126 -> 287.214 | K126: ='LUC Houghton'!K126 -> 250.4113 | L126: ='LUC Houghton'!L126 -> 26.121
A127: 1975 | B127: ='LUC Houghton'!B127 -> 1245.1 | C127: ='LUC Houghton'!C127 -> -81.5069 | D127: ='LUC Houghton'!D127 -> 30.3165 | E127: ='LUC Houghton'!E127 -> 502.6092 | F127: ='LUC Houghton'!F127 -> 0.212 | G127: ='LUC Houghton'!G127 -> 21.7099 | H127: ='LUC Houghton'!H127 -> 144.4895 | I127: ='LUC Houghton'!I127 -> 58.7805 | J127: ='LUC Houghton'!J127 -> 291.2875 | K127: ='LUC Houghton'!K127 -> 253.9577 | L127: ='LUC Houghton'!L127 -> 23.2405
A128: 1976 | B128: ='LUC Houghton'!B128 -> 1311.9 | C128: ='LUC Houghton'!C128 -> -64.7989 | D128: ='LUC Houghton'!D128 -> 30.4137 | E128: ='LUC Houghton'!E128 -> 503.0202 | F128: ='LUC Houghton'!F128 -> -2.6384 | G128: ='LUC Houghton'!G128 -> 21.75 | H128: ='LUC Houghton'!H128 -> 158.9979 | I128: ='LUC Houghton'!I128 -> 55.9196 | J128: ='LUC Houghton'!J128 -> 303.4486 | K128: ='LUC Houghton'!K128 -> 284.9271 | L128: ='LUC Houghton'!L128 -> 20.8475
A129: 1977 | B129: ='LUC Houghton'!B129 -> 1315.1 | C129: ='LUC Houghton'!C129 -> -60.201 | D129: ='LUC Houghton'!D129 -> 30.5189 | E129: ='LUC Houghton'!E129 -> 504.1784 | F129: ='LUC Houghton'!F129 -> -5.6405 | G129: ='LUC Houghton'!G129 -> 21.7849 | H129: ='LUC Houghton'!H129 -> 142.3633 | I129: ='LUC Houghton'!I129 -> 50.3584 | J129: ='LUC Houghton'!J129 -> 306.3707 | K129: ='LUC Houghton'!K129 -> 306.5672 | L129: ='LUC Houghton'!L129 -> 18.7813
A130: 1978 | B130: ='LUC Houghton'!B130 -> 1311.9 | C130: ='LUC Houghton'!C130 -> -54.3954 | D130: ='LUC Houghton'!D130 -> 30.6301 | E130: ='LUC Houghton'!E130 -> 505.3112 | F130: ='LUC Houghton'!F130 -> -8.789 | G130: ='LUC Houghton'!G130 -> 21.8141 | H130: ='LUC Houghton'!H130 -> 149.0206 | I130: ='LUC Houghton'!I130 -> 44.8217 | J130: ='LUC Houghton'!J130 -> 285.3496 | K130: ='LUC Houghton'!K130 -> 321.2245 | L130: ='LUC Houghton'!L130 -> 16.9395
A131: 1979 | B131: ='LUC Houghton'!B131 -> 1283.8 | C131: ='LUC Houghton'!C131 -> -51.7024 | D131: ='LUC Houghton'!D131 -> 30.7458 | E131: ='LUC Houghton'!E131 -> 506.2329 | F131: ='LUC Houghton'!F131 -> -12.0787 | G131: ='LUC Houghton'!G131 -> 21.8375 | H131: ='LUC Houghton'!H131 -> 150.3189 | I131: ='LUC Houghton'!I131 -> 39.4952 | J131: ='LUC Houghton'!J131 -> 248.0605 | K131: ='LUC Houghton'!K131 -> 335.6523 | L131: ='LUC Houghton'!L131 -> 15.2555
A132: 1980 | B132: ='LUC Houghton'!B132 -> 1239.9 | C132: ='LUC Houghton'!C132 -> -53.9099 | D132: ='LUC Houghton'!D132 -> 30.8645 | E132: ='LUC Houghton'!E132 -> 507.8076 | F132: ='LUC Houghton'!F132 -> -14.0904 | G132: ='LUC Houghton'!G132 -> 21.8546 | H132: ='LUC Houghton'!H132 -> 144.613 | I132: ='LUC Houghton'!I132 -> 35.4417 | J132: ='LUC Houghton'!J132 -> 209.5193 | K132: ='LUC Houghton'!K132 -> 344.1128 | L132: ='LUC Houghton'!L132 -> 13.6855
A133: 1981 | B133: ='LUC Houghton'!B133 -> 1263.4 | C133: ='LUC Houghton'!C133 -> -50.179 | D133: ='LUC Houghton'!D133 -> 30.9882 | E133: ='LUC Houghton'!E133 -> 509.9935 | F133: ='LUC Houghton'!F133 -> -15.3441 | G133: ='LUC Houghton'!G133 -> 16.997 | H133: ='LUC Houghton'!H133 -> 166.7161 | I133: ='LUC Houghton'!I133 -> 33.4094 | J133: ='LUC Houghton'!J133 -> 168.7846 | K133: ='LUC Houghton'!K133 -> 386.4706 | L133: ='LUC Houghton'!L133 -> 15.5846
A134: 1982 | B134: ='LUC Houghton'!B134 -> 1463 | C134: ='LUC Houghton'!C134 -> -38.0416 | D134: ='LUC Houghton'!D134 -> 27.775 | E134: ='LUC Houghton'!E134 -> 729.4026 | F134: ='LUC Houghton'!F134 -> -16.3867 | G134: ='LUC Houghton'!G134 -> 16.5587 | H134: ='LUC Houghton'!H134 -> 181.8709 | I134: ='LUC Houghton'!I134 -> 30.7262 | J134: ='LUC Houghton'!J134 -> 122.8564 | K134: ='LUC Houghton'!K134 -> 393.2972 | L134: ='LUC Houghton'!L134 -> 14.9364
A135: 1983 | B135: ='LUC Houghton'!B135 -> 1512.9 | C135: ='LUC Houghton'!C135 -> -38.8209 | D135: ='LUC Houghton'!D135 -> 26.9791 | E135: ='LUC Houghton'!E135 -> 787.5435 | F135: ='LUC Houghton'!F135 -> -17.228 | G135: ='LUC Houghton'!G135 -> 16.4446 | H135: ='LUC Houghton'!H135 -> 195.3451 | I135: ='LUC Houghton'!I135 -> 28.8236 | J135: ='LUC Houghton'!J135 -> 101.4697 | K135: ='LUC Houghton'!K135 -> 398.1764 | L135: ='LUC Houghton'!L135 -> 14.1264
A136: 1984 | B136: ='LUC Houghton'!B136 -> 1560.1 | C136: ='LUC Houghton'!C136 -> -42.4746 | D136: ='LUC Houghton'!D136 -> 26.2131 | E136: ='LUC Houghton'!E136 -> 833.6449 | F136: ='LUC Houghton'!F136 -> -17.8771 | G136: ='LUC Houghton'!G136 -> 18.0412 | H136: ='LUC Houghton'!H136 -> 205.462 | I136: ='LUC Houghton'!I136 -> 27.161 | J136: ='LUC Houghton'!J136 -> 93.771 | K136: ='LUC Houghton'!K136 -> 403.4136 | L136: ='LUC Houghton'!L136 -> 12.7488
A137: 1985 | B137: ='LUC Houghton'!B137 -> 1583.2 | C137: ='LUC Houghton'!C137 -> -39.433 | D137: ='LUC Houghton'!D137 -> 25.4712 | E137: ='LUC Houghton'!E137 -> 872.9568 | F137: ='LUC Houghton'!F137 -> -18.3425 | G137: ='LUC Houghton'!G137 -> 19.8024 | H137: ='LUC Houghton'!H137 -> 197.0632 | I137: ='LUC Houghton'!I137 -> 25.7685 | J137: ='LUC Houghton'!J137 -> 82.7284 | K137: ='LUC Houghton'!K137 -> 405.8961 | L137: ='LUC Houghton'!L137 -> 11.2882
A138: 1986 | B138: ='LUC Houghton'!B138 -> 1601.1 | C138: ='LUC Houghton'!C138 -> -34.2624 | D138: ='LUC Houghton'!D138 -> 24.7489 | E138: ='LUC Houghton'!E138 -> 902.4733 | F138: ='LUC Houghton'!F138 -> -18.6211 | G138: ='LUC Houghton'!G138 -> 20.3708 | H138: ='LUC Houghton'!H138 -> 193.4076 | I138: ='LUC Houghton'!I138 -> 23.3571 | J138: ='LUC Houghton'!J138 -> 76.7877 | K138: ='LUC Houghton'!K138 -> 403.0736 | L138: ='LUC Houghton'!L138 -> 9.7724
A139: 1987 | B139: ='LUC Houghton'!B139 -> 1611.1 | C139: ='LUC Houghton'!C139 -> -31.0856 | D139: ='LUC Houghton'!D139 -> 24.2385 | E139: ='LUC Houghton'!E139 -> 917.0016 | F139: ='LUC Houghton'!F139 -> -18.7217 | G139: ='LUC Houghton'!G139 -> 21.0176 | H139: ='LUC Houghton'!H139 -> 193.3061 | I139: ='LUC Houghton'!I139 -> 22.5708 | J139: ='LUC Houghton'!J139 -> 70.9659 | K139: ='LUC Houghton'!K139 -> 403.5852 | L139: ='LUC Houghton'!L139 -> 8.2217
A140: 1988 | B140: ='LUC Houghton'!B140 -> 1638.5 | C140: ='LUC Houghton'!C140 -> -21.5886 | D140: ='LUC Houghton'!D140 -> 23.7394 | E140: ='LUC Houghton'!E140 -> 926.4348 | F140: ='LUC Houghton'!F140 -> -18.6509 | G140: ='LUC Houghton'!G140 -> 21.7215 | H140: ='LUC Houghton'!H140 -> 202.7612 | I140: ='LUC Houghton'!I140 -> 21.849 | J140: ='LUC Houghton'!J140 -> 64.8287 | K140: ='LUC Houghton'!K140 -> 410.7334 | L140: ='LUC Houghton'!L140 -> 6.6458
A141: 1989 | B141: ='LUC Houghton'!B141 -> 1647 | C141: ='LUC Houghton'!C141 -> -21.7745 | D141: ='LUC Houghton'!D141 -> 23.2494 | E141: ='LUC Houghton'!E141 -> 932.6304 | F141: ='LUC Houghton'!F141 -> -18.4152 | G141: ='LUC Houghton'!G141 -> 22.4675 | H141: ='LUC Houghton'!H141 -> 197.1493 | I141: ='LUC Houghton'!I141 -> 21.1859 | J141: ='LUC Houghton'!J141 -> 66.5984 | K141: ='LUC Houghton'!K141 -> 418.5888 | L141: ='LUC Houghton'!L141 -> 5.288
A142: 1990 | B142: ='LUC Houghton'!B142 -> 1643.7 | C142: ='LUC Houghton'!C142 -> -31.9488 | D142: ='LUC Houghton'!D142 -> 22.7669 | E142: ='LUC Houghton'!E142 -> 936.8016 | F142: ='LUC Houghton'!F142 -> -18.0804 | G142: ='LUC Houghton'!G142 -> 23.2448 | H142: ='LUC Houghton'!H142 -> 201.3556 | I142: ='LUC Houghton'!I142 -> 20.1075 | J142: ='LUC Houghton'!J142 -> 61.103 | K142: ='LUC Houghton'!K142 -> 424.4609 | L142: ='LUC Houghton'!L142 -> 3.9161
A143: 1991 | B143: ='LUC Houghton'!B143 -> 1712.5 | C143: ='LUC Houghton'!C143 -> -31.9488 | D143: ='LUC Houghton'!D143 -> 22.2902 | E143: ='LUC Houghton'!E143 -> 938.5569 | F143: ='LUC Houghton'!F143 -> -18.0804 | G143: ='LUC Houghton'!G143 -> 23.2448 | H143: ='LUC Houghton'!H143 -> 195.5283 | I143: ='LUC Houghton'!I143 -> 20.1075 | J143: ='LUC Houghton'!J143 -> 50.8913 | K143: ='LUC Houghton'!K143 -> 507.9562 | L143: ='LUC Houghton'!L143 -> 3.9161
A144: 1992 | B144: ='LUC Houghton'!B144 -> 1605 | C144: ='LUC Houghton'!C144 -> -31.9488 | D144: ='LUC Houghton'!D144 -> 21.5765 | E144: ='LUC Houghton'!E144 -> 803.6967 | F144: ='LUC Houghton'!F144 -> -18.0804 | G144: ='LUC Houghton'!G144 -> 23.2448 | H144: ='LUC Houghton'!H144 -> 214.2546 | I144: ='LUC Houghton'!I144 -> 20.1075 | J144: ='LUC Houghton'!J144 -> 39.8241 | K144: ='LUC Houghton'!K144 -> 528.4274 | L144: ='LUC Houghton'!L144 -> 3.9161
A145: 1993 | B145: ='LUC Houghton'!B145 -> 1593.8 | C145: ='LUC Houghton'!C145 -> -31.9488 | D145: ='LUC Houghton'!D145 -> 20.859 | E145: ='LUC Houghton'!E145 -> 767.5051 | F145: ='LUC Houghton'!F145 -> -18.0804 | G145: ='LUC Houghton'!G145 -> 23.2448 | H145: ='LUC Houghton'!H145 -> 224.8938 | I145: ='LUC Houghton'!I145 -> 20.1075 | J145: ='LUC Houghton'!J145 -> 39.5205 | K145: ='LUC Houghton'!K145 -> 543.7326 | L145: ='LUC Houghton'!L145 -> 3.9161
A146: 1994 | B146: ='LUC Houghton'!B146 -> 1580.5 | C146: ='LUC Houghton'!C146 -> -31.9488 | D146: ='LUC Houghton'!D146 -> 20.1381 | E146: ='LUC Houghton'!E146 -> 737.2515 | F146: ='LUC Houghton'!F146 -> -18.0804 | G146: ='LUC Houghton'!G146 -> 23.2448 | H146: ='LUC Houghton'!H146 -> 243.6705 | I146: ='LUC Houghton'!I146 -> 20.1075 | J146: ='LUC Houghton'!J146 -> 43.0188 | K146: ='LUC Houghton'!K146 -> 539.2242 | L146: ='LUC Houghton'!L146 -> 3.9161
A147: 1995 | B147: ='LUC Houghton'!B147 -> 1561.6 | C147: ='LUC Houghton'!C147 -> -31.9488 | D147: ='LUC Houghton'!D147 -> 19.4139 | E147: ='LUC Houghton'!E147 -> 713.3743 | F147: ='LUC Houghton'!F147 -> -18.0804 | G147: ='LUC Houghton'!G147 -> 23.2448 | H147: ='LUC Houghton'!H147 -> 262.8047 | I147: ='LUC Houghton'!I147 -> 20.1075 | J147: ='LUC Houghton'!J147 -> 31.0766 | K147: ='LUC Houghton'!K147 -> 537.687 | L147: ='LUC Houghton'!L147 -> 3.9161
A148: 1996 | B148: ='LUC Houghton'!B148 -> 1531.3 | C148: ='LUC Houghton'!C148 -> -31.9488 | D148: ='LUC Houghton'!D148 -> 18.6869 | E148: ='LUC Houghton'!E148 -> 692.0782 | F148: ='LUC Houghton'!F148 -> -18.0804 | G148: ='LUC Houghton'!G148 -> 23.2448 | H148: ='LUC Houghton'!H148 -> 260.9458 | I148: ='LUC Houghton'!I148 -> 20.1075 | J148: ='LUC Houghton'!J148 -> 27.3201 | K148: ='LUC Houghton'!K148 -> 534.9972 | L148: ='LUC Houghton'!L148 -> 3.9161
A149: 1997 | B149: ='LUC Houghton'!B149 -> 1491.3 | C149: ='LUC Houghton'!C149 -> -31.9488 | D149: ='LUC Houghton'!D149 -> 18.4221 | E149: ='LUC Houghton'!E149 -> 678.5458 | F149: ='LUC Houghton'!F149 -> -18.0804 | G149: ='LUC Houghton'!G149 -> 23.2448 | H149: ='LUC Houghton'!H149 -> 247.4983 | I149: ='LUC Houghton'!I149 -> 20.1075 | J149: ='LUC Houghton'!J149 -> 21.0883 | K149: ='LUC Houghton'!K149 -> 528.509 | L149: ='LUC Houghton'!L149 -> 3.9161
A150: 1998 | B150: ='LUC Houghton'!B150 -> 1487.2 | C150: ='LUC Houghton'!C150 -> -31.9488 | D150: ='LUC Houghton'!D150 -> 18.1548 | E150: ='LUC Houghton'!E150 -> 667.0977 | F150: ='LUC Houghton'!F150 -> -18.0804 | G150: ='LUC Houghton'!G150 -> 23.2448 | H150: ='LUC Houghton'!H150 -> 269.3844 | I150: ='LUC Houghton'!I150 -> 20.1075 | J150: ='LUC Houghton'!J150 -> 12.0691 | K150: ='LUC Houghton'!K150 -> 523.2374 | L150: ='LUC Houghton'!L150 -> 3.9161
A151: 1999 | B151: ='LUC Houghton'!B151 -> 1449.2 | C151: ='LUC Houghton'!C151 -> -31.9488 | D151: ='LUC Houghton'!D151 -> 17.8853 | E151: ='LUC Houghton'!E151 -> 656.4411 | F151: ='LUC Houghton'!F151 -> -18.0804 | G151: ='LUC Houghton'!G151 -> 23.2448 | H151: ='LUC Houghton'!H151 -> 263.9341 | I151: ='LUC Houghton'!I151 -> 20.1075 | J151: ='LUC Houghton'!J151 -> 5.0331 | K151: ='LUC Houghton'!K151 -> 508.6944 | L151: ='LUC Houghton'!L151 -> 3.9161
A152: 2000 | B152: ='LUC Houghton'!B152 -> 1409.9 | C152: ='LUC Houghton'!C152 -> -31.9488 | D152: ='LUC Houghton'!D152 -> 17.6121 | E152: ='LUC Houghton'!E152 -> 649.566 | F152: ='LUC Houghton'!F152 -> -18.0804 | G152: ='LUC Houghton'!G152 -> 23.2448 | H152: ='LUC Houghton'!H152 -> 260.8636 | I152: ='LUC Houghton'!I152 -> 20.1075 | J152: ='LUC Houghton'!J152 -> -12.9153 | K152: ='LUC Houghton'!K152 -> 497.5139 | L152: ='LUC Houghton'!L152 -> 3.9161
A153: 2001 | B153: ='LUC Houghton'!B153 -> 1385.4 | C153: ='LUC Houghton'!C153 -> -31.9488 | D153: ='LUC Houghton'!D153 -> 17.6121 | E153: ='LUC Houghton'!E153 -> 643.1904 | F153: ='LUC Houghton'!F153 -> -18.0804 | G153: ='LUC Houghton'!G153 -> 23.2448 | H153: ='LUC Houghton'!H153 -> 261.6969 | I153: ='LUC Houghton'!I153 -> 20.1075 | J153: ='LUC Houghton'!J153 -> -12.9153 | K153: ='LUC Houghton'!K153 -> 478.5329 | L153: ='LUC Houghton'!L153 -> 3.9161
A154: 2002 | B154: ='LUC Houghton'!B154 -> 1517.7 | C154: ='LUC Houghton'!C154 -> -31.9488 | D154: ='LUC Houghton'!D154 -> 17.6121 | E154: ='LUC Houghton'!E154 -> 625.5099 | F154: ='LUC Houghton'!F154 -> -18.0804 | G154: ='LUC Houghton'!G154 -> 23.2448 | H154: ='LUC Houghton'!H154 -> 258.5236 | I154: ='LUC Houghton'!I154 -> 20.1075 | J154: ='LUC Houghton'!J154 -> -12.9153 | K154: ='LUC Houghton'!K154 -> 631.696 | L154: ='LUC Houghton'!L154 -> 3.9161
A155: 2003 | B155: ='LUC Houghton'!B155 -> 1513.2 | C155: ='LUC Houghton'!C155 -> -31.9488 | D155: ='LUC Houghton'!D155 -> 17.6121 | E155: ='LUC Houghton'!E155 -> 616.4536 | F155: ='LUC Houghton'!F155 -> -18.0804 | G155: ='LUC Houghton'!G155 -> 23.2448 | H155: ='LUC Houghton'!H155 -> 225.5212 | I155: ='LUC Houghton'!I155 -> 20.1075 | J155: ='LUC Houghton'!J155 -> -12.9153 | K155: ='LUC Houghton'!K155 -> 669.2975 | L155: ='LUC Houghton'!L155 -> 3.9161
A156: 2004 | B156: ='LUC Houghton'!B156 -> 1534.9 | C156: ='LUC Houghton'!C156 -> -31.9488 | D156: ='LUC Houghton'!D156 -> 17.6121 | E156: ='LUC Houghton'!E156 -> 609.3525 | F156: ='LUC Houghton'!F156 -> -18.0804 | G156: ='LUC Houghton'!G156 -> 23.2448 | H156: ='LUC Houghton'!H156 -> 225.7864 | I156: ='LUC Houghton'!I156 -> 20.1075 | J156: ='LUC Houghton'!J156 -> -12.9153 | K156: ='LUC Houghton'!K156 -> 697.8432 | L156: ='LUC Houghton'!L156 -> 3.9161
A157: 2005 | B157: ='LUC Houghton'!B157 -> 1467.3 | C157: ='LUC Houghton'!C157 -> -31.9488 | D157: ='LUC Houghton'!D157 -> 17.6121 | E157: ='LUC Houghton'!E157 -> 606.4342 | F157: ='LUC Houghton'!F157 -> -18.0804 | G157: ='LUC Houghton'!G157 -> 23.2448 | H157: ='LUC Houghton'!H157 -> 239.239 | I157: ='LUC Houghton'!I157 -> 20.1075 | J157: ='LUC Houghton'!J157 -> -12.9153 | K157: ='LUC Houghton'!K157 -> 619.6937 | L157: ='LUC Houghton'!L157 -> 3.9161
A158: =A157+1 -> 2006 | B158: =AVERAGE(B148:B157)*0.99 -> 1463.9526 | C158: =AVERAGE(C148:C157)*0.99 -> -31.629312 | D158: 17.7033483 | E158: 638.0222706 | F158: -17.899596 | G158: 23.012352 | H158: 248.8259367 | I158: 19.906425 | J158: -1.1861388 | K158: 563.3115048 | L158: 3.876939
A159: =A158+1 -> 2007 | B159: =AVERAGE(B149:B158)*0.99 -> 1457.285207 | C159: -31.59768269 | D159: 17.60597668 | E159: 632.6707336 | F159: -17.8816964 | G159: 22.98933965 | H159: 247.6260702 | I159: 19.88651858 | J159: -4.008256441 | K159: 566.114621 | L159: 3.873062061
A160: 2008 | B160: 1453.917743 | C160: -31.56292207 | D160: 17.52518047 | E160: 628.129102 | F160: -17.86202475 | G160: 22.96404907 | H160: 247.6387195 | I160: 19.86464141 | J160: -6.492815529 | K160: 569.8375775 | L160: 3.868801305
A161: 2009 | B161: 1450.622799 | C161: -31.52472016 | D161: 17.46284814 | E161: 624.2712108 | F161: -17.8404056 | G161: 22.93625473 | H161: 245.4858971 | I161: 19.84059841 | J161: -8.330445166 | K161: 574.450995 | L161: 3.864118734
A162: 2010 | B162: 1450.763657 | C162: -31.48273626 | D162: 17.42102541 | E162: 621.0863918 | F162: -17.81664615 | G162: 22.90570875 | H162: 243.659525 | I162: 19.81417516 | J162: -9.653436138 | K162: 580.9608979 | L162: 3.858972589
A163: 2011 | B163: 1454.809159 | C163: -31.43659594 | D163: 17.40210902 | E163: 618.2669106 | F163: -17.79053452 | G163: 22.87213872 | H163: 241.9563216 | I163: 19.785136 | J163: -9.330511615 | K163: 589.2221507 | L163: 3.853316975

Sheet Concentrations
A1: Year | B1: YE Average
A5: 1958 | B5: 315.5216667
A6: 1959 | B6: 316.3459917
A7: 1960 | B7: 317.0019833
A8: 1961 | B8: 317.8571416
A9: 1962 | B9: 318.4856333
A10: 1963 | B10: 319.0341249
A11: 1964 | B11: 319.6509499
A12: 1965 | B12: 320.7511083
A13: 1966 | B13: 321.8112666
A14: 1967 | B14: 322.4630916
A15: 1968 | B15: 323.5765832
A16: 1969 | B16: 325.0050749
A17: 1970 | B17: 325.9143999
A18: 1971 | B18: 326.9778915
A19: 1972 | B19: 328.2838832
A20: 1973 | B20: 329.4615415
A21: 1974 | B21: 330.3375332
A22: 1975 | B22: 331.5393581
A23: 1976 | B23: 332.7570165
A24: 1977 | B24: 334.5580081
A25: 1978 | B25: 335.9906664
A26: 1979 | B26: 337.7299914
A27: 1980 | B27: 339.2593164
A28: 1981 | B28: 340.4794747
A29: 1982 | B29: 341.7087997
A30: 1983 | B30: 343.7122914
A31: 1984 | B31: 345.0466164
A32: 1985 | B32: 346.3859414
A33: 1986 | B33: 348.1060997
A34: 1987 | B34: 350.2720913
A35: 1988 | B35: 351.9864163
A36: 1989 | B36: 353.3657413
A37: 1990 | B37: 354.7083996
A38: 1991 | B38: 355.8218913
A39: 1992 | B39: 356.6012163
A40: 1993 | B40: 358.0738746
A41: 1994 | B41: 360.0273663
A42: 1995 | B42: 361.7925246
A43: 1996 | B43: 363.1685162
A44: 1997 | B44: 365.2345079
A45: 1998 | B45: 367.7763329
A46: 1999 | B46: 369.0073245
A47: 2000 | B47: 370.4974829
A48: 2001 | B48: 372.4134745
A49: 2002 | B49: 374.6486328
A50: 2003 | B50: 376.5954578
A51: 2004 | B51: 378.5456161
A52: 2005 | B52: 380.7749411
A53: 2006 | B53: 382.6925995
A54: 2007 | B54: 384.7869244
A55: 2008 | B55: 386.3770828
A56: 2009 | B56: 388.5139078
A57: 2010 | B57: 390.7157327
A58: 2011 | B58: 392.6208911

Sheet Combined, MtC
A1: Year | C1: Global | D1: China | E1: USA | F1: W. Europe | G1: Canada + Australia | I1: Concentration, ppm | J1: Surplus concentration, ppm | K1: Surplus Mass, GtC | L1: Sunk Mass, GtC | M1: Ratio | N1: Remains in the air in 2012
J2: 278 | K2: 2.13 | L2: 0.45
A5: 1850 | C5: ='FF Global'!B143/1000+'LUC Houghton'!B2 -> 554.307 | D5: ='LUC Houghton'!J2 -> 101.8392 | E5: ='FF USA'!B74/1000+'LUC Extended'!C2 -> 169.4942 | F5: ='FF W.Europe'!B126/1000+'LUC Houghton'!F2 -> 98.3271 | G5: =('FF Canada'!B89+0)/1000+'LUC Houghton'!D2 -> 5.5636 | J5: =K5/K$2 -> 5.579267019 | K5: =K6-L$2*C5/1000 -> 11.88383875 | L5: =(1-L$2)*C5/1000 -> 0.30486885 | M5: =1-L5/K5 -> 0.9743459284 | N5: =N6*M5 -> 0.02841914073
A6: =A5+1 -> 1851 | C6: ='FF Global'!B144/1000+'LUC Houghton'!B3 -> 546.942 | D6: ='LUC Houghton'!J3 -> 93.0766 | E6: ='FF USA'!B75/1000+'LUC Extended'!C3 -> 172.4486 | F6: ='FF W.Europe'!B127/1000+'LUC Houghton'!F3 -> 96.9096 | G6: =('FF Canada'!B90+'FF Australia'!B24)/1000+'LUC Houghton'!D3 -> 5.3646 | J6: 5.696374131 | K6: 12.1332769 | L6: =(1-L$2)*C6/1000 -> 0.3008181 | M6: =1-L6/K6 -> 0.9752071841 | N6: 0.02916740338
A7: =A6+1 -> 1852 | C7: ='FF Global'!B145/1000+'LUC Houghton'!B4 -> 605.131 | D7: ='LUC Houghton'!J4 -> 83.8307 | E7: ='FF USA'!B76/1000+'LUC Extended'!C4 -> 237.9845 | F7: ='FF W.Europe'!B128/1000+'LUC Houghton'!F4 -> 97.8444 | G7: =('FF Canada'!B91+'FF Australia'!B25)/1000+'LUC Houghton'!D4 -> 5.346 | J7: 5.811925258 | K7: 12.3794008 | L7: 0.33282205 | M7: 0.9731148498 | N7: 0.02990892998
A8: 1853 | C8: ='FF Global'!B146/1000+'LUC Houghton'!B5 -> 606.052 | D8: ='LUC Houghton'!J5 -> 74.214 | E8: ='FF USA'!B77/1000+'LUC Extended'!C5 -> 246.7469 | F8: ='FF W.Europe'!B129/1000+'LUC Houghton'!F5 -> 99.043 | G8: =('FF Canada'!B92+'FF Australia'!B26)/1000+'LUC Houghton'!D5 -> 5.3118 | J8: 5.939769836 | K8: 12.65170975 | L8: 0.3333286 | M8: 0.973653474 | N8: 0.03073525184
A9: 1854 | C9: ='FF Global'!B147/1000+'LUC Houghton'!B6 -> 614.399 | D9: ='LUC Houghton'!J6 -> 64.3129 | E9: ='FF USA'!B78/1000+'LUC Extended'!C6 -> 255.2346 | F9: ='FF W.Europe'!B130/1000+'LUC Houghton'!F6 -> 107.4074 | G9: =('FF Canada'!B93+'FF Australia'!B27)/1000+'LUC Houghton'!D6 -> 5.2889 | J9: 6.067808991 | K9: 12.92443315 | L9: 0.33791945 | M9: 0.973854215 | N9: 0.0315669308
A10: 1855 | C10: ='FF Global'!B148/1000+'LUC Houghton'!B7 -> 612.976 | D10: ='LUC Houghton'!J7 -> 54.194 | E10: ='FF USA'!B79/1000+'LUC Extended'!C7 -> 263.9796 | F10: ='FF W.Europe'!B131/1000+'LUC Houghton'!F7 -> 105.8896 | G10: =('FF Canada'!B94+'FF Australia'!B28)/1000+'LUC Houghton'!D7 -> 5.2713 | J10: 6.197611596 | K10: 13.2009127 | L10: 0.3371368 | M10: 0.9744610992 | N10: 0.03241443156
A11: 1856 | C11: ='FF Global'!B149/1000+'LUC Houghton'!B8 -> 623.33 | D11: ='LUC Houghton'!J8 -> 52.5623 | E11: ='FF USA'!B80/1000+'LUC Extended'!C8 -> 271.4533 | F11: ='FF W.Europe'!B132/1000+'LUC Houghton'!F8 -> 109.2826 | G11: =('FF Canada'!B95+'FF Australia'!B29)/1000+'LUC Houghton'!D8 -> 5.242 | J11: 6.327113568 | K11: 13.4767519 | L11: 0.3428315 | M11: 0.9745612665 | N11: 0.03326395644
A12: 1857 | C12: ='FF Global'!B150/1000+'LUC Houghton'!B9 -> 629.632 | D12: ='LUC Houghton'!J9 -> 51.272 | E12: ='FF USA'!B81/1000+'LUC Extended'!C9 -> 278.4517 | F12: ='FF W.Europe'!B133/1000+'LUC Houghton'!F9 -> 108.9964 | G12: =('FF Canada'!B96+'FF Australia'!B30)/1000+'LUC Houghton'!D9 -> 5.2218 | J12: 6.458803005 | K12: 13.7572504 | L12: 0.3462976 | M12: 0.9748279932 | N12: 0.03413223733
A13: 1858 | C13: ='FF Global'!B151/1000+'LUC Houghton'!B10 -> 635.97 | D13: ='LUC Houghton'!J10 -> 50.2343 | E13: ='FF USA'!B82/1000+'LUC Extended'!C10 -> 284.9582 | F13: ='FF W.Europe'!B134/1000+'LUC Houghton'!F10 -> 108.7659 | G13: =('FF Canada'!B97+'FF Australia'!B31)/1000+'LUC Houghton'!D10 -> 5.2018 | J13: 6.59182385 | K13: 14.0405848 | L13: 0.3497835 | M13: 0.975087683 | N13: 0.03501359991
A14: 1859 | C14: ='FF Global'!B152/1000+'LUC Houghton'!B11 -> 646.011 | D14: ='LUC Houghton'!J11 -> 49.3921 | E14: ='FF USA'!B83/1000+'LUC Extended'!C11 -> 292.1016 | F14: ='FF W.Europe'!B135/1000+'LUC Houghton'!F11 -> 112.8722 | G14: =('FF Canada'!B98+'FF Australia'!B32)/1000+'LUC Houghton'!D11 -> 5.1569 | J14: 6.726183709 | K14: 14.3267713 | L14: 0.35530605 | M14: 0.9751998519 | N14: 0.03590815525
A15: 1860 | C15: ='FF Global'!B153/1000+'LUC Houghton'!B12 -> 659.001 | D15: ='LUC Houghton'!J12 -> 48.7025 | E15: ='FF USA'!B84/1000+'LUC Extended'!C12 -> 298.6186 | F15: ='FF W.Europe'!B136/1000+'LUC Houghton'!F12 -> 119.2103 | G15: =('FF Canada'!B99+'FF Australia'!B33)/1000+'LUC Houghton'!D12 -> 5.3311 | J15: 6.862664906 | K15: 14.61747625 | L15: 0.36245055 | M15: 0.9752043004 | N15: 0.03682132968
A16: 1861 | C16: ='FF Global'!B154/1000+'LUC Houghton'!B13 -> 674.045 | D16: ='LUC Houghton'!J13 -> 48.1326 | E16: ='FF USA'!B85/1000+'LUC Extended'!C13 -> 303.1335 | F16: ='FF W.Europe'!B137/1000+'LUC Houghton'!F13 -> 122.7132 | G16: =('FF Canada'!B100+'FF Australia'!B34)/1000+'LUC Houghton'!D13 -> 5.3924 | J16: 7.001890469 | K16: 14.9140267 | L16: 0.37072475 | M16: 0.9751425448 | N16: 0.03775755467
A17: 1862 | C17: ='FF Global'!B155/1000+'LUC Houghton'!B14 -> 616.927 | D17: ='LUC Houghton'!J14 -> 47.7736 | E17: ='FF USA'!B86/1000+'LUC Extended'!C14 -> 250.6362 | F17: ='FF W.Europe'!B138/1000+'LUC Houghton'!F14 -> 122.3735 | G17: =('FF Canada'!B101+'FF Australia'!B35)/1000+'LUC Houghton'!D14 -> 7.0222 | J17: 7.144294343 | K17: 15.21734695 | L17: 0.33930985 | M17: 0.9777024306 | N17: 0.03872003623
A18: 1863 | C18: ='FF Global'!B156/1000+'LUC Houghton'!B15 -> 623.447 | D18: ='LUC Houghton'!J15 -> 46.6115 | E18: ='FF USA'!B87/1000+'LUC Extended'!C15 -> 251.7909 | F18: ='FF W.Europe'!B139/1000+'LUC Houghton'!F15 -> 125.3034 | G18: =('FF Canada'!B102+'FF Australia'!B36)/1000+'LUC Houghton'!D15 -> 7.6129 | J18: 7.274631033 | K18: 15.4949641 | L18: 0.34289585 | M18: 0.9778704973 | N18: 0.03960308885
A19: 1864 | C19: ='FF Global'!B157/1000+'LUC Houghton'!B16 -> 631.729 | D19: ='LUC Houghton'!J16 -> 46.1613 | E19: ='FF USA'!B88/1000+'LUC Extended'!C16 -> 251.9789 | F19: ='FF W.Europe'!B140/1000+'LUC Houghton'!F16 -> 129.8491 | G19: =('FF Canada'!B103+'FF Australia'!B37)/1000+'LUC Houghton'!D16 -> 8.1429 | J19: 7.406345188 | K19: 15.77551525 | L19: 0.34745095 | M19: 0.9779753026 | N19: 0.04049931864
A20: 1865 | C20: ='FF Global'!B158/1000+'LUC Houghton'!B17 -> 639.254 | D20: ='LUC Houghton'!J17 -> 45.7781 | E20: ='FF USA'!B89/1000+'LUC Extended'!C17 -> 251.2874 | F20: ='FF W.Europe'!B141/1000+'LUC Houghton'!F17 -> 134.3158 | G20: =('FF Canada'!B104+'FF Australia'!B38)/1000+'LUC Houghton'!D17 -> 8.7512 | J20: 7.539809061 | K20: 16.0597933 | L20: 0.3515897 | M20: 0.978107458 | N20: 0.04141139201
A21: 1866 | C21: ='FF Global'!B159/1000+'LUC Houghton'!B18 -> 642.403 | D21: ='LUC Houghton'!J18 -> 45.4492 | E21: ='FF USA'!B90/1000+'LUC Extended'!C18 -> 250.9626 | F21: ='FF W.Europe'!B142/1000+'LUC Houghton'!F18 -> 137.3895 | G21: =('FF Canada'!B105+'FF Australia'!B39)/1000+'LUC Houghton'!D18 -> 9.3972 | J21: 7.674862723 | K21: 16.3474576 | L21: 0.35332165 | M21: 0.9783867523 | N21: 0.04233828469
A22: 1867 | C22: ='FF Global'!B160/1000+'LUC Houghton'!B19 -> 649.098 | D22: ='LUC Houghton'!J19 -> 45.1671 | E22: ='FF USA'!B91/1000+'LUC Extended'!C19 -> 252.426 | F22: ='FF W.Europe'!B143/1000+'LUC Houghton'!F19 -> 140.1576 | G22: =('FF Canada'!B106+'FF Australia'!B40)/1000+'LUC Houghton'!D19 -> 10.0499 | J22: 7.810581667 | K22: 16.63653895 | L22: 0.3570039 | M22: 0.9785409753 | N22: 0.04327356701
A23: 1868 | C23: ='FF Global'!B161/1000+'LUC Houghton'!B20 -> 651.003 | D23: ='LUC Houghton'!J20 -> 44.9215 | E23: ='FF USA'!B92/1000+'LUC Extended'!C20 -> 253.0297 | F23: ='FF W.Europe'!B144/1000+'LUC Houghton'!F20 -> 139.5094 | G23: =('FF Canada'!B107+'FF Australia'!B41)/1000+'LUC Houghton'!D20 -> 10.3251 | J23: 7.947715047 | K23: 16.92863305 | L23: 0.35805165 | M23: 0.9788493466 | N23: 0.04422253958
A24: 1869 | C24: ='FF Global'!B162/1000+'LUC Houghton'!B21 -> 657.168 | D24: ='LUC Houghton'!J21 -> 44.7063 | E24: ='FF USA'!B93/1000+'LUC Extended'!C21 -> 254.2165 | F24: ='FF W.Europe'!B145/1000+'LUC Houghton'!F21 -> 143.4565 | G24: =('FF Canada'!B108+'FF Australia'!B42)/1000+'LUC Houghton'!D21 -> 10.7194 | J24: 8.085250892 | K24: 17.2215844 | L24: 0.3614424 | M24: 0.9790122447 | N24: 0.04517808561
A25: 1870 | C25: ='FF Global'!B163/1000+'LUC Houghton'!B22 -> 658.83 | D25: ='LUC Houghton'!J22 -> 44.5167 | E25: ='FF USA'!B94/1000+'LUC Extended'!C22 -> 253.7153 | F25: ='FF W.Europe'!B146/1000+'LUC Houghton'!F22 -> 144.964 | G25: =('FF Canada'!B109+'FF Australia'!B43)/1000+'LUC Houghton'!D22 -> 11.3401 | J25: 8.224089202 | K25: 17.51731 | L25: 0.3623565 | M25: 0.9793143753 | N25: 0.04614659914
A26: 1871 | C26: ='FF Global'!B164/1000+'LUC Houghton'!B23 -> 687.862 | D26: ='LUC Houghton'!J23 -> 44.3485 | E26: ='FF USA'!B95/1000+'LUC Extended'!C23 -> 252.3165 | F26: ='FF W.Europe'!B147/1000+'LUC Houghton'!F23 -> 143.5832 | G26: =('FF Canada'!B110+'FF Australia'!B44)/1000+'LUC Houghton'!D23 -> 11.9966 | J26: 8.363278638 | K26: 17.8137835 | L26: 0.3783241 | M26: 0.9787622826 | N26: 0.04712133336
A27: 1872 | C27: ='FF Global'!B165/1000+'LUC Houghton'!B24 -> 790.593 | D27: ='LUC Houghton'!J24 -> 44.1989 | E27: ='FF USA'!B96/1000+'LUC Extended'!C24 -> 338.3647 | F27: ='FF W.Europe'!B148/1000+'LUC Houghton'!F24 -> 150.0661 | G27: =('FF Canada'!B111+'FF Australia'!B45)/1000+'LUC Houghton'!D24 -> 12.4931 | J27: 8.508601596 | K27: 18.1233214 | L27: 0.43482615 | M27: 0.9760073697 | N27: 0.04814379773
A28: 1873 | C28: ='FF Global'!B166/1000+'LUC Houghton'!B25 -> 812.07 | D28: ='LUC Houghton'!J25 -> 44.0649 | E28: ='FF USA'!B97/1000+'LUC Extended'!C25 -> 347.3334 | F28: ='FF W.Europe'!B149/1000+'LUC Houghton'!F25 -> 153.954 | G28: =('FF Canada'!B112+'FF Australia'!B46)/1000+'LUC Houghton'!D25 -> 12.9418 | J28: 8.675628286 | K28: 18.47908825 | L28: 0.4466385 | M28: 0.9758300575 | N28: 0.04932728914
A29: 1874 | C29: ='FF Global'!B167/1000+'LUC Houghton'!B26 -> 806.881 | D29: ='LUC Houghton'!J26 -> 41.9545 | E29: ='FF USA'!B98/1000+'LUC Extended'!C26 -> 351.1006 | F29: ='FF W.Europe'!B150/1000+'LUC Houghton'!F26 -> 149.236 | G29: =('FF Canada'!B113+'FF Australia'!B47)/1000+'LUC Houghton'!D26 -> 13.4166 | J29: 8.847192371 | K29: 18.84451975 | L29: 0.44378455 | M29: 0.9764502064 | N29: 0.05054905694
A30: 1875 | C30: ='FF Global'!B168/1000+'LUC Houghton'!B27 -> 827.939 | D30: ='LUC Houghton'!J27 -> 41.4062 | E30: ='FF USA'!B99/1000+'LUC Extended'!C27 -> 356.3829 | F30: ='FF W.Europe'!B151/1000+'LUC Houghton'!F27 -> 153.497 | G30: =('FF Canada'!B114+'FF Australia'!B48)/1000+'LUC Houghton'!D27 -> 13.9288 | J30: 9.017660188 | K30: 19.2076162 | L30: 0.45536645 | M30: 0.9762924017 | N30: 0.05176818706
A31: 1876 | C31: ='FF Global'!B169/1000+'LUC Houghton'!B28 -> 835.36 | D31: ='LUC Houghton'!J28 -> 40.8748 | E31: ='FF USA'!B100/1000+'LUC Extended'!C28 -> 360.3299 | F31: ='FF W.Europe'!B152/1000+'LUC Houghton'!F28 -> 153.2801 | G31: =('FF Canada'!B115+'FF Australia'!B49)/1000+'LUC Houghton'!D28 -> 14.4073 | J31: 9.192576878 | K31: 19.58018875 | L31: 0.459448 | M31: 0.9765350577 | N31: 0.05302528932
A32: 1877 | C32: ='FF Global'!B170/1000+'LUC Houghton'!B29 -> 845.712 | D32: ='LUC Houghton'!J29 -> 40.4067 | E32: ='FF USA'!B101/1000+'LUC Extended'!C29 -> 370.2359 | F32: ='FF W.Europe'!B153/1000+'LUC Houghton'!F29 -> 153.1694 | G32: =('FF Canada'!B116+'FF Australia'!B50)/1000+'LUC Houghton'!D29 -> 14.1419 | J32: 9.369061385 | K32: 19.95610075 | L32: 0.4651416 | M32: 0.9766917593 | N32: 0.05429942213
A33: 1878 | C33: ='FF Global'!B171/1000+'LUC Houghton'!B30 -> 853.175 | D33: ='LUC Houghton'!J30 -> 40.3165 | E33: ='FF USA'!B102/1000+'LUC Extended'!C30 -> 375.0733 | F33: ='FF W.Europe'!B154/1000+'LUC Houghton'!F30 -> 152.1279 | G33: =('FF Canada'!B117+'FF Australia'!B51)/1000+'LUC Houghton'!D30 -> 14.016 | J33: 9.547732934 | K33: 20.33667115 | L33: 0.46924625 | M33: 0.9769261033 | N33: 0.05559524959
A34: 1879 | C34: ='FF Global'!B172/1000+'LUC Houghton'!B31 -> 873.274 | D34: ='LUC Houghton'!J31 -> 40.4353 | E34: ='FF USA'!B103/1000+'LUC Extended'!C31 -> 389.2116 | F34: ='FF W.Europe'!B155/1000+'LUC Houghton'!F31 -> 153.7149 | G34: =('FF Canada'!B118+'FF Australia'!B52)/1000+'LUC Houghton'!D31 -> 14.1385 | J34: 9.727981174 | K34: 20.7205999 | L34: 0.4803007 | M34: 0.9768201354 | N34: 0.05690834691
A35: 1880 | C35: ='FF Global'!B173/1000+'LUC Houghton'!B32 -> 905.865 | D35: ='LUC Houghton'!J32 -> 40.5859 | E35: ='FF USA'!B104/1000+'LUC Extended'!C32 -> 400.8828 | F35: ='FF W.Europe'!B156/1000+'LUC Houghton'!F32 -> 167.9922 | G35: =('FF Canada'!B119+'FF Australia'!B53)/1000+'LUC Houghton'!D32 -> 15.0934 | J35: 9.912475681 | K35: 21.1135732 | L35: 0.49822575 | M35: 0.9764025849 | N35: 0.05825877748
A36: 1881 | C36: ='FF Global'!B174/1000+'LUC Houghton'!B33 -> 949.16 | D36: ='LUC Houghton'!J33 -> 40.3481 | E36: ='FF USA'!B105/1000+'LUC Extended'!C33 -> 408.0808 | F36: ='FF W.Europe'!B157/1000+'LUC Houghton'!F33 -> 168.9924 | G36: =('FF Canada'!B120+'FF Australia'!B54)/1000+'LUC Houghton'!D33 -> 14.9859 | J36: 10.10385561 | K36: 21.52121245 | L36: 0.522038 | M36: 0.9757430953 | N36: 0.05966675876
A37: 1882 | C37: ='FF Global'!B175/1000+'LUC Houghton'!B34 -> 916.105 | D37: ='LUC Houghton'!J34 -> 40.1313 | E37: ='FF USA'!B106/1000+'LUC Extended'!C34 -> 359.8699 | F37: ='FF W.Europe'!B158/1000+'LUC Houghton'!F34 -> 171.4147 | G37: =('FF Canada'!B121+'FF Australia'!B55)/1000+'LUC Houghton'!D34 -> 15.2441 | J37: 10.30438237 | K37: 21.94833445 | L37: 0.50385775 | M37: 0.9770434631 | N37: 0.06115007018
A38: 1883 | C38: ='FF Global'!B176/1000+'LUC Houghton'!B35 -> 936.793 | D38: ='LUC Houghton'!J35 -> 39.9314 | E38: ='FF USA'!B107/1000+'LUC Extended'!C35 -> 363.2991 | F38: ='FF W.Europe'!B159/1000+'LUC Houghton'!F35 -> 177.1128 | G38: =('FF Canada'!B122+'FF Australia'!B56)/1000+'LUC Houghton'!D35 -> 15.4872 | J38: 10.49792568 | K38: 22.3605817 | L38: 0.51523615 | M38: 0.9769578378 | N38: 0.06258684746
A39: 1884 | C39: ='FF Global'!B177/1000+'LUC Houghton'!B36 -> 944.584 | D39: ='LUC Houghton'!J36 -> 39.7453 | E39: ='FF USA'!B108/1000+'LUC Extended'!C36 -> 365.7379 | F39: ='FF W.Europe'!B160/1000+'LUC Houghton'!F36 -> 173.5378 | G39: =('FF Canada'!B123+'FF Australia'!B57)/1000+'LUC Houghton'!D36 -> 15.7514 | J39: 10.69583969 | K39: 22.78213855 | L39: 0.5195212 | M39: 0.977196118 | N39: 0.06406299743
A40: 1885 | C40: ='FF Global'!B178/1000+'LUC Houghton'!B37 -> 950.038 | D40: ='LUC Houghton'!J37 -> 39.5674 | E40: ='FF USA'!B109/1000+'LUC Extended'!C37 -> 365.8423 | F40: ='FF W.Europe'!B161/1000+'LUC Houghton'!F37 -> 171.7978 | G40: =('FF Canada'!B124+'FF Australia'!B58)/1000+'LUC Houghton'!D37 -> 15.6478 | J40: 10.89539969 | K40: 23.20720135 | L40: 0.5225209 | M40: 0.9774845363 | N40: 0.06555797373
A41: 1886 | C41: ='FF Global'!B179/1000+'LUC Houghton'!B38 -> 956.497 | D41: ='LUC Houghton'!J38 -> 39.3987 | E41: ='FF USA'!B110/1000+'LUC Extended'!C38 -> 368.7895 | F41: ='FF W.Europe'!B162/1000+'LUC Houghton'!F38 -> 170.6011 | G41: =('FF Canada'!B125+'FF Australia'!B59)/1000+'LUC Houghton'!D38 -> 15.6937 | J41: 11.09611195 | K41: 23.63471845 | L41: 0.52607335 | M41: 0.9777415013 | N41: 0.06706804179
A42: 1887 | C42: ='FF Global'!B180/1000+'LUC Houghton'!B39 -> 968.974 | D42: ='LUC Houghton'!J39 -> 39.2377 | E42: ='FF USA'!B111/1000+'LUC Extended'!C39 -> 370.7057 | F42: ='FF W.Europe'!B163/1000+'LUC Houghton'!F39 -> 175.4812 | G42: =('FF Canada'!B126+'FF Australia'!B60)/1000+'LUC Houghton'!D39 -> 16.0001 | J42: 11.29818878 | K42: 24.0651421 | L42: 0.5329357 | M42: 0.9778544545 | N42: 0.0685948604
A43: 1888 | C43: ='FF Global'!B181/1000+'LUC Houghton'!B40 -> 998.311 | D43: ='LUC Houghton'!J40 -> 39.0831 | E43: ='FF USA'!B112/1000+'LUC Extended'!C40 -> 385.3492 | F43: ='FF W.Europe'!B164/1000+'LUC Houghton'!F40 -> 181.4098 | G43: =('FF Canada'!B127+'FF Australia'!B61)/1000+'LUC Houghton'!D40 -> 16.8934 | J43: 11.5029016 | K43: 24.5011804 | L43: 0.54907105 | M43: 0.9775900164 | N43: 0.07014833352
A44: 1889 | C44: ='FF Global'!B182/1000+'LUC Houghton'!B41 -> 995.526 | D44: ='LUC Houghton'!J41 -> 39.0309 | E44: ='FF USA'!B113/1000+'LUC Extended'!C41 -> 371.4964 | F44: ='FF W.Europe'!B165/1000+'LUC Houghton'!F41 -> 186.4217 | G44: =('FF Canada'!B128+'FF Australia'!B62)/1000+'LUC Houghton'!D41 -> 16.2077 | J44: 11.71381237 | K44: 24.95042035 | L44: 0.5475393 | M44: 0.9780549068 | N44: 0.07175639311
A45: 1890 | C45: ='FF Global'!B183/1000+'LUC Houghton'!B42 -> 1021.707 | D45: ='LUC Houghton'!J42 -> 38.9838 | E45: ='FF USA'!B114/1000+'LUC Extended'!C42 -> 386.2558 | F45: ='FF W.Europe'!B166/1000+'LUC Houghton'!F42 -> 192.4926 | G45: =('FF Canada'!B129+'FF Australia'!B63)/1000+'LUC Houghton'!D42 -> 16.4381 | J45: 11.92413477 | K45: 25.39840705 | L45: 0.56193885 | M45: 0.9778750357 | N45: 0.07336642617
A46: 1891 | C46: ='FF Global'!B184/1000+'LUC Houghton'!B43 -> 1032.33 | D46: ='LUC Houghton'!J43 -> 39.0009 | E46: ='FF USA'!B115/1000+'LUC Extended'!C43 -> 389.2774 | F46: ='FF W.Europe'!B167/1000+'LUC Houghton'!F43 -> 195.4377 | G46: =('FF Canada'!B130+'FF Australia'!B64)/1000+'LUC Houghton'!D43 -> 16.8707 | J46: 12.13998836 | K46: 25.8581752 | L46: 0.5677815 | M46: 0.9780424761 | N46: 0.0750263822
A47: 1892 | C47: ='FF Global'!B185/1000+'LUC Houghton'!B44 -> 1048.275 | D47: ='LUC Houghton'!J44 -> 39.0256 | E47: ='FF USA'!B116/1000+'LUC Extended'!C44 -> 408.1043 | F47: ='FF W.Europe'!B168/1000+'LUC Houghton'!F44 -> 193.5151 | G47: =('FF Canada'!B131+'FF Australia'!B65)/1000+'LUC Houghton'!D44 -> 16.8215 | J47: 12.35808624 | K47: 26.3227237 | L47: 0.57655125 | M47: 0.978096824 | N47: 0.07671076056
A48: 1893 | C48: ='FF Global'!B186/1000+'LUC Houghton'!B45 -> 1042.743 | D48: ='LUC Houghton'!J45 -> 39.0573 | E48: ='FF USA'!B117/1000+'LUC Extended'!C45 -> 409.4999 | F48: ='FF W.Europe'!B169/1000+'LUC Houghton'!F45 -> 183.3138 | G48: =('FF Canada'!B132+'FF Australia'!B66)/1000+'LUC Houghton'!D45 -> 16.9578 | J48: 12.57955279 | K48: 26.79444745 | L48: 0.57350865 | M48: 0.9785959889 | N48: 0.0784285959
A49: 1894 | C49: ='FF Global'!B187/1000+'LUC Houghton'!B46 -> 1071.965 | D49: ='LUC Houghton'!J46 -> 54.5849 | E49: ='FF USA'!B118/1000+'LUC Extended'!C46 -> 403.1141 | F49: ='FF W.Europe'!B170/1000+'LUC Houghton'!F46 -> 200.2519 | G49: =('FF Canada'!B133+'FF Australia'!B67)/1000+'LUC Houghton'!D46 -> 16.8048 | J49: 12.79985061 | K49: 27.2636818 | L49: 0.58958075 | M49: 0.9783748668 | N49: 0.08014399894
A50: 1895 | C50: ='FF Global'!B188/1000+'LUC Houghton'!B47 -> 1096.967 | D50: ='LUC Houghton'!J47 -> 56.3774 | E50: ='FF USA'!B119/1000+'LUC Extended'!C47 -> 419.6745 | F50: ='FF W.Europe'!B171/1000+'LUC Houghton'!F47 -> 202.1646 | G50: =('FF Canada'!B134+'FF Australia'!B68)/1000+'LUC Houghton'!D47 -> 16.6126 | J50: 13.02632209 | K50: 27.74606605 | L50: 0.60333185 | M50: 0.9782552291 | N50: 0.08191543104
A51: 1896 | C51: ='FF Global'!B189/1000+'LUC Houghton'!B48 -> 1111.418 | D51: ='LUC Houghton'!J48 -> 58.0801 | E51: ='FF USA'!B120/1000+'LUC Extended'!C48 -> 419.5836 | F51: ='FF W.Europe'!B172/1000+'LUC Houghton'!F48 -> 207.6951 | G51: =('FF Canada'!B135+'FF Australia'!B69)/1000+'LUC Houghton'!D48 -> 16.8144 | J51: 13.25807568 | K51: 28.2397012 | L51: 0.6112799 | M51: 0.9783538822 | N51: 0.08373625676
A52: 1897 | C52: ='FF Global'!B190/1000+'LUC Houghton'!B49 -> 1132.181 | D52: ='LUC Houghton'!J49 -> 59.7669 | E52: ='FF USA'!B121/1000+'LUC Extended'!C49 -> 425.7908 | F52: ='FF W.Europe'!B173/1000+'LUC Houghton'!F49 -> 213.6428 | G52: =('FF Canada'!B136+'FF Australia'!B70)/1000+'LUC Houghton'!D49 -> 16.9041 | J52: 13.4928823 | K52: 28.7398393 | L52: 0.62269955 | M52: 0.9783332278 | N52: 0.08558892471
A53: 1898 | C53: ='FF Global'!B191/1000+'LUC Houghton'!B50 -> 1154.694 | D53: ='LUC Houghton'!J50 -> 61.3659 | E53: ='FF USA'!B122/1000+'LUC Extended'!C50 -> 437.0684 | F53: ='FF W.Europe'!B174/1000+'LUC Houghton'!F50 -> 216.2189 | G53: =('FF Canada'!B137+'FF Australia'!B71)/1000+'LUC Houghton'!D50 -> 17.245 | J53: 13.73207547 | K53: 29.24932075 | L53: 0.6350817 | M53: 0.9782873009 | N53: 0.08748442992
A54: 1899 | C54: ='FF Global'!B192/1000+'LUC Houghton'!B51 -> 1195.927 | D54: ='LUC Houghton'!J51 -> 62.8962 | E54: ='FF USA'!B123/1000+'LUC Extended'!C51 -> 457.9563 | F54: ='FF W.Europe'!B175/1000+'LUC Houghton'!F51 -> 227.7318 | G54: =('FF Canada'!B138+'FF Australia'!B72)/1000+'LUC Houghton'!D51 -> 18.1551 | J54: 13.97602491 | K54: 29.76893305 | L54: 0.65775985 | M54: 0.9779044869 | N54: 0.08942611219
A55: 1900 | C55: ='FF Global'!B193/1000+'LUC Houghton'!B52 -> 1221.782 | D55: ='LUC Houghton'!J52 -> 64.3642 | E55: ='FF USA'!B124/1000+'LUC Extended'!C52 -> 467.1309 | F55: ='FF W.Europe'!B176/1000+'LUC Houghton'!F52 -> 234.0812 | G55: =('FF Canada'!B139+'FF Australia'!B73)/1000+'LUC Houghton'!D52 -> 19.6665 | J55: 14.22868554 | K55: 30.3071002 | L55: 0.6719801 | M55: 0.9778276346 | N55: 0.09144667336
A56: 1901 | C56: ='FF Global'!B194/1000+'LUC Houghton'!B53 -> 1303.166 | D56: ='LUC Houghton'!J53 -> 65.7618 | E56: ='FF USA'!B125/1000+'LUC Extended'!C53 -> 482.7756 | F56: ='FF W.Europe'!B177/1000+'LUC Houghton'!F53 -> 229.6856 | G56: =('FF Canada'!B140+'FF Australia'!B74)/1000+'LUC Houghton'!D53 -> 20.8245 | J56: 14.4868085 | K56: 30.8569021 | L56: 0.7167413 | M56: 0.9767720915 | N56: 0.09352023825
A57: 1902 | C57: ='FF Global'!B195/1000+'LUC Houghton'!B54 -> 1321.228 | D57: ='LUC Houghton'!J54 -> 82.7269 | E57: ='FF USA'!B126/1000+'LUC Extended'!C54 -> 449.0508 | F57: ='FF W.Europe'!B178/1000+'LUC Houghton'!F54 -> 232.9064 | G57: =('FF Canada'!B141+'FF Australia'!B75)/1000+'LUC Houghton'!D54 -> 34.1168 | J57: 14.76212526 | K57: 31.4433268 | L57: 0.7266754 | M57: 0.9768893602 | N57: 0.0957441752
A58: 1903 | C58: ='FF Global'!B196/1000+'LUC Houghton'!B55 -> 1401.638 | D58: ='FF China'!B26/1000+'LUC Houghton'!J55 -> 101.1109 | E58: ='FF USA'!B127/1000+'LUC Extended'!C55 -> 475.9217 | F58: ='FF W.Europe'!B179/1000+'LUC Houghton'!F55 -> 239.088 | G58: =('FF Canada'!B142+'FF Australia'!B76)/1000+'LUC Houghton'!D55 -> 37.4975 | J58: 15.04125793 | K58: 32.0378794 | L58: 0.7709009 | M58: 0.97593783 | N58: 0.09800923124
A59: 1904 | C59: ='FF Global'!B197/1000+'LUC Houghton'!B56 -> 1431.404 | D59: ='FF China'!B27/1000+'LUC Houghton'!J56 -> 119.579 | E59: ='FF USA'!B128/1000+'LUC Extended'!C56 -> 462.4469 | F59: ='FF W.Europe'!B180/1000+'LUC Houghton'!F56 -> 239.8044 | G59: =('FF Canada'!B143+'FF Australia'!B77)/1000+'LUC Houghton'!D56 -> 41.6784 | J59: 15.33737864 | K59: 32.6686165 | L59: 0.7872722 | M59: 0.975901269 | N59: 0.1004256913
A60: 1905 | C60: ='FF Global'!B198/1000+'LUC Houghton'!B57 -> 1499.466 | D60: ='FF China'!B28/1000+'LUC Houghton'!J57 -> 138.528 | E60: ='FF USA'!B129/1000+'LUC Extended'!C57 -> 481.7792 | F60: ='FF W.Europe'!B181/1000+'LUC Houghton'!F57 -> 243.0851 | G60: =('FF Canada'!B144+'FF Australia'!B78)/1000+'LUC Houghton'!D57 -> 45.0412 | J60: 15.63978793 | K60: 33.3127483 | L60: 0.8247063 | M60: 0.9752435226 | N60: 0.1029055853
A61: 1906 | C61: ='FF Global'!B199/1000+'LUC Houghton'!B58 -> 1559.584 | D61: ='FF China'!B29/1000+'LUC Houghton'!J58 -> 161.8012 | E61: ='FF USA'!B130/1000+'LUC Extended'!C58 -> 487.8816 | F61: ='FF W.Europe'!B182/1000+'LUC Houghton'!F58 -> 255.7184 | G61: =('FF Canada'!B145+'FF Australia'!B79)/1000+'LUC Houghton'!D58 -> 48.7444 | J61: 15.95657653 | K61: 33.987508 | L61: 0.8577712 | M61: 0.9747621626 | N61: 0.1055178352
A62: 1907 | C62: ='FF Global'!B200/1000+'LUC Houghton'!B59 -> 1655.725 | D62: ='FF China'!B30/1000+'LUC Houghton'!J59 -> 166.2061 | E62: ='FF USA'!B131/1000+'LUC Extended'!C59 -> 526.4992 | F62: ='FF W.Europe'!B183/1000+'LUC Houghton'!F59 -> 268.0729 | G62: =('FF Canada'!B146+'FF Australia'!B80)/1000+'LUC Houghton'!D59 -> 54.1071 | J62: 16.2860661 | K62: 34.6893208 | L62: 0.91064875 | M62: 0.973748441 | N62: 0.1082498267
A63: 1908 | C63: ='FF Global'!B201/1000+'LUC Houghton'!B60 -> 1634.131 | D63: ='FF China'!B31/1000+'LUC Houghton'!J60 -> 171.6932 | E63: ='FF USA'!B132/1000+'LUC Extended'!C60 -> 480.1676 | F63: ='FF W.Europe'!B184/1000+'LUC Houghton'!F60 -> 271.5583 | G63: =('FF Canada'!B147+'FF Australia'!B81)/1000+'LUC Houghton'!D60 -> 56.9523 | J63: 16.63586716 | K63: 35.43439705 | L63: 0.89877205 | M63: 0.9746356048 | N63: 0.1111681644
A64: 1909 | C64: ='FF Global'!B202/1000+'LUC Houghton'!B61 -> 1669.869 | D64: ='FF China'!B32/1000+'LUC Houghton'!J61 -> 174.0786 | E64: ='FF USA'!B133/1000+'LUC Extended'!C61 -> 505.7348 | F64: ='FF W.Europe'!B185/1000+'LUC Houghton'!F61 -> 270.2822 | G64: =('FF Canada'!B148+'FF Australia'!B82)/1000+'LUC Houghton'!D61 -> 58.1341 | J64: 16.9811061 | K64: 36.169756 | L64: 0.91842795 | M64: 0.9746078478 | N64: 0.1140612592
A65: 1910 | C65: ='FF Global'!B203/1000+'LUC Houghton'!B62 -> 1714.308 | D65: ='FF China'!B33/1000+'LUC Houghton'!J62 -> 176.0417 | E65: ='FF USA'!B134/1000+'LUC Extended'!C62 -> 529.4375 | F65: ='FF W.Europe'!B186/1000+'LUC Houghton'!F62 -> 277.0714 | G65: =('FF Canada'!B149+'FF Australia'!B83)/1000+'LUC Houghton'!D62 -> 62.9163 | J65: 17.33389533 | K65: 36.92119705 | L65: 0.9428694 | M65: 0.9744626536 | N65: 0.1170329784
A66: 1911 | C66: ='FF Global'!B204/1000+'LUC Houghton'!B63 -> 1668.811 | D66: ='FF China'!B34/1000+'LUC Houghton'!J63 -> 180.7642 | E66: ='FF USA'!B135/1000+'LUC Extended'!C63 -> 521.6927 | F66: ='FF W.Europe'!B187/1000+'LUC Houghton'!F63 -> 280.762 | G66: =('FF Canada'!B150+'FF Australia'!B84)/1000+'LUC Houghton'!D63 -> 68.0245 | J66: 17.69607308 | K66: 37.69263565 | L66: 0.91784605 | M66: 0.9756491942 | N66: 0.1201000141
A67: 1912 | C67: ='FF Global'!B205/1000+'LUC Houghton'!B64 -> 1665.787 | D67: ='FF China'!B35/1000+'LUC Houghton'!J64 -> 176.2962 | E67: ='FF USA'!B136/1000+'LUC Extended'!C64 -> 519.5133 | F67: ='FF W.Europe'!B188/1000+'LUC Houghton'!F64 -> 278.3191 | G67: =('FF Canada'!B151+'FF Australia'!B85)/1000+'LUC Houghton'!D64 -> 72.6225 | J67: 18.04863878 | K67: 38.4436006 | L67: 0.91618285 | M67: 0.9761681311 | N67: 0.1230975383
A68: 1913 | C68: ='FF Global'!B206/1000+'LUC Houghton'!B65 -> 1702.175 | D68: ='FF China'!B36/1000+'LUC Houghton'!J65 -> 176.7479 | E68: ='FF USA'!B137/1000+'LUC Extended'!C65 -> 540.655 | F68: ='FF W.Europe'!B189/1000+'LUC Houghton'!F65 -> 300.7969 | G68: =('FF Canada'!B152+'FF Australia'!B86)/1000+'LUC Houghton'!D65 -> 78.5174 | J68: 18.40056561 | K68: 39.19320475 | L68: 0.93619625 | M68: 0.9761133019 | N68: 0.1261028038
A69: 1914 | C69: ='FF Global'!B207/1000+'LUC Houghton'!B66 -> 1607.654 | D69: ='FF China'!B37/1000+'LUC Houghton'!J66 -> 181.9114 | E69: ='FF USA'!B138/1000+'LUC Extended'!C66 -> 502.0131 | F69: ='FF W.Europe'!B190/1000+'LUC Houghton'!F66 -> 269.0093 | G69: =('FF Canada'!B153+'FF Australia'!B87)/1000+'LUC Houghton'!D66 -> 78.2671 | J69: =K69/K$2 -> 18.76018005 | K69: =K70-L$2*C69/1000 -> 39.9591835 | L69: 0.8842097 | M69: 0.977872178 | N69: =N70*M69 -> 0.1291886952
A70: 1915 | C70: ='FF Global'!B208/1000+'LUC Houghton'!B67 -> 1588.014 | D70: ='FF China'!B38/1000+'LUC Houghton'!J67 -> 182.7989 | E70: ='FF USA'!B139/1000+'LUC Extended'!C67 -> 510.9585 | F70: ='FF W.Europe'!B191/1000+'LUC Houghton'!F67 -> 260.0495 | G70: =('FF Canada'!B154+'FF Australia'!B88)/1000+'LUC Houghton'!D67 -> 77.6841 | J70: 19.09982526 | K70: 40.6826278 | L70: =(1-L$2)*C70/1000 -> 0.8734077 | M70: =1-L70/K70 -> 0.9785311877 | N70: 0.132112047
A71: =A70+1 -> 1916 | C71: ='FF Global'!B209/1000+'LUC Houghton'!B68 -> 1653.093 | D71: ='FF China'!B39/1000+'LUC Houghton'!J68 -> 183.6581 | E71: ='FF USA'!B140/1000+'LUC Extended'!C68 -> 547.2978 | F71: ='FF W.Europe'!B192/1000+'LUC Houghton'!F68 -> 262.7826 | G71: =('FF Canada'!B155+'FF Australia'!B89)/1000+'LUC Houghton'!D68 -> 83.2962 | J71: 19.43532117 | K71: 41.3972341 | L71: 0.90920115 | M71: 0.9780371522 | N71: 0.1350105635
A72: 1917 | C72: ='FF Global'!B210/1000+'LUC Houghton'!B69 -> 1699.776 | D72: ='FF China'!B40/1000+'LUC Houghton'!J69 -> 189.154 | E72: ='FF USA'!B141/1000+'LUC Extended'!C69 -> 585.3613 | F72: ='FF W.Europe'!B193/1000+'LUC Houghton'!F69 -> 249.6121 | G72: =('FF Canada'!B156+'FF Australia'!B90)/1000+'LUC Houghton'!D69 -> 86.702 | J72: 19.78456617 | K72: 42.14112595 | L72: 0.9348768 | M72: 0.9778155714 | N72: 0.138042367
A73: 1918 | C73: ='FF Global'!B211/1000+'LUC Houghton'!B70 -> 1707.316 | D73: ='FF China'!B41/1000+'LUC Houghton'!J70 -> 194.5142 | E73: ='FF USA'!B142/1000+'LUC Extended'!C70 -> 602.5532 | F73: ='FF W.Europe'!B194/1000+'LUC Houghton'!F70 -> 239.8113 | G73: =('FF Canada'!B157+'FF Australia'!B91)/1000+'LUC Houghton'!D70 -> 89.0494 | J73: 20.14367378 | K73: 42.90602515 | L73: 0.9390238 | M73: 0.9781144071 | N73: 0.1411742367
A74: 1919 | C74: ='FF Global'!B212/1000+'LUC Houghton'!B71 -> 1585.756 | D74: ='FF China'!B42/1000+'LUC Houghton'!J71 -> 200.4743 | E74: ='FF USA'!B143/1000+'LUC Extended'!C71 -> 527.5446 | F74: ='FF W.Europe'!B195/1000+'LUC Houghton'!F71 -> 244.6285 | G74: =('FF Canada'!B158+'FF Australia'!B92)/1000+'LUC Houghton'!D71 -> 85.6267 | J74: 20.50437434 | K74: 43.67431735 | L74: 0.8721658 | M74: 0.9800302362 | N74: 0.1443330512
A75: 1920 | C75: ='FF Global'!B213/1000+'LUC Houghton'!B72 -> 1723.192 | D75: ='FF China'!B43/1000+'LUC Houghton'!J72 -> 206.2644 | E75: ='FF USA'!B144/1000+'LUC Extended'!C72 -> 592.376 | F75: ='FF W.Europe'!B196/1000+'LUC Houghton'!F72 -> 265.454 | G75: =('FF Canada'!B159+'FF Australia'!B93)/1000+'LUC Houghton'!D72 -> 89.5353 | J75: 20.83939322 | K75: 44.38790755 | L75: 0.9477556 | M75: 0.978648338 | N75: 0.1472740797
A76: 1921 | C76: ='FF Global'!B214/1000+'LUC Houghton'!B73 -> 1655.423 | D76: ='FF China'!B44/1000+'LUC Houghton'!J73 -> 210.9621 | E76: ='FF USA'!B145/1000+'LUC Extended'!C73 -> 500.5512 | F76: ='FF W.Europe'!B197/1000+'LUC Houghton'!F73 -> 220.2582 | G76: =('FF Canada'!B160+'FF Australia'!B94)/1000+'LUC Houghton'!D73 -> 88.3122 | J76: 21.20344786 | K76: 45.16334395 | L76: 0.91048265 | M76: 0.9798402295 | N76: 0.1504872323
A77: 1922 | C77: ='FF Global'!B215/1000+'LUC Houghton'!B74 -> 1685.948 | D77: ='FF China'!B45/1000+'LUC Houghton'!J74 -> 214.0162 | E77: ='FF USA'!B146/1000+'LUC Extended'!C74 -> 476.6692 | F77: ='FF W.Europe'!B198/1000+'LUC Houghton'!F74 -> 264.3191 | G77: =('FF Canada'!B161+'FF Australia'!B95)/1000+'LUC Houghton'!D74 -> 86.0974 | J77: 21.55318512 | K77: 45.9082843 | L77: 0.9272714 | M77: 0.9798016542 | N77: 0.1535834391
A78: 1923 | C78: ='FF Global'!B216/1000+'LUC Houghton'!B75 -> 1809.007 | D78: ='FF China'!B46/1000+'LUC Houghton'!J75 -> 218.0059 | E78: ='FF USA'!B147/1000+'LUC Extended'!C75 -> 593.352 | F78: ='FF W.Europe'!B199/1000+'LUC Houghton'!F75 -> 284.5584 | G78: =('FF Canada'!B162+'FF Australia'!B96)/1000+'LUC Houghton'!D75 -> 93.2497 | J78: 21.90937131 | K78: 46.6669609 | L78: 0.99495385 | M78: 0.9786796948 | N78: 0.1567495202
A79: 1924 | C79: ='FF Global'!B217/1000+'LUC Houghton'!B76 -> 1811.867 | D79: ='FF China'!B47/1000+'LUC Houghton'!J76 -> 221.1681 | E79: ='FF USA'!B148/1000+'LUC Extended'!C76 -> 529.9692 | F79: ='FF W.Europe'!B200/1000+'LUC Houghton'!F76 -> 304.7004 | G79: =('FF Canada'!B163+'FF Australia'!B97)/1000+'LUC Houghton'!D76 -> 90.115 | J79: 22.29155589 | K79: 47.48101405 | L79: 0.99652685 | M79: 0.9790120984 | N79: 0.1601642713
A80: 1925 | C80: ='FF Global'!B218/1000+'LUC Houghton'!B77 -> 1821.554 | D80: ='FF China'!B48/1000+'LUC Houghton'!J77 -> 222.9165 | E80: ='FF USA'!B149/1000+'LUC Extended'!C77 -> 531.6076 | F80: ='FF W.Europe'!B201/1000+'LUC Houghton'!F77 -> 300.0916 | G80: =('FF Canada'!B164+'FF Australia'!B98)/1000+'LUC Houghton'!D77 -> 90.357 | J80: 22.67434469 | K80: 48.2963542 | L80: 1.0018547 | M80: 0.9792561009 | N80: 0.1635978468
A81: 1926 | C81: ='FF Global'!B219/1000+'LUC Houghton'!B78 -> 1800.78 | D81: ='FF China'!B49/1000+'LUC Houghton'!J78 -> 224.1077 | E81: ='FF USA'!B150/1000+'LUC Extended'!C78 -> 565.2453 | F81: ='FF W.Europe'!B202/1000+'LUC Houghton'!F78 -> 245.3025 | G81: =('FF Canada'!B165+'FF Australia'!B99)/1000+'LUC Houghton'!D78 -> 93.3463 | J81: 23.05918005 | K81: 49.1160535 | L81: 0.990429 | M81: 0.979834923 | N81: 0.167063393
A82: 1927 | C82: ='FF Global'!B220/1000+'LUC Houghton'!B79 -> 1923.307 | D82: ='FF China'!B50/1000+'LUC Houghton'!J79 -> 226.0646 | E82: ='FF USA'!B151/1000+'LUC Extended'!C79 -> 596.6633 | F82: ='FF W.Europe'!B203/1000+'LUC Houghton'!F79 -> 315.2057 | G82: =('FF Canada'!B166+'FF Australia'!B100)/1000+'LUC Houghton'!D79 -> 85.6344 | J82: 23.43962653 | K82: 49.9264045 | L82: 1.05781885 | M82: 0.9788124368 | N82: 0.1705015703
A83: 1928 | C83: ='FF Global'!B221/1000+'LUC Houghton'!B80 -> 1920.2 | D83: ='FF China'!B51/1000+'LUC Houghton'!J80 -> 227.0658 | E83: ='FF USA'!B152/1000+'LUC Extended'!C80 -> 591.7922 | F83: ='FF W.Europe'!B204/1000+'LUC Houghton'!F80 -> 305.2451 | G83: =('FF Canada'!B167+'FF Australia'!B101)/1000+'LUC Houghton'!D80 -> 83.7277 | J83: 23.84595899 | K83: 50.79189265 | L83: 1.05611 | M83: 0.9792071147 | N83: 0.1741922802
A84: 1929 | C84: ='FF Global'!B222/1000+'LUC Houghton'!B81 -> 2021.792 | D84: ='FF China'!B52/1000+'LUC Houghton'!J81 -> 229.2799 | E84: ='FF USA'!B153/1000+'LUC Extended'!C81 -> 651.9984 | F84: ='FF W.Europe'!B205/1000+'LUC Houghton'!F81 -> 326.931 | G84: =('FF Canada'!B168+'FF Australia'!B102)/1000+'LUC Houghton'!D81 -> 82.8422 | J84: 24.25163505 | K84: 51.65598265 | L84: 1.1119856 | M84: 0.9784732466 | N84: 0.1778911505
A85: 1930 | C85: ='FF Global'!B223/1000+'LUC Houghton'!B82 -> 2002.248 | D85: ='FF China'!B53/1000+'LUC Houghton'!J82 -> 231.9563 | E85: ='FF USA'!B154/1000+'LUC Extended'!C82 -> 667.1718 | F85: ='FF W.Europe'!B206/1000+'LUC Houghton'!F82 -> 316.5808 | G85: =('FF Canada'!B169+'FF Australia'!B103)/1000+'LUC Houghton'!D82 -> 79.5871 | J85: 24.6787742 | K85: 52.56578905 | L85: 1.1012364 | M85: 0.9790503211 | N85: 0.181804818
A86: 1931 | C86: ='FF Global'!B224/1000+'LUC Houghton'!B83 -> 1894.491 | D86: ='FF China'!B54/1000+'LUC Houghton'!J83 -> 234.6547 | E86: ='FF USA'!B155/1000+'LUC Extended'!C83 -> 592.3977 | F86: ='FF W.Europe'!B207/1000+'LUC Houghton'!F83 -> 298.9188 | G86: =('FF Canada'!B170+'FF Australia'!B104)/1000+'LUC Houghton'!D83 -> 72.3802 | J86: 25.10178434 | K86: 53.46680065 | L86: 1.04197005 | M86: 0.9805118309 | N86: 0.1856950701
A87: 1932 | C87: ='FF Global'!B225/1000+'LUC Houghton'!B84 -> 1697.823 | D87: ='FF China'!B55/1000+'LUC Houghton'!J84 -> 235.1034 | E87: ='FF USA'!B156/1000+'LUC Extended'!C84 -> 427.8631 | F87: ='FF W.Europe'!B208/1000+'LUC Houghton'!F84 -> 276.8904 | G87: =('FF Canada'!B171+'FF Australia'!B105)/1000+'LUC Houghton'!D84 -> 69.6208 | J87: 25.50202892 | K87: 54.3193216 | L87: 0.93380265 | M87: 0.9828090149 | N87: 0.1893858536
A88: 1933 | C88: ='FF Global'!B226/1000+'LUC Houghton'!B85 -> 1730.595 | D88: ='FF China'!B56/1000+'LUC Houghton'!J85 -> 236.9328 | E88: ='FF USA'!B157/1000+'LUC Extended'!C85 -> 445.1196 | F88: ='FF W.Europe'!B209/1000+'LUC Houghton'!F85 -> 277.8681 | G88: =('FF Canada'!B172+'FF Australia'!B106)/1000+'LUC Houghton'!D85 -> 68.3624 | J88: 25.86072392 | K88: 55.08334195 | L88: 0.95182725 | M88: 0.9827202342 | N88: 0.1926985312
A89: 1934 | C89: ='FF Global'!B227/1000+'LUC Houghton'!B86 -> 1780.975 | D89: ='FF China'!B57/1000+'LUC Houghton'!J86 -> 233.4122 | E89: ='FF USA'!B158/1000+'LUC Extended'!C86 -> 461.6554 | F89: ='FF W.Europe'!B210/1000+'LUC Houghton'!F86 -> 290.6472 | G89: =('FF Canada'!B173+'FF Australia'!B107)/1000+'LUC Houghton'!D86 -> 70.1469 | J89: 26.22634258 | K89: 55.8621097 | L89: 0.97953625 | M89: 0.9824651046 | N89: 0.1960868663
A90: 1935 | C90: ='FF Global'!B228/1000+'LUC Houghton'!B87 -> 1815.434 | D90: ='FF China'!B58/1000+'LUC Houghton'!J87 -> 235.5515 | E90: ='FF USA'!B159/1000+'LUC Extended'!C87 -> 474.5364 | F90: ='FF W.Europe'!B211/1000+'LUC Houghton'!F87 -> 290.8259 | G90: =('FF Canada'!B174+'FF Australia'!B108)/1000+'LUC Houghton'!D87 -> 69.1912 | J90: 26.60260491 | K90: 56.66354845 | L90: 0.9984887 | M90: 0.9823786415 | N90: 0.1995865964
A91: 1936 | C91: ='FF Global'!B229/1000+'LUC Houghton'!B88 -> 1908.084 | D91: ='FF China'!B59/1000+'LUC Houghton'!J88 -> 237.5046 | E91: ='FF USA'!B160/1000+'LUC Extended'!C88 -> 526.2757 | F91: ='FF W.Europe'!B212/1000+'LUC Houghton'!F88 -> 292.6482 | G91: =('FF Canada'!B175+'FF Australia'!B109)/1000+'LUC Houghton'!D88 -> 70.3793 | J91: 26.9861473 | K91: 57.48049375 | L91: 1.0494462 | M91: 0.9817425681 | N91: 0.2031666691
A92: 1937 | C92: ='FF Global'!B230/1000+'LUC Houghton'!B89 -> 1955.523 | D92: ='FF China'!B60/1000+'LUC Houghton'!J89 -> 236.2759 | E92: ='FF USA'!B161/1000+'LUC Extended'!C89 -> 521.2511 | F92: ='FF W.Europe'!B213/1000+'LUC Houghton'!F89 -> 311.7211 | G92: =('FF Canada'!B176+'FF Australia'!B110)/1000+'LUC Houghton'!D89 -> 71.569 | J92: 27.38926364 | K92: 58.33913155 | L92: 1.07553765 | M92: 0.9815640442 | N92: 0.2069449525
A93: 1938 | C93: ='FF Global'!B231/1000+'LUC Houghton'!B90 -> 1876.581 | D93: ='FF China'!B61/1000+'LUC Houghton'!J90 -> 234.8704 | E93: ='FF USA'!B162/1000+'LUC Extended'!C90 -> 446.4263 | F93: ='FF W.Europe'!B214/1000+'LUC Houghton'!F90 -> 294.7373 | G93: =('FF Canada'!B177+'FF Australia'!B111)/1000+'LUC Houghton'!D90 -> 67.8924 | J93: 27.8024023 | K93: 59.2191169 | L93: 1.03211955 | M93: 0.9825711763 | N93: 0.210831839
A94: 1939 | C94: ='FF Global'!B232/1000+'LUC Houghton'!B91 -> 1937.205 | D94: ='FF China'!B62/1000+'LUC Houghton'!J91 -> 238.0969 | E94: ='FF USA'!B163/1000+'LUC Extended'!C91 -> 484.706 | F94: ='FF W.Europe'!B215/1000+'LUC Houghton'!F91 -> 293.1312 | G94: =('FF Canada'!B178+'FF Australia'!B112)/1000+'LUC Houghton'!D91 -> 70.3231 | J94: 28.19886308 | K94: 60.06357835 | L94: 1.06546275 | M94: 0.9822610843 | N94: 0.214571569
A95: 1940 | C95: ='FF Global'!B233/1000+'LUC Houghton'!B92 -> 2003.495 | D95: ='FF China'!B63/1000+'LUC Houghton'!J92 -> 243.2816 | E95: ='FF USA'!B164/1000+'LUC Extended'!C92 -> 527.266 | F95: ='FF W.Europe'!B216/1000+'LUC Houghton'!F92 -> 273.5841 | G95: =('FF Canada'!B179+'FF Australia'!B113)/1000+'LUC Houghton'!D92 -> 71.9322 | J95: 28.60813174 | K95: 60.9353206 | L95: 1.10192225 | M95: 0.9819165266 | N95: 0.2184465744
A96: 1941 | C96: ='FF Global'!B234/1000+'LUC Houghton'!B93 -> 2034.194 | D96: ='FF China'!B64/1000+'LUC Houghton'!J93 -> 249.1849 | E96: ='FF USA'!B165/1000+'LUC Extended'!C93 -> 571.5342 | F96: ='FF W.Europe'!B217/1000+'LUC Houghton'!F93 -> 261.5055 | G96: =('FF Canada'!B180+'FF Australia'!B114)/1000+'LUC Houghton'!D93 -> 75.331 | J96: 29.03140533 | K96: 61.83689335 | L96: 1.1188067 | M96: 0.9819071328 | N96: 0.2224695974
A97: 1942 | C97: ='FF Global'!B235/1000+'LUC Houghton'!B94 -> 2103.594 | D97: ='FF China'!B65/1000+'LUC Houghton'!J94 -> 262.9852 | E97: ='FF USA'!B166/1000+'LUC Extended'!C94 -> 626.3304 | F97: ='FF W.Europe'!B218/1000+'LUC Houghton'!F94 -> 257.4776 | G97: =('FF Canada'!B181+'FF Australia'!B115)/1000+'LUC Houghton'!D94 -> 78.8339 | J97: 29.46116462 | K97: 62.75228065 | L97: 1.1569767 | M97: 0.9815627944 | N97: 0.2265688781
A98: 1943 | C98: ='FF Global'!B236/1000+'LUC Houghton'!B95 -> 2114.809 | D98: ='FF China'!B66/1000+'LUC Houghton'!J95 -> 271.161 | E98: ='FF USA'!B167/1000+'LUC Extended'!C95 -> 631.9911 | F98: ='FF W.Europe'!B219/1000+'LUC Houghton'!F95 -> 245.8071 | G98: =('FF Canada'!B182+'FF Australia'!B116)/1000+'LUC Houghton'!D95 -> 80.3207 | J98: 29.90558589 | K98: 63.69889795 | L98: 1.16314495 | M98: 0.9817399518 | N98: 0.2308246394
A99: 1944 | C99: ='FF Global'!B237/1000+'LUC Houghton'!B96 -> 2117.194 | D99: ='FF China'!B67/1000+'LUC Houghton'!J96 -> 284.4292 | E99: ='FF USA'!B168/1000+'LUC Extended'!C96 -> 675.0216 | F99: ='FF W.Europe'!B220/1000+'LUC Houghton'!F96 -> 215.806 | G99: =('FF Canada'!B183+'FF Australia'!B117)/1000+'LUC Houghton'!D96 -> 80.7471 | J99: 30.35237653 | K99: 64.650562 | L99: 1.1644567 | M99: 0.981988452 | N99: 0.2351179036
A100: 1945 | C100: ='FF Global'!B238/1000+'LUC Houghton'!B97 -> 1879.729 | D100: ='FF China'!B68/1000+'LUC Houghton'!J97 -> 284.9045 | E100: ='FF USA'!B169/1000+'LUC Extended'!C97 -> 642.9624 | F100: ='FF W.Europe'!B221/1000+'LUC Houghton'!F97 -> 209.9242 | G100: =('FF Canada'!B184+'FF Australia'!B118)/1000+'LUC Houghton'!D97 -> 77.6401 | J100: 30.79967103 | K100: 65.6032993 | L100: 1.03385095 | M100: 0.9842408696 | N100: 0.2394304161
A101: 1946 | C101: ='FF Global'!B239/1000+'LUC Houghton'!B98 -> 2014.851 | D101: ='FF China'!B69/1000+'LUC Houghton'!J98 -> 293.3999 | E101: ='FF USA'!B170/1000+'LUC Extended'!C98 -> 610.0631 | F101: ='FF W.Europe'!B222/1000+'LUC Houghton'!F98 -> 254.6871 | G101: =('FF Canada'!B185+'FF Australia'!B119)/1000+'LUC Houghton'!D98 -> 80.5488 | J101: 31.19679688 | K101: 66.44917735 | L101: 1.10816805 | M101: 0.9833230734 | N101: 0.2432640459
A102: 1947 | C102: ='FF Global'!B240/1000+'LUC Houghton'!B99 -> 2136.297 | D102: ='FF China'!B70/1000+'LUC Houghton'!J99 -> 296.1136 | E102: ='FF USA'!B171/1000+'LUC Extended'!C99 -> 682.9938 | F102: ='FF W.Europe'!B223/1000+'LUC Houghton'!F99 -> 288.9514 | G102: =('FF Canada'!B186+'FF Australia'!B120)/1000+'LUC Houghton'!D99 -> 82.4679 | J102: 31.62246962 | K102: 67.3558603 | L102: 1.17496335 | M102: 0.9825558853 | N102: 0.2473897465
A103: 1948 | C103: ='FF Global'!B241/1000+'LUC Houghton'!B100 -> 2185.779 | D103: ='FF China'!B71/1000+'LUC Houghton'!J100 -> 295.1994 | E103: ='FF USA'!B172/1000+'LUC Extended'!C100 -> 698.1372 | F103: ='FF W.Europe'!B224/1000+'LUC Houghton'!F100 -> 300.6436 | G103: =('FF Canada'!B187+'FF Australia'!B121)/1000+'LUC Houghton'!D100 -> 86.4761 | J103: 32.07379998 | K103: 68.31719395 | L103: 1.20217845 | M103: 0.9824029885 | N103: 0.2517818581
A104: 1949 | C104: ='FF Global'!B242/1000+'LUC Houghton'!B101 -> 2110.807 | D104: ='FF China'!B72/1000+'LUC Houghton'!J101 -> 306.431 | E104: ='FF USA'!B173/1000+'LUC Extended'!C101 -> 578.9464 | F104: ='FF W.Europe'!B225/1000+'LUC Houghton'!F101 -> 310.942 | G104: =('FF Canada'!B188+'FF Australia'!B122)/1000+'LUC Houghton'!D101 -> 82.4007 | J104: 32.53558427 | K104: 69.3007945 | L104: 1.16094385 | M104: 0.9832477556 | N104: 0.2562918284
A105: 1950 | C105: ='FF Global'!B243/1000+'LUC Houghton'!B102 -> 2253.314 | D105: ='FF China'!B73/1000+'LUC Houghton'!J102 -> 311.5771 | E105: ='FF USA'!B174/1000+'LUC Extended'!C102 -> 680.743 | F105: ='FF W.Europe'!B226/1000+'LUC Houghton'!F102 -> 308.9531 | G105: =('FF Canada'!B189+'FF Australia'!B123)/1000+'LUC Houghton'!D102 -> 89.3692 | J105: 32.98152941 | K105: 70.25065765 | L105: 1.2393227 | M105: 0.9823585609 | N105: 0.2606584423
A106: 1951 | C106: ='FF Global'!B244/1000+'LUC Houghton'!B103 -> 2556.58 | D106: ='FF China'!B74/1000+'LUC Houghton'!J103 -> 317.5801 | E106: ='FF USA'!B175/1000+'LUC Extended'!C103 -> 716.2151 | F106: ='FF W.Europe'!B227/1000+'LUC Houghton'!F103 -> 337.4787 | G106: =('FF Canada'!B190+'FF Australia'!B124)/1000+'LUC Houghton'!D103 -> 92.6795 | J106: 33.45758167 | K106: 71.26464895 | L106: 1.406119 | M106: 0.9802690532 | N106: 0.2653394114
A107: 1952 | C107: ='FF Global'!B245/1000+'LUC Houghton'!B104 -> 2580.625 | D107: ='FF China'!B75/1000+'LUC Houghton'!J104 -> 343.0935 | E107: ='FF USA'!B176/1000+'LUC Extended'!C104 -> 652.5728 | F107: ='FF W.Europe'!B228/1000+'LUC Houghton'!F104 -> 331.7152 | G107: =('FF Canada'!B191+'FF Australia'!B125)/1000+'LUC Houghton'!D104 -> 92.7962 | J107: 33.9977042 | K107: 72.41510995 | L107: 1.41934375 | M107: 0.9803998951 | N107: 0.2706801878
A108: 1953 | C108: ='FF Global'!B246/1000+'LUC Houghton'!B105 -> 2607.719 | D108: ='FF China'!B76/1000+'LUC Houghton'!J105 -> 363.6376 | E108: ='FF USA'!B177/1000+'LUC Extended'!C105 -> 644.8783 | F108: ='FF W.Europe'!B229/1000+'LUC Houghton'!F105 -> 331.076 | G108: =('FF Canada'!B192+'FF Australia'!B126)/1000+'LUC Houghton'!D105 -> 92.6733 | J108: 34.54290667 | K108: 73.5763912 | L108: 1.43424545 | M108: 0.9805067165 | N108: 0.2760916124
A109: 1954 | C109: ='FF Global'!B247/1000+'LUC Houghton'!B106 -> 2663.018 | D109: ='FF China'!B77/1000+'LUC Houghton'!J106 -> 390.5026 | E109: ='FF USA'!B178/1000+'LUC Extended'!C106 -> 613.2834 | F109: ='FF W.Europe'!B230/1000+'LUC Houghton'!F106 -> 345.3307 | G109: =('FF Canada'!B193+'FF Australia'!B127)/1000+'LUC Houghton'!D106 -> 95.3666 | J109: 35.09383322 | K109: 74.74986475 | L109: 1.4646599 | M109: 0.9804058522 | N109: 0.2815805417
A110: 1955 | C110: ='FF Global'!B248/1000+'LUC Houghton'!B107 -> 2826.314 | D110: ='FF China'!B78/1000+'LUC Houghton'!J107 -> 418.4475 | E110: ='FF USA'!B179/1000+'LUC Extended'!C107 -> 669.2065 | F110: ='FF W.Europe'!B231/1000+'LUC Houghton'!F107 -> 365.7762 | G110: =('FF Canada'!B194+'FF Australia'!B128)/1000+'LUC Houghton'!D107 -> 97.6703 | J110: 35.65644265 | K110: 75.94822285 | L110: 1.5544727 | M110: 0.9795324678 | N110: 0.2872081405
A111: 1956 | C111: ='FF Global'!B249/1000+'LUC Houghton'!B108 -> 2969.286 | D111: ='FF China'!B79/1000+'LUC Houghton'!J108 -> 445.5598 | E111: ='FF USA'!B180/1000+'LUC Extended'!C108 -> 713.139 | F111: ='FF W.Europe'!B232/1000+'LUC Houghton'!F108 -> 381.5101 | G111: =('FF Canada'!B195+'FF Australia'!B129)/1000+'LUC Houghton'!D108 -> 103.6137 | J111: 36.25355124 | K111: 77.22006415 | L111: 1.6331073 | M111: 0.9788512569 | N111: 0.2932094136
A112: 1957 | C112: ='FF Global'!B250/1000+'LUC Houghton'!B109 -> 3033.127 | D112: ='FF China'!B80/1000+'LUC Houghton'!J109 -> 458.5456 | E112: ='FF USA'!B181/1000+'LUC Extended'!C109 -> 703.9987 | F112: ='FF W.Europe'!B233/1000+'LUC Houghton'!F109 -> 384.7529 | G112: =('FF Canada'!B196+'FF Australia'!B130)/1000+'LUC Houghton'!D109 -> 101.8618 | J112: =K112/K$2 -> 36.88086519 | K112: =K113-L$2*C112/1000 -> 78.55624285 | L112: 1.66821985 | M112: 0.9787640067 | N112: 0.2995444012
A113: 1958 | C113: ='FF Global'!B251/1000+'LUC Houghton'!B110 -> 3133.635 | D113: ='FF China'!B81/1000+'LUC Houghton'!J110 -> 525.1326 | E113: ='FF USA'!B182/1000+'LUC Extended'!C110 -> 715.0843 | F113: ='FF W.Europe'!B234/1000+'LUC Houghton'!F110 -> 377.3387 | G113: =('FF Canada'!B197+'FF Australia'!B131)/1000+'LUC Houghton'!D110 -> 102.2743 | I113: =Concentrations!B5 -> 315.5216667 | J113: =I113-J$2 -> 37.52166667 | K113: =J113*K$2 -> 79.92115 | L113: 1.72349925 | M113: 0.9784350044 | N113: 0.3060435397
A114: 1959 | C114: ='FF Global'!B252/1000+'LUC Houghton'!B111 -> 3106.94 | D114: ='FF China'!B82/1000+'LUC Houghton'!J111 -> 558.9431 | E114: ='FF USA'!B183/1000+'LUC Extended'!C111 -> 698.8764 | F114: ='FF W.Europe'!B235/1000+'LUC Houghton'!F111 -> 377.7968 | G114: =('FF Canada'!B198+'FF Australia'!B132)/1000+'LUC Houghton'!D111 -> 104.3206 | I114: =Concentrations!B6 -> 316.3459917 | J114: =I114-J$2 -> 38.34599166 | K114: =J114*K$2 -> 81.67696223 | L114: 1.708817 | M114: 0.9790783478 | N114: 0.3127888295
A115: 1960 | C115: ='FF Global'!B253/1000+'LUC Houghton'!B112 -> 3185.584 | D115: ='FF China'!B83/1000+'LUC Houghton'!J112 -> 555.9943 | E115: ='FF USA'!B184/1000+'LUC Extended'!C112 -> 713.4076 | F115: ='FF W.Europe'!B236/1000+'LUC Houghton'!F112 -> 402.4868 | G115: =('FF Canada'!B199+'FF Australia'!B133)/1000+'LUC Houghton'!D112 -> 107.5171 | I115: =Concentrations!B7 -> 317.0019833 | J115: 39.00198331 | K115: 83.07422445 | L115: 1.7520712 | M115: 0.978909569 | N115: 0.3194727268
A116: 1961 | C116: ='FF Global'!B254/1000+'LUC Houghton'!B113 -> 3239.775 | D116: ='FF China'!B84/1000+'LUC Houghton'!J113 -> 473.6307 | E116: ='FF USA'!B185/1000+'LUC Extended'!C113 -> 696.9858 | F116: ='FF W.Europe'!B237/1000+'LUC Houghton'!F113 -> 412.175 | G116: =('FF Canada'!B200+'FF Australia'!B134)/1000+'LUC Houghton'!D113 -> 108.2641 | I116: =Concentrations!B8 -> 317.8571416 | J116: 39.85714163 | K116: 84.89571168 | L116: 1.78187625 | M116: 0.9790109981 | N116: 0.3263557093
A117: 1962 | C117: ='FF Global'!B255/1000+'LUC Houghton'!B114 -> 3285.239 | D117: ='FF China'!B85/1000+'LUC Houghton'!J114 -> 416.2503 | E117: ='FF USA'!B186/1000+'LUC Extended'!C114 -> 728.3817 | F117: ='FF W.Europe'!B238/1000+'LUC Houghton'!F114 -> 433.9492 | G117: =('FF Canada'!B201+'FF Australia'!B135)/1000+'LUC Houghton'!D114 -> 113.0922 | I117: =Concentrations!B9 -> 318.4856333 | J117: 40.48563329 | K117: 86.2343989 | L117: 1.80688145 | M117: 0.9790468598 | N117: 0.3333524444
A118: 1963 | C118: ='FF Global'!B256/1000+'LUC Houghton'!B115 -> 3395.918 | D118: ='FF China'!B86/1000+'LUC Houghton'!J115 -> 404.6904 | E118: ='FF USA'!B187/1000+'LUC Extended'!C115 -> 758.3607 | F118: ='FF W.Europe'!B239/1000+'LUC Houghton'!F115 -> 462.1368 | G118: =('FF Canada'!B202+'FF Australia'!B136)/1000+'LUC Houghton'!D115 -> 115.9395 | I118: =Concentrations!B10 -> 319.0341249 | J118: 41.03412494 | K118: 87.40268613 | L118: 1.8677549 | M118: 0.9786304634 | N118: 0.3404867102
A119: 1964 | C119: ='FF Global'!B257/1000+'LUC Houghton'!B116 -> 3505.945 | D119: ='FF China'!B87/1000+'LUC Houghton'!J116 -> 404.1492 | E119: ='FF USA'!B188/1000+'LUC Extended'!C116 -> 792.5043 | F119: ='FF W.Europe'!B240/1000+'LUC Houghton'!F116 -> 477.611 | G119: =('FF Canada'!B203+'FF Australia'!B137)/1000+'LUC Houghton'!D116 -> 125.5009 | I119: =Concentrations!B11 -> 319.6509499 | J119: 41.65094993 | K119: 88.71652335 | L119: 1.92826975 | M119: 0.9782648184 | N119: 0.3479216343
A120: 1965 | C120: ='FF Global'!B258/1000+'LUC Houghton'!B117 -> 3629.461 | D120: ='FF China'!B88/1000+'LUC Houghton'!J117 -> 414.0846 | E120: ='FF USA'!B189/1000+'LUC Extended'!C117 -> 824.7919 | F120: ='FF W.Europe'!B241/1000+'LUC Houghton'!F117 -> 493.4927 | G120: =('FF Canada'!B204+'FF Australia'!B138)/1000+'LUC Houghton'!D117 -> 132.8029 | I120: =Concentrations!B12 -> 320.7511083 | J120: 42.75110825 | K120: 91.05986058 | L120: 1.99620355 | M120: 0.9780781177 | N120: 0.3556517906
A121: 1966 | C121: ='FF Global'!B259/1000+'LUC Houghton'!B118 -> 3771.979 | D121: ='FF China'!B89/1000+'LUC Houghton'!J118 -> 425.6873 | E121: ='FF USA'!B190/1000+'LUC Extended'!C118 -> 903.4352 | F121: ='FF W.Europe'!B242/1000+'LUC Houghton'!F118 -> 507.7367 | G121: =('FF Canada'!B205+'FF Australia'!B139)/1000+'LUC Houghton'!D118 -> 134.7067 | I121: =Concentrations!B13 -> 321.8112666 | J121: 43.81126658 | K121: 93.31799781 | L121: 2.07458845 | M121: 0.9777686138 | N121: 0.3636230932
A122: 1967 | C122: ='FF Global'!B260/1000+'LUC Houghton'!B119 -> 3850.399 | D122: ='FF China'!B90/1000+'LUC Houghton'!J119 -> 400.3098 | E122: ='FF USA'!B191/1000+'LUC Extended'!C119 -> 944.0484 | F122: ='FF W.Europe'!B243/1000+'LUC Houghton'!F119 -> 516.257 | G122: =('FF Canada'!B206+'FF Australia'!B140)/1000+'LUC Houghton'!D119 -> 143.2864 | I122: =Concentrations!B14 -> 322.4630916 | J122: 44.46309156 | K122: 94.70638503 | L122: 2.11771945 | M122: 0.9776391059 | N122: 0.3718907399
A123: 1968 | C123: ='FF Global'!B261/1000+'LUC Houghton'!B120 -> 3921.389 | D123: ='FF China'!B91/1000+'LUC Houghton'!J120 -> 409.6202 | E123: ='FF USA'!B192/1000+'LUC Extended'!C120 -> 982.004 | F123: ='FF W.Europe'!B244/1000+'LUC Houghton'!F120 -> 544.7653 | G123: =('FF Canada'!B207+'FF Australia'!B141)/1000+'LUC Houghton'!D120 -> 150.6388 | I123: =Concentrations!B15 -> 323.5765832 | J123: 45.57658322 | K123: 97.07812226 | L123: 2.15676395 | M123: 0.9777832131 | N123: 0.3803967514
A124: 1969 | C124: ='FF Global'!B262/1000+'LUC Houghton'!B121 -> 4108.152 | D124: ='FF China'!B92/1000+'LUC Houghton'!J121 -> 438.6341 | E124: ='FF USA'!B193/1000+'LUC Extended'!C121 -> 1045.9092 | F124: ='FF W.Europe'!B245/1000+'LUC Houghton'!F121 -> 574.6283 | G124: =('FF Canada'!B208+'FF Australia'!B142)/1000+'LUC Houghton'!D121 -> 153.7652 | I124: =Concentrations!B16 -> 325.0050749 | J124: 47.00507487 | K124: 100.1208095 | L124: 2.2594836 | M124: 0.9774324278 | N124: 0.3890399695
A125: 1970 | C125: ='FF Global'!B263/1000+'LUC Houghton'!B122 -> 4333.719 | D125: ='FF China'!B93/1000+'LUC Houghton'!J122 -> 491.2098 | E125: ='FF USA'!B194/1000+'LUC Extended'!C122 -> 1127.4947 | F125: ='FF W.Europe'!B246/1000+'LUC Houghton'!F122 -> 618.3432 | G125: =('FF Canada'!B209+'FF Australia'!B143)/1000+'LUC Houghton'!D122 -> 164.5151 | I125: =Concentrations!B17 -> 325.9143999 | J125: 47.91439986 | K125: 102.0576717 | L125: 2.38354545 | M125: 0.9766451124 | N125: 0.398022368
A126: 1971 | C126: ='FF Global'!B264/1000+'LUC Houghton'!B123 -> 4296.892 | D126: ='FF China'!B94/1000+'LUC Houghton'!J123 -> 519.7146 | E126: ='FF USA'!B195/1000+'LUC Extended'!C123 -> 1098.7603 | F126: ='FF W.Europe'!B247/1000+'LUC Houghton'!F123 -> 630.7126 | G126: =('FF Canada'!B210+'FF Australia'!B144)/1000+'LUC Houghton'!D123 -> 168.948 | I126: =Concentrations!B18 -> 326.9778915 | J126: 48.97789152 | K126: 104.3229089 | L126: 2.3632906 | M126: 0.977346389 | N126: 0.4075404289
A127: 1972 | C127: ='FF Global'!B265/1000+'LUC Houghton'!B124 -> 4422.411 | D127: ='FF China'!B95/1000+'LUC Houghton'!J124 -> 536.8795 | E127: ='FF USA'!B196/1000+'LUC Extended'!C124 -> 1163.9577 | F127: ='FF W.Europe'!B248/1000+'LUC Houghton'!F124 -> 649.582 | G127: =('FF Canada'!B211+'FF Australia'!B145)/1000+'LUC Houghton'!D124 -> 176.9807 | I127: =Concentrations!B19 -> 328.2838832 | J127: 50.28388317 | K127: 107.1046712 | L127: 2.43232605 | M127: 0.9772901964 | N127: 0.416986683
A128: 1973 | C128: ='FF Global'!B266/1000+'LUC Houghton'!B125 -> 4584.025 | D128: ='FF China'!B96/1000+'LUC Houghton'!J125 -> 548.8164 | E128: ='FF USA'!B197/1000+'LUC Extended'!C125 -> 1207.934 | F128: ='FF W.Europe'!B249/1000+'LUC Houghton'!F125 -> 684.0303 | G128: =('FF Canada'!B212+'FF Australia'!B146)/1000+'LUC Houghton'!D125 -> 180.8545 | I128: =Concentrations!B20 -> 329.4615415 | J128: 51.4615415 | K128: 109.6130834 | L128: 2.52121375 | M128: 0.9769989706 | N128: 0.4266764208
A129: 1974 | C129: ='FF Global'!B267/1000+'LUC Houghton'!B126 -> 4557.054 | D129: ='FF China'!B97/1000+'LUC Houghton'!J126 -> 556.648 | E129: ='FF USA'!B198/1000+'LUC Extended'!C126 -> 1161.9331 | F129: ='FF W.Europe'!B250/1000+'LUC Houghton'!F126 -> 661.9584 | G129: =('FF Canada'!B213+'FF Australia'!B147)/1000+'LUC Houghton'!D126 -> 183.5775 | I129: =Concentrations!B21 -> 330.3375332 | J129: 52.33753315 | K129: 111.4789456 | L129: 2.5063797 | M129: 0.9775170129 | N129: 0.436721464
A130: 1975 | C130: ='FF Global'!B268/1000+'LUC Houghton'!B127 -> 4526.95 | D130: ='FF China'!B98/1000+'LUC Houghton'!J127 -> 603.6975 | E130: ='FF USA'!B199/1000+'LUC Extended'!C127 -> 1120.1101 | F130: ='FF W.Europe'!B251/1000+'LUC Houghton'!F127 -> 633.038 | G130: =('FF Canada'!B214+'FF Australia'!B148)/1000+'LUC Houghton'!D127 -> 186.5825 | I130: =Concentrations!B22 -> 331.5393581 | J130: 53.53935814 | K130: 114.0388328 | L130: 2.4898225 | M130: 0.978166889 | N130: 0.4467661005
A131: 1976 | C131: ='FF Global'!B269/1000+'LUC Houghton'!B128 -> 4776.415 | D131: ='FF China'!B99/1000+'LUC Houghton'!J128 -> 629.6536 | E131: ='FF USA'!B200/1000+'LUC Extended'!C128 -> 1193.2051 | F131: ='FF W.Europe'!B252/1000+'LUC Houghton'!F128 -> 670.9876 | G131: =('FF Canada'!B215+'FF Australia'!B149)/1000+'LUC Houghton'!D128 -> 186.8257 | I131: =Concentrations!B23 -> 332.7570165 | J131: 54.75701646 | K131: 116.6324451 | L131: 2.62702825 | M131: 0.9774760081 | N131: 0.4567381144
A132: 1977 | C132: ='FF Global'!B270/1000+'LUC Houghton'!B129 -> 4903.553 | D132: ='FF China'!B100/1000+'LUC Houghton'!J129 -> 663.6957 | E132: ='FF USA'!B201/1000+'LUC Extended'!C129 -> 1233.034 | F132: ='FF W.Europe'!B253/1000+'LUC Houghton'!F129 -> 656.8285 | G132: =('FF Canada'!B216+'FF Australia'!B150)/1000+'LUC Houghton'!D129 -> 193.0329 | I132: =Concentrations!B24 -> 334.5580081 | J132: 56.55800812 | K132: 120.4685573 | L132: 2.69695415 | M132: 0.9776127961 | N132: 0.4672627365
A133: 1978 | C133: ='FF Global'!B271/1000+'LUC Houghton'!B130 -> 5042.544 | D133: ='FF China'!B101/1000+'LUC Houghton'!J130 -> 684.0866 | E133: ='FF USA'!B202/1000+'LUC Extended'!C130 -> 1279.3546 | F133: ='FF W.Europe'!B254/1000+'LUC Houghton'!F130 -> 673.843 | G133: =('FF Canada'!B217+'FF Australia'!B151)/1000+'LUC Houghton'!D130 -> 199.1361 | I133: =Concentrations!B25 -> 335.9906664 | J133: 57.99066644 | K133: 123.5201195 | L133: 2.7733992 | M133: 0.9775469842 | N133: =N134*M133 -> 0.4779629915
A134: 1979 | C134: ='FF Global'!B272/1000+'LUC Houghton'!B131 -> 5132.465 | D134: ='FF China'!B102/1000+'LUC Houghton'!J131 -> 655.7125 | E134: ='FF USA'!B203/1000+'LUC Extended'!C131 -> 1285.0296 | F134: ='FF W.Europe'!B255/1000+'LUC Houghton'!F131 -> 706.3353 | G134: =('FF Canada'!B218+'FF Australia'!B152)/1000+'LUC Houghton'!D131 -> 207.2218 | I134: =Concentrations!B26 -> 337.7299914 | J134: 59.72999143 | K134: 127.2248817 | L134: =(1-L$2)*C134/1000 -> 2.82285575 | M134: =1-L134/K134 -> 0.977812078 | N134: 0.4889411959
A135: =A134+1 -> 1980 | C135: ='FF Global'!B273/1000+'LUC Houghton'!B132 -> 5037.193 | D135: ='FF China'!B103/1000+'LUC Houghton'!J132 -> 609.6263 | E135: ='FF USA'!B204/1000+'LUC Extended'!C132 -> 1234.1211 | F135: ='FF W.Europe'!B256/1000+'LUC Houghton'!F132 -> 673.3466 | G135: =('FF Canada'!B219+'FF Australia'!B153)/1000+'LUC Houghton'!D132 -> 211.9335 | I135: =Concentrations!B27 -> 339.2593164 | J135: 61.25931642 | K135: 130.482344 | L135: 2.77045615 | M135: 0.9787675783 | N135: 0.5000359546
A136: 1981 | C136: ='FF Global'!B274/1000+'LUC Houghton'!B133 -> 4960.645 | D136: ='FF China'!B104/1000+'LUC Houghton'!J133 -> 564.6126 | E136: ='FF USA'!B205/1000+'LUC Extended'!C133 -> 1186.745 | F136: ='FF W.Europe'!B257/1000+'LUC Houghton'!F133 -> 638.7319 | G136: =('FF Canada'!B220+'FF Australia'!B154)/1000+'LUC Houghton'!D133 -> 211.0712 | I136: =Concentrations!B28 -> 340.4794747 | J136: 62.47947474 | K136: 133.0812812 | L136: 2.72835475 | M136: 0.9794985837 | N136: 0.5108832431
A137: 1982 | C137: ='FF Global'!B275/1000+'LUC Houghton'!B134 -> 5128.433 | D137: ='FF China'!B105/1000+'LUC Houghton'!J134 -> 553.7974 | E137: ='FF USA'!B206/1000+'LUC Extended'!C134 -> 1136.4194 | F137: ='FF W.Europe'!B258/1000+'LUC Houghton'!F134 -> 610.2813 | G137: =('FF Canada'!B221+'FF Australia'!B155)/1000+'LUC Houghton'!D134 -> 204.74 | I137: =Concentrations!B29 -> 341.7087997 | J137: 63.70879973 | K137: 135.6997434 | L137: 2.82063815 | M137: 0.9792141232 | N137: 0.5215762959
A138: 1983 | C138: ='FF Global'!B276/1000+'LUC Houghton'!B135 -> 5218.321 | D138: ='FF China'!B106/1000+'LUC Houghton'!J135 -> 556.0727 | E138: ='FF USA'!B207/1000+'LUC Extended'!C135 -> 1145.2201 | F138: ='FF W.Europe'!B259/1000+'LUC Houghton'!F135 -> 598.205 | G138: =('FF Canada'!B222+'FF Australia'!B156)/1000+'LUC Houghton'!D135 -> 199.7881 | I138: =Concentrations!B30 -> 343.7122914 | J138: 65.71229138 | K138: 139.9671806 | L138: 2.87007655 | M138: 0.9794946463 | N138: 0.5326478484
A139: 1984 | C139: ='FF Global'!B277/1000+'LUC Houghton'!B136 -> 5396.994 | D139: ='FF China'!B107/1000+'LUC Houghton'!J136 -> 588.701 | E139: ='FF USA'!B208/1000+'LUC Extended'!C136 -> 1177.9214 | F139: ='FF W.Europe'!B260/1000+'LUC Houghton'!F136 -> 595.0589 | G139: =('FF Canada'!B223+'FF Australia'!B157)/1000+'LUC Houghton'!D136 -> 206.7941 | I139: =Concentrations!B31 -> 345.0466164 | J139: 67.04661637 | K139: 142.8092929 | L139: 2.9683467 | M139: 0.979214611 | N139: 0.5437986317
A140: 1985 | C140: ='FF Global'!B278/1000+'LUC Houghton'!B137 -> 5528.358 | D140: ='FF China'!B108/1000+'LUC Houghton'!J137 -> 619.0124 | E140: ='FF USA'!B209/1000+'LUC Extended'!C137 -> 1185.698 | F140: ='FF W.Europe'!B261/1000+'LUC Houghton'!F137 -> 612.8115 | G140: =('FF Canada'!B224+'FF Australia'!B158)/1000+'LUC Houghton'!D137 -> 206.3572 | I140: =Concentrations!B32 -> 346.3859414 | J140: 68.38594136 | K140: 145.6620551 | L140: 3.0405969 | M140: 0.9791256762 | N140: 0.5553416234
A141: 1986 | C141: ='FF Global'!B279/1000+'LUC Houghton'!B138 -> 5617.211 | D141: ='FF China'!B109/1000+'LUC Houghton'!J138 -> 641.0007 | E141: ='FF USA'!B210/1000+'LUC Extended'!C138 -> 1191.6616 | F141: ='FF W.Europe'!B262/1000+'LUC Houghton'!F138 -> 608.0519 | G141: =('FF Canada'!B225+'FF Australia'!B159)/1000+'LUC Houghton'!D138 -> 200.6469 | I141: =Concentrations!B33 -> 348.1060997 | J141: 70.10609968 | K141: 149.3259923 | L141: 3.08946605 | M141: 0.9793105942 | N141: 0.5671811463
A142: 1987 | C142: ='FF Global'!B280/1000+'LUC Houghton'!B139 -> 5782.781 | D142: ='FF China'!B110/1000+'LUC Houghton'!J139 -> 673.5589 | E142: ='FF USA'!B211/1000+'LUC Extended'!C139 -> 1247.4454 | F142: ='FF W.Europe'!B263/1000+'LUC Houghton'!F139 -> 616.0213 | G142: =('FF Canada'!B226+'FF Australia'!B160)/1000+'LUC Houghton'!D139 -> 211.7095 | I142: =Concentrations!B34 -> 350.2720913 | J142: 72.27209134 | K142: 153.9395545 | L142: 3.18052955 | M142: 0.9793391013 | N142: 0.579163699
A143: 1988 | C143: ='FF Global'!B281/1000+'LUC Houghton'!B140 -> 5997.478 | D143: ='FF China'!B111/1000+'LUC Houghton'!J140 -> 710.9977 | E143: ='FF USA'!B212/1000+'LUC Extended'!C140 -> 1312.6154 | F143: ='FF W.Europe'!B264/1000+'LUC Houghton'!F140 -> 614.0221 | G143: =('FF Canada'!B227+'FF Australia'!B161)/1000+'LUC Houghton'!D140 -> 219.3214 | I143: =Concentrations!B35 -> 351.9864163 | J143: 73.98641632 | K143: 157.5910668 | L143: 3.2986129 | M143: 0.9790685286 | N143: 0.5913821865
A144: 1989 | C144: ='FF Global'!B282/1000+'LUC Houghton'!B141 -> 6123.465 | D144: ='FF China'!B112/1000+'LUC Houghton'!J141 -> 723.4134 | E144: ='FF USA'!B213/1000+'LUC Extended'!C141 -> 1329.4885 | F144: ='FF W.Europe'!B265/1000+'LUC Houghton'!F141 -> 642.2788 | G144: =('FF Canada'!B228+'FF Australia'!B162)/1000+'LUC Houghton'!D141 -> 225.3344 | I144: =Concentrations!B36 -> 353.3657413 | J144: 75.36574131 | K144: 160.529029 | L144: 3.36790575 | M144: 0.9790199581 | N144: 0.6040253253
A145: 1990 | C145: ='FF Global'!B283/1000+'LUC Houghton'!B142 -> 6074.396 | D145: ='FF China'!B113/1000+'LUC Houghton'!J142 -> 732.154 | E145: ='FF USA'!B214/1000+'LUC Extended'!C142 -> 1283.4472 | F145: ='FF W.Europe'!B266/1000+'LUC Houghton'!F142 -> 628.6296 | G145: =('FF Canada'!B229+'FF Australia'!B163)/1000+'LUC Houghton'!D142 -> 213.3939 | I145: =Concentrations!B37 -> 354.7083996 | J145: 76.70839964 | K145: 163.3888912 | L145: 3.3409178 | M145: 0.9795523565 | N145: 0.6169693685
A146: 1991 | C146: ='FF Global'!B284/1000+'LUC Houghton'!B143 -> 6496.035 | D146: ='FF China'!B114/1000+'LUC Houghton'!J143 -> 755.7013 | E146: ='FF USA'!B215/1000+'LUC Extended'!C143 -> 1283.1272 | F146: ='FF W.Europe'!B267/1000+'LUC Houghton'!F143 -> 636.2906 | G146: =('FF Canada'!B230+'FF Australia'!B164)/1000+'LUC Houghton'!D143 -> 210.0062 | I146: =Concentrations!B38 -> 355.8218913 | J146: 77.82189129 | K146: 165.7606284 | L146: 3.57281925 | M146: 0.9784459115 | N146: 0.6298482816
A147: 1992 | C147: ='FF Global'!B285/1000+'LUC Houghton'!B144 -> 7468.706 | D147: ='FF China'!B115/1000+'LUC Houghton'!J144 -> 775.0251 | E147: ='FF USA'!B216/1000+'LUC Extended'!C144 -> 1307.3212 | F147: ='FF W.Europe'!B268/1000+'LUC Houghton'!F144 -> 621.0766 | G147: =('FF Canada'!B231+'FF Australia'!B165)/1000+'LUC Houghton'!D144 -> 214.8345 | I147: =Concentrations!B39 -> 356.6012163 | J147: 78.60121628 | K147: 167.4205907 | L147: 4.1077883 | M147: 0.9754642587 | N147: 0.6437231473
A148: 1993 | C148: ='FF Global'!B286/1000+'LUC Houghton'!B145 -> 7516.63 | D148: ='FF China'!B116/1000+'LUC Houghton'!J145 -> 824.5475 | E148: ='FF USA'!B217/1000+'LUC Extended'!C145 -> 1340.5442 | F148: ='FF W.Europe'!B269/1000+'LUC Houghton'!F145 -> 610.2046 | G148: =('FF Canada'!B232+'FF Australia'!B166)/1000+'LUC Houghton'!D145 -> 218.062 | I148: =Concentrations!B40 -> 358.0738746 | J148: 80.0738746 | K148: 170.5573529 | L148: 4.1341465 | M148: 0.97576096 | N148: 0.6599146422
A149: 1994 | C149: ='FF Global'!B287/1000+'LUC Houghton'!B146 -> 7528.463 | D149: ='FF China'!B117/1000+'LUC Houghton'!J146 -> 877.0088 | E149: ='FF USA'!B218/1000+'LUC Extended'!C146 -> 1358.4182 | F149: ='FF W.Europe'!B270/1000+'LUC Houghton'!F146 -> 612.8926 | G149: =('FF Canada'!B233+'FF Australia'!B167)/1000+'LUC Houghton'!D146 -> 220.6181 | I149: =Concentrations!B41 -> 360.0273663 | J149: 82.02736626 | K149: 174.7182901 | L149: 4.14065465 | M149: 0.9763009663 | N149: 0.6763076914
A150: 1995 | C150: ='FF Global'!B288/1000+'LUC Houghton'!B147 -> 7623.396 | D150: ='FF China'!B118/1000+'LUC Houghton'!J147 -> 936.5266 | E150: ='FF USA'!B219/1000+'LUC Extended'!C147 -> 1369.1992 | F150: ='FF W.Europe'!B271/1000+'LUC Houghton'!F147 -> 622.0856 | G150: =('FF Canada'!B234+'FF Australia'!B168)/1000+'LUC Houghton'!D147 -> 223.7959 | I150: =Concentrations!B42 -> 361.7925246 | J150: 83.79252458 | K150: 178.4780774 | L150: 4.1928678 | M150: 0.9765076593 | N150: 0.692724595
A151: 1996 | C151: ='FF Global'!B289/1000+'LUC Houghton'!B148 -> 7761.499 | D151: ='FF China'!B119/1000+'LUC Houghton'!J148 -> 971.7131 | E151: ='FF USA'!B220/1000+'LUC Extended'!C148 -> 1402.6562 | F151: ='FF W.Europe'!B272/1000+'LUC Houghton'!F148 -> 644.2566 | G151: =('FF Canada'!B235+'FF Australia'!B169)/1000+'LUC Houghton'!D148 -> 231.8599 | I151: =Concentrations!B43 -> 363.1685162 | J151: 85.16851623 | K151: 181.4089396 | L151: 4.26882445 | M151: 0.9764685001 | N151: 0.7093898223
A152: 1997 | C152: ='FF Global'!B290/1000+'LUC Houghton'!B149 -> 7727.48 | D152: ='FF China'!B120/1000+'LUC Houghton'!J149 -> 967.2323 | E152: ='FF USA'!B221/1000+'LUC Extended'!C149 -> 1433.8912 | F152: ='FF W.Europe'!B273/1000+'LUC Houghton'!F149 -> 635.2246 | G152: =('FF Canada'!B236+'FF Australia'!B170)/1000+'LUC Houghton'!D149 -> 236.7041 | I152: =Concentrations!B44 -> 365.2345079 | J152: 87.23450789 | K152: 185.8095018 | L152: 4.250114 | M152: 0.9771264981 | N152: 0.7264851066
A153: 1998 | C153: ='FF Global'!B291/1000+'LUC Houghton'!B150 -> 7649.619 | D153: ='FF China'!B121/1000+'LUC Houghton'!J150 -> 918.6261 | E153: ='FF USA'!B222/1000+'LUC Extended'!C150 -> 1443.6222 | F153: ='FF W.Europe'!B274/1000+'LUC Houghton'!F150 -> 654.4216 | G153: =('FF Canada'!B237+'FF Australia'!B171)/1000+'LUC Houghton'!D150 -> 242.7038 | I153: =Concentrations!B45 -> 367.7763329 | J153: 89.77633288 | K153: 191.223589 | L153: 4.20729045 | M153: 0.9779980573 | N153: 0.7434913576
A154: 1999 | C154: ='FF Global'!B292/1000+'LUC Houghton'!B151 -> 7718.623 | D154: ='FF China'!B122/1000+'LUC Houghton'!J151 -> 909.8751 | E154: ='FF USA'!B223/1000+'LUC Extended'!C151 -> 1470.7592 | F154: ='FF W.Europe'!B275/1000+'LUC Houghton'!F151 -> 649.5546 | G154: =('FF Canada'!B238+'FF Australia'!B172)/1000+'LUC Houghton'!D151 -> 247.1853 | I154: =Concentrations!B46 -> 369.0073245 | J154: 91.00732453 | K154: 193.8456013 | L154: 4.24524265 | M154: 0.9780998763 | N154: 0.7602176222
A155: 2000 | C155: ='FF Global'!B293/1000+'LUC Houghton'!B152 -> 7865.681 | D155: ='FF China'!B123/1000+'LUC Houghton'!J152 -> 915.6857 | E155: ='FF USA'!B224/1000+'LUC Extended'!C152 -> 1522.9542 | F155: ='FF W.Europe'!B276/1000+'LUC Houghton'!F152 -> 656.0666 | G155: =('FF Canada'!B239+'FF Australia'!B173)/1000+'LUC Houghton'!D152 -> 253.2171 | I155: =Concentrations!B47 -> 370.4974829 | J155: 92.49748285 | K155: 197.0196385 | L155: 4.32612455 | M155: 0.9780421658 | N155: 0.7772392581
A156: 2001 | C156: ='FF Global'!B294/1000+'LUC Houghton'!B153 -> 7891.021 | D156: ='FF China'!B124/1000+'LUC Houghton'!J153 -> 938.1527 | E156: ='FF USA'!B225/1000+'LUC Extended'!C153 -> 1495.5682 | F156: ='FF W.Europe'!B277/1000+'LUC Houghton'!F153 -> 670.9996 | G156: =('FF Canada'!B240+'FF Australia'!B174)/1000+'LUC Houghton'!D153 -> 250.1741 | I156: =Concentrations!B48 -> 372.4134745 | J156: 94.41347451 | K156: 201.1007007 | L156: 4.34006155 | M156: 0.9784184663 | N156: 0.7946889053
A157: 2002 | C157: ='FF Global'!B295/1000+'LUC Houghton'!B154 -> 8125.969 | D157: ='FF China'!B125/1000+'LUC Houghton'!J154 -> 994.5137 | E157: ='FF USA'!B226/1000+'LUC Extended'!C154 -> 1508.4732 | F157: ='FF W.Europe'!B278/1000+'LUC Houghton'!F154 -> 672.1856 | G157: =('FF Canada'!B241+'FF Australia'!B175)/1000+'LUC Houghton'!D154 -> 252.3341 | I157: =Concentrations!B49 -> 374.6486328 | J157: 96.64863283 | K157: 205.8615879 | L157: 4.46928295 | M157: 0.9782898646 | N157: 0.8122178113
A158: 2003 | C158: ='FF Global'!B296/1000+'LUC Houghton'!B155 -> 8495.635 | D158: ='FF China'!B126/1000+'LUC Houghton'!J155 -> 1221.1117 | E158: ='FF USA'!B227/1000+'LUC Extended'!C155 -> 1516.7892 | F158: ='FF W.Europe'!B279/1000+'LUC Houghton'!F155 -> 693.4316 | G158: =('FF Canada'!B242+'FF Australia'!B176)/1000+'LUC Houghton'!D155 -> 260.1921 | I158: =Concentrations!B50 -> 376.5954578 | J158: 98.59545782 | K158: 210.0083252 | L158: 4.67259925 | M158: 0.9777504094 | N158: 0.8302424882
A159: 2004 | C159: ='FF Global'!B297/1000+'LUC Houghton'!B156 -> 8872.969 | D159: ='FF China'!B127/1000+'LUC Houghton'!J156 -> 1429.1807 | E159: ='FF USA'!B228/1000+'LUC Extended'!C156 -> 1539.7602 | F159: ='FF W.Europe'!B280/1000+'LUC Houghton'!F156 -> 700.6616 | G159: =('FF Canada'!B243+'FF Australia'!B177)/1000+'LUC Houghton'!D156 -> 261.7151 | I159: =Concentrations!B51 -> 378.5456161 | J159: 100.5456161 | K159: 214.1621624 | L159: 4.88013295 | M159: 0.9772129078 | N159: 0.8491354032
A160: 2005 | C160: ='FF Global'!B298/1000+'LUC Houghton'!B157 -> 9007.593 | D160: ='FF China'!B128/1000+'LUC Houghton'!J157 -> 1566.0367 | E160: ='FF USA'!B229/1000+'LUC Extended'!C157 -> 1548.4062 | F160: ='FF W.Europe'!B281/1000+'LUC Houghton'!F157 -> 701.4626 | G160: =('FF Canada'!B244+'FF Australia'!B178)/1000+'LUC Houghton'!D157 -> 266.6821 | I160: =Concentrations!B52 -> 380.7749411 | J160: 102.7749411 | K160: 218.9106246 | L160: 4.95417615 | M160: 0.9773689552 | N160: 0.8689359264
A161: 2006 | C161: ='FF Global'!B299/1000+'LUC Houghton'!B158 -> 7809.621 | D161: ='FF China'!B129/1000+'LUC Houghton'!J158 -> 1749.24 | E161: ='FF USA'!B230/1000+'LUC Extended'!C158 -> 1523.830688 | F161: ='FF W.Europe'!B282/1000+'LUC Houghton'!F158 -> 716.584 | G161: =('FF Canada'!B245+'FF Australia'!B179)/1000+'LUC Houghton'!D158 -> 247.663 | I161: =Concentrations!B53 -> 382.6925995 | J161: 104.6925995 | K161: 222.9952368 | L161: 4.29529155 | M161: 0.9807381915 | N161: 0.889056197
A162: 2007 | C162: ='FF Global'!B300/1000+'LUC Houghton'!B159 -> 8021.214 | D162: ='FF China'!B130/1000+'LUC Houghton'!J159 -> 1852.142 | E162: ='FF USA'!B231/1000+'LUC Extended'!C159 -> 1548.692317 | F162: ='FF W.Europe'!B283/1000+'LUC Houghton'!F159 -> 708.178 | G162: =('FF Canada'!B246+'FF Australia'!B180)/1000+'LUC Houghton'!D159 -> 252.14 | I162: =Concentrations!B54 -> 384.7869244 | J162: 106.7869244 | K162: 227.4561491 | L162: 4.4116677 | M162: 0.9806043155 | N162: 0.9065173608
A163: 2008 | C163: ='FF Global'!B301/1000+'LUC Houghton'!B160 -> 8156.773 | D163: ='FF China'!B131/1000+'LUC Houghton'!J160 -> 1918.583 | E163: ='FF USA'!B232/1000+'LUC Extended'!C160 -> 1501.697078 | F163: ='FF W.Europe'!B284/1000+'LUC Houghton'!F160 -> 693.051 | G163: =('FF Canada'!B247+'FF Australia'!B181)/1000+'LUC Houghton'!D160 -> 250.969 | I163: =Concentrations!B55 -> 386.3770828 | J163: 108.3770828 | K163: 230.8431863 | L163: 4.48622515 | M163: 0.9805659191 | N163: 0.9244476558
A164: 2009 | C164: ='FF Global'!B302/1000+'LUC Houghton'!B161 -> 8132.168 | D164: ='FF China'!B132/1000+'LUC Houghton'!J161 -> 2097.685 | E164: ='FF USA'!B233/1000+'LUC Extended'!C161 -> 1406.74428 | F164: ='FF W.Europe'!B285/1000+'LUC Houghton'!F161 -> 642.942 | G164: =('FF Canada'!B248+'FF Australia'!B182)/1000+'LUC Houghton'!D161 -> 242.675 | I164: =Concentrations!B56 -> 388.5139078 | J164: 110.5139078 | K164: 235.3946235 | L164: 4.4726924 | M164: 0.9809991735 | N164: 0.9427695148
A165: 2010 | C165: ='FF Global'!B303/1000+'LUC Houghton'!B162 -> 8519.502 | D165: ='FF China'!B133/1000+'LUC Houghton'!J162 -> 2251.696 | E165: ='FF USA'!B234/1000+'LUC Extended'!C162 -> 1443.529264 | F165: ='FF W.Europe'!B286/1000+'LUC Houghton'!F162 -> 654.484 | G165: =('FF Canada'!B249+'FF Australia'!B183)/1000+'LUC Houghton'!D162 -> 235.69 | I165: =Concentrations!B57 -> 390.7157327 | J165: 112.7157327 | K165: 240.0845107 | L165: 4.6857261 | M165: 0.9804830137 | N165: 0.9610298768
A166: 2011 | C166: ='FF Global'!B304/1000+'LUC Houghton'!B163 -> 8807.046 | D166: ='FF China'!B134/1000+'LUC Houghton'!J163 -> 2459.645 | E166: ='FF USA'!B235/1000+'LUC Extended'!C163 -> 1415.405404 | F166: ='FF W.Europe'!B287/1000+'LUC Houghton'!F163 -> 620.06 | G166: =('FF Canada'!B250+'FF Australia'!B184)/1000+'LUC Houghton'!D163 -> 233.025 | I166: =Concentrations!B58 -> 392.6208911 | J166: 114.6208911 | K166: 244.142498 | L166: 4.8438753 | M166: 0.980159639 | N166: =N167*M166 -> 0.980159639
A167: 2012 | N167: 1

Sheet coefficients
A1: Year | D1: Remains in Air
A2: =A167 -> 2012
A5: 1850 | D5: ='Combined, MtC'!N5 -> 0.02841914073
A6: =A5+1 -> 1851 | D6: ='Combined, MtC'!N6 -> 0.02916740338
A7: =A6+1 -> 1852 | D7: ='Combined, MtC'!N7 -> 0.02990892998
A8: =A7+1 -> 1853 | D8: ='Combined, MtC'!N8 -> 0.03073525184
A9: 1854 | D9: ='Combined, MtC'!N9 -> 0.0315669308
A10: 1855 | D10: ='Combined, MtC'!N10 -> 0.03241443156
A11: 1856 | D11: ='Combined, MtC'!N11 -> 0.03326395644
A12: 1857 | D12: ='Combined, MtC'!N12 -> 0.03413223733
A13: 1858 | D13: ='Combined, MtC'!N13 -> 0.03501359991
A14: 1859 | D14: ='Combined, MtC'!N14 -> 0.03590815525
A15: 1860 | D15: ='Combined, MtC'!N15 -> 0.03682132968
A16: 1861 | D16: ='Combined, MtC'!N16 -> 0.03775755467
A17: 1862 | D17: ='Combined, MtC'!N17 -> 0.03872003623
A18: 1863 | D18: ='Combined, MtC'!N18 -> 0.03960308885
A19: 1864 | D19: ='Combined, MtC'!N19 -> 0.04049931864
A20: 1865 | D20: ='Combined, MtC'!N20 -> 0.04141139201
A21: 1866 | D21: ='Combined, MtC'!N21 -> 0.04233828469
A22: 1867 | D22: ='Combined, MtC'!N22 -> 0.04327356701
A23: 1868 | D23: ='Combined, MtC'!N23 -> 0.04422253958
A24: 1869 | D24: ='Combined, MtC'!N24 -> 0.04517808561
A25: 1870 | D25: ='Combined, MtC'!N25 -> 0.04614659914
A26: 1871 | D26: ='Combined, MtC'!N26 -> 0.04712133336
A27: 1872 | D27: ='Combined, MtC'!N27 -> 0.04814379773
A28: 1873 | D28: ='Combined, MtC'!N28 -> 0.04932728914
A29: 1874 | D29: ='Combined, MtC'!N29 -> 0.05054905694
A30: 1875 | D30: ='Combined, MtC'!N30 -> 0.05176818706
A31: 1876 | D31: ='Combined, MtC'!N31 -> 0.05302528932
A32: 1877 | D32: ='Combined, MtC'!N32 -> 0.05429942213
A33: 1878 | D33: ='Combined, MtC'!N33 -> 0.05559524959
A34: 1879 | D34: ='Combined, MtC'!N34 -> 0.05690834691
A35: 1880 | D35: ='Combined, MtC'!N35 -> 0.05825877748
A36: 1881 | D36: ='Combined, MtC'!N36 -> 0.05966675876
A37: 1882 | D37: ='Combined, MtC'!N37 -> 0.06115007018
A38: 1883 | D38: ='Combined, MtC'!N38 -> 0.06258684746
A39: 1884 | D39: ='Combined, MtC'!N39 -> 0.06406299743
A40: 1885 | D40: ='Combined, MtC'!N40 -> 0.06555797373
A41: 1886 | D41: ='Combined, MtC'!N41 -> 0.06706804179
A42: 1887 | D42: ='Combined, MtC'!N42 -> 0.0685948604
A43: 1888 | D43: ='Combined, MtC'!N43 -> 0.07014833352
A44: 1889 | D44: ='Combined, MtC'!N44 -> 0.07175639311
A45: 1890 | D45: ='Combined, MtC'!N45 -> 0.07336642617
A46: 1891 | D46: ='Combined, MtC'!N46 -> 0.0750263822
A47: 1892 | D47: ='Combined, MtC'!N47 -> 0.07671076056
A48: 1893 | D48: ='Combined, MtC'!N48 -> 0.0784285959
A49: 1894 | D49: ='Combined, MtC'!N49 -> 0.08014399894
A50: 1895 | D50: ='Combined, MtC'!N50 -> 0.08191543104
A51: 1896 | D51: ='Combined, MtC'!N51 -> 0.08373625676
A52: 1897 | D52: ='Combined, MtC'!N52 -> 0.08558892471
A53: 1898 | D53: ='Combined, MtC'!N53 -> 0.08748442992
A54: 1899 | D54: ='Combined, MtC'!N54 -> 0.08942611219
A55: 1900 | D55: ='Combined, MtC'!N55 -> 0.09144667336
A56: 1901 | D56: ='Combined, MtC'!N56 -> 0.09352023825
A57: 1902 | D57: ='Combined, MtC'!N57 -> 0.0957441752
A58: 1903 | D58: ='Combined, MtC'!N58 -> 0.09800923124
A59: 1904 | D59: ='Combined, MtC'!N59 -> 0.1004256913
A60: 1905 | D60: ='Combined, MtC'!N60 -> 0.1029055853
A61: 1906 | D61: ='Combined, MtC'!N61 -> 0.1055178352
A62: 1907 | D62: ='Combined, MtC'!N62 -> 0.1082498267
A63: 1908 | D63: ='Combined, MtC'!N63 -> 0.1111681644
A64: 1909 | D64: ='Combined, MtC'!N64 -> 0.1140612592
A65: 1910 | D65: ='Combined, MtC'!N65 -> 0.1170329784
A66: 1911 | D66: ='Combined, MtC'!N66 -> 0.1201000141
A67: 1912 | D67: ='Combined, MtC'!N67 -> 0.1230975383
A68: 1913 | D68: ='Combined, MtC'!N68 -> 0.1261028038
A69: 1914 | D69: ='Combined, MtC'!N69 -> 0.1291886952
A70: 1915 | D70: ='Combined, MtC'!N70 -> 0.132112047
A71: =A70+1 -> 1916 | D71: ='Combined, MtC'!N71 -> 0.1350105635
A72: 1917 | D72: ='Combined, MtC'!N72 -> 0.138042367
A73: 1918 | D73: ='Combined, MtC'!N73 -> 0.1411742367
A74: 1919 | D74: ='Combined, MtC'!N74 -> 0.1443330512
A75: 1920 | D75: ='Combined, MtC'!N75 -> 0.1472740797
A76: 1921 | D76: ='Combined, MtC'!N76 -> 0.1504872323
A77: 1922 | D77: ='Combined, MtC'!N77 -> 0.1535834391
A78: 1923 | D78: ='Combined, MtC'!N78 -> 0.1567495202
A79: 1924 | D79: ='Combined, MtC'!N79 -> 0.1601642713
A80: 1925 | D80: ='Combined, MtC'!N80 -> 0.1635978468
A81: 1926 | D81: ='Combined, MtC'!N81 -> 0.167063393
A82: 1927 | D82: ='Combined, MtC'!N82 -> 0.1705015703
A83: 1928 | D83: ='Combined, MtC'!N83 -> 0.1741922802
A84: 1929 | D84: ='Combined, MtC'!N84 -> 0.1778911505
A85: 1930 | D85: ='Combined, MtC'!N85 -> 0.181804818
A86: 1931 | D86: ='Combined, MtC'!N86 -> 0.1856950701
A87: 1932 | D87: ='Combined, MtC'!N87 -> 0.1893858536
A88: 1933 | D88: ='Combined, MtC'!N88 -> 0.1926985312
A89: 1934 | D89: ='Combined, MtC'!N89 -> 0.1960868663
A90: 1935 | D90: ='Combined, MtC'!N90 -> 0.1995865964
A91: 1936 | D91: ='Combined, MtC'!N91 -> 0.2031666691
A92: 1937 | D92: ='Combined, MtC'!N92 -> 0.2069449525
A93: 1938 | D93: ='Combined, MtC'!N93 -> 0.210831839
A94: 1939 | D94: ='Combined, MtC'!N94 -> 0.214571569
A95: 1940 | D95: ='Combined, MtC'!N95 -> 0.2184465744
A96: 1941 | D96: ='Combined, MtC'!N96 -> 0.2224695974
A97: 1942 | D97: ='Combined, MtC'!N97 -> 0.2265688781
A98: 1943 | D98: ='Combined, MtC'!N98 -> 0.2308246394
A99: 1944 | D99: ='Combined, MtC'!N99 -> 0.2351179036
A100: 1945 | D100: ='Combined, MtC'!N100 -> 0.2394304161
A101: 1946 | D101: ='Combined, MtC'!N101 -> 0.2432640459
A102: 1947 | D102: ='Combined, MtC'!N102 -> 0.2473897465
A103: 1948 | D103: ='Combined, MtC'!N103 -> 0.2517818581
A104: 1949 | D104: ='Combined, MtC'!N104 -> 0.2562918284
A105: 1950 | D105: ='Combined, MtC'!N105 -> 0.2606584423
A106: 1951 | D106: ='Combined, MtC'!N106 -> 0.2653394114
A107: 1952 | D107: ='Combined, MtC'!N107 -> 0.2706801878
A108: 1953 | D108: ='Combined, MtC'!N108 -> 0.2760916124
A109: 1954 | D109: ='Combined, MtC'!N109 -> 0.2815805417
A110: 1955 | D110: ='Combined, MtC'!N110 -> 0.2872081405
A111: 1956 | D111: ='Combined, MtC'!N111 -> 0.2932094136
A112: 1957 | D112: ='Combined, MtC'!N112 -> 0.2995444012
A113: 1958 | D113: ='Combined, MtC'!N113 -> 0.3060435397
A114: 1959 | D114: ='Combined, MtC'!N114 -> 0.3127888295
A115: 1960 | D115: ='Combined, MtC'!N115 -> 0.3194727268
A116: 1961 | D116: ='Combined, MtC'!N116 -> 0.3263557093
A117: 1962 | D117: ='Combined, MtC'!N117 -> 0.3333524444
A118: 1963 | D118: ='Combined, MtC'!N118 -> 0.3404867102
A119: 1964 | D119: ='Combined, MtC'!N119 -> 0.3479216343
A120: 1965 | D120: ='Combined, MtC'!N120 -> 0.3556517906
A121: 1966 | D121: ='Combined, MtC'!N121 -> 0.3636230932
A122: 1967 | D122: ='Combined, MtC'!N122 -> 0.3718907399
A123: 1968 | D123: ='Combined, MtC'!N123 -> 0.3803967514
A124: 1969 | D124: ='Combined, MtC'!N124 -> 0.3890399695
A125: 1970 | D125: ='Combined, MtC'!N125 -> 0.398022368
A126: 1971 | D126: ='Combined, MtC'!N126 -> 0.4075404289
A127: 1972 | D127: ='Combined, MtC'!N127 -> 0.416986683
A128: 1973 | D128: ='Combined, MtC'!N128 -> 0.4266764208
A129: 1974 | D129: ='Combined, MtC'!N129 -> 0.436721464
A130: 1975 | D130: ='Combined, MtC'!N130 -> 0.4467661005
A131: 1976 | D131: ='Combined, MtC'!N131 -> 0.4567381144
A132: 1977 | D132: ='Combined, MtC'!N132 -> 0.4672627365
A133: 1978 | D133: ='Combined, MtC'!N133 -> 0.4779629915
A134: 1979 | D134: ='Combined, MtC'!N134 -> 0.4889411959
A135: =A134+1 -> 1980 | D135: ='Combined, MtC'!N135 -> 0.5000359546
A136: 1981 | D136: ='Combined, MtC'!N136 -> 0.5108832431
A137: 1982 | D137: ='Combined, MtC'!N137 -> 0.5215762959
A138: 1983 | D138: ='Combined, MtC'!N138 -> 0.5326478484
A139: 1984 | D139: ='Combined, MtC'!N139 -> 0.5437986317
A140: 1985 | D140: ='Combined, MtC'!N140 -> 0.5553416234
A141: 1986 | D141: ='Combined, MtC'!N141 -> 0.5671811463
A142: 1987 | D142: ='Combined, MtC'!N142 -> 0.579163699
A143: 1988 | D143: ='Combined, MtC'!N143 -> 0.5913821865
A144: 1989 | D144: ='Combined, MtC'!N144 -> 0.6040253253
A145: 1990 | D145: ='Combined, MtC'!N145 -> 0.6169693685
A146: 1991 | D146: ='Combined, MtC'!N146 -> 0.6298482816
A147: 1992 | D147: ='Combined, MtC'!N147 -> 0.6437231473
A148: 1993 | D148: ='Combined, MtC'!N148 -> 0.6599146422
A149: 1994 | D149: ='Combined, MtC'!N149 -> 0.6763076914
A150: 1995 | D150: ='Combined, MtC'!N150 -> 0.692724595
A151: 1996 | D151: ='Combined, MtC'!N151 -> 0.7093898223
A152: 1997 | D152: ='Combined, MtC'!N152 -> 0.7264851066
A153: 1998 | D153: ='Combined, MtC'!N153 -> 0.7434913576
A154: 1999 | D154: ='Combined, MtC'!N154 -> 0.7602176222
A155: 2000 | D155: ='Combined, MtC'!N155 -> 0.7772392581
A156: 2001 | D156: ='Combined, MtC'!N156 -> 0.7946889053
A157: 2002 | D157: ='Combined, MtC'!N157 -> 0.8122178113
A158: 2003 | D158: ='Combined, MtC'!N158 -> 0.8302424882
A159: 2004 | D159: ='Combined, MtC'!N159 -> 0.8491354032
A160: 2005 | D160: ='Combined, MtC'!N160 -> 0.8689359264
A161: 2006 | D161: ='Combined, MtC'!N161 -> 0.889056197
A162: 2007 | D162: ='Combined, MtC'!N162 -> 0.9065173608
A163: 2008 | D163: ='Combined, MtC'!N163 -> 0.9244476558
A164: 2009 | D164: ='Combined, MtC'!N164 -> 0.9427695148
A165: 2010 | D165: ='Combined, MtC'!N165 -> 0.9610298768
A166: 2011 | D166: ='Combined, MtC'!N166 -> 0.980159639
A167: 2012 | D167: ='Combined, MtC'!N167 -> 1

Sheet Accumulated per IPCC
A1: ='Combined, MtC'!A1 -> Year | C1: Coefficient | E1: ='Combined, MtC'!C1 -> Global | F1: ='Combined, MtC'!D1 -> China | G1: ='Combined, MtC'!E1 -> USA | H1: ='Combined, MtC'!F1 -> W. Europe | I1: ='Combined, MtC'!G1 -> Canada + Australia | J1: ROW | L1: ACCUMULATION, GtC | N1: =E1 -> Global | O1: =F1 -> China | P1: USA | Q1: W. Europe | R1: Canada + Australia | T1: GRAPH: | U1: USA | V1: w/ W. Europe | W1: w/ Canada & Australia | X1: w/ China | Y1: Row
N4: 0 | O4: 0 | P4: 0 | Q4: 0 | R4: 0
A5: ='Combined, MtC'!A5 -> 1850 | C5: =coefficients!D5 -> 0.02841914073 | E5: ='Combined, MtC'!C5*$C5 -> 15.75292864 | F5: ='Combined, MtC'!D5*$C5 -> 2.894182556 | G5: ='Combined, MtC'!E5*$C5 -> 4.816879522 | H5: ='Combined, MtC'!F5*$C5 -> 2.794371692 | I5: ='Combined, MtC'!G5*$C5 -> 0.1581127314 | N5: =N4+0.001*E5 -> 0.01575292864 | O5: =O4+0.001*F5 -> 0.002894182556 | P5: =P4+0.001*G5 -> 0.004816879522 | Q5: =Q4+0.001*H5 -> 0.002794371692 | R5: =R4+0.001*I5 -> 0.0001581127314 | U5: =P5 -> 0.004816879522 | V5: =U5+Q5 -> 0.007611251215 | W5: =V5+R5 -> 0.007769363946 | X5: =W5+O5 -> 0.0106635465 | Y5: =N5 -> 0.01575292864
A6: ='Combined, MtC'!A6 -> 1851 | C6: =coefficients!D6 -> 0.02916740338 | E6: ='Combined, MtC'!C6*$C6 -> 15.95287794 | F6: ='Combined, MtC'!D6*$C6 -> 2.714802738 | G6: ='Combined, MtC'!E6*$C6 -> 5.029877879 | H6: ='Combined, MtC'!F6*$C6 -> 2.826601395 | I6: ='Combined, MtC'!G6*$C6 -> 0.1564714522 | N6: =N5+0.001*E6 -> 0.03170580658 | O6: 0.005608985294 | P6: 0.009846757401 | Q6: 0.005620973087 | R6: 0.0003145841835 | U6: =P6 -> 0.009846757401 | V6: =U6+Q6 -> 0.01546773049 | W6: 0.01578231467 | X6: =W6+O6 -> 0.02139129997 | Y6: =N6 -> 0.03170580658
A7: ='Combined, MtC'!A7 -> 1852 | C7: =coefficients!D7 -> 0.02990892998 | E7: ='Combined, MtC'!C7*$C7 -> 18.09882071 | F7: ='Combined, MtC'!D7*$C7 -> 2.507286536 | G7: ='Combined, MtC'!E7*$C7 -> 7.117861746 | H7: ='Combined, MtC'!F7*$C7 -> 2.926421308 | I7: ='Combined, MtC'!G7*$C7 -> 0.1598931397 | N7: 0.04980462729 | O7: 0.00811627183 | P7: 0.01696461915 | Q7: 0.008547394395 | R7: 0.0004744773232 | U7: 0.01696461915 | V7: 0.02551201354 | W7: 0.02598649087 | X7: 0.0341027627 | Y7: 0.04980462729
A8: ='Combined, MtC'!A8 -> 1853 | C8: =coefficients!D8 -> 0.03073525184 | E8: ='Combined, MtC'!C8*$C8 -> 18.62716085 | F8: ='Combined, MtC'!D8*$C8 -> 2.28098598 | G8: ='Combined, MtC'!E8*$C8 -> 7.583828112 | H8: ='Combined, MtC'!F8*$C8 -> 3.044111548 | I8: ='Combined, MtC'!G8*$C8 -> 0.1632595107 | N8: 0.06843178813 | O8: 0.01039725781 | P8: 0.02454844726 | Q8: 0.01159150594 | R8: 0.0006377368339 | U8: 0.02454844726 | V8: 0.0361399532 | W8: 0.03677769004 | X8: 0.04717494785 | Y8: 0.06843178813
A9: ='Combined, MtC'!A9 -> 1854 | C9: =coefficients!D9 -> 0.0315669308 | E9: ='Combined, MtC'!C9*$C9 -> 19.39469072 | F9: ='Combined, MtC'!D9*$C9 -> 2.030160864 | G9: ='Combined, MtC'!E9*$C9 -> 8.056972956 | H9: ='Combined, MtC'!F9*$C9 -> 3.390521963 | I9: ='Combined, MtC'!G9*$C9 -> 0.1669543403 | N9: 0.08782647885 | O9: 0.01242741867 | P9: 0.03260542022 | Q9: 0.01498202791 | R9: 0.0008046911742 | U9: 0.03260542022 | V9: 0.04758744812 | W9: 0.0483921393 | X9: 0.06081955797 | Y9: 0.08782647885
A10: ='Combined, MtC'!A10 -> 1855 | C10: =coefficients!D10 -> 0.03241443156 | E10: ='Combined, MtC'!C10*$C10 -> 19.8692686 | F10: ='Combined, MtC'!D10*$C10 -> 1.756667704 | G10: ='Combined, MtC'!E10*$C10 -> 8.556748677 | H10: ='Combined, MtC'!F10*$C10 -> 3.432351192 | I10: ='Combined, MtC'!G10*$C10 -> 0.1708661931 | N10: 0.1076957474 | O10: 0.01418408638 | P10: 0.04116216889 | Q10: 0.0184143791 | R10: 0.0009755573673 | U10: 0.04116216889 | V10: 0.05957654799 | W10: 0.06055210536 | X10: 0.07473619174 | Y10: 0.1076957474
A11: ='Combined, MtC'!A11 -> 1856 | C11: =coefficients!D11 -> 0.03326395644 | E11: ='Combined, MtC'!C11*$C11 -> 20.73442197 | F11: ='Combined, MtC'!D11*$C11 -> 1.748430058 | G11: ='Combined, MtC'!E11*$C11 -> 9.029610748 | H11: ='Combined, MtC'!F11*$C11 -> 3.635171646 | I11: ='Combined, MtC'!G11*$C11 -> 0.1743696597 | N11: 0.1284301694 | O11: 0.01593251644 | P11: 0.05019177964 | Q11: 0.02204955074 | R11: 0.001149927027 | U11: 0.05019177964 | V11: 0.07224133038 | W11: 0.07339125741 | X11: 0.08932377385 | Y11: 0.1284301694
A12: ='Combined, MtC'!A12 -> 1857 | C12: =coefficients!D12 -> 0.03413223733 | E12: ='Combined, MtC'!C12*$C12 -> 21.49074886 | F12: ='Combined, MtC'!D12*$C12 -> 1.750028073 | G12: ='Combined, MtC'!E12*$C12 -> 9.50417951 | H12: ='Combined, MtC'!F12*$C12 -> 3.720290993 | I12: ='Combined, MtC'!G12*$C12 -> 0.1782317169 | N12: 0.1499209183 | O12: 0.01768254451 | P12: 0.05969595915 | Q12: 0.02576984174 | R12: 0.001328158744 | U12: 0.05969595915 | V12: 0.08546580089 | W12: 0.08679395963 | X12: 0.1044765041 | Y12: 0.1499209183
A13: ='Combined, MtC'!A13 -> 1858 | C13: =coefficients!D13 -> 0.03501359991 | E13: ='Combined, MtC'!C13*$C13 -> 22.26759913 | F13: ='Combined, MtC'!D13*$C13 -> 1.758883682 | G13: ='Combined, MtC'!E13*$C13 -> 9.977412405 | H13: ='Combined, MtC'!F13*$C13 -> 3.808285706 | I13: ='Combined, MtC'!G13*$C13 -> 0.182133744 | N13: 0.1721885174 | O13: 0.01944142819 | P13: 0.06967337155 | Q13: 0.02957812744 | R13: 0.001510292488 | U13: 0.06967337155 | V13: 0.099251499 | W13: 0.1007617915 | X13: 0.1202032197 | Y13: 0.1721885174
A14: ='Combined, MtC'!A14 -> 1859 | C14: =coefficients!D14 -> 0.03590815525 | E14: ='Combined, MtC'!C14*$C14 -> 23.19706328 | F14: ='Combined, MtC'!D14*$C14 -> 1.773579195 | G14: ='Combined, MtC'!E14*$C14 -> 10.4888296 | H14: ='Combined, MtC'!F14*$C14 -> 4.053032481 | I14: ='Combined, MtC'!G14*$C14 -> 0.1851747658 | N14: 0.1953855807 | O14: 0.02121500739 | P14: 0.08016220116 | Q14: 0.03363115993 | R14: 0.001695467254 | U14: 0.08016220116 | V14: 0.1137933611 | W14: 0.1154888283 | X14: 0.1367038357 | Y14: 0.1953855807
A15: ='Combined, MtC'!A15 -> 1860 | C15: =coefficients!D15 -> 0.03682132968 | E15: ='Combined, MtC'!C15*$C15 -> 24.26529308 | F15: ='Combined, MtC'!D15*$C15 -> 1.793290809 | G15: ='Combined, MtC'!E15*$C15 -> 10.99553392 | H15: ='Combined, MtC'!F15*$C15 -> 4.389481758 | I15: ='Combined, MtC'!G15*$C15 -> 0.1962981907 | N15: 0.2196508738 | O15: 0.02300829819 | P15: 0.09115773508 | Q15: 0.03802064168 | R15: 0.001891765444 | U15: 0.09115773508 | V15: 0.1291783768 | W15: 0.1310701422 | X15: 0.1540784404 | Y15: 0.2196508738
A16: ='Combined, MtC'!A16 -> 1861 | C16: =coefficients!D16 -> 0.03775755467 | E16: ='Combined, MtC'!C16*$C16 -> 25.45029093 | F16: ='Combined, MtC'!D16*$C16 -> 1.817369276 | G16: ='Combined, MtC'!E16*$C16 -> 11.4455797 | H16: ='Combined, MtC'!F16*$C16 -> 4.633350357 | I16: ='Combined, MtC'!G16*$C16 -> 0.2036038378 | N16: 0.2451011647 | O16: 0.02482566747 | P16: 0.1026033148 | Q16: 0.04265399204 | R16: 0.002095369282 | U16: 0.1026033148 | V16: 0.1452573068 | W16: 0.1473526761 | X16: 0.1721783436 | Y16: 0.2451011647
A17: ='Combined, MtC'!A17 -> 1862 | C17: =coefficients!D17 -> 0.03872003623 | E17: ='Combined, MtC'!C17*$C17 -> 23.88743579 | F17: ='Combined, MtC'!D17*$C17 -> 1.849795523 | G17: ='Combined, MtC'!E17*$C17 -> 9.704642745 | H17: ='Combined, MtC'!F17*$C17 -> 4.738306354 | I17: ='Combined, MtC'!G17*$C17 -> 0.2718998384 | N17: 0.2689886005 | O17: 0.02667546299 | P17: 0.1123079575 | Q17: 0.04739229839 | R17: 0.002367269121 | U17: 0.1123079575 | V17: 0.1597002559 | W17: 0.162067525 | X17: 0.188742988 | Y17: 0.2689886005
A18: ='Combined, MtC'!A18 -> 1863 | C18: =coefficients!D18 -> 0.03960308885 | E18: ='Combined, MtC'!C18*$C18 -> 24.69042694 | F18: ='Combined, MtC'!D18*$C18 -> 1.845959376 | G18: ='Combined, MtC'!E18*$C18 -> 9.971697385 | H18: ='Combined, MtC'!F18*$C18 -> 4.962401684 | I18: ='Combined, MtC'!G18*$C18 -> 0.3014943551 | N18: 0.2936790274 | O18: 0.02852142237 | P18: 0.1222796549 | Q18: 0.05235470008 | R18: 0.002668763476 | U18: 0.1222796549 | V18: 0.174634355 | W18: 0.1773031185 | X18: 0.2058245408 | Y18: 0.2936790274
A19: ='Combined, MtC'!A19 -> 1864 | C19: =coefficients!D19 -> 0.04049931864 | E19: ='Combined, MtC'!C19*$C19 -> 25.58459406 | F19: ='Combined, MtC'!D19*$C19 -> 1.869501197 | G19: ='Combined, MtC'!E19*$C19 -> 10.20497376 | H19: ='Combined, MtC'!F19*$C19 -> 5.258800075 | I19: ='Combined, MtC'!G19*$C19 -> 0.3297819017 | N19: 0.3192636215 | O19: 0.03039092357 | P19: 0.1324846287 | Q19: 0.05761350015 | R19: 0.002998545377 | U19: 0.1324846287 | V19: 0.1900981288 | W19: 0.1930966742 | X19: 0.2234875978 | Y19: 0.3192636215
A20: ='Combined, MtC'!A20 -> 1865 | C20: =coefficients!D20 -> 0.04141139201 | E20: ='Combined, MtC'!C20*$C20 -> 26.47239799 | F20: ='Combined, MtC'!D20*$C20 -> 1.895734845 | G20: ='Combined, MtC'!E20*$C20 -> 10.40616103 | H20: ='Combined, MtC'!F20*$C20 -> 5.562204247 | I20: ='Combined, MtC'!G20*$C20 -> 0.3623993738 | N20: 0.3457360195 | O20: 0.03228665841 | P20: 0.1428907897 | Q20: 0.0631757044 | R20: 0.003360944751 | U20: 0.1428907897 | V20: 0.2060664941 | W20: 0.2094274388 | X20: 0.2417140973 | Y20: 0.3457360195
A21: ='Combined, MtC'!A21 -> 1866 | C21: =coefficients!D21 -> 0.04233828469 | E21: ='Combined, MtC'!C21*$C21 -> 27.1982411 | F21: ='Combined, MtC'!D21*$C21 -> 1.924241169 | G21: ='Combined, MtC'!E21*$C21 -> 10.62532601 | H21: ='Combined, MtC'!F21*$C21 -> 5.816835765 | I21: ='Combined, MtC'!G21*$C21 -> 0.3978613289 | N21: 0.3729342606 | O21: 0.03421089958 | P21: 0.1535161157 | Q21: 0.06899254017 | R21: 0.00375880608 | U21: 0.1535161157 | V21: 0.2225086559 | W21: 0.2262674619 | X21: 0.2604783615 | Y21: 0.3729342606
A22: ='Combined, MtC'!A22 -> 1867 | C22: =coefficients!D22 -> 0.04327356701 | E22: ='Combined, MtC'!C22*$C22 -> 28.0887858 | F22: ='Combined, MtC'!D22*$C22 -> 1.954541529 | G22: ='Combined, MtC'!E22*$C22 -> 10.92337343 | H22: ='Combined, MtC'!F22*$C22 -> 6.065119296 | I22: ='Combined, MtC'!G22*$C22 -> 0.4348950211 | N22: =N21+0.001*E22 -> 0.4010230464 | O22: 0.03616544111 | P22: 0.1644394891 | Q22: 0.07505765946 | R22: 0.004193701101 | U22: 0.1644394891 | V22: =U22+Q22 -> 0.2394971486 | W22: 0.2436908497 | X22: 0.2798562908 | Y22: 0.4010230464
A23: ='Combined, MtC'!A23 -> 1868 | C23: =coefficients!D23 -> 0.04422253958 | E23: ='Combined, MtC'!C23*$C23 -> 28.78900594 | F23: ='Combined, MtC'!D23*$C23 -> 1.986542812 | G23: ='Combined, MtC'!E23*$C23 -> 11.18961592 | H23: ='Combined, MtC'!F23*$C23 -> 6.169459964 | I23: ='Combined, MtC'!G23*$C23 -> 0.4566021434 | N23: 0.4298120523 | O23: 0.03815198392 | P23: 0.1756291051 | Q23: 0.08122711943 | R23: 0.004650303245 | U23: 0.1756291051 | V23: 0.2568562245 | W23: 0.2615065277 | X23: 0.2996585116 | Y23: 0.4298120523
A24: ='Combined, MtC'!A24 -> 1869 | C24: =coefficients!D24 -> 0.04517808561 | E24: ='Combined, MtC'!C24*$C24 -> 29.68959216 | F24: ='Combined, MtC'!D24*$C24 -> 2.019745049 | G24: ='Combined, MtC'!E24*$C24 -> 11.4850148 | H24: ='Combined, MtC'!F24*$C24 -> 6.481090038 | I24: ='Combined, MtC'!G24*$C24 -> 0.4842819709 | N24: 0.4595016445 | O24: 0.04017172897 | P24: 0.1871141199 | Q24: 0.08770820946 | R24: 0.005134585216 | U24: 0.1871141199 | V24: 0.2748223293 | W24: 0.2799569145 | X24: 0.3201286435 | Y24: 0.4595016445
A25: ='Combined, MtC'!A25 -> 1870 | C25: =coefficients!D25 -> 0.04614659914 | E25: ='Combined, MtC'!C25*$C25 -> 30.40276391 | F25: ='Combined, MtC'!D25*$C25 -> 2.05429431 | G25: ='Combined, MtC'!E25*$C25 -> 11.70809825 | H25: ='Combined, MtC'!F25*$C25 -> 6.689595598 | I25: ='Combined, MtC'!G25*$C25 -> 0.523307049 | N25: 0.4899044084 | O25: 0.04222602328 | P25: 0.1988222181 | Q25: 0.09439780506 | R25: 0.005657892265 | U25: 0.1988222181 | V25: 0.2932200232 | W25: 0.2988779154 | X25: 0.3411039387 | Y25: 0.4899044084
A26: ='Combined, MtC'!A26 -> 1871 | C26: =coefficients!D26 -> 0.04712133336 | E26: ='Combined, MtC'!C26*$C26 -> 32.41297461 | F26: ='Combined, MtC'!D26*$C26 -> 2.089760453 | G26: ='Combined, MtC'!E26*$C26 -> 11.88948991 | H26: ='Combined, MtC'!F26*$C26 -> 6.765831832 | I26: ='Combined, MtC'!G26*$C26 -> 0.5652957878 | N26: 0.522317383 | O26: 0.04431578373 | P26: 0.210711708 | Q26: 0.1011636369 | R26: 0.006223188052 | U26: 0.210711708 | V26: 0.3118753449 | W26: 0.318098533 | X26: 0.3624143167 | Y26: 0.522317383
A27: ='Combined, MtC'!A27 -> 1872 | C27: =coefficients!D27 -> 0.04814379773 | E27: ='Combined, MtC'!C27*$C27 -> 38.06214948 | F27: ='Combined, MtC'!D27*$C27 -> 2.127902902 | G27: ='Combined, MtC'!E27*$C27 -> 16.29016168 | H27: ='Combined, MtC'!F27*$C27 -> 7.224751965 | I27: ='Combined, MtC'!G27*$C27 -> 0.6014652794 | N27: 0.5603795325 | O27: 0.04644368663 | P27: 0.2270018697 | Q27: 0.1083883889 | R27: 0.006824653332 | U27: 0.2270018697 | V27: 0.3353902585 | W27: 0.3422149119 | X27: 0.3886585985 | Y27: 0.5603795325
A28: ='Combined, MtC'!A28 -> 1873 | C28: =coefficients!D28 -> 0.04932728914 | E28: ='Combined, MtC'!C28*$C28 -> 40.05721169 | F28: ='Combined, MtC'!D28*$C28 -> 2.173602063 | G28: ='Combined, MtC'!E28*$C28 -> 17.13301505 | H28: ='Combined, MtC'!F28*$C28 -> 7.594133473 | I28: ='Combined, MtC'!G28*$C28 -> 0.6383839106 | N28: 0.6004367442 | O28: 0.0486172887 | P28: 0.2441348847 | Q28: 0.1159825223 | R28: 0.007463037242 | U28: 0.2441348847 | V28: 0.3601174071 | W28: 0.3675804443 | X28: 0.416197733 | Y28: 0.6004367442
A29: ='Combined, MtC'!A29 -> 1874 | C29: =coefficients!D29 -> 0.05054905694 | E29: ='Combined, MtC'!C29*$C29 -> 40.78707361 | F29: ='Combined, MtC'!D29*$C29 -> 2.120760409 | G29: ='Combined, MtC'!E29*$C29 -> 17.74780422 | H29: ='Combined, MtC'!F29*$C29 -> 7.543739062 | I29: ='Combined, MtC'!G29*$C29 -> 0.6781964774 | N29: 0.6412238178 | O29: 0.05073804911 | P29: 0.261882689 | Q29: 0.1235262614 | R29: 0.00814123372 | U29: 0.261882689 | V29: 0.3854089503 | W29: 0.3935501841 | X29: 0.4442882332 | Y29: 0.6412238178
A30: ='Combined, MtC'!A30 -> 1875 | C30: =coefficients!D30 -> 0.05176818706 | E30: ='Combined, MtC'!C30*$C30 -> 42.86090103 | F30: ='Combined, MtC'!D30*$C30 -> 2.143523907 | G30: ='Combined, MtC'!E30*$C30 -> 18.44929663 | H30: ='Combined, MtC'!F30*$C30 -> 7.946261409 | I30: ='Combined, MtC'!G30*$C30 -> 0.7210687239 | N30: 0.6840847188 | O30: 0.05288157301 | P30: 0.2803319856 | Q30: 0.1314725228 | R30: 0.008862302444 | U30: 0.2803319856 | V30: 0.4118045084 | W30: 0.4206668108 | X30: 0.4735483838 | Y30: 0.6840847188
A31: ='Combined, MtC'!A31 -> 1876 | C31: =coefficients!D31 -> 0.05302528932 | E31: ='Combined, MtC'!C31*$C31 -> 44.29520569 | F31: ='Combined, MtC'!D31*$C31 -> 2.167398096 | G31: ='Combined, MtC'!E31*$C31 -> 19.1065972 | H31: ='Combined, MtC'!F31*$C31 -> 8.12772165 | I31: ='Combined, MtC'!G31*$C31 -> 0.7639512508 | N31: 0.7283799245 | O31: 0.05504897111 | P31: 0.2994385828 | Q31: 0.1396002445 | R31: 0.009626253695 | U31: 0.2994385828 | V31: 0.4390388272 | W31: 0.4486650809 | X31: 0.503714052 | Y31: 0.7283799245
A32: ='Combined, MtC'!A32 -> 1877 | C32: =coefficients!D32 -> 0.05429942213 | E32: ='Combined, MtC'!C32*$C32 -> 45.92167289 | F32: ='Combined, MtC'!D32*$C32 -> 2.19406046 | G32: ='Combined, MtC'!E32*$C32 -> 20.10359542 | H32: ='Combined, MtC'!F32*$C32 -> 8.317009908 | I32: ='Combined, MtC'!G32*$C32 -> 0.7678969978 | N32: 0.7743015974 | O32: 0.05724303157 | P32: 0.3195421782 | Q32: 0.1479172544 | R32: 0.01039415069 | U32: 0.3195421782 | V32: 0.4674594326 | W32: 0.4778535833 | X32: 0.5350966148 | Y32: 0.7743015974
A33: ='Combined, MtC'!A33 -> 1878 | C33: =coefficients!D33 -> 0.05559524959 | E33: ='Combined, MtC'!C33*$C33 -> 47.43247707 | F33: ='Combined, MtC'!D33*$C33 -> 2.24140588 | G33: ='Combined, MtC'!E33*$C33 -> 20.85229373 | H33: ='Combined, MtC'!F33*$C33 -> 8.45758857 | I33: ='Combined, MtC'!G33*$C33 -> 0.7792230183 | N33: 0.8217340745 | O33: 0.05948443745 | P33: 0.3403944719 | Q33: 0.1563748429 | R33: 0.01117337371 | U33: 0.3403944719 | V33: 0.4967693149 | W33: 0.5079426886 | X33: 0.567427126 | Y33: 0.8217340745
A34: ='Combined, MtC'!A34 -> 1879 | C34: =coefficients!D34 -> 0.05690834691 | E34: ='Combined, MtC'!C34*$C34 -> 49.69657974 | F34: ='Combined, MtC'!D34*$C34 -> 2.30110608 | G34: ='Combined, MtC'!E34*$C34 -> 22.14938875 | H34: ='Combined, MtC'!F34*$C34 -> 8.747660855 | I34: ='Combined, MtC'!G34*$C34 -> 0.8045986628 | N34: 0.8714306542 | O34: 0.06178554353 | P34: 0.3625438607 | Q34: 0.1651225038 | R34: 0.01197797237 | U34: 0.3625438607 | V34: 0.5276663645 | W34: 0.5396443368 | X34: 0.6014298804 | Y34: 0.8714306542
A35: ='Combined, MtC'!A35 -> 1880 | C35: =coefficients!D35 -> 0.05825877748 | E35: ='Combined, MtC'!C35*$C35 -> 52.77458747 | F35: ='Combined, MtC'!D35*$C35 -> 2.364484917 | G35: ='Combined, MtC'!E35*$C35 -> 23.35494184 | H35: ='Combined, MtC'!F35*$C35 -> 9.787020199 | I35: ='Combined, MtC'!G35*$C35 -> 0.8793230321 | N35: 0.9242052417 | O35: 0.06415002845 | P35: 0.3858988025 | Q35: 0.174909524 | R35: 0.01285729541 | U35: 0.3858988025 | V35: 0.5608083265 | W35: 0.5736656219 | X35: 0.6378156504 | Y35: 0.9242052417
A36: ='Combined, MtC'!A36 -> 1881 | C36: =coefficients!D36 -> 0.05966675876 | E36: ='Combined, MtC'!C36*$C36 -> 56.63330074 | F36: ='Combined, MtC'!D36*$C36 -> 2.407440349 | G36: ='Combined, MtC'!E36*$C36 -> 24.34885865 | H36: ='Combined, MtC'!F36*$C36 -> 10.08322876 | I36: ='Combined, MtC'!G36*$C36 -> 0.89416008 | N36: 0.9808385424 | O36: 0.06655746879 | P36: 0.4102476612 | Q36: 0.1849927527 | R36: 0.01375145549 | U36: 0.4102476612 | V36: 0.5952404139 | W36: 0.6089918694 | X36: 0.6755493382 | Y36: 0.9808385424
A37: ='Combined, MtC'!A37 -> 1882 | C37: =coefficients!D37 -> 0.06115007018 | E37: ='Combined, MtC'!C37*$C37 -> 56.01988504 | F37: ='Combined, MtC'!D37*$C37 -> 2.454031811 | G37: ='Combined, MtC'!E37*$C37 -> 22.00606964 | H37: ='Combined, MtC'!F37*$C37 -> 10.48202094 | I37: ='Combined, MtC'!G37*$C37 -> 0.9321777849 | N37: 1.036858427 | O37: 0.06901150061 | P37: 0.4322537308 | Q37: 0.1954747737 | R37: 0.01468363327 | U37: 0.4322537308 | V37: 0.6277285045 | W37: 0.6424121378 | X37: 0.7114236384 | Y37: 1.036858427
A38: ='Combined, MtC'!A38 -> 1883 | C38: =coefficients!D38 -> 0.06258684746 | E38: ='Combined, MtC'!C38*$C38 -> 58.63092059 | F38: ='Combined, MtC'!D38*$C38 -> 2.49918044 | G38: ='Combined, MtC'!E38*$C38 -> 22.73774535 | H38: ='Combined, MtC'!F38*$C38 -> 11.0849318 | I38: ='Combined, MtC'!G38*$C38 -> 0.9692950239 | N38: =N37+0.001*E38 -> 1.095489348 | O38: 0.07151068105 | P38: 0.4549914762 | Q38: 0.2065597055 | R38: 0.01565292829 | U38: 0.4549914762 | V38: =U38+Q38 -> 0.6615511817 | W38: 0.6772041099 | X38: 0.748714791 | Y38: 1.095489348
A39: ='Combined, MtC'!A39 -> 1884 | C39: =coefficients!D39 -> 0.06406299743 | E39: ='Combined, MtC'!C39*$C39 -> 60.51288237 | F39: ='Combined, MtC'!D39*$C39 -> 2.546203052 | G39: ='Combined, MtC'!E39*$C39 -> 23.43026615 | H39: ='Combined, MtC'!F39*$C39 -> 11.11735164 | I39: ='Combined, MtC'!G39*$C39 -> 1.009081898 | N39: 1.15600223 | O39: 0.0740568841 | P39: 0.4784217423 | Q39: 0.2176770571 | R39: 0.01666201019 | U39: 0.4784217423 | V39: 0.6960987994 | W39: 0.7127608096 | X39: 0.7868176937 | Y39: 1.15600223
A40: ='Combined, MtC'!A40 -> 1885 | C40: =coefficients!D40 -> 0.06555797373 | E40: ='Combined, MtC'!C40*$C40 -> 62.28256625 | F40: ='Combined, MtC'!D40*$C40 -> 2.59395857 | G40: ='Combined, MtC'!E40*$C40 -> 23.98387989 | H40: ='Combined, MtC'!F40*$C40 -> 11.26271566 | I40: ='Combined, MtC'!G40*$C40 -> 1.025838061 | N40: 1.218284797 | O40: 0.07665084267 | P40: 0.5024056222 | Q40: 0.2289397728 | R40: 0.01768784825 | U40: 0.5024056222 | V40: 0.731345395 | W40: 0.7490332432 | X40: 0.8256840859 | Y40: 1.218284797
A41: ='Combined, MtC'!A41 -> 1886 | C41: =coefficients!D41 -> 0.06706804179 | E41: ='Combined, MtC'!C41*$C41 -> 64.15038077 | F41: ='Combined, MtC'!D41*$C41 -> 2.642393658 | G41: ='Combined, MtC'!E41*$C41 -> 24.7339896 | H41: ='Combined, MtC'!F41*$C41 -> 11.4418817 | I41: ='Combined, MtC'!G41*$C41 -> 1.052545727 | N41: 1.282435177 | O41: 0.07929323633 | P41: 0.5271396118 | Q41: 0.2403816545 | R41: 0.01874039398 | U41: 0.5271396118 | V41: 0.7675212663 | W41: 0.7862616603 | X41: 0.8655548966 | Y41: 1.282435177
A42: ='Combined, MtC'!A42 -> 1887 | C42: =coefficients!D42 -> 0.0685948604 | E42: ='Combined, MtC'!C42*$C42 -> 66.46663627 | F42: ='Combined, MtC'!D42*$C42 -> 2.691504554 | G42: ='Combined, MtC'!E42*$C42 -> 25.42850574 | H42: ='Combined, MtC'!F42*$C42 -> 12.03710842 | I42: ='Combined, MtC'!G42*$C42 -> 1.097524626 | N42: 1.348901814 | O42: 0.08198474088 | P42: 0.5525681176 | Q42: 0.2524187629 | R42: 0.01983791861 | U42: 0.5525681176 | V42: 0.8049868805 | W42: 0.8248247991 | X42: 0.9068095399 | Y42: 1.348901814
A43: ='Combined, MtC'!A43 -> 1888 | C43: =coefficients!D43 -> 0.07014833352 | E43: ='Combined, MtC'!C43*$C43 -> 70.02985298 | F43: ='Combined, MtC'!D43*$C43 -> 2.741614334 | G43: ='Combined, MtC'!E43*$C43 -> 27.0316042 | H43: ='Combined, MtC'!F43*$C43 -> 12.72559515 | I43: ='Combined, MtC'!G43*$C43 -> 1.185043857 | N43: 1.418931667 | O43: 0.08472635521 | P43: 0.5795997218 | Q43: 0.265144358 | R43: 0.02102296246 | U43: 0.5795997218 | V43: 0.8447440798 | W43: 0.8657670423 | X43: 0.9504933975 | Y43: 1.418931667
A44: ='Combined, MtC'!A44 -> 1889 | C44: =coefficients!D44 -> 0.07175639311 | E44: ='Combined, MtC'!C44*$C44 -> 71.43535501 | F44: ='Combined, MtC'!D44*$C44 -> 2.800716604 | G44: ='Combined, MtC'!E44*$C44 -> 26.65724172 | H44: ='Combined, MtC'!F44*$C44 -> 13.37694879 | I44: ='Combined, MtC'!G44*$C44 -> 1.163006093 | N44: 1.490367022 | O44: 0.08752707182 | P44: 0.6062569635 | Q44: 0.2785213068 | R44: 0.02218596856 | U44: 0.6062569635 | V44: 0.8847782703 | W44: 0.9069642389 | X44: 0.9944913107 | Y44: 1.490367022
A45: ='Combined, MtC'!A45 -> 1890 | C45: =coefficients!D45 -> 0.07336642617 | E45: ='Combined, MtC'!C45*$C45 -> 74.95899118 | F45: ='Combined, MtC'!D45*$C45 -> 2.860102084 | G45: ='Combined, MtC'!E45*$C45 -> 28.33820763 | H45: ='Combined, MtC'!F45*$C45 -> 14.12249413 | I45: ='Combined, MtC'!G45*$C45 -> 1.20600465 | N45: 1.565326013 | O45: 0.0903871739 | P45: 0.6345951711 | Q45: 0.292643801 | R45: 0.02339197321 | U45: 0.6345951711 | V45: 0.9272389721 | W45: 0.9506309453 | X45: 1.041018119 | Y45: 1.565326013
A46: ='Combined, MtC'!A46 -> 1891 | C46: =coefficients!D46 -> 0.0750263822 | E46: ='Combined, MtC'!C46*$C46 -> 77.45198513 | F46: ='Combined, MtC'!D46*$C46 -> 2.926096429 | G46: ='Combined, MtC'!E46*$C46 -> 29.20607499 | H46: ='Combined, MtC'!F46*$C46 -> 14.66298358 | I46: ='Combined, MtC'!G46*$C46 -> 1.265747586 | N46: 1.642777998 | O46: 0.09331327033 | P46: 0.6638012461 | Q46: 0.3073067845 | R46: 0.02465772079 | U46: 0.6638012461 | V46: 0.9711080306 | W46: 0.9957657514 | X46: 1.089079022 | Y46: 1.642777998
A47: ='Combined, MtC'!A47 -> 1892 | C47: =coefficients!D47 -> 0.07671076056 | E47: ='Combined, MtC'!C47*$C47 -> 80.41397252 | F47: ='Combined, MtC'!D47*$C47 -> 2.993683457 | G47: ='Combined, MtC'!E47*$C47 -> 31.30599124 | H47: ='Combined, MtC'!F47*$C47 -> 14.8446905 | I47: ='Combined, MtC'!G47*$C47 -> 1.290390059 | N47: 1.723191971 | O47: 0.09630695379 | P47: 0.6951072373 | Q47: 0.322151475 | R47: 0.02594811085 | U47: 0.6951072373 | V47: 1.017258712 | W47: 1.043206823 | X47: 1.139513777 | Y47: 1.723191971
A48: ='Combined, MtC'!A48 -> 1893 | C48: =coefficients!D48 -> 0.0784285959 | E48: ='Combined, MtC'!C48*$C48 -> 81.78086937 | F48: ='Combined, MtC'!D48*$C48 -> 3.063209198 | G48: ='Combined, MtC'!E48*$C48 -> 32.11650218 | H48: ='Combined, MtC'!F48*$C48 -> 14.37704394 | I48: ='Combined, MtC'!G48*$C48 -> 1.329976443 | N48: 1.80497284 | O48: 0.09937016299 | P48: 0.7272237395 | Q48: 0.336528519 | R48: 0.0272780873 | U48: 0.7272237395 | V48: 1.063752259 | W48: 1.091030346 | X48: 1.190400509 | Y48: 1.80497284
A49: ='Combined, MtC'!A49 -> 1894 | C49: =coefficients!D49 -> 0.08014399894 | E49: ='Combined, MtC'!C49*$C49 -> 85.91156182 | F49: ='Combined, MtC'!D49*$C49 -> 4.374652168 | G49: ='Combined, MtC'!E49*$C49 -> 32.307176 | H49: ='Combined, MtC'!F49*$C49 -> 16.04898806 | I49: ='Combined, MtC'!G49*$C49 -> 1.346803873 | N49: 1.890884402 | O49: 0.1037448152 | P49: 0.7595309155 | Q49: 0.352577507 | R49: 0.02862489117 | U49: 0.7595309155 | V49: 1.112108423 | W49: 1.140733314 | X49: 1.244478129 | Y49: 1.890884402
A50: ='Combined, MtC'!A50 -> 1895 | C50: =coefficients!D50 -> 0.08191543104 | E50: ='Combined, MtC'!C50*$C50 -> 89.85852465 | F50: ='Combined, MtC'!D50*$C50 -> 4.618179022 | G50: ='Combined, MtC'!E50*$C50 -> 34.37781757 | H50: ='Combined, MtC'!F50*$C50 -> 16.56040035 | I50: ='Combined, MtC'!G50*$C50 -> 1.36082829 | N50: 1.980742926 | O50: 0.1083629942 | P50: 0.7939087331 | Q50: 0.3691379074 | R50: 0.02998571946 | U50: 0.7939087331 | V50: 1.16304664 | W50: 1.19303236 | X50: 1.301395354 | Y50: 1.980742926
A51: ='Combined, MtC'!A51 -> 1896 | C51: =coefficients!D51 -> 0.08373625676 | E51: ='Combined, MtC'!C51*$C51 -> 93.06598302 | F51: ='Combined, MtC'!D51*$C51 -> 4.863410166 | G51: ='Combined, MtC'!E51*$C51 -> 35.13436006 | H51: ='Combined, MtC'!F51*$C51 -> 17.39161022 | I51: ='Combined, MtC'!G51*$C51 -> 1.407974916 | N51: 2.073808909 | O51: 0.1132264043 | P51: 0.8290430931 | Q51: 0.3865295176 | R51: 0.03139369437 | U51: 0.8290430931 | V51: 1.215572611 | W51: 1.246966305 | X51: 1.360192709 | Y51: 2.073808909
A52: ='Combined, MtC'!A52 -> 1897 | C52: =coefficients!D52 -> 0.08558892471 | E52: ='Combined, MtC'!C52*$C52 -> 96.90215437 | F52: ='Combined, MtC'!D52*$C52 -> 5.115384704 | G52: ='Combined, MtC'!E52*$C52 -> 36.44297673 | H52: ='Combined, MtC'!F52*$C52 -> 18.28545752 | I52: ='Combined, MtC'!G52*$C52 -> 1.446803742 | N52: 2.170711064 | O52: 0.118341789 | P52: 0.8654860699 | Q52: 0.4048149751 | R52: 0.03284049812 | U52: 0.8654860699 | V52: 1.270301045 | W52: 1.303141543 | X52: 1.421483332 | Y52: 2.170711064
A53: ='Combined, MtC'!A53 -> 1898 | C53: =coefficients!D53 -> 0.08748442992 | E53: ='Combined, MtC'!C53*$C53 -> 101.0177463 | F53: ='Combined, MtC'!D53*$C53 -> 5.368560778 | G53: ='Combined, MtC'!E53*$C53 -> 38.23667981 | H53: ='Combined, MtC'!F53*$C53 -> 18.91578721 | I53: ='Combined, MtC'!G53*$C53 -> 1.508668994 | N53: 2.27172881 | O53: 0.1237103498 | P53: 0.9037227497 | Q53: 0.4237307623 | R53: 0.03434916711 | U53: 0.9037227497 | V53: 1.327453512 | W53: 1.361802679 | X53: 1.485513029 | Y53: 2.27172881
A54: ='Combined, MtC'!A54 -> 1899 | C54: =coefficients!D54 -> 0.08942611219 | E54: ='Combined, MtC'!C54*$C54 -> 106.9471021 | F54: ='Combined, MtC'!D54*$C54 -> 5.624562637 | G54: ='Combined, MtC'!E54*$C54 -> 40.95325146 | H54: ='Combined, MtC'!F54*$C54 -> 20.3651695 | I54: ='Combined, MtC'!G54*$C54 -> 1.623540009 | N54: =N53+0.001*E54 -> 2.378675912 | O54: 0.1293349125 | P54: 0.9446760011 | Q54: 0.4440959318 | R54: 0.03597270712 | U54: 0.9446760011 | V54: =U54+Q54 -> 1.388771933 | W54: 1.42474464 | X54: 1.554079553 | Y54: 2.378675912
A55: ='Combined, MtC'!A55 -> 1900 | C55: =coefficients!D55 -> 0.09144667336 | E55: ='Combined, MtC'!C55*$C55 -> 111.7278995 | F55: ='Combined, MtC'!D55*$C55 -> 5.885891973 | G55: ='Combined, MtC'!E55*$C55 -> 42.71756683 | H55: ='Combined, MtC'!F55*$C55 -> 21.40594704 | I55: ='Combined, MtC'!G55*$C55 -> 1.798436002 | N55: 2.490403812 | O55: 0.1352208044 | P55: 0.987393568 | Q55: 0.4655018789 | R55: 0.03777114312 | U55: 0.987393568 | V55: 1.452895447 | W55: 1.49066659 | X55: 1.625887394 | Y55: 2.490403812
A56: ='Combined, MtC'!A56 -> 1901 | C56: =coefficients!D56 -> 0.09352023825 | E56: ='Combined, MtC'!C56*$C56 -> 121.8723948 | F56: ='Combined, MtC'!D56*$C56 -> 6.150059204 | G56: ='Combined, MtC'!E56*$C56 -> 45.14928913 | H56: ='Combined, MtC'!F56*$C56 -> 21.48025204 | I56: ='Combined, MtC'!G56*$C56 -> 1.947512202 | N56: 2.612276206 | O56: 0.1413708636 | P56: 1.032542857 | Q56: 0.4869821309 | R56: 0.03971865532 | U56: 1.032542857 | V56: 1.519524988 | W56: 1.559243643 | X56: 1.700614507 | Y56: 2.612276206
A57: ='Combined, MtC'!A57 -> 1902 | C57: =coefficients!D57 -> 0.0957441752 | E57: ='Combined, MtC'!C57*$C57 -> 126.4998851 | F57: ='Combined, MtC'!D57*$C57 -> 7.920618807 | G57: ='Combined, MtC'!E57*$C57 -> 42.99399847 | H57: ='Combined, MtC'!F57*$C57 -> 22.29943117 | I57: ='Combined, MtC'!G57*$C57 -> 3.266484876 | N57: 2.738776092 | O57: 0.1492914824 | P57: 1.075536856 | Q57: 0.5092815621 | R57: 0.0429851402 | U57: 1.075536856 | V57: 1.584818418 | W57: 1.627803558 | X57: 1.77709504 | Y57: 2.738776092
A58: ='Combined, MtC'!A58 -> 1903 | C58: =coefficients!D58 -> 0.09800923124 | E58: ='Combined, MtC'!C58*$C58 -> 137.3734629 | F58: ='Combined, MtC'!D58*$C58 -> 9.909801579 | G58: ='Combined, MtC'!E58*$C58 -> 46.64471995 | H58: ='Combined, MtC'!F58*$C58 -> 23.43283108 | I58: ='Combined, MtC'!G58*$C58 -> 3.675101148 | N58: 2.876149554 | O58: 0.159201284 | P58: 1.122181576 | Q58: 0.5327143932 | R58: 0.04666024135 | U58: 1.122181576 | V58: 1.654895969 | W58: 1.70155621 | X58: 1.860757494 | Y58: 2.876149554
A59: ='Combined, MtC'!A59 -> 1904 | C59: =coefficients!D59 -> 0.1004256913 | E59: ='Combined, MtC'!C59*$C59 -> 143.7497362 | F59: ='Combined, MtC'!D59*$C59 -> 12.00880374 | G59: ='Combined, MtC'!E59*$C59 -> 46.44154962 | H59: ='Combined, MtC'!F59*$C59 -> 24.08252265 | I59: ='Combined, MtC'!G59*$C59 -> 4.185582132 | N59: 3.019899291 | O59: 0.1712100878 | P59: 1.168623125 | Q59: 0.5567969158 | R59: 0.05084582348 | U59: 1.168623125 | V59: 1.725420041 | W59: 1.776265864 | X59: 1.947475952 | Y59: 3.019899291
A60: ='Combined, MtC'!A60 -> 1905 | C60: =coefficients!D60 -> 0.1029055853 | E60: ='Combined, MtC'!C60*$C60 -> 154.3034264 | F60: ='Combined, MtC'!D60*$C60 -> 14.25530492 | G60: ='Combined, MtC'!E60*$C60 -> 49.57777057 | H60: ='Combined, MtC'!F60*$C60 -> 25.0148145 | I60: ='Combined, MtC'!G60*$C60 -> 4.634991049 | N60: 3.174202717 | O60: 0.1854653927 | P60: 1.218200896 | Q60: 0.5818117303 | R60: 0.05548081453 | U60: 1.218200896 | V60: 1.800012626 | W60: 1.855493441 | X60: 2.040958833 | Y60: 3.174202717
A61: ='Combined, MtC'!A61 -> 1906 | C61: =coefficients!D61 -> 0.1055178352 | E61: ='Combined, MtC'!C61*$C61 -> 164.5639275 | F61: ='Combined, MtC'!D61*$C61 -> 17.07291236 | G61: ='Combined, MtC'!E61*$C61 -> 51.48021027 | H61: ='Combined, MtC'!F61*$C61 -> 26.98285199 | I61: ='Combined, MtC'!G61*$C61 -> 5.143403567 | N61: 3.338766645 | O61: 0.202538305 | P61: 1.269681106 | Q61: 0.6087945823 | R61: 0.0606242181 | U61: 1.269681106 | V61: 1.878475688 | W61: 1.939099906 | X61: 2.141638211 | Y61: 3.338766645
A62: ='Combined, MtC'!A62 -> 1907 | C62: =coefficients!D62 -> 0.1082498267 | E62: ='Combined, MtC'!C62*$C62 -> 179.2319444 | F62: ='Combined, MtC'!D62*$C62 -> 17.99178153 | G62: ='Combined, MtC'!E62*$C62 -> 56.99344718 | H62: ='Combined, MtC'!F62*$C62 -> 29.01884498 | I62: ='Combined, MtC'!G62*$C62 -> 5.8570842 | N62: 3.517998589 | O62: 0.2205300866 | P62: 1.326674553 | Q62: 0.6378134273 | R62: 0.0664813023 | U62: 1.326674553 | V62: 1.96448798 | W62: 2.030969283 | X62: 2.251499369 | Y62: 3.517998589
A63: ='Combined, MtC'!A63 -> 1908 | C63: =coefficients!D63 -> 0.1111681644 | E63: ='Combined, MtC'!C63*$C63 -> 181.6633436 | F63: ='Combined, MtC'!D63*$C63 -> 19.08681788 | G63: ='Combined, MtC'!E63*$C63 -> 53.37935067 | H63: ='Combined, MtC'!F63*$C63 -> 30.18863773 | I63: ='Combined, MtC'!G63*$C63 -> 6.331282647 | N63: 3.699661932 | O63: 0.2396169045 | P63: 1.380053904 | Q63: 0.668002065 | R63: 0.07281258494 | U63: 1.380053904 | V63: 2.048055969 | W63: 2.120868554 | X63: 2.360485458 | Y63: 3.699661932
A64: ='Combined, MtC'!A64 -> 1909 | C64: =coefficients!D64 -> 0.1140612592 | E64: ='Combined, MtC'!C64*$C64 -> 190.4673609 | F64: ='Combined, MtC'!D64*$C64 -> 19.85562432 | G64: ='Combined, MtC'!E64*$C64 -> 57.68474811 | H64: ='Combined, MtC'!F64*$C64 -> 30.82872807 | I64: ='Combined, MtC'!G64*$C64 -> 6.630848649 | N64: 3.890129293 | O64: 0.2594725288 | P64: 1.437738652 | Q64: 0.6988307931 | R64: 0.07944343359 | U64: 1.437738652 | V64: 2.136569445 | W64: 2.216012879 | X64: 2.475485407 | Y64: 3.890129293
A65: ='Combined, MtC'!A65 -> 1910 | C65: =coefficients!D65 -> 0.1170329784 | E65: ='Combined, MtC'!C65*$C65 -> 200.6305712 | F65: ='Combined, MtC'!D65*$C65 -> 20.60268448 | G65: ='Combined, MtC'!E65*$C65 -> 61.96164751 | H65: ='Combined, MtC'!F65*$C65 -> 32.42649117 | I65: ='Combined, MtC'!G65*$C65 -> 7.36328198 | N65: 4.090759864 | O65: 0.2800752132 | P65: 1.499700299 | Q65: 0.7312572842 | R65: 0.08680671557 | U65: 1.499700299 | V65: 2.230957584 | W65: 2.317764299 | X65: 2.597839513 | Y65: 4.090759864
A66: ='Combined, MtC'!A66 -> 1911 | C66: =coefficients!D66 -> 0.1201000141 | E66: ='Combined, MtC'!C66*$C66 -> 200.4242246 | F66: ='Combined, MtC'!D66*$C66 -> 21.70978296 | G66: ='Combined, MtC'!E66*$C66 -> 62.65530061 | H66: ='Combined, MtC'!F66*$C66 -> 33.71952015 | I66: ='Combined, MtC'!G66*$C66 -> 8.169743408 | N66: 4.291184089 | O66: 0.3017849962 | P66: 1.5623556 | Q66: 0.7649768044 | R66: 0.09497645898 | U66: 1.5623556 | V66: 2.327332404 | W66: 2.422308863 | X66: 2.72409386 | Y66: 4.291184089
A67: ='Combined, MtC'!A67 -> 1912 | C67: =coefficients!D67 -> 0.1230975383 | E67: ='Combined, MtC'!C67*$C67 -> 205.0542791 | F67: ='Combined, MtC'!D67*$C67 -> 21.70162824 | G67: ='Combined, MtC'!E67*$C67 -> 63.95080836 | H67: ='Combined, MtC'!F67*$C67 -> 34.26039608 | I67: ='Combined, MtC'!G67*$C67 -> 8.939650977 | N67: 4.496238368 | O67: 0.3234866244 | P67: 1.626306408 | Q67: 0.7992372005 | R67: 0.10391611 | U67: 1.626306408 | V67: 2.425543609 | W67: 2.529459719 | X67: 2.852946343 | Y67: 4.496238368
A68: ='Combined, MtC'!A68 -> 1913 | C68: =coefficients!D68 -> 0.1261028038 | E68: ='Combined, MtC'!C68*$C68 -> 214.6490401 | F68: ='Combined, MtC'!D68*$C68 -> 22.28840576 | G68: ='Combined, MtC'!E68*$C68 -> 68.1781114 | H68: ='Combined, MtC'!F68*$C68 -> 37.93133247 | I68: ='Combined, MtC'!G68*$C68 -> 9.901264288 | N68: 4.710887408 | O68: 0.3457750302 | P68: 1.69448452 | Q68: 0.8371685329 | R68: 0.1138173742 | U68: 1.69448452 | V68: 2.531653053 | W68: 2.645470427 | X68: 2.991245457 | Y68: 4.710887408
A69: ='Combined, MtC'!A69 -> 1914 | C69: =coefficients!D69 -> 0.1291886952 | E69: ='Combined, MtC'!C69*$C69 -> 207.6907226 | F69: ='Combined, MtC'!D69*$C69 -> 23.5008964 | G69: ='Combined, MtC'!E69*$C69 -> 64.85441735 | H69: ='Combined, MtC'!F69*$C69 -> 34.75296046 | I69: ='Combined, MtC'!G69*$C69 -> 10.11122452 | N69: 4.918578131 | O69: 0.3692759266 | P69: 1.759338937 | Q69: 0.8719214934 | R69: 0.1239285988 | U69: 1.759338937 | V69: 2.631260431 | W69: 2.755189029 | X69: 3.124464956 | Y69: 4.918578131
A70: ='Combined, MtC'!A70 -> 1915 | C70: =coefficients!D70 -> 0.132112047 | E70: ='Combined, MtC'!C70*$C70 -> 209.7957803 | F70: ='Combined, MtC'!D70*$C70 -> 24.14993688 | G70: ='Combined, MtC'!E70*$C70 -> 67.50377339 | H70: ='Combined, MtC'!F70*$C70 -> 34.35567178 | I70: ='Combined, MtC'!G70*$C70 -> 10.26300547 | N70: =N69+0.001*E70 -> 5.128373911 | O70: 0.3934258635 | P70: 1.826842711 | Q70: 0.9062771652 | R70: 0.1341916042 | U70: =P70 -> 1.826842711 | V70: =U70+Q70 -> 2.733119876 | W70: 2.86731148 | X70: =W70+O70 -> 3.260737343 | Y70: =N70 -> 5.128373911
A71: ='Combined, MtC'!A71 -> 1916 | C71: =coefficients!D71 -> 0.1350105635 | E71: ='Combined, MtC'!C71*$C71 -> 223.1850174 | F71: ='Combined, MtC'!D71*$C71 -> 24.79578357 | G71: ='Combined, MtC'!E71*$C71 -> 73.89098437 | H71: ='Combined, MtC'!F71*$C71 -> 35.4784269 | I71: ='Combined, MtC'!G71*$C71 -> 11.2458669 | N71: 5.351558928 | O71: 0.4182216471 | P71: 1.900733695 | Q71: 0.9417555921 | R71: 0.1454374711 | U71: 1.900733695 | V71: 2.842489287 | W71: 2.987926758 | X71: 3.406148405 | Y71: 5.351558928
A72: ='Combined, MtC'!A72 -> 1917 | C72: =coefficients!D72 -> 0.138042367 | E72: ='Combined, MtC'!C72*$C72 -> 234.6411024 | F72: ='Combined, MtC'!D72*$C72 -> 26.11126588 | G72: ='Combined, MtC'!E72*$C72 -> 80.80465939 | H72: ='Combined, MtC'!F72*$C72 -> 34.45704511 | I72: ='Combined, MtC'!G72*$C72 -> 11.9685493 | N72: 5.586200031 | O72: 0.4443329129 | P72: 1.981538354 | Q72: 0.9762126372 | R72: 0.1574060204 | U72: 1.981538354 | V72: 2.957750992 | W72: 3.115157012 | X72: 3.559489925 | Y72: 5.586200031
A73: ='Combined, MtC'!A73 -> 1918 | C73: =coefficients!D73 -> 0.1411742367 | E73: ='Combined, MtC'!C73*$C73 -> 241.0290332 | F73: ='Combined, MtC'!D73*$C73 -> 27.46039372 | G73: ='Combined, MtC'!E73*$C73 -> 85.06498811 | H73: ='Combined, MtC'!F73*$C73 -> 33.85517724 | I73: ='Combined, MtC'!G73*$C73 -> 12.57148108 | N73: 5.827229064 | O73: 0.4717933067 | P73: 2.066603342 | Q73: 1.010067814 | R73: 0.1699775015 | U73: 2.066603342 | V73: 3.076671157 | W73: 3.246648658 | X73: 3.718441965 | Y73: 5.827229064
A74: ='Combined, MtC'!A74 -> 1919 | C74: =coefficients!D74 -> 0.1443330512 | E74: ='Combined, MtC'!C74*$C74 -> 228.8770019 | F74: ='Combined, MtC'!D74*$C74 -> 28.9350674 | G74: ='Combined, MtC'!E74*$C74 -> 76.14212174 | H74: ='Combined, MtC'!F74*$C74 -> 35.3079778 | I74: ='Combined, MtC'!G74*$C74 -> 12.35876287 | N74: 6.056106066 | O74: 0.5007283741 | P74: 2.142745464 | Q74: 1.045375792 | R74: 0.1823362644 | U74: 2.142745464 | V74: 3.188121256 | W74: 3.370457521 | X74: 3.871185895 | Y74: 6.056106066
A75: ='Combined, MtC'!A75 -> 1920 | C75: =coefficients!D75 -> 0.1472740797 | E75: ='Combined, MtC'!C75*$C75 -> 253.781516 | F75: ='Combined, MtC'!D75*$C75 -> 30.37739969 | G75: ='Combined, MtC'!E75*$C75 -> 87.24163026 | H75: ='Combined, MtC'!F75*$C75 -> 39.09449356 | I75: ='Combined, MtC'!G75*$C75 -> 13.18622891 | N75: 6.309887582 | O75: 0.5311057737 | P75: 2.229987094 | Q75: 1.084470286 | R75: 0.1955224933 | U75: 2.229987094 | V75: 3.31445738 | W75: 3.509979874 | X75: 4.041085647 | Y75: 6.309887582
A76: ='Combined, MtC'!A76 -> 1921 | C76: =coefficients!D76 -> 0.1504872323 | E76: ='Combined, MtC'!C76*$C76 -> 249.1200255 | F76: ='Combined, MtC'!D76*$C76 -> 31.74710254 | G76: ='Combined, MtC'!E76*$C76 -> 75.32656469 | H76: ='Combined, MtC'!F76*$C76 -> 33.1460469 | I76: ='Combined, MtC'!G76*$C76 -> 13.28985855 | N76: 6.559007607 | O76: 0.5628528763 | P76: 2.305313659 | Q76: 1.117616333 | R76: 0.2088123519 | U76: 2.305313659 | V76: 3.422929992 | W76: 3.631742344 | X76: 4.19459522 | Y76: 6.559007607
A77: ='Combined, MtC'!A77 -> 1922 | C77: =coefficients!D77 -> 0.1535834391 | E77: ='Combined, MtC'!C77*$C77 -> 258.9336921 | F77: ='Combined, MtC'!D77*$C77 -> 32.86934403 | G77: ='Combined, MtC'!E77*$C77 -> 73.20849507 | H77: ='Combined, MtC'!F77*$C77 -> 40.59503641 | I77: ='Combined, MtC'!G77*$C77 -> 13.22313479 | N77: 6.817941299 | O77: 0.5957222203 | P77: 2.378522154 | Q77: 1.158211369 | R77: 0.2220354866 | U77: 2.378522154 | V77: 3.536733523 | W77: 3.75876901 | X77: 4.35449123 | Y77: 6.817941299
A78: ='Combined, MtC'!A78 -> 1923 | C78: =coefficients!D78 -> 0.1567495202 | E78: ='Combined, MtC'!C78*$C78 -> 283.5609792 | F78: ='Combined, MtC'!D78*$C78 -> 34.17232021 | G78: ='Combined, MtC'!E78*$C78 -> 93.00764128 | H78: ='Combined, MtC'!F78*$C78 -> 44.60439265 | I78: ='Combined, MtC'!G78*$C78 -> 14.61684573 | N78: 7.101502279 | O78: 0.6298945405 | P78: 2.471529795 | Q78: 1.202815762 | R78: 0.2366523324 | U78: 2.471529795 | V78: 3.674345557 | W78: 3.91099789 | X78: 4.54089243 | Y78: 7.101502279
A79: ='Combined, MtC'!A79 -> 1924 | C79: =coefficients!D79 -> 0.1601642713 | E79: ='Combined, MtC'!C79*$C79 -> 290.1963577 | F79: ='Combined, MtC'!D79*$C79 -> 35.42322757 | G79: ='Combined, MtC'!E79*$C79 -> 84.88213073 | H79: ='Combined, MtC'!F79*$C79 -> 48.80211753 | I79: ='Combined, MtC'!G79*$C79 -> 14.43320331 | N79: 7.391698636 | O79: 0.6653177681 | P79: 2.556411926 | Q79: 1.251617879 | R79: 0.2510855357 | U79: 2.556411926 | V79: 3.808029805 | W79: 4.059115341 | X79: 4.724433109 | Y79: 7.391698636
A80: ='Combined, MtC'!A80 -> 1925 | C80: =coefficients!D80 -> 0.1635978468 | E80: ='Combined, MtC'!C80*$C80 -> 298.0023122 | F80: ='Combined, MtC'!D80*$C80 -> 36.46865942 | G80: ='Combined, MtC'!E80*$C80 -> 86.96985871 | H80: ='Combined, MtC'!F80*$C80 -> 49.09433961 | I80: ='Combined, MtC'!G80*$C80 -> 14.78221064 | N80: 7.689700949 | O80: 0.7017864275 | P80: 2.643381785 | Q80: 1.300712219 | R80: 0.2658677463 | U80: 2.643381785 | V80: 3.944094004 | W80: 4.20996175 | X80: 4.911748178 | Y80: 7.689700949
A81: ='Combined, MtC'!A81 -> 1926 | C81: =coefficients!D81 -> 0.167063393 | E81: ='Combined, MtC'!C81*$C81 -> 300.8444168 | F81: ='Combined, MtC'!D81*$C81 -> 37.44019276 | G81: ='Combined, MtC'!E81*$C81 -> 94.43179768 | H81: ='Combined, MtC'!F81*$C81 -> 40.98106796 | I81: ='Combined, MtC'!G81*$C81 -> 15.5947496 | N81: 7.990545365 | O81: 0.7392266203 | P81: 2.737813583 | Q81: 1.341693287 | R81: 0.2814624959 | U81: 2.737813583 | V81: 4.079506869 | W81: 4.360969365 | X81: 5.100195986 | Y81: 7.990545365
A82: ='Combined, MtC'!A82 -> 1927 | C82: =coefficients!D82 -> 0.1705015703 | E82: ='Combined, MtC'!C82*$C82 -> 327.9268636 | F82: ='Combined, MtC'!D82*$C82 -> 38.54436928 | G82: ='Combined, MtC'!E82*$C82 -> 101.7320296 | H82: ='Combined, MtC'!F82*$C82 -> 53.74306681 | I82: ='Combined, MtC'!G82*$C82 -> 14.60079967 | N82: 8.318472229 | O82: 0.7777709896 | P82: 2.839545612 | Q82: 1.395436354 | R82: 0.2960632956 | U82: 2.839545612 | V82: 4.234981966 | W82: 4.531045261 | X82: 5.308816251 | Y82: 8.318472229
A83: ='Combined, MtC'!A83 -> 1928 | C83: =coefficients!D83 -> 0.1741922802 | E83: ='Combined, MtC'!C83*$C83 -> 334.4840165 | F83: ='Combined, MtC'!D83*$C83 -> 39.55310946 | G83: ='Combined, MtC'!E83*$C83 -> 103.0856327 | H83: ='Combined, MtC'!F83*$C83 -> 53.17133999 | I83: ='Combined, MtC'!G83*$C83 -> 14.58471898 | N83: 8.652956246 | O83: 0.817324099 | P83: 2.942631245 | Q83: 1.448607694 | R83: 0.3106480146 | U83: 2.942631245 | V83: 4.391238939 | W83: 4.701886953 | X83: 5.519211052 | Y83: 8.652956246
A84: ='Combined, MtC'!A84 -> 1929 | C84: =coefficients!D84 -> 0.1778911505 | E84: ='Combined, MtC'!C84*$C84 -> 359.658905 | F84: ='Combined, MtC'!D84*$C84 -> 40.7868652 | G84: ='Combined, MtC'!E84*$C84 -> 115.9847455 | H84: ='Combined, MtC'!F84*$C84 -> 58.15813173 | I84: ='Combined, MtC'!G84*$C84 -> 14.73689427 | N84: 9.01261515 | O84: 0.8581109642 | P84: 3.05861599 | Q84: 1.506765825 | R84: 0.3253849088 | U84: 3.05861599 | V84: 4.565381816 | W84: 4.890766725 | X84: 5.748877689 | Y84: 9.01261515
A85: ='Combined, MtC'!A85 -> 1930 | C85: =coefficients!D85 -> 0.181804818 | E85: ='Combined, MtC'!C85*$C85 -> 364.0183332 | F85: ='Combined, MtC'!D85*$C85 -> 42.1707729 | G85: ='Combined, MtC'!E85*$C85 -> 121.2950477 | H85: ='Combined, MtC'!F85*$C85 -> 57.55591472 | I85: ='Combined, MtC'!G85*$C85 -> 14.46931823 | N85: 9.376633484 | O85: 0.9002817371 | P85: 3.179911038 | Q85: 1.56432174 | R85: 0.3398542271 | U85: 3.179911038 | V85: 4.744232778 | W85: 5.084087005 | X85: 5.984368742 | Y85: 9.376633484
A86: ='Combined, MtC'!A86 -> 1931 | C86: =coefficients!D86 -> 0.1856950701 | E86: ='Combined, MtC'!C86*$C86 -> 351.797639 | F86: ='Combined, MtC'!D86*$C86 -> 43.57422096 | G86: ='Combined, MtC'!E86*$C86 -> 110.0053324 | H86: ='Combined, MtC'!F86*$C86 -> 55.50774751 | I86: ='Combined, MtC'!G86*$C86 -> 13.44064631 | N86: =N85+0.001*E86 -> 9.728431123 | O86: 0.9438559581 | P86: 3.28991637 | Q86: 1.619829488 | R86: 0.3532948734 | U86: 3.28991637 | V86: =U86+Q86 -> 4.909745858 | W86: 5.263040731 | X86: 6.20689669 | Y86: 9.728431123
A87: ='Combined, MtC'!A87 -> 1932 | C87: =coefficients!D87 -> 0.1893858536 | E87: ='Combined, MtC'!C87*$C87 -> 321.5436581 | F87: ='Combined, MtC'!D87*$C87 -> 44.5252581 | G87: ='Combined, MtC'!E87*$C87 -> 81.03121842 | H87: ='Combined, MtC'!F87*$C87 -> 52.43912476 | I87: ='Combined, MtC'!G87*$C87 -> 13.18519464 | N87: 10.04997478 | O87: 0.9883812162 | P87: 3.370947589 | Q87: 1.672268612 | R87: 0.366480068 | U87: 3.370947589 | V87: 5.043216201 | W87: 5.409696269 | X87: 6.398077485 | Y87: 10.04997478
A88: ='Combined, MtC'!A88 -> 1933 | C88: =coefficients!D88 -> 0.1926985312 | E88: ='Combined, MtC'!C88*$C88 -> 333.4831146 | F88: ='Combined, MtC'!D88*$C88 -> 45.65660255 | G88: ='Combined, MtC'!E88*$C88 -> 85.77389313 | H88: ='Combined, MtC'!F88*$C88 -> 53.54477474 | I88: ='Combined, MtC'!G88*$C88 -> 13.17333407 | N88: 10.3834579 | O88: 1.034037819 | P88: 3.456721482 | Q88: 1.725813387 | R88: 0.3796534021 | U88: 3.456721482 | V88: 5.182534869 | W88: 5.562188271 | X88: 6.59622609 | Y88: 10.3834579
A89: ='Combined, MtC'!A89 -> 1934 | C89: =coefficients!D89 -> 0.1960868663 | E89: ='Combined, MtC'!C89*$C89 -> 349.2258068 | F89: ='Combined, MtC'!D89*$C89 -> 45.76906686 | G89: ='Combined, MtC'!E89*$C89 -> 90.52456071 | H89: ='Combined, MtC'!F89*$C89 -> 56.99209866 | I89: ='Combined, MtC'!G89*$C89 -> 13.7548858 | N89: 10.7326837 | O89: 1.079806886 | P89: 3.547246043 | Q89: 1.782805486 | R89: 0.3934082879 | U89: 3.547246043 | V89: 5.330051529 | W89: 5.723459816 | X89: 6.803266702 | Y89: 10.7326837
A90: ='Combined, MtC'!A90 -> 1935 | C90: =coefficients!D90 -> 0.1995865964 | E90: ='Combined, MtC'!C90*$C90 -> 362.3362931 | F90: ='Combined, MtC'!D90*$C90 -> 47.01292217 | G90: ='Combined, MtC'!E90*$C90 -> 94.71110495 | H90: ='Combined, MtC'!F90*$C90 -> 58.04495153 | I90: ='Combined, MtC'!G90*$C90 -> 13.80963611 | N90: 11.09502 | O90: 1.126819808 | P90: 3.641957148 | Q90: 1.840850437 | R90: 0.407217924 | U90: 3.641957148 | V90: 5.482807585 | W90: 5.890025509 | X90: 7.016845317 | Y90: 11.09502
A91: ='Combined, MtC'!A91 -> 1936 | C91: =coefficients!D91 -> 0.2031666691 | E91: ='Combined, MtC'!C91*$C91 -> 387.6590707 | F91: ='Combined, MtC'!D91*$C91 -> 48.25301848 | G91: ='Combined, MtC'!E91*$C91 -> 106.921681 | H91: ='Combined, MtC'!F91*$C91 -> 59.45636002 | I91: ='Combined, MtC'!G91*$C91 -> 14.29872796 | N91: 11.48267907 | O91: 1.175072826 | P91: 3.748878829 | Q91: 1.900306797 | R91: 0.421516652 | U91: 3.748878829 | V91: 5.649185626 | W91: 6.070702278 | X91: 7.245775104 | Y91: 11.48267907
A92: ='Combined, MtC'!A92 -> 1937 | C92: =coefficients!D92 -> 0.2069449525 | E92: ='Combined, MtC'!C92*$C92 -> 404.6856144 | F92: ='Combined, MtC'!D92*$C92 -> 48.8961049 | G92: ='Combined, MtC'!E92*$C92 -> 107.8702841 | H92: ='Combined, MtC'!F92*$C92 -> 64.50910823 | I92: ='Combined, MtC'!G92*$C92 -> 14.81084331 | N92: 11.88736468 | O92: 1.223968931 | P92: 3.856749113 | Q92: 1.964815906 | R92: 0.4363274953 | U92: 3.856749113 | V92: 5.821565018 | W92: 6.257892514 | X92: 7.481861445 | Y92: 11.88736468
A93: ='Combined, MtC'!A93 -> 1938 | C93: =coefficients!D93 -> 0.210831839 | E93: ='Combined, MtC'!C93*$C93 -> 395.6430232 | F93: ='Combined, MtC'!D93*$C93 -> 49.51815835 | G93: ='Combined, MtC'!E93*$C93 -> 94.12087779 | H93: ='Combined, MtC'!F93*$C93 -> 62.14000697 | I93: ='Combined, MtC'!G93*$C93 -> 14.31387954 | N93: 12.2830077 | O93: 1.273487089 | P93: 3.950869991 | Q93: 2.026955913 | R93: 0.4506413748 | U93: 3.950869991 | V93: 5.977825903 | W93: 6.428467278 | X93: 7.701954367 | Y93: 12.2830077
A94: ='Combined, MtC'!A94 -> 1939 | C94: =coefficients!D94 -> 0.214571569 | E94: ='Combined, MtC'!C94*$C94 -> 415.6691164 | F94: ='Combined, MtC'!D94*$C94 -> 51.08882541 | G94: ='Combined, MtC'!E94*$C94 -> 104.0041269 | H94: ='Combined, MtC'!F94*$C94 -> 62.89762151 | I94: ='Combined, MtC'!G94*$C94 -> 15.08933791 | N94: 12.69867682 | O94: 1.324575915 | P94: 4.054874118 | Q94: 2.089853534 | R94: 0.4657307127 | U94: 4.054874118 | V94: 6.144727652 | W94: 6.610458364 | X94: 7.935034279 | Y94: 12.69867682
A95: ='Combined, MtC'!A95 -> 1940 | C95: =coefficients!D95 -> 0.2184465744 | E95: ='Combined, MtC'!C95*$C95 -> 437.6566195 | F95: ='Combined, MtC'!D95*$C95 -> 53.14403213 | G95: ='Combined, MtC'!E95*$C95 -> 115.1794515 | H95: ='Combined, MtC'!F95*$C95 -> 59.76350945 | I95: ='Combined, MtC'!G95*$C95 -> 15.71334268 | N95: 13.13633344 | O95: 1.377719947 | P95: 4.170053569 | Q95: 2.149617043 | R95: 0.4814440554 | U95: 4.170053569 | V95: 6.319670613 | W95: 6.801114668 | X95: 8.178834615 | Y95: 13.13633344
A96: ='Combined, MtC'!A96 -> 1941 | C96: =coefficients!D96 -> 0.2224695974 | E96: ='Combined, MtC'!C96*$C96 -> 452.5463203 | F96: ='Combined, MtC'!D96*$C96 -> 55.43606439 | G96: ='Combined, MtC'!E96*$C96 -> 127.1489834 | H96: ='Combined, MtC'!F96*$C96 -> 58.17702331 | I96: ='Combined, MtC'!G96*$C96 -> 16.75885724 | N96: 13.58887976 | O96: 1.433156011 | P96: 4.297202552 | Q96: 2.207794067 | R96: 0.4982029126 | U96: 4.297202552 | V96: 6.504996619 | W96: 7.003199532 | X96: 8.436355543 | Y96: 13.58887976
A97: ='Combined, MtC'!A97 -> 1942 | C97: =coefficients!D97 -> 0.2265688781 | E97: ='Combined, MtC'!C97*$C97 -> 476.6089325 | F97: ='Combined, MtC'!D97*$C97 -> 59.58426171 | G97: ='Combined, MtC'!E97*$C97 -> 141.906976 | H97: ='Combined, MtC'!F97*$C97 -> 58.33641096 | I97: ='Combined, MtC'!G97*$C97 -> 17.86130828 | N97: 14.06548869 | O97: 1.492740273 | P97: 4.439109528 | Q97: 2.266130478 | R97: 0.5160642209 | U97: 4.439109528 | V97: 6.705240006 | W97: 7.221304227 | X97: 8.7140445 | Y97: 14.06548869
A98: ='Combined, MtC'!A98 -> 1943 | C98: =coefficients!D98 -> 0.2308246394 | E98: ='Combined, MtC'!C98*$C98 -> 488.1500248 | F98: ='Combined, MtC'!D98*$C98 -> 62.59064004 | G98: ='Combined, MtC'!E98*$C98 -> 145.8791178 | H98: ='Combined, MtC'!F98*$C98 -> 56.73833522 | I98: ='Combined, MtC'!G98*$C98 -> 18.53999661 | N98: 14.55363872 | O98: 1.555330913 | P98: 4.584988646 | Q98: 2.322868813 | R98: 0.5346042175 | U98: 4.584988646 | V98: 6.907857459 | W98: 7.442461677 | X98: 8.99779259 | Y98: 14.55363872
A99: ='Combined, MtC'!A99 -> 1944 | C99: =coefficients!D99 -> 0.2351179036 | E99: ='Combined, MtC'!C99*$C99 -> 497.7902149 | F99: ='Combined, MtC'!D99*$C99 -> 66.87439724 | G99: ='Combined, MtC'!E99*$C99 -> 158.7096635 | H99: ='Combined, MtC'!F99*$C99 -> 50.73985431 | I99: ='Combined, MtC'!G99*$C99 -> 18.98508888 | N99: 15.05142893 | O99: 1.62220531 | P99: 4.74369831 | Q99: 2.373608667 | R99: 0.5535893064 | U99: 4.74369831 | V99: 7.117306977 | W99: 7.670896283 | X99: 9.293101594 | Y99: 15.05142893
A100: ='Combined, MtC'!A100 -> 1945 | C100: =coefficients!D100 -> 0.2394304161 | E100: ='Combined, MtC'!C100*$C100 -> 450.0642966 | F100: ='Combined, MtC'!D100*$C100 -> 68.21480298 | G100: ='Combined, MtC'!E100*$C100 -> 153.944755 | H100: ='Combined, MtC'!F100*$C100 -> 50.26223855 | I100: ='Combined, MtC'!G100*$C100 -> 18.58940145 | N100: 15.50149323 | O100: 1.690420113 | P100: 4.897643065 | Q100: 2.423870906 | R100: 0.5721787079 | U100: 4.897643065 | V100: 7.32151397 | W100: 7.893692678 | X100: 9.584112792 | Y100: 15.50149323
A101: ='Combined, MtC'!A101 -> 1946 | C101: =coefficients!D101 -> 0.2432640459 | E101: ='Combined, MtC'!C101*$C101 -> 490.1408062 | F101: ='Combined, MtC'!D101*$C101 -> 71.37364674 | G101: ='Combined, MtC'!E101*$C101 -> 148.406418 | H101: ='Combined, MtC'!F101*$C101 -> 61.95621439 | I101: ='Combined, MtC'!G101*$C101 -> 19.59462698 | N101: 15.99163403 | O101: 1.76179376 | P101: 5.046049483 | Q101: 2.48582712 | R101: 0.5917733348 | U101: 5.046049483 | V101: 7.531876603 | W101: 8.123649938 | X101: 9.885443698 | Y101: 15.99163403
A102: ='Combined, MtC'!A102 -> 1947 | C102: =coefficients!D102 -> 0.2473897465 | E102: ='Combined, MtC'!C102*$C102 -> 528.4979734 | F102: ='Combined, MtC'!D102*$C102 -> 73.25546845 | G102: ='Combined, MtC'!E102*$C102 -> 168.9656631 | H102: ='Combined, MtC'!F102*$C102 -> 71.48361361 | I102: ='Combined, MtC'!G102*$C102 -> 20.40171288 | N102: =N101+0.001*E102 -> 16.52013201 | O102: 1.835049229 | P102: 5.215015146 | Q102: 2.557310734 | R102: 0.6121750477 | U102: 5.215015146 | V102: =U102+Q102 -> 7.77232588 | W102: 8.384500927 | X102: 10.21955016 | Y102: 16.52013201
A103: ='Combined, MtC'!A103 -> 1948 | C103: =coefficients!D103 -> 0.2517818581 | E103: ='Combined, MtC'!C103*$C103 -> 550.3394981 | F103: ='Combined, MtC'!D103*$C103 -> 74.32585345 | G103: ='Combined, MtC'!E103*$C103 -> 175.7782815 | H103: ='Combined, MtC'!F103*$C103 -> 75.69660425 | I103: ='Combined, MtC'!G103*$C103 -> 21.77311314 | N103: 17.07047151 | O103: 1.909375082 | P103: 5.390793427 | Q103: 2.633007338 | R103: 0.6339481609 | U103: 5.390793427 | V103: 8.023800765 | W103: 8.657748926 | X103: 10.56712401 | Y103: 17.07047151
A104: ='Combined, MtC'!A104 -> 1949 | C104: =coefficients!D104 -> 0.2562918284 | E104: ='Combined, MtC'!C104*$C104 -> 540.9825854 | F104: ='Combined, MtC'!D104*$C104 -> 78.53576127 | G104: ='Combined, MtC'!E104*$C104 -> 148.3792314 | H104: ='Combined, MtC'!F104*$C104 -> 79.69189371 | I104: ='Combined, MtC'!G104*$C104 -> 21.11862606 | N104: 17.61145409 | O104: 1.987910843 | P104: 5.539172659 | Q104: 2.712699232 | R104: 0.6550667869 | U104: 5.539172659 | V104: 8.25187189 | W104: 8.906938677 | X104: 10.89484952 | Y104: 17.61145409
A105: ='Combined, MtC'!A105 -> 1950 | C105: =coefficients!D105 -> 0.2606584423 | E105: ='Combined, MtC'!C105*$C105 -> 587.3453174 | F105: ='Combined, MtC'!D105*$C105 -> 81.21520156 | G105: ='Combined, MtC'!E105*$C105 -> 177.44141 | H105: ='Combined, MtC'!F105*$C105 -> 80.5312338 | I105: ='Combined, MtC'!G105*$C105 -> 23.29483647 | N105: 18.19879941 | O105: 2.069126045 | P105: 5.716614069 | Q105: 2.793230466 | R105: 0.6783616234 | U105: 5.716614069 | V105: 8.509844534 | W105: 9.188206158 | X105: 11.2573322 | Y105: 18.19879941
A106: ='Combined, MtC'!A106 -> 1951 | C106: =coefficients!D106 -> 0.2653394114 | E106: ='Combined, MtC'!C106*$C106 -> 678.3614324 | F106: ='Combined, MtC'!D106*$C106 -> 84.26651681 | G106: ='Combined, MtC'!E106*$C106 -> 190.0400931 | H106: ='Combined, MtC'!F106*$C106 -> 89.54639962 | I106: ='Combined, MtC'!G106*$C106 -> 24.59152398 | N106: 18.87716084 | O106: 2.153392562 | P106: 5.906654162 | Q106: 2.882776865 | R106: 0.7029531474 | U106: 5.906654162 | V106: 8.789431027 | W106: 9.492384174 | X106: 11.64577674 | Y106: 18.87716084
A107: ='Combined, MtC'!A107 -> 1952 | C107: =coefficients!D107 -> 0.2706801878 | E107: ='Combined, MtC'!C107*$C107 -> 698.5240597 | F107: ='Combined, MtC'!D107*$C107 -> 92.86861302 | G107: ='Combined, MtC'!E107*$C107 -> 176.6385281 | H107: ='Combined, MtC'!F107*$C107 -> 89.78873264 | I107: ='Combined, MtC'!G107*$C107 -> 25.11809284 | N107: 19.5756849 | O107: 2.246261175 | P107: 6.08329269 | Q107: 2.972565598 | R107: 0.7280712402 | U107: 6.08329269 | V107: 9.055858288 | W107: 9.783929528 | X107: 12.0301907 | Y107: 19.5756849
A108: ='Combined, MtC'!A108 -> 1953 | C108: =coefficients!D108 -> 0.2760916124 | E108: ='Combined, MtC'!C108*$C108 -> 719.9693433 | F108: ='Combined, MtC'!D108*$C108 -> 100.3972913 | G108: ='Combined, MtC'!E108*$C108 -> 178.0454896 | H108: ='Combined, MtC'!F108*$C108 -> 91.40730666 | I108: ='Combined, MtC'!G108*$C108 -> 25.58632082 | N108: 20.29565424 | O108: 2.346658466 | P108: 6.261338179 | Q108: 3.063972904 | R108: 0.753657561 | U108: 6.261338179 | V108: 9.325311084 | W108: 10.07896864 | X108: 12.42562711 | Y108: 20.29565424
A109: ='Combined, MtC'!A109 -> 1954 | C109: =coefficients!D109 -> 0.2815805417 | E109: ='Combined, MtC'!C109*$C109 -> 749.854051 | F109: ='Combined, MtC'!D109*$C109 -> 109.9579336 | G109: ='Combined, MtC'!E109*$C109 -> 172.688672 | H109: ='Combined, MtC'!F109*$C109 -> 97.23840557 | I109: ='Combined, MtC'!G109*$C109 -> 26.85337889 | N109: 21.0455083 | O109: 2.4566164 | P109: 6.434026851 | Q109: 3.16121131 | R109: 0.7805109399 | U109: 6.434026851 | V109: 9.595238161 | W109: 10.3757491 | X109: 12.8323655 | Y109: 21.0455083
A110: ='Combined, MtC'!A110 -> 1955 | C110: =coefficients!D110 -> 0.2872081405 | E110: ='Combined, MtC'!C110*$C110 -> 811.7403883 | F110: ='Combined, MtC'!D110*$C110 -> 120.1815284 | G110: ='Combined, MtC'!E110*$C110 -> 192.2015544 | H110: ='Combined, MtC'!F110*$C110 -> 105.0539022 | I110: ='Combined, MtC'!G110*$C110 -> 28.05170524 | N110: 21.85724868 | O110: 2.576797928 | P110: 6.626228406 | Q110: 3.266265212 | R110: 0.8085626452 | U110: 6.626228406 | V110: 9.892493618 | W110: 10.70105626 | X110: 13.27785419 | Y110: 21.85724868
A111: ='Combined, MtC'!A111 -> 1956 | C111: =coefficients!D111 -> 0.2932094136 | E111: ='Combined, MtC'!C111*$C111 -> 870.6226068 | F111: ='Combined, MtC'!D111*$C111 -> 130.6423277 | G111: ='Combined, MtC'!E111*$C111 -> 209.099068 | H111: ='Combined, MtC'!F111*$C111 -> 111.8623527 | I111: ='Combined, MtC'!G111*$C111 -> 30.38051222 | N111: 22.72787129 | O111: 2.707440256 | P111: 6.835327474 | Q111: 3.378127565 | R111: 0.8389431574 | U111: 6.835327474 | V111: 10.21345504 | W111: 11.0523982 | X111: 13.75983845 | Y111: 22.72787129
A112: ='Combined, MtC'!A112 -> 1957 | C112: =coefficients!D112 -> 0.2995444012 | E112: ='Combined, MtC'!C112*$C112 -> 908.5562109 | F112: ='Combined, MtC'!D112*$C112 -> 137.3547672 | G112: ='Combined, MtC'!E112*$C112 -> 210.878869 | H112: ='Combined, MtC'!F112*$C112 -> 115.250577 | I112: ='Combined, MtC'!G112*$C112 -> 30.51213188 | N112: 23.6364275 | O112: 2.844795023 | P112: 7.046206343 | Q112: 3.493378142 | R112: 0.8694552893 | U112: 7.046206343 | V112: 10.53958448 | W112: 11.40903977 | X112: 14.2538348 | Y112: 23.6364275
A113: ='Combined, MtC'!A113 -> 1958 | C113: =coefficients!D113 -> 0.3060435397 | E113: ='Combined, MtC'!C113*$C113 -> 959.0287477 | F113: ='Combined, MtC'!D113*$C113 -> 160.7134397 | G113: ='Combined, MtC'!E113*$C113 -> 218.8469304 | H113: ='Combined, MtC'!F113*$C113 -> 115.4820714 | I113: ='Combined, MtC'!G113*$C113 -> 31.3003888 | N113: 24.59545625 | O113: 3.005508463 | P113: 7.265053273 | Q113: 3.608860213 | R113: 0.9007556781 | U113: 7.265053273 | V113: 10.87391349 | W113: 11.77466916 | X113: 14.78017763 | Y113: 24.59545625
A114: ='Combined, MtC'!A114 -> 1959 | C114: =coefficients!D114 -> 0.3127888295 | E114: ='Combined, MtC'!C114*$C114 -> 971.8161259 | F114: ='Combined, MtC'!D114*$C114 -> 174.831158 | G114: ='Combined, MtC'!E114*$C114 -> 218.6007311 | H114: ='Combined, MtC'!F114*$C114 -> 118.1706189 | I114: ='Combined, MtC'!G114*$C114 -> 32.63031836 | N114: 25.56727237 | O114: 3.180339621 | P114: 7.483654004 | Q114: 3.727030832 | R114: 0.9333859964 | U114: 7.483654004 | V114: 11.21068484 | W114: 12.14407083 | X114: 15.32441045 | Y114: 25.56727237
A115: ='Combined, MtC'!A115 -> 1960 | C115: =coefficients!D115 -> 0.3194727268 | E115: ='Combined, MtC'!C115*$C115 -> 1017.707207 | F115: ='Combined, MtC'!D115*$C115 -> 177.6250151 | G115: ='Combined, MtC'!E115*$C115 -> 227.9142713 | H115: ='Combined, MtC'!F115*$C115 -> 128.5835555 | I115: ='Combined, MtC'!G115*$C115 -> 34.34878111 | N115: 26.58497958 | O115: 3.357964636 | P115: 7.711568276 | Q115: 3.855614388 | R115: 0.9677347775 | U115: 7.711568276 | V115: 11.56718266 | W115: 12.53491744 | X115: 15.89288208 | Y115: 26.58497958
A116: ='Combined, MtC'!A116 -> 1961 | C116: =coefficients!D116 -> 0.3263557093 | E116: ='Combined, MtC'!C116*$C116 -> 1057.319068 | F116: ='Combined, MtC'!D116*$C116 -> 154.5720831 | G116: ='Combined, MtC'!E116*$C116 -> 227.4652952 | H116: ='Combined, MtC'!F116*$C116 -> 134.5156645 | I116: ='Combined, MtC'!G116*$C116 -> 35.33260715 | N116: 27.64229865 | O116: 3.512536719 | P116: 7.939033571 | Q116: 3.990130052 | R116: 1.003067385 | U116: 7.939033571 | V116: 11.92916362 | W116: 12.93223101 | X116: 16.44476773 | Y116: 27.64229865
A117: ='Combined, MtC'!A117 -> 1962 | C117: =coefficients!D117 -> 0.3333524444 | E117: ='Combined, MtC'!C117*$C117 -> 1095.142451 | F117: ='Combined, MtC'!D117*$C117 -> 138.758055 | G117: ='Combined, MtC'!E117*$C117 -> 242.8078202 | H117: ='Combined, MtC'!F117*$C117 -> 144.6580266 | I117: ='Combined, MtC'!G117*$C117 -> 37.69956131 | N117: 28.7374411 | O117: 3.651294774 | P117: 8.181841391 | Q117: 4.134788079 | R117: 1.040766946 | U117: 8.181841391 | V117: 12.31662947 | W117: 13.35739642 | X117: 17.00869119 | Y117: 28.7374411
A118: ='Combined, MtC'!A118 -> 1963 | C118: =coefficients!D118 -> 0.3404867102 | E118: ='Combined, MtC'!C118*$C118 -> 1156.264948 | F118: ='Combined, MtC'!D118*$C118 -> 137.7917029 | G118: ='Combined, MtC'!E118*$C118 -> 258.2117399 | H118: ='Combined, MtC'!F118*$C118 -> 157.3514387 | I118: ='Combined, MtC'!G118*$C118 -> 39.47585894 | N118: =N117+0.001*E118 -> 29.89370605 | O118: 3.789086477 | P118: 8.440053131 | Q118: 4.292139518 | R118: 1.080242805 | U118: 8.440053131 | V118: =U118+Q118 -> 12.73219265 | W118: 13.81243545 | X118: 17.60152193 | Y118: 29.89370605
A119: ='Combined, MtC'!A119 -> 1964 | C119: =coefficients!D119 -> 0.3479216343 | E119: ='Combined, MtC'!C119*$C119 -> 1219.794114 | F119: ='Combined, MtC'!D119*$C119 -> 140.6122502 | G119: ='Combined, MtC'!E119*$C119 -> 275.7293912 | H119: ='Combined, MtC'!F119*$C119 -> 166.1711997 | I119: ='Combined, MtC'!G119*$C119 -> 43.66447823 | N119: 31.11350016 | O119: 3.929698727 | P119: 8.715782522 | Q119: 4.458310717 | R119: 1.123907283 | U119: 8.715782522 | V119: 13.17409324 | W119: 14.29800052 | X119: 18.22769925 | Y119: 31.11350016
A120: ='Combined, MtC'!A120 -> 1965 | C120: =coefficients!D120 -> 0.3556517906 | E120: ='Combined, MtC'!C120*$C120 -> 1290.824303 | F120: ='Combined, MtC'!D120*$C120 -> 147.2699294 | G120: ='Combined, MtC'!E120*$C120 -> 293.3387161 | H120: ='Combined, MtC'!F120*$C120 -> 175.5115624 | I120: ='Combined, MtC'!G120*$C120 -> 47.23158918 | N120: 32.40432447 | O120: 4.076968656 | P120: 9.009121238 | Q120: 4.63382228 | R120: 1.171138872 | U120: 9.009121238 | V120: 13.64294352 | W120: 14.81408239 | X120: 18.89105105 | Y120: 32.40432447
A121: ='Combined, MtC'!A121 -> 1966 | C121: =coefficients!D121 -> 0.3636230932 | E121: ='Combined, MtC'!C121*$C121 -> 1371.578672 | F121: ='Combined, MtC'!D121*$C121 -> 154.7897328 | G121: ='Combined, MtC'!E121*$C121 -> 328.509902 | H121: ='Combined, MtC'!F121*$C121 -> 184.6247894 | I121: ='Combined, MtC'!G121*$C121 -> 48.98246693 | N121: 33.77590314 | O121: 4.231758389 | P121: 9.33763114 | Q121: 4.818447069 | R121: 1.220121339 | U121: 9.33763114 | V121: 14.15607821 | W121: 15.37619955 | X121: 19.60795794 | Y121: 33.77590314
A122: ='Combined, MtC'!A122 -> 1967 | C122: =coefficients!D122 -> 0.3718907399 | E122: ='Combined, MtC'!C122*$C122 -> 1431.927733 | F122: ='Combined, MtC'!D122*$C122 -> 148.8715077 | G122: ='Combined, MtC'!E122*$C122 -> 351.082858 | H122: ='Combined, MtC'!F122*$C122 -> 191.9911977 | I122: ='Combined, MtC'!G122*$C122 -> 53.28688531 | N122: 35.20783087 | O122: 4.380629897 | P122: 9.688713998 | Q122: 5.010438267 | R122: 1.273408225 | U122: 9.688713998 | V122: 14.69915226 | W122: 15.97256049 | X122: 20.35319039 | Y122: 35.20783087
A123: ='Combined, MtC'!A123 -> 1968 | C123: =coefficients!D123 -> 0.3803967514 | E123: ='Combined, MtC'!C123*$C123 -> 1491.683637 | F123: ='Combined, MtC'!D123*$C123 -> 155.8181934 | G123: ='Combined, MtC'!E123*$C123 -> 373.5511314 | H123: ='Combined, MtC'!F123*$C123 -> 207.2269504 | I123: ='Combined, MtC'!G123*$C123 -> 57.30251015 | N123: 36.69951451 | O123: 4.53644809 | P123: 10.06226513 | Q123: 5.217665217 | R123: 1.330710735 | U123: 10.06226513 | V123: 15.27993035 | W123: 16.61064108 | X123: 21.14708917 | Y123: 36.69951451
A124: ='Combined, MtC'!A124 -> 1969 | C124: =coefficients!D124 -> 0.3890399695 | E124: ='Combined, MtC'!C124*$C124 -> 1598.235329 | F124: ='Combined, MtC'!D124*$C124 -> 170.6461969 | G124: ='Combined, MtC'!E124*$C124 -> 406.9004832 | H124: ='Combined, MtC'!F124*$C124 -> 223.5533763 | I124: ='Combined, MtC'!G124*$C124 -> 59.82080871 | N124: 38.29774984 | O124: 4.707094287 | P124: 10.46916561 | Q124: 5.441218593 | R124: 1.390531543 | U124: 10.46916561 | V124: 15.91038421 | W124: 17.30091575 | X124: 22.00801004 | Y124: 38.29774984
A125: ='Combined, MtC'!A125 -> 1970 | C125: =coefficients!D125 -> 0.398022368 | E125: ='Combined, MtC'!C125*$C125 -> 1724.917099 | F125: ='Combined, MtC'!D125*$C125 -> 195.5124878 | G125: ='Combined, MtC'!E125*$C125 -> 448.7681104 | H125: ='Combined, MtC'!F125*$C125 -> 246.1144247 | I125: ='Combined, MtC'!G125*$C125 -> 65.48068967 | N125: 40.02266693 | O125: 4.902606775 | P125: 10.91793372 | Q125: 5.687333018 | R125: 1.456012233 | U125: 10.91793372 | V125: 16.60526674 | W125: 18.06127897 | X125: 22.96388575 | Y125: 40.02266693
A126: ='Combined, MtC'!A126 -> 1971 | C126: =coefficients!D126 -> 0.4075404289 | E126: ='Combined, MtC'!C126*$C126 -> 1751.157209 | F126: ='Combined, MtC'!D126*$C126 -> 211.804711 | G126: ='Combined, MtC'!E126*$C126 -> 447.7892439 | H126: ='Combined, MtC'!F126*$C126 -> 257.0408835 | I126: ='Combined, MtC'!G126*$C126 -> 68.85314038 | N126: 41.77382414 | O126: 5.114411486 | P126: 11.36572297 | Q126: 5.944373902 | R126: 1.524865374 | U126: 11.36572297 | V126: 17.31009687 | W126: 18.83496224 | X126: 23.94937373 | Y126: 41.77382414
A127: ='Combined, MtC'!A127 -> 1972 | C127: =coefficients!D127 -> 0.416986683 | E127: ='Combined, MtC'!C127*$C127 -> 1844.086494 | F127: ='Combined, MtC'!D127*$C127 -> 223.8716019 | G127: ='Combined, MtC'!E127*$C127 -> 485.3548605 | H127: ='Combined, MtC'!F127*$C127 -> 270.8670435 | I127: ='Combined, MtC'!G127*$C127 -> 73.79859505 | N127: 43.61791064 | O127: 5.338283088 | P127: 11.85107783 | Q127: 6.215240945 | R127: 1.598663969 | U127: 11.85107783 | V127: 18.06631877 | W127: 19.66498274 | X127: 25.00326583 | Y127: 43.61791064
A128: ='Combined, MtC'!A128 -> 1973 | C128: =coefficients!D128 -> 0.4266764208 | E128: ='Combined, MtC'!C128*$C128 -> 1955.89538 | F128: ='Combined, MtC'!D128*$C128 -> 234.1670172 | G128: ='Combined, MtC'!E128*$C128 -> 515.3969556 | H128: ='Combined, MtC'!F128*$C128 -> 291.8596001 | I128: ='Combined, MtC'!G128*$C128 -> 77.16635074 | N128: 45.57380602 | O128: 5.572450105 | P128: 12.36647478 | Q128: 6.507100545 | R128: 1.675830319 | U128: 12.36647478 | V128: 18.87357533 | W128: 20.54940565 | X128: 26.12185575 | Y128: 45.57380602
A129: ='Combined, MtC'!A129 -> 1974 | C129: =coefficients!D129 -> 0.436721464 | E129: ='Combined, MtC'!C129*$C129 -> 1990.163294 | F129: ='Combined, MtC'!D129*$C129 -> 243.1001295 | G129: ='Combined, MtC'!E129*$C129 -> 507.4411245 | H129: ='Combined, MtC'!F129*$C129 -> 289.0914415 | I129: ='Combined, MtC'!G129*$C129 -> 80.17223455 | N129: 47.56396931 | O129: 5.815550234 | P129: 12.87391591 | Q129: 6.796191987 | R129: 1.756002554 | U129: 12.87391591 | V129: 19.67010789 | W129: 21.42611045 | X129: 27.24166068 | Y129: 47.56396931
A130: ='Combined, MtC'!A130 -> 1975 | C130: =coefficients!D130 -> 0.4467661005 | E130: ='Combined, MtC'!C130*$C130 -> 2022.487798 | F130: ='Combined, MtC'!D130*$C130 -> 269.7115779 | G130: ='Combined, MtC'!E130*$C130 -> 500.4272215 | H130: ='Combined, MtC'!F130*$C130 -> 282.8199187 | I130: ='Combined, MtC'!G130*$C130 -> 83.35873594 | N130: 49.58645711 | O130: 6.085261812 | P130: 13.37434313 | Q130: 7.079011905 | R130: 1.83936129 | U130: 13.37434313 | V130: 20.45335503 | W130: 22.29271632 | X130: 28.37797814 | Y130: 49.58645711
A131: ='Combined, MtC'!A131 -> 1976 | C131: =coefficients!D131 -> 0.4567381144 | E131: ='Combined, MtC'!C131*$C131 -> 2181.570781 | F131: ='Combined, MtC'!D131*$C131 -> 287.586798 | G131: ='Combined, MtC'!E131*$C131 -> 544.9822475 | H131: ='Combined, MtC'!F131*$C131 -> 306.4656112 | I131: ='Combined, MtC'!G131*$C131 -> 85.33041795 | N131: 51.76802789 | O131: 6.37284861 | P131: 13.91932538 | Q131: 7.385477517 | R131: 1.924691708 | U131: 13.91932538 | V131: 21.30480289 | W131: 23.2294946 | X131: 29.60234321 | Y131: 51.76802789
A132: ='Combined, MtC'!A132 -> 1977 | C132: =coefficients!D132 -> 0.4672627365 | E132: ='Combined, MtC'!C132*$C132 -> 2291.247594 | F132: ='Combined, MtC'!D132*$C132 -> 310.120269 | G132: ='Combined, MtC'!E132*$C132 -> 576.1508411 | H132: ='Combined, MtC'!F132*$C132 -> 306.9114823 | I132: ='Combined, MtC'!G132*$C132 -> 90.19708109 | N132: 54.05927548 | O132: 6.682968879 | P132: 14.49547622 | Q132: 7.692388999 | R132: 2.014888789 | U132: 14.49547622 | V132: 22.18786522 | W132: 24.20275401 | X132: 30.88572288 | Y132: 54.05927548
A133: ='Combined, MtC'!A133 -> 1978 | C133: =coefficients!D133 -> 0.4779629915 | E133: ='Combined, MtC'!C133*$C133 -> 2410.149415 | F133: ='Combined, MtC'!D133*$C133 -> 326.9680778 | G133: ='Combined, MtC'!E133*$C133 -> 611.4841518 | H133: ='Combined, MtC'!F133*$C133 -> 322.0720161 | I133: ='Combined, MtC'!G133*$C133 -> 95.17968606 | N133: 56.4694249 | O133: 7.009936957 | P133: 15.10696037 | Q133: 8.014461015 | R133: 2.110068475 | U133: 15.10696037 | V133: 23.12142138 | W133: 25.23148986 | X133: 32.24142682 | Y133: 56.4694249
A134: ='Combined, MtC'!A134 -> 1979 | C134: =coefficients!D134 -> 0.4889411959 | E134: ='Combined, MtC'!C134*$C134 -> 2509.473575 | F134: ='Combined, MtC'!D134*$C134 -> 320.6048539 | G134: ='Combined, MtC'!E134*$C134 -> 628.3039094 | H134: ='Combined, MtC'!F134*$C134 -> 345.3564263 | I134: ='Combined, MtC'!G134*$C134 -> 101.3192747 | N134: =N133+0.001*E134 -> 58.97889847 | O134: 7.330541811 | P134: 15.73526428 | Q134: 8.359817441 | R134: 2.21138775 | U134: =P134 -> 15.73526428 | V134: =U134+Q134 -> 24.09508172 | W134: 26.30646947 | X134: =W134+O134 -> 33.63701128 | Y134: =N134 -> 58.97889847
A135: ='Combined, MtC'!A135 -> 1980 | C135: =coefficients!D135 -> 0.5000359546 | E135: ='Combined, MtC'!C135*$C135 -> 2518.77761 | F135: ='Combined, MtC'!D135*$C135 -> 304.8350689 | G135: ='Combined, MtC'!E135*$C135 -> 617.1049224 | H135: ='Combined, MtC'!F135*$C135 -> 336.6975099 | I135: ='Combined, MtC'!G135*$C135 -> 105.97437 | N135: 61.49767608 | O135: 7.63537688 | P135: 16.3523692 | Q135: 8.696514951 | R135: 2.31736212 | U135: 16.3523692 | V135: 25.04888415 | W135: 27.36624627 | X135: 35.00162315 | Y135: 61.49767608
A136: ='Combined, MtC'!A136 -> 1981 | C136: =coefficients!D136 -> 0.5108832431 | E136: ='Combined, MtC'!C136*$C136 -> 2534.310405 | F136: ='Combined, MtC'!D136*$C136 -> 288.4511162 | G136: ='Combined, MtC'!E136*$C136 -> 606.2881343 | H136: ='Combined, MtC'!F136*$C136 -> 326.3174245 | I136: ='Combined, MtC'!G136*$C136 -> 107.8327392 | N136: 64.03198649 | O136: 7.923827996 | P136: 16.95865734 | Q136: 9.022832376 | R136: 2.425194859 | U136: 16.95865734 | V136: 25.98148971 | W136: 28.40668457 | X136: 36.33051257 | Y136: 64.03198649
A137: ='Combined, MtC'!A137 -> 1982 | C137: =coefficients!D137 -> 0.5215762959 | E137: ='Combined, MtC'!C137*$C137 -> 2674.869088 | F137: ='Combined, MtC'!D137*$C137 -> 288.8475965 | G137: ='Combined, MtC'!E137*$C137 -> 592.7294212 | H137: ='Combined, MtC'!F137*$C137 -> 318.3082599 | I137: ='Combined, MtC'!G137*$C137 -> 106.7875308 | N137: 66.70685558 | O137: 8.212675593 | P137: 17.55138676 | Q137: 9.341140636 | R137: 2.53198239 | U137: 17.55138676 | V137: 26.89252739 | W137: 29.42450978 | X137: 37.63718537 | Y137: 66.70685558
A138: ='Combined, MtC'!A138 -> 1983 | C138: =coefficients!D138 -> 0.5326478484 | E138: ='Combined, MtC'!C138*$C138 -> 2779.527453 | F138: ='Combined, MtC'!D138*$C138 -> 296.1909272 | G138: ='Combined, MtC'!E138*$C138 -> 609.9990222 | H138: ='Combined, MtC'!F138*$C138 -> 318.6326062 | I138: ='Combined, MtC'!G138*$C138 -> 106.4167016 | N138: 69.48638303 | O138: 8.50886652 | P138: 18.16138578 | Q138: 9.659773242 | R138: 2.638399091 | U138: 18.16138578 | V138: 27.82115902 | W138: 30.45955811 | X138: 38.96842463 | Y138: 69.48638303
A139: ='Combined, MtC'!A139 -> 1984 | C139: =coefficients!D139 -> 0.5437986317 | E139: ='Combined, MtC'!C139*$C139 -> 2934.877953 | F139: ='Combined, MtC'!D139*$C139 -> 320.1347983 | G139: ='Combined, MtC'!E139*$C139 -> 640.5520456 | H139: ='Combined, MtC'!F139*$C139 -> 323.5922156 | I139: ='Combined, MtC'!G139*$C139 -> 112.4543486 | N139: 72.42126098 | O139: 8.829001318 | P139: 18.80193782 | Q139: 9.983365457 | R139: 2.75085344 | U139: 18.80193782 | V139: 28.78530328 | W139: 31.53615672 | X139: 40.36515804 | Y139: 72.42126098
A140: ='Combined, MtC'!A140 -> 1985 | C140: =coefficients!D140 -> 0.5553416234 | E140: ='Combined, MtC'!C140*$C140 -> 3070.127306 | F140: ='Combined, MtC'!D140*$C140 -> 343.7633511 | G140: ='Combined, MtC'!E140*$C140 -> 658.4674521 | H140: ='Combined, MtC'!F140*$C140 -> 340.3197332 | I140: ='Combined, MtC'!G140*$C140 -> 114.5987424 | N140: 75.49138829 | O140: 9.172764669 | P140: 19.46040528 | Q140: 10.32368519 | R140: 2.865452182 | U140: 19.46040528 | V140: 29.78409047 | W140: 32.64954265 | X140: 41.82230732 | Y140: 75.49138829
A141: ='Combined, MtC'!A141 -> 1986 | C141: =coefficients!D141 -> 0.5671811463 | E141: ='Combined, MtC'!C141*$C141 -> 3185.976174 | F141: ='Combined, MtC'!D141*$C141 -> 363.5635118 | G141: ='Combined, MtC'!E141*$C141 -> 675.8879922 | H141: ='Combined, MtC'!F141*$C141 -> 344.8755736 | I141: ='Combined, MtC'!G141*$C141 -> 113.8031387 | N141: 78.67736446 | O141: 9.536328181 | P141: 20.13629327 | Q141: 10.66856076 | R141: 2.979255321 | U141: 20.13629327 | V141: 30.80485403 | W141: 33.78410935 | X141: 43.32043754 | Y141: 78.67736446
A142: ='Combined, MtC'!A142 -> 1987 | C142: =coefficients!D142 -> 0.579163699 | E142: ='Combined, MtC'!C142*$C142 -> 3349.176835 | F142: ='Combined, MtC'!D142*$C142 -> 390.100864 | G142: ='Combined, MtC'!E142*$C142 -> 722.4750922 | H142: ='Combined, MtC'!F142*$C142 -> 356.7771748 | I142: ='Combined, MtC'!G142*$C142 -> 122.6144571 | N142: 82.0265413 | O142: 9.926429045 | P142: 20.85876836 | Q142: 11.02533794 | R142: 3.101869778 | U142: 20.85876836 | V142: 31.8841063 | W142: 34.98597608 | X142: 44.91240512 | Y142: 82.0265413
A143: ='Combined, MtC'!A143 -> 1988 | C143: =coefficients!D143 -> 0.5913821865 | E143: ='Combined, MtC'!C143*$C143 -> 3546.801653 | F143: ='Combined, MtC'!D143*$C143 -> 420.4713744 | G143: ='Combined, MtC'!E143*$C143 -> 776.2573653 | H143: ='Combined, MtC'!F143*$C143 -> 363.1217321 | I143: ='Combined, MtC'!G143*$C143 -> 129.7027691 | N143: 85.57334295 | O143: 10.34690042 | P143: 21.63502573 | Q143: 11.38845967 | R143: 3.231572547 | U143: 21.63502573 | V143: 33.0234854 | W143: 36.25505794 | X143: 46.60195836 | Y143: 85.57334295
A144: ='Combined, MtC'!A144 -> 1989 | C144: =coefficients!D144 -> 0.6040253253 | E144: ='Combined, MtC'!C144*$C144 -> 3698.727939 | F144: ='Combined, MtC'!D144*$C144 -> 436.9600143 | G144: ='Combined, MtC'!E144*$C144 -> 803.0447237 | H144: ='Combined, MtC'!F144*$C144 -> 387.9526611 | I144: ='Combined, MtC'!G144*$C144 -> 136.1076843 | N144: 89.27207089 | O144: 10.78386043 | P144: 22.43807045 | Q144: 11.77641233 | R144: 3.367680231 | U144: 22.43807045 | V144: 34.21448278 | W144: 37.58216301 | X144: 48.36602345 | Y144: 89.27207089
A145: ='Combined, MtC'!A145 -> 1990 | C145: =coefficients!D145 -> 0.6169693685 | E145: ='Combined, MtC'!C145*$C145 -> 3747.716264 | F145: ='Combined, MtC'!D145*$C145 -> 451.716591 | G145: ='Combined, MtC'!E145*$C145 -> 791.8476085 | H145: ='Combined, MtC'!F145*$C145 -> 387.8452073 | I145: ='Combined, MtC'!G145*$C145 -> 131.6574997 | N145: 93.01978715 | O145: 11.23557702 | P145: 23.22991806 | Q145: 12.16425754 | R145: 3.499337731 | U145: 23.22991806 | V145: 35.3941756 | W145: 38.89351333 | X145: 50.12909035 | Y145: 93.01978715
A146: ='Combined, MtC'!A146 -> 1991 | C146: =coefficients!D146 -> 0.6298482816 | E146: ='Combined, MtC'!C146*$C146 -> 4091.516482 | F146: ='Combined, MtC'!D146*$C146 -> 475.9771652 | G146: ='Combined, MtC'!E146*$C146 -> 808.175462 | H146: ='Combined, MtC'!F146*$C146 -> 400.766541 | I146: ='Combined, MtC'!G146*$C146 -> 132.2720442 | N146: 97.11130364 | O146: 11.71155419 | P146: 24.03809352 | Q146: 12.56502408 | R146: 3.631609775 | U146: 24.03809352 | V146: 36.6031176 | W146: 40.23472738 | X146: 51.94628157 | Y146: 97.11130364
A147: ='Combined, MtC'!A147 -> 1992 | C147: =coefficients!D147 -> 0.6437231473 | E147: ='Combined, MtC'!C147*$C147 -> 4807.778932 | F147: ='Combined, MtC'!D147*$C147 -> 498.9015966 | G147: ='Combined, MtC'!E147*$C147 -> 841.5529174 | H147: ='Combined, MtC'!F147*$C147 -> 399.8013837 | I147: ='Combined, MtC'!G147*$C147 -> 138.2939405 | N147: 101.9190826 | O147: 12.21045579 | P147: 24.87964644 | Q147: 12.96482546 | R147: 3.769903716 | U147: 24.87964644 | V147: 37.8444719 | W147: 41.61437562 | X147: 53.8248314 | Y147: 101.9190826
A148: ='Combined, MtC'!A148 -> 1993 | C148: =coefficients!D148 -> 0.6599146422 | E148: ='Combined, MtC'!C148*$C148 -> 4960.334197 | F148: ='Combined, MtC'!D148*$C148 -> 544.1309685 | G148: ='Combined, MtC'!E148*$C148 -> 884.6447461 | H148: ='Combined, MtC'!F148*$C148 -> 402.6829503 | I148: ='Combined, MtC'!G148*$C148 -> 143.9023067 | N148: 106.8794168 | O148: 12.75458675 | P148: 25.76429118 | Q148: 13.36750841 | R148: 3.913806023 | U148: 25.76429118 | V148: 39.1317996 | W148: 43.04560562 | X148: 55.80019238 | Y148: 106.8794168
A149: ='Combined, MtC'!A149 -> 1994 | C149: =coefficients!D149 -> 0.6763076914 | E149: ='Combined, MtC'!C149*$C149 -> 5091.557431 | F149: ='Combined, MtC'!D149*$C149 -> 593.1277969 | G149: ='Combined, MtC'!E149*$C149 -> 918.7086768 | H149: ='Combined, MtC'!F149*$C149 -> 414.5039794 | I149: ='Combined, MtC'!G149*$C149 -> 149.2057179 | N149: 111.9709742 | O149: 13.34771455 | P149: 26.68299986 | Q149: 13.78201239 | R149: 4.06301174 | U149: 26.68299986 | V149: 40.46501225 | W149: 44.528024 | X149: 57.87573855 | Y149: 111.9709742
A150: ='Combined, MtC'!A150 -> 1995 | C150: =coefficients!D150 -> 0.692724595 | E150: ='Combined, MtC'!C150*$C150 -> 5280.913906 | F150: ='Combined, MtC'!D150*$C150 -> 648.7550096 | G150: ='Combined, MtC'!E150*$C150 -> 948.4779612 | H150: ='Combined, MtC'!F150*$C150 -> 430.9339953 | I150: ='Combined, MtC'!G150*$C150 -> 155.0289242 | N150: =N149+0.001*E150 -> 117.2518881 | O150: 13.99646956 | P150: 27.63147782 | Q150: 14.21294639 | R150: 4.218040665 | U150: 27.63147782 | V150: =U150+Q150 -> 41.84442421 | W150: 46.06246488 | X150: 60.05893444 | Y150: 117.2518881
A151: ='Combined, MtC'!A151 -> 1996 | C151: =coefficients!D151 -> 0.7093898223 | E151: ='Combined, MtC'!C151*$C151 -> 5505.928397 | F151: ='Combined, MtC'!D151*$C151 -> 689.3233834 | G151: ='Combined, MtC'!E151*$C151 -> 995.0300325 | H151: ='Combined, MtC'!F151*$C151 -> 457.029075 | I151: ='Combined, MtC'!G151*$C151 -> 164.4790533 | N151: 122.7578165 | O151: 14.68579294 | P151: 28.62650785 | Q151: 14.66997546 | R151: 4.382519718 | U151: 28.62650785 | V151: 43.29648332 | W151: 47.67900304 | X151: 62.36479598 | Y151: 122.7578165
A152: ='Combined, MtC'!A152 -> 1997 | C152: =coefficients!D152 -> 0.7264851066 | E152: ='Combined, MtC'!C152*$C152 -> 5613.899131 | F152: ='Combined, MtC'!D152*$C152 -> 702.6798606 | G152: ='Combined, MtC'!E152*$C152 -> 1041.700601 | H152: ='Combined, MtC'!F152*$C152 -> 461.4812112 | I152: ='Combined, MtC'!G152*$C152 -> 171.9620033 | N152: 128.3717156 | O152: 15.38847281 | P152: 29.66820846 | Q152: 15.13145668 | R152: 4.554481721 | U152: 29.66820846 | V152: 44.79966513 | W152: 49.35414685 | X152: 64.74261966 | Y152: 128.3717156
A153: ='Combined, MtC'!A153 -> 1998 | C153: =coefficients!D153 -> 0.7434913576 | E153: ='Combined, MtC'!C153*$C153 -> 5687.425615 | F153: ='Combined, MtC'!D153*$C153 -> 682.9905662 | G153: ='Combined, MtC'!E153*$C153 -> 1073.320629 | H153: ='Combined, MtC'!F153*$C153 -> 486.5568038 | I153: ='Combined, MtC'!G153*$C153 -> 180.4481778 | N153: 134.0591412 | O153: 16.07146337 | P153: 30.74152909 | Q153: 15.61801348 | R153: 4.734929899 | U153: 30.74152909 | V153: 46.35954256 | W153: 51.09447246 | X153: 67.16593584 | Y153: 134.0591412
A154: ='Combined, MtC'!A154 -> 1999 | C154: =coefficients!D154 -> 0.7602176222 | E154: ='Combined, MtC'!C154*$C154 -> 5867.833223 | F154: ='Combined, MtC'!D154*$C154 -> 691.703085 | G154: ='Combined, MtC'!E154*$C154 -> 1118.097062 | H154: ='Combined, MtC'!F154*$C154 -> 493.8028535 | I154: ='Combined, MtC'!G154*$C154 -> 187.914621 | N154: 139.9269745 | O154: 16.76316646 | P154: 31.85962615 | Q154: 16.11181633 | R154: 4.92284452 | U154: 31.85962615 | V154: 47.97144248 | W154: 52.894287 | X154: 69.65745346 | Y154: 139.9269745
A155: ='Combined, MtC'!A155 -> 2000 | C155: =coefficients!D155 -> 0.7772392581 | E155: ='Combined, MtC'!C155*$C155 -> 6113.516065 | F155: ='Combined, MtC'!D155*$C155 -> 711.7068741 | G155: ='Combined, MtC'!E155*$C155 -> 1183.699792 | H155: ='Combined, MtC'!F155*$C155 -> 509.9207174 | I155: ='Combined, MtC'!G155*$C155 -> 196.8102709 | N155: 146.0404905 | O155: 17.47487333 | P155: 33.04332594 | Q155: 16.62173705 | R155: 5.119654791 | U155: 33.04332594 | V155: 49.66506299 | W155: 54.78471778 | X155: 72.25959111 | Y155: 146.0404905
A156: ='Combined, MtC'!A156 -> 2001 | C156: =coefficients!D156 -> 0.7946889053 | E156: ='Combined, MtC'!C156*$C156 -> 6270.90684 | F156: ='Combined, MtC'!D156*$C156 -> 745.5395421 | G156: ='Combined, MtC'!E156*$C156 -> 1188.511456 | H156: ='Combined, MtC'!F156*$C156 -> 533.2359376 | I156: ='Combined, MtC'!G156*$C156 -> 198.8105817 | N156: 152.3113974 | O156: 18.22041287 | P156: 34.2318374 | Q156: 17.15497299 | R156: 5.318465373 | U156: 34.2318374 | V156: 51.38681038 | W156: 56.70527576 | X156: 74.92568863 | Y156: 152.3113974
A157: ='Combined, MtC'!A157 -> 2002 | C157: =coefficients!D157 -> 0.8122178113 | E157: ='Combined, MtC'!C157*$C157 -> 6600.056756 | F157: ='Combined, MtC'!D157*$C157 -> 807.7617408 | G157: ='Combined, MtC'!E157*$C157 -> 1225.208801 | H157: ='Combined, MtC'!F157*$C157 -> 545.9611168 | I157: ='Combined, MtC'!G157*$C157 -> 204.9502504 | N157: 158.9114541 | O157: 19.02817461 | P157: 35.4570462 | Q157: 17.7009341 | R157: 5.523415623 | U157: 35.4570462 | V157: 53.1579803 | W157: 58.68139592 | X157: 77.70957054 | Y157: 158.9114541
A158: ='Combined, MtC'!A158 -> 2003 | C158: =coefficients!D158 -> 0.8302424882 | E158: ='Combined, MtC'!C158*$C158 -> 7053.437141 | F158: ='Combined, MtC'!D158*$C158 -> 1013.818816 | G158: ='Combined, MtC'!E158*$C158 -> 1259.302839 | H158: ='Combined, MtC'!F158*$C158 -> 575.716377 | I158: ='Combined, MtC'!G158*$C158 -> 216.0225365 | N158: 165.9648913 | O158: 20.04199343 | P158: 36.71634904 | Q158: 18.27665048 | R158: 5.73943816 | U158: 36.71634904 | V158: 54.99299952 | W158: 60.73243768 | X158: 80.77443111 | Y158: 165.9648913
A159: ='Combined, MtC'!A159 -> 2004 | C159: =coefficients!D159 -> 0.8491354032 | E159: ='Combined, MtC'!C159*$C159 -> 7534.35211 | F159: ='Combined, MtC'!D159*$C159 -> 1213.56793 | G159: ='Combined, MtC'!E159*$C159 -> 1307.464898 | H159: ='Combined, MtC'!F159*$C159 -> 594.9565703 | I159: ='Combined, MtC'!G159*$C159 -> 222.231557 | N159: 173.4992434 | O159: 21.25556136 | P159: 38.02381393 | Q159: 18.87160705 | R159: 5.961669717 | U159: 38.02381393 | V159: 56.89542099 | W159: 62.8570907 | X159: 84.11265206 | Y159: 173.4992434
A160: ='Combined, MtC'!A160 -> 2005 | C160: =coefficients!D160 -> 0.8689359264 | E160: ='Combined, MtC'!C160*$C160 -> 7827.021168 | F160: ='Combined, MtC'!D160*$C160 -> 1360.785551 | G160: ='Combined, MtC'!E160*$C160 -> 1345.465776 | H160: ='Combined, MtC'!F160*$C160 -> 609.5260541 | I160: ='Combined, MtC'!G160*$C160 -> 231.7296576 | N160: 181.3262645 | O160: 22.61634691 | P160: 39.36927971 | Q160: 19.48113311 | R160: 6.193399374 | U160: 39.36927971 | V160: 58.85041282 | W160: 65.04381219 | X160: 87.6601591 | Y160: 181.3262645
A161: ='Combined, MtC'!A161 -> 2006 | C161: =coefficients!D161 -> 0.889056197 | E161: ='Combined, MtC'!C161*$C161 -> 6943.191946 | F161: ='Combined, MtC'!D161*$C161 -> 1555.172662 | G161: ='Combined, MtC'!E161*$C161 -> 1354.771116 | H161: ='Combined, MtC'!F161*$C161 -> 637.0834458 | I161: ='Combined, MtC'!G161*$C161 -> 220.1863249 | N161: 188.2694565 | O161: 24.17151957 | P161: 40.72405083 | Q161: 20.11821655 | R161: 6.413585699 | U161: 40.72405083 | V161: 60.84226738 | W161: 67.25585308 | X161: 91.42737265 | Y161: 188.2694565
A162: ='Combined, MtC'!A162 -> 2007 | C162: =coefficients!D162 -> 0.9065173608 | E162: ='Combined, MtC'!C162*$C162 -> 7271.369745 | F162: ='Combined, MtC'!D162*$C162 -> 1678.998878 | G162: ='Combined, MtC'!E162*$C162 -> 1403.916472 | H162: ='Combined, MtC'!F162*$C162 -> 641.9756515 | I162: ='Combined, MtC'!G162*$C162 -> 228.5692873 | N162: 195.5408262 | O162: 25.85051845 | P162: 42.1279673 | Q162: 20.7601922 | R162: 6.642154986 | U162: 42.1279673 | V162: 62.8881595 | W162: 69.53031449 | X162: 95.38083294 | Y162: 195.5408262
A163: ='Combined, MtC'!A163 -> 2008 | C163: =coefficients!D163 -> 0.9244476558 | E163: ='Combined, MtC'!C163*$C163 -> 7540.509679 | F163: ='Combined, MtC'!D163*$C163 -> 1773.629557 | G163: ='Combined, MtC'!E163*$C163 -> 1388.240343 | H163: ='Combined, MtC'!F163*$C163 -> 640.6893723 | I163: ='Combined, MtC'!G163*$C163 -> 232.0077037 | N163: 203.0813359 | O163: 27.62414801 | P163: 43.51620764 | Q163: 21.40088158 | R163: 6.87416269 | U163: 43.51620764 | V163: 64.91708922 | W163: 71.79125191 | X163: 99.41539991 | Y163: 203.0813359
A164: ='Combined, MtC'!A164 -> 2009 | C164: =coefficients!D164 -> 0.9427695148 | E164: ='Combined, MtC'!C164*$C164 -> 7666.76008 | F164: ='Combined, MtC'!D164*$C164 -> 1977.63347 | G164: ='Combined, MtC'!E164*$C164 -> 1326.235622 | H164: ='Combined, MtC'!F164*$C164 -> 606.1461174 | I164: ='Combined, MtC'!G164*$C164 -> 228.786592 | N164: 210.748096 | O164: 29.60178148 | P164: 44.84244326 | Q164: 22.00702769 | R164: 7.102949282 | U164: 44.84244326 | V164: 66.84947096 | W164: 73.95242024 | X164: 103.5542017 | Y164: 210.748096
A165: ='Combined, MtC'!A165 -> 2010 | C165: =coefficients!D165 -> 0.9610298768 | E165: ='Combined, MtC'!C165*$C165 -> 8187.495957 | F165: ='Combined, MtC'!D165*$C165 -> 2163.947129 | G165: ='Combined, MtC'!E165*$C165 -> 1387.27475 | H165: ='Combined, MtC'!F165*$C165 -> 628.9786779 | I165: ='Combined, MtC'!G165*$C165 -> 226.5051317 | N165: 218.935592 | O165: 31.76572861 | P165: 46.22971801 | Q165: 22.63600637 | R165: 7.329454414 | U165: 46.22971801 | V165: 68.86572439 | W165: 76.1951788 | X165: 107.9609074 | Y165: 218.935592
A166: ='Combined, MtC'!A166 -> 2011 | C166: =coefficients!D166 -> 0.980159639 | E166: ='Combined, MtC'!C166*$C166 -> 8632.311028 | F166: ='Combined, MtC'!D166*$C166 -> 2410.844755 | G166: ='Combined, MtC'!E166*$C166 -> 1387.32325 | H166: ='Combined, MtC'!F166*$C166 -> 607.7577857 | I166: ='Combined, MtC'!G166*$C166 -> 228.4016999 | N166: =N165+0.001*E166 -> 227.567903 | O166: 34.17657336 | P166: 47.61704126 | Q166: 23.24376416 | R166: 7.557856114 | U166: 47.61704126 | V166: =U166+Q166 -> 70.86080542 | W166: 78.41866153 | X166: 112.5952349 | Y166: 227.567903
A167: ='Combined, MtC'!A167 -> 2012 | C167: =coefficients!D167 -> 1
A171: 1959-2011 | E171: =SUM(E114:E166) -> 202972.4467 | F171: =SUM(F114:F166) -> 31171.0649 | G171: 40351.98799 | H171: 19634.90394 | I171: 6657.100436
A173: Total | E173: =SUM(E5:E170) -> 227567.903 | F173: =SUM(F5:F170) -> 34176.57336 | G173: 47617.04126 | H173: 23243.76416 | I173: 7557.856114 | J173: =E173-SUM(F173:I173) -> 114972.6681
A175: Contribution | E175: 1 | F175: =F173/$E173 -> 0.1501818706 | G175: =G173/$E173 -> 0.2092432221 | H175: 0.1021399057 | I175: 0.03321143278 | J175: =E175-SUM(F175:I175) -> 0.5052235688
